Workbook

Sheet Core-Data (hidden)
A1: PLAYERNAME | B1: IDPLAYER | C1: MC Pos | D1: OF Positions | E1: TEAM | F1: Age | G1: RotoChamp (Projected) | H1: CBS (Projected) | I1: ESPN (AAV) | J1: Razzball (Projected) | K1: NFBC (AAV) | L1: FantasyPros (Projected) | M1: Average of All Options | N1: Imported Values | O1: RotoChamp | P1: Yahoo Staff | Q1: Razzball - Grey | R1: ESPN - E. Karabell | S1: FantasyPros Avg | T1: MC | U1: Team In Sheet? | V1: Rank Chosen | W1: Filtered-Rank | X1: Chosen Auction | Y1: Filtered Auction | Z1: Adjusted Filter | AA1: =IF(VLOOKUP(A2,'Name-Sort'!$D$2:$E$977,2,FALSE)="",A2,"") -> Andrew Abbott | AB1: =IFERROR(INDEX($AA$1:$AA$982,SMALL(IF($AA$1:$AA$982<>"",ROW($AA$1:$AA$982)),ROW(AA1))),"") -> Andrew Abbott
A2: Andrew Abbott | B2: abbotan01 | C2: SP | E2: CIN | F2: 24 | G2: -0.0003 | H2: 0.0002777777778 | I2: 5.555555556e-05 | J2: 0.001111111111 | K2: 0.0002777777778 | M2: 0.0002844444444 | N2: =IFERROR(VLOOKUP(A2,'Import (Values)'!$B$2:$C$999,2,FALSE)/3120,"") ->  | O2: 290 | P2: 279 | Q2: 270 | S2: 270.8 | T2: 258 | U2: =IFERROR(INDEX('Guts-2'!$K$1:$K$30,MATCH(E2,'Guts-2'!$J$1:$J$30,0)),TRUE) -> TRUE | V2: =IFERROR(IF(OR(U2=FALSE,INDEX('Player Notes'!$I$3:$I$1021,MATCH(A2,'Player Notes'!$A$3:$A$1021,0),1)="Yes"),"",IFERROR(CHOOSE('Guts-2'!$B$27,O2,P2,Q2,R2,S2,T2),"")),"") -> 270.8 | W2: =IFERROR(RANK(V2,$V$2:$V$982,1),"") -> 273 | X2: =IFERROR(IF(OR(U2=FALSE,INDEX('Player Notes'!$I$3:$I$1021,MATCH(A2,'Player Notes'!$A$3:$A$1021,0),1)="Yes"),"",CHOOSE('Guts-2'!$B$26,G2,H2,I2,J2,K2,L2,M2,N2)),"") -> 0.0002777777778 | Y2: =IFERROR(IF(OR(U2=FALSE,INDEX('Player Notes'!$I$3:$I$1021,MATCH(A2,'Player Notes'!$A$3:$A$1021,0),1)="Yes"),"",IFERROR(IF(INDEX('Core-Data'!$G$1:$N$982,MATCH($A2,'Core-Data'!$A$1:$A$982,0),'Guts-2'!$B$26)="","",INDEX('Core-Data'!$G$1:$N$982,MATCH($A2,'Core-Data'!$A$1:$A$982,0),'Guts-2'!$B$26)),"")),"") -> 0.0002777777778 | Z2: =IF(Y2="","",IF(U2=FALSE,"",Y2*(SUMIF($X$2:$X$982,"<>""",$X$2:$X$982)/SUMIF($Y$2:$Y$982,"<>""",$Y$2:$Y$982)))) -> 0.0002777777778 | AA2: =IF(VLOOKUP(A3,'Name-Sort'!$D$2:$E$977,2,FALSE)="",A3,"") -> Mick Abel | AB2: =IFERROR(INDEX($AA$1:$AA$982,SMALL(IF($AA$1:$AA$982<>"",ROW($AA$1:$AA$982)),ROW(AA2))),"") -> Mick Abel
A3: Mick Abel | B3: abelmi01 | C3: SP | E3: N/A | F3: 22 | J3: -0.006138888889 | M3: -0.006138888889 | N3: =IFERROR(VLOOKUP(A3,'Import (Values)'!$B$2:$C$999,2,FALSE)/3120,"") ->  | S3: 842.3 | U3: =IFERROR(INDEX('Guts-2'!$K$1:$K$30,MATCH(E3,'Guts-2'!$J$1:$J$30,0)),TRUE) -> TRUE | V3: =IFERROR(IF(OR(U3=FALSE,INDEX('Player Notes'!$I$3:$I$1021,MATCH(A3,'Player Notes'!$A$3:$A$1021,0),1)="Yes"),"",IFERROR(CHOOSE('Guts-2'!$B$27,O3,P3,Q3,R3,S3,T3),"")),"") -> 842.3 | W3: 739 | X3: =IFERROR(IF(OR(U3=FALSE,INDEX('Player Notes'!$I$3:$I$1021,MATCH(A3,'Player Notes'!$A$3:$A$1021,0),1)="Yes"),"",CHOOSE('Guts-2'!$B$26,G3,H3,I3,J3,K3,L3,M3,N3)),"") ->  | Y3: =IFERROR(IF(OR(U3=FALSE,INDEX('Player Notes'!$I$3:$I$1021,MATCH(A3,'Player Notes'!$A$3:$A$1021,0),1)="Yes"),"",IFERROR(IF(INDEX('Core-Data'!$G$1:$N$982,MATCH($A3,'Core-Data'!$A$1:$A$982,0),'Guts-2'!$B$26)="","",INDEX('Core-Data'!$G$1:$N$982,MATCH($A3,'Core-Data'!$A$1:$A$982,0),'Guts-2'!$B$26)),"")),"") ->  | Z3: =IF(Y3="","",IF(U3=FALSE,"",Y3*(SUMIF($X$2:$X$982,"<>""",$X$2:$X$982)/SUMIF($Y$2:$Y$982,"<>""",$Y$2:$Y$982)))) ->  | AA3: =IF(VLOOKUP(A4,'Name-Sort'!$D$2:$E$977,2,FALSE)="",A4,"") -> CJ Abrams | AB3: =IFERROR(INDEX($AA$1:$AA$982,SMALL(IF($AA$1:$AA$982<>"",ROW($AA$1:$AA$982)),ROW(AA3))),"") -> CJ Abrams
A4: CJ Abrams | B4: abramcj01 | C4: SS | E4: WAS | F4: 23 | G4: 0.005013888889 | H4: 0.006111111111 | I4: 0.002222222222 | J4: 0.005638888889 | K4: 0.0075 | L4: 0.004166666667 | M4: 0.005108796296 | N4: =IFERROR(VLOOKUP(A4,'Import (Values)'!$B$2:$C$999,2,FALSE)/3120,"") ->  | O4: 52 | P4: 35 | Q4: 36 | R4: 44 | S4: 47.1 | T4: 60 | U4: =IFERROR(INDEX('Guts-2'!$K$1:$K$30,MATCH(E4,'Guts-2'!$J$1:$J$30,0)),TRUE) -> TRUE | V4: =IFERROR(IF(OR(U4=FALSE,INDEX('Player Notes'!$I$3:$I$1021,MATCH(A4,'Player Notes'!$A$3:$A$1021,0),1)="Yes"),"",IFERROR(CHOOSE('Guts-2'!$B$27,O4,P4,Q4,R4,S4,T4),"")),"") -> 47.1 | W4: 42 | X4: =IFERROR(IF(OR(U4=FALSE,INDEX('Player Notes'!$I$3:$I$1021,MATCH(A4,'Player Notes'!$A$3:$A$1021,0),1)="Yes"),"",CHOOSE('Guts-2'!$B$26,G4,H4,I4,J4,K4,L4,M4,N4)),"") -> 0.0075 | Y4: =IFERROR(IF(OR(U4=FALSE,INDEX('Player Notes'!$I$3:$I$1021,MATCH(A4,'Player Notes'!$A$3:$A$1021,0),1)="Yes"),"",IFERROR(IF(INDEX('Core-Data'!$G$1:$N$982,MATCH($A4,'Core-Data'!$A$1:$A$982,0),'Guts-2'!$B$26)="","",INDEX('Core-Data'!$G$1:$N$982,MATCH($A4,'Core-Data'!$A$1:$A$982,0),'Guts-2'!$B$26)),"")),"") -> 0.0075 | Z4: =IF(Y4="","",IF(U4=FALSE,"",Y4*(SUMIF($X$2:$X$982,"<>""",$X$2:$X$982)/SUMIF($Y$2:$Y$982,"<>""",$Y$2:$Y$982)))) -> 0.0075 | AA4: =IF(VLOOKUP(A5,'Name-Sort'!$D$2:$E$977,2,FALSE)="",A5,"") -> Bryan Abreu | AB4: =IFERROR(INDEX($AA$1:$AA$982,SMALL(IF($AA$1:$AA$982<>"",ROW($AA$1:$AA$982)),ROW(AA4))),"") -> Bryan Abreu
A5: Bryan Abreu | B5: abreubr01 | C5: RP | E5: HOU | F5: 26 | G5: -0.0003972222222 | I5: 8.333333333e-05 | J5: -0.0003611111111 | K5: 0.0005555555556 | L5: 0.0008333333333 | M5: 0.0001427777778 | N5: =IFERROR(VLOOKUP(A5,'Import (Values)'!$B$2:$C$999,2,FALSE)/3120,"") ->  | O5: 299 | Q5: 492 | R5: 228 | S5: 375.6 | U5: =IFERROR(INDEX('Guts-2'!$K$1:$K$30,MATCH(E5,'Guts-2'!$J$1:$J$30,0)),TRUE) -> TRUE | V5: =IFERROR(IF(OR(U5=FALSE,INDEX('Player Notes'!$I$3:$I$1021,MATCH(A5,'Player Notes'!$A$3:$A$1021,0),1)="Yes"),"",IFERROR(CHOOSE('Guts-2'!$B$27,O5,P5,Q5,R5,S5,T5),"")),"") -> 375.6 | W5: 386 | X5: =IFERROR(IF(OR(U5=FALSE,INDEX('Player Notes'!$I$3:$I$1021,MATCH(A5,'Player Notes'!$A$3:$A$1021,0),1)="Yes"),"",CHOOSE('Guts-2'!$B$26,G5,H5,I5,J5,K5,L5,M5,N5)),"") -> 0.0005555555556 | Y5: =IFERROR(IF(OR(U5=FALSE,INDEX('Player Notes'!$I$3:$I$1021,MATCH(A5,'Player Notes'!$A$3:$A$1021,0),1)="Yes"),"",IFERROR(IF(INDEX('Core-Data'!$G$1:$N$982,MATCH($A5,'Core-Data'!$A$1:$A$982,0),'Guts-2'!$B$26)="","",INDEX('Core-Data'!$G$1:$N$982,MATCH($A5,'Core-Data'!$A$1:$A$982,0),'Guts-2'!$B$26)),"")),"") -> 0.0005555555556 | Z5: =IF(Y5="","",IF(U5=FALSE,"",Y5*(SUMIF($X$2:$X$982,"<>""",$X$2:$X$982)/SUMIF($Y$2:$Y$982,"<>""",$Y$2:$Y$982)))) -> 0.0005555555556 | AA5: =IF(VLOOKUP(A6,'Name-Sort'!$D$2:$E$977,2,FALSE)="",A6,"") -> Jose Abreu | AB5: =IFERROR(INDEX($AA$1:$AA$982,SMALL(IF($AA$1:$AA$982<>"",ROW($AA$1:$AA$982)),ROW(AA5))),"") -> Jose Abreu
A6: Jose Abreu | B6: abreujo02 | C6: 1B | E6: HOU | F6: 37 | G6: 0.0005555555556 | H6: 0.0002777777778 | I6: 2.777777778e-05 | J6: 0.0005 | K6: 0.0005555555556 | L6: 0.0008333333333 | M6: 0.0004583333333 | N6: =IFERROR(VLOOKUP(A6,'Import (Values)'!$B$2:$C$999,2,FALSE)/3120,"") ->  | O6: 227 | P6: 229 | Q6: 334 | R6: 272 | S6: 242.9 | T6: 242 | U6: =IFERROR(INDEX('Guts-2'!$K$1:$K$30,MATCH(E6,'Guts-2'!$J$1:$J$30,0)),TRUE) -> TRUE | V6: =IFERROR(IF(OR(U6=FALSE,INDEX('Player Notes'!$I$3:$I$1021,MATCH(A6,'Player Notes'!$A$3:$A$1021,0),1)="Yes"),"",IFERROR(CHOOSE('Guts-2'!$B$27,O6,P6,Q6,R6,S6,T6),"")),"") -> 242.9 | W6: 241 | X6: =IFERROR(IF(OR(U6=FALSE,INDEX('Player Notes'!$I$3:$I$1021,MATCH(A6,'Player Notes'!$A$3:$A$1021,0),1)="Yes"),"",CHOOSE('Guts-2'!$B$26,G6,H6,I6,J6,K6,L6,M6,N6)),"") -> 0.0005555555556 | Y6: =IFERROR(IF(OR(U6=FALSE,INDEX('Player Notes'!$I$3:$I$1021,MATCH(A6,'Player Notes'!$A$3:$A$1021,0),1)="Yes"),"",IFERROR(IF(INDEX('Core-Data'!$G$1:$N$982,MATCH($A6,'Core-Data'!$A$1:$A$982,0),'Guts-2'!$B$26)="","",INDEX('Core-Data'!$G$1:$N$982,MATCH($A6,'Core-Data'!$A$1:$A$982,0),'Guts-2'!$B$26)),"")),"") -> 0.0005555555556 | Z6: =IF(Y6="","",IF(U6=FALSE,"",Y6*(SUMIF($X$2:$X$982,"<>""",$X$2:$X$982)/SUMIF($Y$2:$Y$982,"<>""",$Y$2:$Y$982)))) -> 0.0005555555556 | AA6: =IF(VLOOKUP(A7,'Name-Sort'!$D$2:$E$977,2,FALSE)="",A7,"") -> Wilyer Abreu | AB6: =IFERROR(INDEX($AA$1:$AA$982,SMALL(IF($AA$1:$AA$982<>"",ROW($AA$1:$AA$982)),ROW(AA6))),"") -> Wilyer Abreu
A7: Wilyer Abreu | B7: abreuwi02 | C7: OF | D7: LF,CF | E7: BOS | F7: 24 | J7: -0.00175 | K7: 0.0002777777778 | M7: -0.0007361111111 | N7: =IFERROR(VLOOKUP(A7,'Import (Values)'!$B$2:$C$999,2,FALSE)/3120,"") ->  | Q7: 311 | S7: 437.4 | U7: =IFERROR(INDEX('Guts-2'!$K$1:$K$30,MATCH(E7,'Guts-2'!$J$1:$J$30,0)),TRUE) -> TRUE | V7: =IFERROR(IF(OR(U7=FALSE,INDEX('Player Notes'!$I$3:$I$1021,MATCH(A7,'Player Notes'!$A$3:$A$1021,0),1)="Yes"),"",IFERROR(CHOOSE('Guts-2'!$B$27,O7,P7,Q7,R7,S7,T7),"")),"") -> 437.4 | W7: 438 | X7: =IFERROR(IF(OR(U7=FALSE,INDEX('Player Notes'!$I$3:$I$1021,MATCH(A7,'Player Notes'!$A$3:$A$1021,0),1)="Yes"),"",CHOOSE('Guts-2'!$B$26,G7,H7,I7,J7,K7,L7,M7,N7)),"") -> 0.0002777777778 | Y7: =IFERROR(IF(OR(U7=FALSE,INDEX('Player Notes'!$I$3:$I$1021,MATCH(A7,'Player Notes'!$A$3:$A$1021,0),1)="Yes"),"",IFERROR(IF(INDEX('Core-Data'!$G$1:$N$982,MATCH($A7,'Core-Data'!$A$1:$A$982,0),'Guts-2'!$B$26)="","",INDEX('Core-Data'!$G$1:$N$982,MATCH($A7,'Core-Data'!$A$1:$A$982,0),'Guts-2'!$B$26)),"")),"") -> 0.0002777777778 | Z7: =IF(Y7="","",IF(U7=FALSE,"",Y7*(SUMIF($X$2:$X$982,"<>""",$X$2:$X$982)/SUMIF($Y$2:$Y$982,"<>""",$Y$2:$Y$982)))) -> 0.0002777777778 | AA7: =IF(VLOOKUP(A8,'Name-Sort'!$D$2:$E$977,2,FALSE)="",A8,"") -> Luisangel Acuna | AB7: =IFERROR(INDEX($AA$1:$AA$982,SMALL(IF($AA$1:$AA$982<>"",ROW($AA$1:$AA$982)),ROW(AA7))),"") -> Luisangel Acuna
A8: Luisangel Acuna | B8: acunalu01 | C8: SS | E8: NYM | F8: 21 | I8: 0 | M8: 0 | N8: =IFERROR(VLOOKUP(A8,'Import (Values)'!$B$2:$C$999,2,FALSE)/3120,"") ->  | S8: 970.3 | U8: =IFERROR(INDEX('Guts-2'!$K$1:$K$30,MATCH(E8,'Guts-2'!$J$1:$J$30,0)),TRUE) -> TRUE | V8: =IFERROR(IF(OR(U8=FALSE,INDEX('Player Notes'!$I$3:$I$1021,MATCH(A8,'Player Notes'!$A$3:$A$1021,0),1)="Yes"),"",IFERROR(CHOOSE('Guts-2'!$B$27,O8,P8,Q8,R8,S8,T8),"")),"") -> 970.3 | W8: 782 | X8: =IFERROR(IF(OR(U8=FALSE,INDEX('Player Notes'!$I$3:$I$1021,MATCH(A8,'Player Notes'!$A$3:$A$1021,0),1)="Yes"),"",CHOOSE('Guts-2'!$B$26,G8,H8,I8,J8,K8,L8,M8,N8)),"") ->  | Y8: =IFERROR(IF(OR(U8=FALSE,INDEX('Player Notes'!$I$3:$I$1021,MATCH(A8,'Player Notes'!$A$3:$A$1021,0),1)="Yes"),"",IFERROR(IF(INDEX('Core-Data'!$G$1:$N$982,MATCH($A8,'Core-Data'!$A$1:$A$982,0),'Guts-2'!$B$26)="","",INDEX('Core-Data'!$G$1:$N$982,MATCH($A8,'Core-Data'!$A$1:$A$982,0),'Guts-2'!$B$26)),"")),"") ->  | Z8: =IF(Y8="","",IF(U8=FALSE,"",Y8*(SUMIF($X$2:$X$982,"<>""",$X$2:$X$982)/SUMIF($Y$2:$Y$982,"<>""",$Y$2:$Y$982)))) ->  | AA8: =IF(VLOOKUP(A9,'Name-Sort'!$D$2:$E$977,2,FALSE)="",A9,"") -> Ronald Acuna | AB8: =IFERROR(INDEX($AA$1:$AA$982,SMALL(IF($AA$1:$AA$982<>"",ROW($AA$1:$AA$982)),ROW(AA8))),"") -> Ronald Acuna
A9: Ronald Acuna | B9: acunaro01 | C9: OF | D9: RF | E9: ATL | F9: 26 | G9: 0.02181944444 | H9: 0.01527777778 | I9: 0.01563888889 | J9: 0.01541666667 | K9: 0.01694444444 | L9: 0.01611111111 | M9: 0.01686805556 | N9: =IFERROR(VLOOKUP(A9,'Import (Values)'!$B$2:$C$999,2,FALSE)/3120,"") -> 0.01185897436 | O9: 1 | P9: 1 | Q9: 1 | R9: 1 | S9: 1 | T9: 1 | U9: =IFERROR(INDEX('Guts-2'!$K$1:$K$30,MATCH(E9,'Guts-2'!$J$1:$J$30,0)),TRUE) -> TRUE | V9: =IFERROR(IF(OR(U9=FALSE,INDEX('Player Notes'!$I$3:$I$1021,MATCH(A9,'Player Notes'!$A$3:$A$1021,0),1)="Yes"),"",IFERROR(CHOOSE('Guts-2'!$B$27,O9,P9,Q9,R9,S9,T9),"")),"") -> 1 | W9: 1 | X9: =IFERROR(IF(OR(U9=FALSE,INDEX('Player Notes'!$I$3:$I$1021,MATCH(A9,'Player Notes'!$A$3:$A$1021,0),1)="Yes"),"",CHOOSE('Guts-2'!$B$26,G9,H9,I9,J9,K9,L9,M9,N9)),"") -> 0.01694444444 | Y9: =IFERROR(IF(OR(U9=FALSE,INDEX('Player Notes'!$I$3:$I$1021,MATCH(A9,'Player Notes'!$A$3:$A$1021,0),1)="Yes"),"",IFERROR(IF(INDEX('Core-Data'!$G$1:$N$982,MATCH($A9,'Core-Data'!$A$1:$A$982,0),'Guts-2'!$B$26)="","",INDEX('Core-Data'!$G$1:$N$982,MATCH($A9,'Core-Data'!$A$1:$A$982,0),'Guts-2'!$B$26)),"")),"") -> 0.01694444444 | Z9: =IF(Y9="","",IF(U9=FALSE,"",Y9*(SUMIF($X$2:$X$982,"<>""",$X$2:$X$982)/SUMIF($Y$2:$Y$982,"<>""",$Y$2:$Y$982)))) -> 0.01694444444 | AA9: =IF(VLOOKUP(A10,'Name-Sort'!$D$2:$E$977,2,FALSE)="",A10,"") -> Willy Adames | AB9: =IFERROR(INDEX($AA$1:$AA$982,SMALL(IF($AA$1:$AA$982<>"",ROW($AA$1:$AA$982)),ROW(AA9))),"") -> Willy Adames
A10: Willy Adames | B10: adamewi01 | C10: SS | E10: MIL | F10: 28 | G10: 0.001977777778 | H10: 0.001111111111 | I10: 0.0004166666667 | J10: 0.002472222222 | K10: 0.002222222222 | L10: 0.003333333333 | M10: 0.001922222222 | N10: =IFERROR(VLOOKUP(A10,'Import (Values)'!$B$2:$C$999,2,FALSE)/3120,"") ->  | O10: 155 | P10: 177 | Q10: 145 | R10: 141 | S10: 167.4 | T10: 131 | U10: =IFERROR(INDEX('Guts-2'!$K$1:$K$30,MATCH(E10,'Guts-2'!$J$1:$J$30,0)),TRUE) -> TRUE | V10: =IFERROR(IF(OR(U10=FALSE,INDEX('Player Notes'!$I$3:$I$1021,MATCH(A10,'Player Notes'!$A$3:$A$1021,0),1)="Yes"),"",IFERROR(CHOOSE('Guts-2'!$B$27,O10,P10,Q10,R10,S10,T10),"")),"") -> 167.4 | W10: 167 | X10: =IFERROR(IF(OR(U10=FALSE,INDEX('Player Notes'!$I$3:$I$1021,MATCH(A10,'Player Notes'!$A$3:$A$1021,0),1)="Yes"),"",CHOOSE('Guts-2'!$B$26,G10,H10,I10,J10,K10,L10,M10,N10)),"") -> 0.002222222222 | Y10: =IFERROR(IF(OR(U10=FALSE,INDEX('Player Notes'!$I$3:$I$1021,MATCH(A10,'Player Notes'!$A$3:$A$1021,0),1)="Yes"),"",IFERROR(IF(INDEX('Core-Data'!$G$1:$N$982,MATCH($A10,'Core-Data'!$A$1:$A$982,0),'Guts-2'!$B$26)="","",INDEX('Core-Data'!$G$1:$N$982,MATCH($A10,'Core-Data'!$A$1:$A$982,0),'Guts-2'!$B$26)),"")),"") -> 0.002222222222 | Z10: =IF(Y10="","",IF(U10=FALSE,"",Y10*(SUMIF($X$2:$X$982,"<>""",$X$2:$X$982)/SUMIF($Y$2:$Y$982,"<>""",$Y$2:$Y$982)))) -> 0.002222222222 | AA10: =IF(VLOOKUP(A11,'Name-Sort'!$D$2:$E$977,2,FALSE)="",A11,"") -> Jason Adam | AB10: =IFERROR(INDEX($AA$1:$AA$982,SMALL(IF($AA$1:$AA$982<>"",ROW($AA$1:$AA$982)),ROW(AA10))),"") -> Jason Adam
A11: Jason Adam | B11: adamja01 | C11: RP | E11: TB | F11: 32 | G11: -0.0002055555556 | I11: 0.0001111111111 | J11: 0.0005555555556 | K11: 0.0005555555556 | L11: 0.0008333333333 | M11: 0.00037 | N11: =IFERROR(VLOOKUP(A11,'Import (Values)'!$B$2:$C$999,2,FALSE)/3120,"") ->  | O11: 284 | Q11: 288 | R11: 231 | S11: 320.5 | U11: =IFERROR(INDEX('Guts-2'!$K$1:$K$30,MATCH(E11,'Guts-2'!$J$1:$J$30,0)),TRUE) -> TRUE | V11: =IFERROR(IF(OR(U11=FALSE,INDEX('Player Notes'!$I$3:$I$1021,MATCH(A11,'Player Notes'!$A$3:$A$1021,0),1)="Yes"),"",IFERROR(CHOOSE('Guts-2'!$B$27,O11,P11,Q11,R11,S11,T11),"")),"") -> 320.5 | W11: 333 | X11: =IFERROR(IF(OR(U11=FALSE,INDEX('Player Notes'!$I$3:$I$1021,MATCH(A11,'Player Notes'!$A$3:$A$1021,0),1)="Yes"),"",CHOOSE('Guts-2'!$B$26,G11,H11,I11,J11,K11,L11,M11,N11)),"") -> 0.0005555555556 | Y11: =IFERROR(IF(OR(U11=FALSE,INDEX('Player Notes'!$I$3:$I$1021,MATCH(A11,'Player Notes'!$A$3:$A$1021,0),1)="Yes"),"",IFERROR(IF(INDEX('Core-Data'!$G$1:$N$982,MATCH($A11,'Core-Data'!$A$1:$A$982,0),'Guts-2'!$B$26)="","",INDEX('Core-Data'!$G$1:$N$982,MATCH($A11,'Core-Data'!$A$1:$A$982,0),'Guts-2'!$B$26)),"")),"") -> 0.0005555555556 | Z11: =IF(Y11="","",IF(U11=FALSE,"",Y11*(SUMIF($X$2:$X$982,"<>""",$X$2:$X$982)/SUMIF($Y$2:$Y$982,"<>""",$Y$2:$Y$982)))) -> 0.0005555555556 | AA11: =IF(VLOOKUP(A12,'Name-Sort'!$D$2:$E$977,2,FALSE)="",A12,"") -> Riley Adams | AB11: =IFERROR(INDEX($AA$1:$AA$982,SMALL(IF($AA$1:$AA$982<>"",ROW($AA$1:$AA$982)),ROW(AA11))),"") -> Riley Adams
A12: Riley Adams | B12: adamsri03 | C12: C | E12: WAS | F12: 27 | J12: -0.004138888889 | M12: -0.004138888889 | N12: =IFERROR(VLOOKUP(A12,'Import (Values)'!$B$2:$C$999,2,FALSE)/3120,"") ->  | S12: 883.7 | U12: =IFERROR(INDEX('Guts-2'!$K$1:$K$30,MATCH(E12,'Guts-2'!$J$1:$J$30,0)),TRUE) -> TRUE | V12: =IFERROR(IF(OR(U12=FALSE,INDEX('Player Notes'!$I$3:$I$1021,MATCH(A12,'Player Notes'!$A$3:$A$1021,0),1)="Yes"),"",IFERROR(CHOOSE('Guts-2'!$B$27,O12,P12,Q12,R12,S12,T12),"")),"") -> 883.7 | W12: 756 | X12: =IFERROR(IF(OR(U12=FALSE,INDEX('Player Notes'!$I$3:$I$1021,MATCH(A12,'Player Notes'!$A$3:$A$1021,0),1)="Yes"),"",CHOOSE('Guts-2'!$B$26,G12,H12,I12,J12,K12,L12,M12,N12)),"") ->  | Y12: =IFERROR(IF(OR(U12=FALSE,INDEX('Player Notes'!$I$3:$I$1021,MATCH(A12,'Player Notes'!$A$3:$A$1021,0),1)="Yes"),"",IFERROR(IF(INDEX('Core-Data'!$G$1:$N$982,MATCH($A12,'Core-Data'!$A$1:$A$982,0),'Guts-2'!$B$26)="","",INDEX('Core-Data'!$G$1:$N$982,MATCH($A12,'Core-Data'!$A$1:$A$982,0),'Guts-2'!$B$26)),"")),"") ->  | Z12: =IF(Y12="","",IF(U12=FALSE,"",Y12*(SUMIF($X$2:$X$982,"<>""",$X$2:$X$982)/SUMIF($Y$2:$Y$982,"<>""",$Y$2:$Y$982)))) ->  | AA12: =IF(VLOOKUP(A13,'Name-Sort'!$D$2:$E$977,2,FALSE)="",A13,"") -> Jo Adell | AB12: =IFERROR(INDEX($AA$1:$AA$982,SMALL(IF($AA$1:$AA$982<>"",ROW($AA$1:$AA$982)),ROW(AA12))),"") -> Jo Adell
A13: Jo Adell | B13: adelljo01 | C13: OF | E13: LAA | F13: 24 | J13: -0.002611111111 | M13: -0.002611111111 | N13: =IFERROR(VLOOKUP(A13,'Import (Values)'!$B$2:$C$999,2,FALSE)/3120,"") ->  | S13: 695.8 | U13: =IFERROR(INDEX('Guts-2'!$K$1:$K$30,MATCH(E13,'Guts-2'!$J$1:$J$30,0)),TRUE) -> TRUE | V13: =IFERROR(IF(OR(U13=FALSE,INDEX('Player Notes'!$I$3:$I$1021,MATCH(A13,'Player Notes'!$A$3:$A$1021,0),1)="Yes"),"",IFERROR(CHOOSE('Guts-2'!$B$27,O13,P13,Q13,R13,S13,T13),"")),"") -> 695.8 | W13: 665 | X13: =IFERROR(IF(OR(U13=FALSE,INDEX('Player Notes'!$I$3:$I$1021,MATCH(A13,'Player Notes'!$A$3:$A$1021,0),1)="Yes"),"",CHOOSE('Guts-2'!$B$26,G13,H13,I13,J13,K13,L13,M13,N13)),"") ->  | Y13: =IFERROR(IF(OR(U13=FALSE,INDEX('Player Notes'!$I$3:$I$1021,MATCH(A13,'Player Notes'!$A$3:$A$1021,0),1)="Yes"),"",IFERROR(IF(INDEX('Core-Data'!$G$1:$N$982,MATCH($A13,'Core-Data'!$A$1:$A$982,0),'Guts-2'!$B$26)="","",INDEX('Core-Data'!$G$1:$N$982,MATCH($A13,'Core-Data'!$A$1:$A$982,0),'Guts-2'!$B$26)),"")),"") ->  | Z13: =IF(Y13="","",IF(U13=FALSE,"",Y13*(SUMIF($X$2:$X$982,"<>""",$X$2:$X$982)/SUMIF($Y$2:$Y$982,"<>""",$Y$2:$Y$982)))) ->  | AA13: =IF(VLOOKUP(A14,'Name-Sort'!$D$2:$E$977,2,FALSE)="",A14,"") -> Ozzie Albies | AB13: =IFERROR(INDEX($AA$1:$AA$982,SMALL(IF($AA$1:$AA$982<>"",ROW($AA$1:$AA$982)),ROW(AA13))),"") -> Ozzie Albies
A14: Ozzie Albies | B14: albieoz01 | C14: 2B | E14: ATL | F14: 27 | G14: 0.007563888889 | H14: 0.007777777778 | I14: 0.007277777778 | J14: 0.006777777778 | K14: 0.007777777778 | L14: 0.008333333333 | M14: 0.007584722222 | N14: =IFERROR(VLOOKUP(A14,'Import (Values)'!$B$2:$C$999,2,FALSE)/3120,"") ->  | O14: 22 | P14: 21 | Q14: 20 | R14: 30 | S14: 22.7 | T14: 20 | U14: =IFERROR(INDEX('Guts-2'!$K$1:$K$30,MATCH(E14,'Guts-2'!$J$1:$J$30,0)),TRUE) -> TRUE | V14: =IFERROR(IF(OR(U14=FALSE,INDEX('Player Notes'!$I$3:$I$1021,MATCH(A14,'Player Notes'!$A$3:$A$1021,0),1)="Yes"),"",IFERROR(CHOOSE('Guts-2'!$B$27,O14,P14,Q14,R14,S14,T14),"")),"") -> 22.7 | W14: 21 | X14: =IFERROR(IF(OR(U14=FALSE,INDEX('Player Notes'!$I$3:$I$1021,MATCH(A14,'Player Notes'!$A$3:$A$1021,0),1)="Yes"),"",CHOOSE('Guts-2'!$B$26,G14,H14,I14,J14,K14,L14,M14,N14)),"") -> 0.007777777778 | Y14: =IFERROR(IF(OR(U14=FALSE,INDEX('Player Notes'!$I$3:$I$1021,MATCH(A14,'Player Notes'!$A$3:$A$1021,0),1)="Yes"),"",IFERROR(IF(INDEX('Core-Data'!$G$1:$N$982,MATCH($A14,'Core-Data'!$A$1:$A$982,0),'Guts-2'!$B$26)="","",INDEX('Core-Data'!$G$1:$N$982,MATCH($A14,'Core-Data'!$A$1:$A$982,0),'Guts-2'!$B$26)),"")),"") -> 0.007777777778 | Z14: =IF(Y14="","",IF(U14=FALSE,"",Y14*(SUMIF($X$2:$X$982,"<>""",$X$2:$X$982)/SUMIF($Y$2:$Y$982,"<>""",$Y$2:$Y$982)))) -> 0.007777777778 | AA14: =IF(VLOOKUP(A15,'Name-Sort'!$D$2:$E$977,2,FALSE)="",A15,"") -> Tyler Alexander | AB14: =IFERROR(INDEX($AA$1:$AA$982,SMALL(IF($AA$1:$AA$982<>"",ROW($AA$1:$AA$982)),ROW(AA14))),"") -> Tyler Alexander
A15: Tyler Alexander | B15: alexaty01 | C15: RP | E15: TB | F15: 29 | J15: -0.001444444444 | M15: -0.001444444444 | N15: =IFERROR(VLOOKUP(A15,'Import (Values)'!$B$2:$C$999,2,FALSE)/3120,"") ->  | S15: 669 | U15: =IFERROR(INDEX('Guts-2'!$K$1:$K$30,MATCH(E15,'Guts-2'!$J$1:$J$30,0)),TRUE) -> TRUE | V15: =IFERROR(IF(OR(U15=FALSE,INDEX('Player Notes'!$I$3:$I$1021,MATCH(A15,'Player Notes'!$A$3:$A$1021,0),1)="Yes"),"",IFERROR(CHOOSE('Guts-2'!$B$27,O15,P15,Q15,R15,S15,T15),"")),"") -> 669 | W15: 642 | X15: =IFERROR(IF(OR(U15=FALSE,INDEX('Player Notes'!$I$3:$I$1021,MATCH(A15,'Player Notes'!$A$3:$A$1021,0),1)="Yes"),"",CHOOSE('Guts-2'!$B$26,G15,H15,I15,J15,K15,L15,M15,N15)),"") ->  | Y15: =IFERROR(IF(OR(U15=FALSE,INDEX('Player Notes'!$I$3:$I$1021,MATCH(A15,'Player Notes'!$A$3:$A$1021,0),1)="Yes"),"",IFERROR(IF(INDEX('Core-Data'!$G$1:$N$982,MATCH($A15,'Core-Data'!$A$1:$A$982,0),'Guts-2'!$B$26)="","",INDEX('Core-Data'!$G$1:$N$982,MATCH($A15,'Core-Data'!$A$1:$A$982,0),'Guts-2'!$B$26)),"")),"") ->  | Z15: =IF(Y15="","",IF(U15=FALSE,"",Y15*(SUMIF($X$2:$X$982,"<>""",$X$2:$X$982)/SUMIF($Y$2:$Y$982,"<>""",$Y$2:$Y$982)))) ->  | AA15: =IF(VLOOKUP(A16,'Name-Sort'!$D$2:$E$977,2,FALSE)="",A16,"") -> Logan Allen | AB15: =IFERROR(INDEX($AA$1:$AA$982,SMALL(IF($AA$1:$AA$982<>"",ROW($AA$1:$AA$982)),ROW(AA15))),"") -> Logan Allen
A16: Logan Allen | B16: allenlo02 | C16: SP | E16: CLE | F16: 25 | G16: 0.0003138888889 | I16: 0 | J16: -0.00075 | K16: 0.0002777777778 | M16: -3.958333333e-05 | N16: =IFERROR(VLOOKUP(A16,'Import (Values)'!$B$2:$C$999,2,FALSE)/3120,"") ->  | O16: 253 | P16: 327 | Q16: 295 | S16: 331.4 | U16: =IFERROR(INDEX('Guts-2'!$K$1:$K$30,MATCH(E16,'Guts-2'!$J$1:$J$30,0)),TRUE) -> TRUE | V16: =IFERROR(IF(OR(U16=FALSE,INDEX('Player Notes'!$I$3:$I$1021,MATCH(A16,'Player Notes'!$A$3:$A$1021,0),1)="Yes"),"",IFERROR(CHOOSE('Guts-2'!$B$27,O16,P16,Q16,R16,S16,T16),"")),"") -> 331.4 | W16: 352 | X16: =IFERROR(IF(OR(U16=FALSE,INDEX('Player Notes'!$I$3:$I$1021,MATCH(A16,'Player Notes'!$A$3:$A$1021,0),1)="Yes"),"",CHOOSE('Guts-2'!$B$26,G16,H16,I16,J16,K16,L16,M16,N16)),"") -> 0.0002777777778 | Y16: =IFERROR(IF(OR(U16=FALSE,INDEX('Player Notes'!$I$3:$I$1021,MATCH(A16,'Player Notes'!$A$3:$A$1021,0),1)="Yes"),"",IFERROR(IF(INDEX('Core-Data'!$G$1:$N$982,MATCH($A16,'Core-Data'!$A$1:$A$982,0),'Guts-2'!$B$26)="","",INDEX('Core-Data'!$G$1:$N$982,MATCH($A16,'Core-Data'!$A$1:$A$982,0),'Guts-2'!$B$26)),"")),"") -> 0.0002777777778 | Z16: =IF(Y16="","",IF(U16=FALSE,"",Y16*(SUMIF($X$2:$X$982,"<>""",$X$2:$X$982)/SUMIF($Y$2:$Y$982,"<>""",$Y$2:$Y$982)))) -> 0.0002777777778 | AA16: =IF(VLOOKUP(A17,'Name-Sort'!$D$2:$E$977,2,FALSE)="",A17,"") -> Pete Alonso | AB16: =IFERROR(INDEX($AA$1:$AA$982,SMALL(IF($AA$1:$AA$982<>"",ROW($AA$1:$AA$982)),ROW(AA16))),"") -> Pete Alonso
A17: Pete Alonso | B17: alonspe01 | C17: 1B | E17: NYM | F17: 29 | G17: 0.005886111111 | H17: 0.007777777778 | I17: 0.007305555556 | J17: 0.006388888889 | K17: 0.008055555556 | L17: 0.007777777778 | M17: 0.007198611111 | N17: =IFERROR(VLOOKUP(A17,'Import (Values)'!$B$2:$C$999,2,FALSE)/3120,"") ->  | O17: 34 | P17: 19 | Q17: 25 | R17: 22 | S17: 24.3 | T17: 23 | U17: =IFERROR(INDEX('Guts-2'!$K$1:$K$30,MATCH(E17,'Guts-2'!$J$1:$J$30,0)),TRUE) -> TRUE | V17: =IFERROR(IF(OR(U17=FALSE,INDEX('Player Notes'!$I$3:$I$1021,MATCH(A17,'Player Notes'!$A$3:$A$1021,0),1)="Yes"),"",IFERROR(CHOOSE('Guts-2'!$B$27,O17,P17,Q17,R17,S17,T17),"")),"") -> 24.3 | W17: 23 | X17: =IFERROR(IF(OR(U17=FALSE,INDEX('Player Notes'!$I$3:$I$1021,MATCH(A17,'Player Notes'!$A$3:$A$1021,0),1)="Yes"),"",CHOOSE('Guts-2'!$B$26,G17,H17,I17,J17,K17,L17,M17,N17)),"") -> 0.008055555556 | Y17: =IFERROR(IF(OR(U17=FALSE,INDEX('Player Notes'!$I$3:$I$1021,MATCH(A17,'Player Notes'!$A$3:$A$1021,0),1)="Yes"),"",IFERROR(IF(INDEX('Core-Data'!$G$1:$N$982,MATCH($A17,'Core-Data'!$A$1:$A$982,0),'Guts-2'!$B$26)="","",INDEX('Core-Data'!$G$1:$N$982,MATCH($A17,'Core-Data'!$A$1:$A$982,0),'Guts-2'!$B$26)),"")),"") -> 0.008055555556 | Z17: =IF(Y17="","",IF(U17=FALSE,"",Y17*(SUMIF($X$2:$X$982,"<>""",$X$2:$X$982)/SUMIF($Y$2:$Y$982,"<>""",$Y$2:$Y$982)))) -> 0.008055555556 | AA17: =IF(VLOOKUP(A18,'Name-Sort'!$D$2:$E$977,2,FALSE)="",A18,"") -> Jose Altuve | AB17: =IFERROR(INDEX($AA$1:$AA$982,SMALL(IF($AA$1:$AA$982<>"",ROW($AA$1:$AA$982)),ROW(AA17))),"") -> Jose Altuve
A18: Jose Altuve | B18: altuvjo01 | C18: 2B | E18: HOU | F18: 33 | G18: 0.005916666667 | H18: 0.007222222222 | I18: 0.005972222222 | J18: 0.00575 | K18: 0.006111111111 | L18: 0.006666666667 | M18: 0.006273148148 | N18: =IFERROR(VLOOKUP(A18,'Import (Values)'!$B$2:$C$999,2,FALSE)/3120,"") -> 0.01025641026 | O18: 33 | P18: 26 | Q18: 26 | R18: 34 | S18: 36 | T18: 44 | U18: =IFERROR(INDEX('Guts-2'!$K$1:$K$30,MATCH(E18,'Guts-2'!$J$1:$J$30,0)),TRUE) -> TRUE | V18: =IFERROR(IF(OR(U18=FALSE,INDEX('Player Notes'!$I$3:$I$1021,MATCH(A18,'Player Notes'!$A$3:$A$1021,0),1)="Yes"),"",IFERROR(CHOOSE('Guts-2'!$B$27,O18,P18,Q18,R18,S18,T18),"")),"") -> 36 | W18: 34 | X18: =IFERROR(IF(OR(U18=FALSE,INDEX('Player Notes'!$I$3:$I$1021,MATCH(A18,'Player Notes'!$A$3:$A$1021,0),1)="Yes"),"",CHOOSE('Guts-2'!$B$26,G18,H18,I18,J18,K18,L18,M18,N18)),"") -> 0.006111111111 | Y18: =IFERROR(IF(OR(U18=FALSE,INDEX('Player Notes'!$I$3:$I$1021,MATCH(A18,'Player Notes'!$A$3:$A$1021,0),1)="Yes"),"",IFERROR(IF(INDEX('Core-Data'!$G$1:$N$982,MATCH($A18,'Core-Data'!$A$1:$A$982,0),'Guts-2'!$B$26)="","",INDEX('Core-Data'!$G$1:$N$982,MATCH($A18,'Core-Data'!$A$1:$A$982,0),'Guts-2'!$B$26)),"")),"") -> 0.006111111111 | Z18: =IF(Y18="","",IF(U18=FALSE,"",Y18*(SUMIF($X$2:$X$982,"<>""",$X$2:$X$982)/SUMIF($Y$2:$Y$982,"<>""",$Y$2:$Y$982)))) -> 0.006111111111 | AA18: =IF(VLOOKUP(A19,'Name-Sort'!$D$2:$E$977,2,FALSE)="",A19,"") -> Jake Alu | AB18: =IFERROR(INDEX($AA$1:$AA$982,SMALL(IF($AA$1:$AA$982<>"",ROW($AA$1:$AA$982)),ROW(AA18))),"") -> Jake Alu
A19: Jake Alu | B19: aluja01 | C19: 2B | E19: WAS | F19: 26 | J19: -0.007611111111 | M19: -0.007611111111 | N19: =IFERROR(VLOOKUP(A19,'Import (Values)'!$B$2:$C$999,2,FALSE)/3120,"") ->  | S19: 1058 | U19: =IFERROR(INDEX('Guts-2'!$K$1:$K$30,MATCH(E19,'Guts-2'!$J$1:$J$30,0)),TRUE) -> TRUE | V19: =IFERROR(IF(OR(U19=FALSE,INDEX('Player Notes'!$I$3:$I$1021,MATCH(A19,'Player Notes'!$A$3:$A$1021,0),1)="Yes"),"",IFERROR(CHOOSE('Guts-2'!$B$27,O19,P19,Q19,R19,S19,T19),"")),"") -> 1058 | W19: 795 | X19: =IFERROR(IF(OR(U19=FALSE,INDEX('Player Notes'!$I$3:$I$1021,MATCH(A19,'Player Notes'!$A$3:$A$1021,0),1)="Yes"),"",CHOOSE('Guts-2'!$B$26,G19,H19,I19,J19,K19,L19,M19,N19)),"") ->  | Y19: =IFERROR(IF(OR(U19=FALSE,INDEX('Player Notes'!$I$3:$I$1021,MATCH(A19,'Player Notes'!$A$3:$A$1021,0),1)="Yes"),"",IFERROR(IF(INDEX('Core-Data'!$G$1:$N$982,MATCH($A19,'Core-Data'!$A$1:$A$982,0),'Guts-2'!$B$26)="","",INDEX('Core-Data'!$G$1:$N$982,MATCH($A19,'Core-Data'!$A$1:$A$982,0),'Guts-2'!$B$26)),"")),"") ->  | Z19: =IF(Y19="","",IF(U19=FALSE,"",Y19*(SUMIF($X$2:$X$982,"<>""",$X$2:$X$982)/SUMIF($Y$2:$Y$982,"<>""",$Y$2:$Y$982)))) ->  | AA19: =IF(VLOOKUP(A20,'Name-Sort'!$D$2:$E$977,2,FALSE)="",A20,"") -> Francisco Alvarez | AB19: =IFERROR(INDEX($AA$1:$AA$982,SMALL(IF($AA$1:$AA$982<>"",ROW($AA$1:$AA$982)),ROW(AA19))),"") -> Francisco Alvarez
A20: Francisco Alvarez | B20: alvarfr01 | C20: C | E20: NYM | F20: 22 | G20: -1.944444444e-05 | H20: 0.001944444444 | I20: 0.0006388888889 | J20: 0.001833333333 | K20: 0.002777777778 | L20: 0.0005555555556 | M20: 0.001288425926 | N20: =IFERROR(VLOOKUP(A20,'Import (Values)'!$B$2:$C$999,2,FALSE)/3120,"") ->  | O20: 272 | P20: 156 | Q20: 219 | R20: 148 | S20: 169.1 | T20: 183 | U20: =IFERROR(INDEX('Guts-2'!$K$1:$K$30,MATCH(E20,'Guts-2'!$J$1:$J$30,0)),TRUE) -> TRUE | V20: =IFERROR(IF(OR(U20=FALSE,INDEX('Player Notes'!$I$3:$I$1021,MATCH(A20,'Player Notes'!$A$3:$A$1021,0),1)="Yes"),"",IFERROR(CHOOSE('Guts-2'!$B$27,O20,P20,Q20,R20,S20,T20),"")),"") -> 169.1 | W20: 169 | X20: =IFERROR(IF(OR(U20=FALSE,INDEX('Player Notes'!$I$3:$I$1021,MATCH(A20,'Player Notes'!$A$3:$A$1021,0),1)="Yes"),"",CHOOSE('Guts-2'!$B$26,G20,H20,I20,J20,K20,L20,M20,N20)),"") -> 0.002777777778 | Y20: =IFERROR(IF(OR(U20=FALSE,INDEX('Player Notes'!$I$3:$I$1021,MATCH(A20,'Player Notes'!$A$3:$A$1021,0),1)="Yes"),"",IFERROR(IF(INDEX('Core-Data'!$G$1:$N$982,MATCH($A20,'Core-Data'!$A$1:$A$982,0),'Guts-2'!$B$26)="","",INDEX('Core-Data'!$G$1:$N$982,MATCH($A20,'Core-Data'!$A$1:$A$982,0),'Guts-2'!$B$26)),"")),"") -> 0.002777777778 | Z20: =IF(Y20="","",IF(U20=FALSE,"",Y20*(SUMIF($X$2:$X$982,"<>""",$X$2:$X$982)/SUMIF($Y$2:$Y$982,"<>""",$Y$2:$Y$982)))) -> 0.002777777778 | AA20: =IF(VLOOKUP(A21,'Name-Sort'!$D$2:$E$977,2,FALSE)="",A21,"") -> Jose Alvarado | AB20: =IFERROR(INDEX($AA$1:$AA$982,SMALL(IF($AA$1:$AA$982<>"",ROW($AA$1:$AA$982)),ROW(AA20))),"") -> Jose Alvarado
A21: Jose Alvarado | B21: alvarjo03 | C21: RP | E21: PHI | F21: 28 | G21: 0.0025 | H21: 0.001666666667 | I21: 0.0004722222222 | J21: 0.002027777778 | K21: 0.002222222222 | L21: 0.001666666667 | M21: 0.001759259259 | N21: =IFERROR(VLOOKUP(A21,'Import (Values)'!$B$2:$C$999,2,FALSE)/3120,"") ->  | O21: 128 | P21: 188 | Q21: 194 | R21: 202 | S21: 203.4 | T21: 204 | U21: =IFERROR(INDEX('Guts-2'!$K$1:$K$30,MATCH(E21,'Guts-2'!$J$1:$J$30,0)),TRUE) -> TRUE | V21: =IFERROR(IF(OR(U21=FALSE,INDEX('Player Notes'!$I$3:$I$1021,MATCH(A21,'Player Notes'!$A$3:$A$1021,0),1)="Yes"),"",IFERROR(CHOOSE('Guts-2'!$B$27,O21,P21,Q21,R21,S21,T21),"")),"") -> 203.4 | W21: 199 | X21: =IFERROR(IF(OR(U21=FALSE,INDEX('Player Notes'!$I$3:$I$1021,MATCH(A21,'Player Notes'!$A$3:$A$1021,0),1)="Yes"),"",CHOOSE('Guts-2'!$B$26,G21,H21,I21,J21,K21,L21,M21,N21)),"") -> 0.002222222222 | Y21: =IFERROR(IF(OR(U21=FALSE,INDEX('Player Notes'!$I$3:$I$1021,MATCH(A21,'Player Notes'!$A$3:$A$1021,0),1)="Yes"),"",IFERROR(IF(INDEX('Core-Data'!$G$1:$N$982,MATCH($A21,'Core-Data'!$A$1:$A$982,0),'Guts-2'!$B$26)="","",INDEX('Core-Data'!$G$1:$N$982,MATCH($A21,'Core-Data'!$A$1:$A$982,0),'Guts-2'!$B$26)),"")),"") -> 0.002222222222 | Z21: =IF(Y21="","",IF(U21=FALSE,"",Y21*(SUMIF($X$2:$X$982,"<>""",$X$2:$X$982)/SUMIF($Y$2:$Y$982,"<>""",$Y$2:$Y$982)))) -> 0.002222222222 | AA21: =IF(VLOOKUP(A22,'Name-Sort'!$D$2:$E$977,2,FALSE)="",A22,"") -> Yordan Alvarez | AB21: =IFERROR(INDEX($AA$1:$AA$982,SMALL(IF($AA$1:$AA$982<>"",ROW($AA$1:$AA$982)),ROW(AA21))),"") -> Yordan Alvarez
A22: Yordan Alvarez | B22: alvaryo01 | C22: DH | D22: LF | E22: HOU | F22: 26 | G22: 0.01058055556 | H22: 0.009444444444 | I22: 0.01011111111 | J22: 0.009111111111 | K22: 0.01 | L22: 0.01222222222 | M22: 0.01024490741 | N22: =IFERROR(VLOOKUP(A22,'Import (Values)'!$B$2:$C$999,2,FALSE)/3120,"") ->  | O22: 10 | P22: 14 | Q22: 12 | R22: 12 | S22: 15 | T22: 12 | U22: =IFERROR(INDEX('Guts-2'!$K$1:$K$30,MATCH(E22,'Guts-2'!$J$1:$J$30,0)),TRUE) -> TRUE | V22: =IFERROR(IF(OR(U22=FALSE,INDEX('Player Notes'!$I$3:$I$1021,MATCH(A22,'Player Notes'!$A$3:$A$1021,0),1)="Yes"),"",IFERROR(CHOOSE('Guts-2'!$B$27,O22,P22,Q22,R22,S22,T22),"")),"") -> 15 | W22: 16 | X22: =IFERROR(IF(OR(U22=FALSE,INDEX('Player Notes'!$I$3:$I$1021,MATCH(A22,'Player Notes'!$A$3:$A$1021,0),1)="Yes"),"",CHOOSE('Guts-2'!$B$26,G22,H22,I22,J22,K22,L22,M22,N22)),"") -> 0.01 | Y22: =IFERROR(IF(OR(U22=FALSE,INDEX('Player Notes'!$I$3:$I$1021,MATCH(A22,'Player Notes'!$A$3:$A$1021,0),1)="Yes"),"",IFERROR(IF(INDEX('Core-Data'!$G$1:$N$982,MATCH($A22,'Core-Data'!$A$1:$A$982,0),'Guts-2'!$B$26)="","",INDEX('Core-Data'!$G$1:$N$982,MATCH($A22,'Core-Data'!$A$1:$A$982,0),'Guts-2'!$B$26)),"")),"") -> 0.01 | Z22: =IF(Y22="","",IF(U22=FALSE,"",Y22*(SUMIF($X$2:$X$982,"<>""",$X$2:$X$982)/SUMIF($Y$2:$Y$982,"<>""",$Y$2:$Y$982)))) -> 0.01 | AA22: =IF(VLOOKUP(A23,'Name-Sort'!$D$2:$E$977,2,FALSE)="",A23,"") -> Adbert Alzolay | AB22: =IFERROR(INDEX($AA$1:$AA$982,SMALL(IF($AA$1:$AA$982<>"",ROW($AA$1:$AA$982)),ROW(AA22))),"") -> Adbert Alzolay
A23: Adbert Alzolay | B23: alzolad01 | C23: RP | E23: CHC | F23: 29 | G23: 0.002708333333 | H23: 0.002222222222 | I23: 0.0008055555556 | J23: 0.00225 | K23: 0.002777777778 | L23: 0.001388888889 | M23: 0.002025462963 | N23: =IFERROR(VLOOKUP(A23,'Import (Values)'!$B$2:$C$999,2,FALSE)/3120,"") ->  | O23: 119 | P23: 171 | Q23: 132 | R23: 173 | S23: 175.6 | T23: 182 | U23: =IFERROR(INDEX('Guts-2'!$K$1:$K$30,MATCH(E23,'Guts-2'!$J$1:$J$30,0)),TRUE) -> TRUE | V23: =IFERROR(IF(OR(U23=FALSE,INDEX('Player Notes'!$I$3:$I$1021,MATCH(A23,'Player Notes'!$A$3:$A$1021,0),1)="Yes"),"",IFERROR(CHOOSE('Guts-2'!$B$27,O23,P23,Q23,R23,S23,T23),"")),"") -> 175.6 | W23: 173 | X23: =IFERROR(IF(OR(U23=FALSE,INDEX('Player Notes'!$I$3:$I$1021,MATCH(A23,'Player Notes'!$A$3:$A$1021,0),1)="Yes"),"",CHOOSE('Guts-2'!$B$26,G23,H23,I23,J23,K23,L23,M23,N23)),"") -> 0.002777777778 | Y23: =IFERROR(IF(OR(U23=FALSE,INDEX('Player Notes'!$I$3:$I$1021,MATCH(A23,'Player Notes'!$A$3:$A$1021,0),1)="Yes"),"",IFERROR(IF(INDEX('Core-Data'!$G$1:$N$982,MATCH($A23,'Core-Data'!$A$1:$A$982,0),'Guts-2'!$B$26)="","",INDEX('Core-Data'!$G$1:$N$982,MATCH($A23,'Core-Data'!$A$1:$A$982,0),'Guts-2'!$B$26)),"")),"") -> 0.002777777778 | Z23: =IF(Y23="","",IF(U23=FALSE,"",Y23*(SUMIF($X$2:$X$982,"<>""",$X$2:$X$982)/SUMIF($Y$2:$Y$982,"<>""",$Y$2:$Y$982)))) -> 0.002777777778 | AA23: =IF(VLOOKUP(A24,'Name-Sort'!$D$2:$E$977,2,FALSE)="",A24,"") -> Adael Amador | AB23: =IFERROR(INDEX($AA$1:$AA$982,SMALL(IF($AA$1:$AA$982<>"",ROW($AA$1:$AA$982)),ROW(AA23))),"") -> Adael Amador
A24: Adael Amador | B24: amadoad01 | C24: SS | E24: COL | F24: 20 | N24: =IFERROR(VLOOKUP(A24,'Import (Values)'!$B$2:$C$999,2,FALSE)/3120,"") ->  | S24: 655.5 | U24: =IFERROR(INDEX('Guts-2'!$K$1:$K$30,MATCH(E24,'Guts-2'!$J$1:$J$30,0)),TRUE) -> TRUE | V24: =IFERROR(IF(OR(U24=FALSE,INDEX('Player Notes'!$I$3:$I$1021,MATCH(A24,'Player Notes'!$A$3:$A$1021,0),1)="Yes"),"",IFERROR(CHOOSE('Guts-2'!$B$27,O24,P24,Q24,R24,S24,T24),"")),"") -> 655.5 | W24: 633 | X24: =IFERROR(IF(OR(U24=FALSE,INDEX('Player Notes'!$I$3:$I$1021,MATCH(A24,'Player Notes'!$A$3:$A$1021,0),1)="Yes"),"",CHOOSE('Guts-2'!$B$26,G24,H24,I24,J24,K24,L24,M24,N24)),"") ->  | Y24: =IFERROR(IF(OR(U24=FALSE,INDEX('Player Notes'!$I$3:$I$1021,MATCH(A24,'Player Notes'!$A$3:$A$1021,0),1)="Yes"),"",IFERROR(IF(INDEX('Core-Data'!$G$1:$N$982,MATCH($A24,'Core-Data'!$A$1:$A$982,0),'Guts-2'!$B$26)="","",INDEX('Core-Data'!$G$1:$N$982,MATCH($A24,'Core-Data'!$A$1:$A$982,0),'Guts-2'!$B$26)),"")),"") ->  | Z24: =IF(Y24="","",IF(U24=FALSE,"",Y24*(SUMIF($X$2:$X$982,"<>""",$X$2:$X$982)/SUMIF($Y$2:$Y$982,"<>""",$Y$2:$Y$982)))) ->  | AA24: =IF(VLOOKUP(A25,'Name-Sort'!$D$2:$E$977,2,FALSE)="",A25,"") -> Miguel Amaya | AB24: =IFERROR(INDEX($AA$1:$AA$982,SMALL(IF($AA$1:$AA$982<>"",ROW($AA$1:$AA$982)),ROW(AA24))),"") -> Miguel Amaya
A25: Miguel Amaya | B25: amayami01 | C25: C | E25: CHC | F25: 24 | J25: -0.003277777778 | M25: -0.003277777778 | N25: =IFERROR(VLOOKUP(A25,'Import (Values)'!$B$2:$C$999,2,FALSE)/3120,"") ->  | Q25: 494 | S25: 569.3 | U25: =IFERROR(INDEX('Guts-2'!$K$1:$K$30,MATCH(E25,'Guts-2'!$J$1:$J$30,0)),TRUE) -> TRUE | V25: =IFERROR(IF(OR(U25=FALSE,INDEX('Player Notes'!$I$3:$I$1021,MATCH(A25,'Player Notes'!$A$3:$A$1021,0),1)="Yes"),"",IFERROR(CHOOSE('Guts-2'!$B$27,O25,P25,Q25,R25,S25,T25),"")),"") -> 569.3 | W25: 560 | X25: =IFERROR(IF(OR(U25=FALSE,INDEX('Player Notes'!$I$3:$I$1021,MATCH(A25,'Player Notes'!$A$3:$A$1021,0),1)="Yes"),"",CHOOSE('Guts-2'!$B$26,G25,H25,I25,J25,K25,L25,M25,N25)),"") ->  | Y25: =IFERROR(IF(OR(U25=FALSE,INDEX('Player Notes'!$I$3:$I$1021,MATCH(A25,'Player Notes'!$A$3:$A$1021,0),1)="Yes"),"",IFERROR(IF(INDEX('Core-Data'!$G$1:$N$982,MATCH($A25,'Core-Data'!$A$1:$A$982,0),'Guts-2'!$B$26)="","",INDEX('Core-Data'!$G$1:$N$982,MATCH($A25,'Core-Data'!$A$1:$A$982,0),'Guts-2'!$B$26)),"")),"") ->  | Z25: =IF(Y25="","",IF(U25=FALSE,"",Y25*(SUMIF($X$2:$X$982,"<>""",$X$2:$X$982)/SUMIF($Y$2:$Y$982,"<>""",$Y$2:$Y$982)))) ->  | AA25: =IF(VLOOKUP(A26,'Name-Sort'!$D$2:$E$977,2,FALSE)="",A26,"") -> Tim Anderson | AB25: =IFERROR(INDEX($AA$1:$AA$982,SMALL(IF($AA$1:$AA$982<>"",ROW($AA$1:$AA$982)),ROW(AA25))),"") -> Tim Anderson
A26: Tim Anderson | B26: anderti01 | C26: SS | E26: MIA | F26: 30 | G26: 0.0008194444444 | I26: 2.777777778e-05 | J26: 0.0004722222222 | K26: 0.0005555555556 | L26: 0.0002777777778 | M26: 0.0004305555556 | N26: =IFERROR(VLOOKUP(A26,'Import (Values)'!$B$2:$C$999,2,FALSE)/3120,"") ->  | O26: 212 | P26: 255 | Q26: 298 | S26: 292.8 | T26: 288 | U26: =IFERROR(INDEX('Guts-2'!$K$1:$K$30,MATCH(E26,'Guts-2'!$J$1:$J$30,0)),TRUE) -> TRUE | V26: =IFERROR(IF(OR(U26=FALSE,INDEX('Player Notes'!$I$3:$I$1021,MATCH(A26,'Player Notes'!$A$3:$A$1021,0),1)="Yes"),"",IFERROR(CHOOSE('Guts-2'!$B$27,O26,P26,Q26,R26,S26,T26),"")),"") -> 292.8 | W26: 303 | X26: =IFERROR(IF(OR(U26=FALSE,INDEX('Player Notes'!$I$3:$I$1021,MATCH(A26,'Player Notes'!$A$3:$A$1021,0),1)="Yes"),"",CHOOSE('Guts-2'!$B$26,G26,H26,I26,J26,K26,L26,M26,N26)),"") -> 0.0005555555556 | Y26: =IFERROR(IF(OR(U26=FALSE,INDEX('Player Notes'!$I$3:$I$1021,MATCH(A26,'Player Notes'!$A$3:$A$1021,0),1)="Yes"),"",IFERROR(IF(INDEX('Core-Data'!$G$1:$N$982,MATCH($A26,'Core-Data'!$A$1:$A$982,0),'Guts-2'!$B$26)="","",INDEX('Core-Data'!$G$1:$N$982,MATCH($A26,'Core-Data'!$A$1:$A$982,0),'Guts-2'!$B$26)),"")),"") -> 0.0005555555556 | Z26: =IF(Y26="","",IF(U26=FALSE,"",Y26*(SUMIF($X$2:$X$982,"<>""",$X$2:$X$982)/SUMIF($Y$2:$Y$982,"<>""",$Y$2:$Y$982)))) -> 0.0005555555556 | AA26: =IF(VLOOKUP(A27,'Name-Sort'!$D$2:$E$977,2,FALSE)="",A27,"") -> Tyler Anderson | AB26: =IFERROR(INDEX($AA$1:$AA$982,SMALL(IF($AA$1:$AA$982<>"",ROW($AA$1:$AA$982)),ROW(AA26))),"") -> Tyler Anderson
A27: Tyler Anderson | B27: anderty01 | C27: SP | E27: LAA | F27: 34 | J27: -0.003083333333 | M27: -0.003083333333 | N27: =IFERROR(VLOOKUP(A27,'Import (Values)'!$B$2:$C$999,2,FALSE)/3120,"") ->  | S27: 633.8 | U27: =IFERROR(INDEX('Guts-2'!$K$1:$K$30,MATCH(E27,'Guts-2'!$J$1:$J$30,0)),TRUE) -> TRUE | V27: =IFERROR(IF(OR(U27=FALSE,INDEX('Player Notes'!$I$3:$I$1021,MATCH(A27,'Player Notes'!$A$3:$A$1021,0),1)="Yes"),"",IFERROR(CHOOSE('Guts-2'!$B$27,O27,P27,Q27,R27,S27,T27),"")),"") -> 633.8 | W27: 616 | X27: =IFERROR(IF(OR(U27=FALSE,INDEX('Player Notes'!$I$3:$I$1021,MATCH(A27,'Player Notes'!$A$3:$A$1021,0),1)="Yes"),"",CHOOSE('Guts-2'!$B$26,G27,H27,I27,J27,K27,L27,M27,N27)),"") ->  | Y27: =IFERROR(IF(OR(U27=FALSE,INDEX('Player Notes'!$I$3:$I$1021,MATCH(A27,'Player Notes'!$A$3:$A$1021,0),1)="Yes"),"",IFERROR(IF(INDEX('Core-Data'!$G$1:$N$982,MATCH($A27,'Core-Data'!$A$1:$A$982,0),'Guts-2'!$B$26)="","",INDEX('Core-Data'!$G$1:$N$982,MATCH($A27,'Core-Data'!$A$1:$A$982,0),'Guts-2'!$B$26)),"")),"") ->  | Z27: =IF(Y27="","",IF(U27=FALSE,"",Y27*(SUMIF($X$2:$X$982,"<>""",$X$2:$X$982)/SUMIF($Y$2:$Y$982,"<>""",$Y$2:$Y$982)))) ->  | AA27: =IF(VLOOKUP(A28,'Name-Sort'!$D$2:$E$977,2,FALSE)="",A28,"") -> Elvis Andrus | AB27: =IFERROR(INDEX($AA$1:$AA$982,SMALL(IF($AA$1:$AA$982<>"",ROW($AA$1:$AA$982)),ROW(AA27))),"") -> Elvis Andrus
A28: Elvis Andrus | B28: andruel01 | C28: 2B | E28: CHW | F28: 35 | I28: 0 | J28: -0.006805555556 | K28: 0.0005555555556 | M28: -0.002083333333 | N28: =IFERROR(VLOOKUP(A28,'Import (Values)'!$B$2:$C$999,2,FALSE)/3120,"") ->  | S28: 847.3 | U28: =IFERROR(INDEX('Guts-2'!$K$1:$K$30,MATCH(E28,'Guts-2'!$J$1:$J$30,0)),TRUE) -> TRUE | V28: =IFERROR(IF(OR(U28=FALSE,INDEX('Player Notes'!$I$3:$I$1021,MATCH(A28,'Player Notes'!$A$3:$A$1021,0),1)="Yes"),"",IFERROR(CHOOSE('Guts-2'!$B$27,O28,P28,Q28,R28,S28,T28),"")),"") -> 847.3 | W28: 741 | X28: =IFERROR(IF(OR(U28=FALSE,INDEX('Player Notes'!$I$3:$I$1021,MATCH(A28,'Player Notes'!$A$3:$A$1021,0),1)="Yes"),"",CHOOSE('Guts-2'!$B$26,G28,H28,I28,J28,K28,L28,M28,N28)),"") -> 0.0005555555556 | Y28: =IFERROR(IF(OR(U28=FALSE,INDEX('Player Notes'!$I$3:$I$1021,MATCH(A28,'Player Notes'!$A$3:$A$1021,0),1)="Yes"),"",IFERROR(IF(INDEX('Core-Data'!$G$1:$N$982,MATCH($A28,'Core-Data'!$A$1:$A$982,0),'Guts-2'!$B$26)="","",INDEX('Core-Data'!$G$1:$N$982,MATCH($A28,'Core-Data'!$A$1:$A$982,0),'Guts-2'!$B$26)),"")),"") -> 0.0005555555556 | Z28: =IF(Y28="","",IF(U28=FALSE,"",Y28*(SUMIF($X$2:$X$982,"<>""",$X$2:$X$982)/SUMIF($Y$2:$Y$982,"<>""",$Y$2:$Y$982)))) -> 0.0005555555556 | AA28: =IF(VLOOKUP(A29,'Name-Sort'!$D$2:$E$977,2,FALSE)="",A29,"") -> Miguel Andujar | AB28: =IFERROR(INDEX($AA$1:$AA$982,SMALL(IF($AA$1:$AA$982<>"",ROW($AA$1:$AA$982)),ROW(AA28))),"") -> Miguel Andujar
A29: Miguel Andujar | B29: andujmi01 | C29: OF | E29: OAK | F29: 29 | J29: -0.004833333333 | K29: 0.0002777777778 | M29: -0.002277777778 | N29: =IFERROR(VLOOKUP(A29,'Import (Values)'!$B$2:$C$999,2,FALSE)/3120,"") ->  | S29: 757.5 | U29: =IFERROR(INDEX('Guts-2'!$K$1:$K$30,MATCH(E29,'Guts-2'!$J$1:$J$30,0)),TRUE) -> TRUE | V29: =IFERROR(IF(OR(U29=FALSE,INDEX('Player Notes'!$I$3:$I$1021,MATCH(A29,'Player Notes'!$A$3:$A$1021,0),1)="Yes"),"",IFERROR(CHOOSE('Guts-2'!$B$27,O29,P29,Q29,R29,S29,T29),"")),"") -> 757.5 | W29: 699 | X29: =IFERROR(IF(OR(U29=FALSE,INDEX('Player Notes'!$I$3:$I$1021,MATCH(A29,'Player Notes'!$A$3:$A$1021,0),1)="Yes"),"",CHOOSE('Guts-2'!$B$26,G29,H29,I29,J29,K29,L29,M29,N29)),"") -> 0.0002777777778 | Y29: =IFERROR(IF(OR(U29=FALSE,INDEX('Player Notes'!$I$3:$I$1021,MATCH(A29,'Player Notes'!$A$3:$A$1021,0),1)="Yes"),"",IFERROR(IF(INDEX('Core-Data'!$G$1:$N$982,MATCH($A29,'Core-Data'!$A$1:$A$982,0),'Guts-2'!$B$26)="","",INDEX('Core-Data'!$G$1:$N$982,MATCH($A29,'Core-Data'!$A$1:$A$982,0),'Guts-2'!$B$26)),"")),"") -> 0.0002777777778 | Z29: =IF(Y29="","",IF(U29=FALSE,"",Y29*(SUMIF($X$2:$X$982,"<>""",$X$2:$X$982)/SUMIF($Y$2:$Y$982,"<>""",$Y$2:$Y$982)))) -> 0.0002777777778 | AA29: =IF(VLOOKUP(A30,'Name-Sort'!$D$2:$E$977,2,FALSE)="",A30,"") -> Roman Anthony | AB29: =IFERROR(INDEX($AA$1:$AA$982,SMALL(IF($AA$1:$AA$982<>"",ROW($AA$1:$AA$982)),ROW(AA29))),"") -> Roman Anthony
A30: Roman Anthony | B30: anthoro01 | C30: OF | D30: CF | E30: BOS | F30: 19 | N30: =IFERROR(VLOOKUP(A30,'Import (Values)'!$B$2:$C$999,2,FALSE)/3120,"") ->  | U30: =IFERROR(INDEX('Guts-2'!$K$1:$K$30,MATCH(E30,'Guts-2'!$J$1:$J$30,0)),TRUE) -> TRUE | V30: =IFERROR(IF(OR(U30=FALSE,INDEX('Player Notes'!$I$3:$I$1021,MATCH(A30,'Player Notes'!$A$3:$A$1021,0),1)="Yes"),"",IFERROR(CHOOSE('Guts-2'!$B$27,O30,P30,Q30,R30,S30,T30),"")),"") ->  | X30: =IFERROR(IF(OR(U30=FALSE,INDEX('Player Notes'!$I$3:$I$1021,MATCH(A30,'Player Notes'!$A$3:$A$1021,0),1)="Yes"),"",CHOOSE('Guts-2'!$B$26,G30,H30,I30,J30,K30,L30,M30,N30)),"") ->  | Y30: =IFERROR(IF(OR(U30=FALSE,INDEX('Player Notes'!$I$3:$I$1021,MATCH(A30,'Player Notes'!$A$3:$A$1021,0),1)="Yes"),"",IFERROR(IF(INDEX('Core-Data'!$G$1:$N$982,MATCH($A30,'Core-Data'!$A$1:$A$982,0),'Guts-2'!$B$26)="","",INDEX('Core-Data'!$G$1:$N$982,MATCH($A30,'Core-Data'!$A$1:$A$982,0),'Guts-2'!$B$26)),"")),"") ->  | Z30: =IF(Y30="","",IF(U30=FALSE,"",Y30*(SUMIF($X$2:$X$982,"<>""",$X$2:$X$982)/SUMIF($Y$2:$Y$982,"<>""",$Y$2:$Y$982)))) ->  | AA30: =IF(VLOOKUP(A31,'Name-Sort'!$D$2:$E$977,2,FALSE)="",A31,"") -> Tejay Antone | AB30: =IFERROR(INDEX($AA$1:$AA$982,SMALL(IF($AA$1:$AA$982<>"",ROW($AA$1:$AA$982)),ROW(AA30))),"") -> Tejay Antone
A31: Tejay Antone | B31: antonte01 | C31: RP | E31: CIN | F31: 30 | J31: -0.001638888889 | M31: -0.001638888889 | N31: =IFERROR(VLOOKUP(A31,'Import (Values)'!$B$2:$C$999,2,FALSE)/3120,"") ->  | S31: 778 | U31: =IFERROR(INDEX('Guts-2'!$K$1:$K$30,MATCH(E31,'Guts-2'!$J$1:$J$30,0)),TRUE) -> TRUE | V31: =IFERROR(IF(OR(U31=FALSE,INDEX('Player Notes'!$I$3:$I$1021,MATCH(A31,'Player Notes'!$A$3:$A$1021,0),1)="Yes"),"",IFERROR(CHOOSE('Guts-2'!$B$27,O31,P31,Q31,R31,S31,T31),"")),"") -> 778 | W31: 713 | X31: =IFERROR(IF(OR(U31=FALSE,INDEX('Player Notes'!$I$3:$I$1021,MATCH(A31,'Player Notes'!$A$3:$A$1021,0),1)="Yes"),"",CHOOSE('Guts-2'!$B$26,G31,H31,I31,J31,K31,L31,M31,N31)),"") ->  | Y31: =IFERROR(IF(OR(U31=FALSE,INDEX('Player Notes'!$I$3:$I$1021,MATCH(A31,'Player Notes'!$A$3:$A$1021,0),1)="Yes"),"",IFERROR(IF(INDEX('Core-Data'!$G$1:$N$982,MATCH($A31,'Core-Data'!$A$1:$A$982,0),'Guts-2'!$B$26)="","",INDEX('Core-Data'!$G$1:$N$982,MATCH($A31,'Core-Data'!$A$1:$A$982,0),'Guts-2'!$B$26)),"")),"") ->  | Z31: =IF(Y31="","",IF(U31=FALSE,"",Y31*(SUMIF($X$2:$X$982,"<>""",$X$2:$X$982)/SUMIF($Y$2:$Y$982,"<>""",$Y$2:$Y$982)))) ->  | AA31: =IF(VLOOKUP(A32,'Name-Sort'!$D$2:$E$977,2,FALSE)="",A32,"") -> Jonathan Aranda | AB31: =IFERROR(INDEX($AA$1:$AA$982,SMALL(IF($AA$1:$AA$982<>"",ROW($AA$1:$AA$982)),ROW(AA31))),"") -> Jonathan Aranda
... 38 more rows

Sheet Guts-1 (hidden)
A1: AVG | B1: =IFERROR(IF(VLOOKUP(A1,Settings!$C$5:$D$16,2,FALSE)="Full",1,IF(VLOOKUP(A1,Settings!$C$5:$D$16,2,FALSE)="Half",0.5,0)),0) -> 1 | C1: 16 | D1: 22 | E1: 37 | F1: W | G1: =IFERROR(IF(VLOOKUP(F1,Settings!$C$19:$D$30,2,FALSE)="Full",1,IF(VLOOKUP(F1,Settings!$C$19:$D$30,2,FALSE)="Half",0.5,0)),0) -> 1 | H1: 2 | I1: 2 | J1: 10 | K1: Stats or WERTH or Hide? | L1: =IF('Your Roto Auction'!Q7=P5,1,IF('Your Roto Auction'!Q7=P6,2,IF('Your Roto Auction'!Q7=P7,3,""))) -> 1 | M1: =MAX(COUNTIF(L2:L13,">"""),COUNTIF(L14:L25,">""")) -> 5 | O1: List | P1: List | Q1: Pos | R1: Sort by Original Projected Auction Value | S1: Show All Positions | T1: =IFERROR(INDEX($S$1:$S$24,SMALL(IF($S$1:$S$24<>"",ROW($S$1:$S$24)),ROW(B1))),"") -> Show All Positions
A2: HR | B2: =IFERROR(IF(VLOOKUP(A2,Settings!$C$5:$D$16,2,FALSE)="Full",1,IF(VLOOKUP(A2,Settings!$C$5:$D$16,2,FALSE)="Half",0.5,0)),0) -> 1 | C2: 10 | D2: 10 | E2: 27 | F2: SV | G2: =IFERROR(IF(VLOOKUP(F2,Settings!$C$19:$D$30,2,FALSE)="Full",1,IF(VLOOKUP(F2,Settings!$C$19:$D$30,2,FALSE)="Half",0.5,0)),0) -> 1 | H2: 9 | I2: 9 | J2: 17 | K2: =IF(OR(MATCH(L2,'Guts-1'!$A$1:$A$23,0)={11,20,21}),1,0) -> 0 | L2: =IF(ISBLANK(Settings!C5),"",Settings!C5) -> AVG | M2: =IF(L$1=2,1,IF(OR(L2="AVG",L2="OBP",L2="SLG",L2="OPS"),2,IF(L2="","",1))) -> 2 | N2: =IF(OR(L2="AVG",L2="OBP",L2="SLG",L2="OPS"),2,IF(L2="","",1)) -> 2 | O2: =IFERROR(INDEX($L$1:$L$25,SMALL(IF($L$1:$L$25<>"",ROW($L$1:$L$25)),ROW(B2))),"") -> AVG | P2: Stats | Q2: =IF('Guts-2'!$N$2>=ROW(Q1),"C","") -> C | R2: Sort by WERTH | S2: =IF('Guts-2'!$N2>0,"Only Show: "&'Guts-2'!M2,"") -> Only Show: C | T2: =IFERROR(INDEX($S$1:$S$24,SMALL(IF($S$1:$S$24<>"",ROW($S$1:$S$24)),ROW(B2))),"") -> Only Show: C | U2: =IF(ISERROR(VLOOKUP(A1,$L$2:$M$25,2,FALSE)),A1,"") ->  | V2: =IF(ISERROR(VLOOKUP(F1,$L$2:$M$25,2,FALSE)),F1,"") ->  | W2: =IFERROR(INDEX($U$1:$U$26,SMALL(IF($U$1:$U$26<>"",ROW($U$1:$U$26)),ROW(B1))),"") -> SLG | X2: =IFERROR(INDEX($V$1:$V$28,SMALL(IF($V$1:$V$28<>"",ROW($V$1:$V$28)),ROW(B1))),"") -> QS
A3: R | B3: =IFERROR(IF(VLOOKUP(A3,Settings!$C$5:$D$16,2,FALSE)="Full",1,IF(VLOOKUP(A3,Settings!$C$5:$D$16,2,FALSE)="Half",0.5,0)),0) -> 1 | C3: 5 | D3: 5 | E3: 22 | F3: K | G3: =IFERROR(IF(VLOOKUP(F3,Settings!$C$19:$D$30,2,FALSE)="Full",1,IF(VLOOKUP(F3,Settings!$C$19:$D$30,2,FALSE)="Half",0.5,0)),0) -> 1 | H3: 7 | I3: 7 | J3: 15 | K3: =IF(OR(MATCH(L3,'Guts-1'!$A$1:$A$23,0)={11,20,21}),1,0) -> 0 | L3: =IF(ISBLANK(Settings!C6),"",Settings!C6) -> HR | M3: =IF(L$1=2,1,IF(OR(L3="AVG",L3="OBP",L3="SLG",L3="OPS"),2,IF(L3="","",1))) -> 1 | N3: =IF(OR(L3="AVG",L3="OBP",L3="SLG",L3="OPS"),2,IF(L3="","",1)) -> 1 | O3: =IFERROR(INDEX($L$1:$L$25,SMALL(IF($L$1:$L$25<>"",ROW($L$1:$L$25)),ROW(B3))),"") -> HR | P3: Ranks | Q3: =IF('Guts-2'!$N$2>=ROW(Q2),"C","") ->  | R3: Sort by Pos Adj WERTH | S3: =IF('Guts-2'!$N3>0,"Only Show: "&'Guts-2'!M3,"") -> Only Show: 1B | T3: =IFERROR(INDEX($S$1:$S$24,SMALL(IF($S$1:$S$24<>"",ROW($S$1:$S$24)),ROW(B3))),"") -> Only Show: 1B | W3: =IFERROR(INDEX($U$1:$U$26,SMALL(IF($U$1:$U$26<>"",ROW($U$1:$U$26)),ROW(B2))),"") -> OBP | X3: =IFERROR(INDEX($V$1:$V$28,SMALL(IF($V$1:$V$28<>"",ROW($V$1:$V$28)),ROW(B2))),"") -> Holds
A4: RBI | B4: =IFERROR(IF(VLOOKUP(A4,Settings!$C$5:$D$16,2,FALSE)="Full",1,IF(VLOOKUP(A4,Settings!$C$5:$D$16,2,FALSE)="Half",0.5,0)),0) -> 1 | C4: 11 | D4: 11 | E4: 28 | F4: ERA | G4: =IFERROR(IF(VLOOKUP(F4,Settings!$C$19:$D$30,2,FALSE)="Full",1,IF(VLOOKUP(F4,Settings!$C$19:$D$30,2,FALSE)="Half",0.5,0)),0) -> 1 | H4: 10 | I4: 29 | J4: 21 | K4: =IF(OR(MATCH(L4,'Guts-1'!$A$1:$A$23,0)={11,20,21}),1,0) -> 0 | L4: =IF(ISBLANK(Settings!C7),"",Settings!C7) -> R | M4: 1 | N4: 1 | O4: =IFERROR(INDEX($L$1:$L$25,SMALL(IF($L$1:$L$25<>"",ROW($L$1:$L$25)),ROW(B4))),"") -> R | P4: List | Q4: =IF('Guts-2'!$N$2>=ROW(Q3),"C","") ->  | R4: Sort by Expert Ranking | S4: =IF('Guts-2'!$N4>0,"Only Show: "&'Guts-2'!M4,"") -> Only Show: 2B | T4: =IFERROR(INDEX($S$1:$S$24,SMALL(IF($S$1:$S$24<>"",ROW($S$1:$S$24)),ROW(B4))),"") -> Only Show: 2B | W4: =IFERROR(INDEX($U$1:$U$26,SMALL(IF($U$1:$U$26<>"",ROW($U$1:$U$26)),ROW(B3))),"") -> OPS | X4: =IFERROR(INDEX($V$1:$V$28,SMALL(IF($V$1:$V$28<>"",ROW($V$1:$V$28)),ROW(B3))),"") -> Sv + Hld
A5: SB | B5: =IFERROR(IF(VLOOKUP(A5,Settings!$C$5:$D$16,2,FALSE)="Full",1,IF(VLOOKUP(A5,Settings!$C$5:$D$16,2,FALSE)="Half",0.5,0)),0) -> 1 | C5: 12 | D5: 12 | E5: 29 | F5: WHIP | G5: =IFERROR(IF(VLOOKUP(F5,Settings!$C$19:$D$30,2,FALSE)="Full",1,IF(VLOOKUP(F5,Settings!$C$19:$D$30,2,FALSE)="Half",0.5,0)),0) -> 1 | H5: 11 | I5: 30 | J5: 22 | K5: =IF(OR(MATCH(L5,'Guts-1'!$A$1:$A$23,0)={11,20,21}),1,0) -> 0 | L5: =IF(ISBLANK(Settings!C8),"",Settings!C8) -> RBI | M5: 1 | N5: 1 | O5: =IFERROR(INDEX($L$1:$L$25,SMALL(IF($L$1:$L$25<>"",ROW($L$1:$L$25)),ROW(B5))),"") -> RBI | P5: Show Stats | Q5: =IF('Guts-2'!$N$2>=ROW(Q4),"C","") ->  | R5: =IF(O2="","","Sort by "&O2) -> Sort by AVG | S5: =IF('Guts-2'!$N5>0,"Only Show: "&'Guts-2'!M5,"") -> Only Show: 3B | T5: =IFERROR(INDEX($S$1:$S$24,SMALL(IF($S$1:$S$24<>"",ROW($S$1:$S$24)),ROW(B5))),"") -> Only Show: 3B | W5: =IFERROR(INDEX($U$1:$U$26,SMALL(IF($U$1:$U$26<>"",ROW($U$1:$U$26)),ROW(B4))),"") -> Net SB | X5: =IFERROR(INDEX($V$1:$V$28,SMALL(IF($V$1:$V$28<>"",ROW($V$1:$V$28)),ROW(B4))),"") -> K-BB
A6: SLG | B6: =IFERROR(IF(VLOOKUP(A6,Settings!$C$5:$D$16,2,FALSE)="Full",1,IF(VLOOKUP(A6,Settings!$C$5:$D$16,2,FALSE)="Half",0.5,0)),0) -> 0 | C6: 18 | D6: 24 | E6: 39 | F6: QS | G6: =IFERROR(IF(VLOOKUP(F6,Settings!$C$19:$D$30,2,FALSE)="Full",1,IF(VLOOKUP(F6,Settings!$C$19:$D$30,2,FALSE)="Half",0.5,0)),0) -> 0 | H6: 13 | I6: 13 | J6: 24 | K6: =IF(OR(MATCH(L6,'Guts-1'!$A$1:$A$23,0)={11,20,21}),1,0) -> 0 | L6: =IF(ISBLANK(Settings!C9),"",Settings!C9) -> SB | M6: 1 | N6: 1 | O6: =IFERROR(INDEX($L$1:$L$25,SMALL(IF($L$1:$L$25<>"",ROW($L$1:$L$25)),ROW(B6))),"") -> SB | P6: Show WERTH Values | Q6: =IF('Guts-2'!$N$3>=ROW(Q1),"1B","") -> 1B | R6: =IF(O3="","","Sort by "&O3) -> Sort by HR | S6: =IF('Guts-2'!$N6>0,"Only Show: "&'Guts-2'!M6,"") -> Only Show: SS | T6: =IFERROR(INDEX($S$1:$S$24,SMALL(IF($S$1:$S$24<>"",ROW($S$1:$S$24)),ROW(B6))),"") -> Only Show: SS | W6: =IFERROR(INDEX($U$1:$U$26,SMALL(IF($U$1:$U$26<>"",ROW($U$1:$U$26)),ROW(B5))),"") -> Total Bases | X6: =IFERROR(INDEX($V$1:$V$28,SMALL(IF($V$1:$V$28<>"",ROW($V$1:$V$28)),ROW(B5))),"") -> K/BB
A7: OBP | B7: =IFERROR(IF(VLOOKUP(A7,Settings!$C$5:$D$16,2,FALSE)="Full",1,IF(VLOOKUP(A7,Settings!$C$5:$D$16,2,FALSE)="Half",0.5,0)),0) -> 0 | C7: 17 | D7: 23 | E7: 38 | F7: Holds | G7: =IFERROR(IF(VLOOKUP(F7,Settings!$C$19:$D$30,2,FALSE)="Full",1,IF(VLOOKUP(F7,Settings!$C$19:$D$30,2,FALSE)="Half",0.5,0)),0) -> 0 | H7: 17 | I7: 17 | J7: 27 | K7: =IF(OR(MATCH(L7,'Guts-1'!$A$1:$A$23,0)={11,20,21}),1,0) ->  | L7: =IF(ISBLANK(Settings!C10),"",Settings!C10) ->  | O7: =IFERROR(INDEX($L$1:$L$25,SMALL(IF($L$1:$L$25<>"",ROW($L$1:$L$25)),ROW(B7))),"") -> W | P7: Show Neither | Q7: =IF('Guts-2'!$N$3>=ROW(Q2),"1B","") ->  | R7: Sort by R | S7: =IF('Guts-2'!$N7>0,"Only Show: "&'Guts-2'!M7,"") -> Only Show: CI | T7: =IFERROR(INDEX($S$1:$S$24,SMALL(IF($S$1:$S$24<>"",ROW($S$1:$S$24)),ROW(B7))),"") -> Only Show: CI | U7: SLG | V7: QS | W7: =IFERROR(INDEX($U$1:$U$26,SMALL(IF($U$1:$U$26<>"",ROW($U$1:$U$26)),ROW(B6))),"") -> K's | X7: =IFERROR(INDEX($V$1:$V$28,SMALL(IF($V$1:$V$28<>"",ROW($V$1:$V$28)),ROW(B6))),"") -> K/9
A8: OPS | B8: =IFERROR(IF(VLOOKUP(A8,Settings!$C$5:$D$16,2,FALSE)="Full",1,IF(VLOOKUP(A8,Settings!$C$5:$D$16,2,FALSE)="Half",0.5,0)),0) -> 0 | C8: 19 | D8: 25 | E8: 40 | F8: Sv + Hld | G8: =IFERROR(IF(VLOOKUP(F8,Settings!$C$19:$D$30,2,FALSE)="Full",1,IF(VLOOKUP(F8,Settings!$C$19:$D$30,2,FALSE)="Half",0.5,0)),0) -> 0 | H8: 24 | I8: 24 | J8: 28 | K8: =IF(OR(MATCH(L8,'Guts-1'!$A$1:$A$23,0)={11,20,21}),1,0) ->  | L8: =IF(ISBLANK(Settings!C11),"",Settings!C11) ->  | O8: =IFERROR(INDEX($L$1:$L$25,SMALL(IF($L$1:$L$25<>"",ROW($L$1:$L$25)),ROW(B8))),"") -> SV | P8: List | Q8: =IF('Guts-2'!$N$3>=ROW(Q3),"1B","") ->  | R8: Sort by RBI | S8: =IF('Guts-2'!$N8>0,"Only Show: "&'Guts-2'!M8,"") -> Only Show: MI | T8: =IFERROR(INDEX($S$1:$S$24,SMALL(IF($S$1:$S$24<>"",ROW($S$1:$S$24)),ROW(B8))),"") -> Only Show: MI | U8: OBP | V8: Holds | W8: =IFERROR(INDEX($U$1:$U$26,SMALL(IF($U$1:$U$26<>"",ROW($U$1:$U$26)),ROW(B7))),"") -> Hits | X8: =IFERROR(INDEX($V$1:$V$28,SMALL(IF($V$1:$V$28<>"",ROW($V$1:$V$28)),ROW(B7))),"") -> CG
A9: Net SB | B9: =IFERROR(IF(VLOOKUP(A9,Settings!$C$5:$D$16,2,FALSE)="Full",1,IF(VLOOKUP(A9,Settings!$C$5:$D$16,2,FALSE)="Half",0.5,0)),0) -> 0 | C9: 31 | D9: 31 | E9: 48 | F9: K-BB | G9: =IFERROR(IF(VLOOKUP(F9,Settings!$C$19:$D$30,2,FALSE)="Full",1,IF(VLOOKUP(F9,Settings!$C$19:$D$30,2,FALSE)="Half",0.5,0)),0) -> 0 | H9: 25 | I9: 25 | J9: 29 | K9: =IF(OR(MATCH(L9,'Guts-1'!$A$1:$A$23,0)={11,20,21}),1,0) ->  | L9: =IF(ISBLANK(Settings!C12),"",Settings!C12) ->  | O9: =IFERROR(INDEX($L$1:$L$25,SMALL(IF($L$1:$L$25<>"",ROW($L$1:$L$25)),ROW(B9))),"") -> K | P9: Mixed (Standard) | Q9: =IF('Guts-2'!$N$4>=ROW(Q1),"2B","") -> 2B | R9: Sort by SB | S9: =IF('Guts-2'!$N9>0,"Only Show: "&'Guts-2'!M9,"") -> Only Show: OF | T9: =IFERROR(INDEX($S$1:$S$24,SMALL(IF($S$1:$S$24<>"",ROW($S$1:$S$24)),ROW(B9))),"") -> Only Show: OF | U9: OPS | V9: Sv + Hld | W9: =IFERROR(INDEX($U$1:$U$26,SMALL(IF($U$1:$U$26<>"",ROW($U$1:$U$26)),ROW(B8))),"") -> BB | X9: =IFERROR(INDEX($V$1:$V$28,SMALL(IF($V$1:$V$28<>"",ROW($V$1:$V$28)),ROW(B8))),"") -> Shutouts
A10: Total Bases | B10: =IFERROR(IF(VLOOKUP(A10,Settings!$C$5:$D$16,2,FALSE)="Full",1,IF(VLOOKUP(A10,Settings!$C$5:$D$16,2,FALSE)="Half",0.5,0)),0) -> 0 | C10: 20 | D10: 20 | E10: 45 | F10: K/BB | G10: =IFERROR(IF(VLOOKUP(F10,Settings!$C$19:$D$30,2,FALSE)="Full",1,IF(VLOOKUP(F10,Settings!$C$19:$D$30,2,FALSE)="Half",0.5,0)),0) -> 0 | H10: 26 | I10: 33 | J10: 34 | K10: =IF(OR(MATCH(L10,'Guts-1'!$A$1:$A$23,0)={11,20,21}),1,0) ->  | L10: =IF(ISBLANK(Settings!C13),"",Settings!C13) ->  | O10: =IFERROR(INDEX($L$1:$L$25,SMALL(IF($L$1:$L$25<>"",ROW($L$1:$L$25)),ROW(B10))),"") -> ERA | P10: AL-Only | Q10: =IF('Guts-2'!$N$4>=ROW(Q2),"2B","") ->  | R10: Sort by W | S10: =IF('Guts-2'!$N10>0,"Only Show: "&'Guts-2'!M10,"") -> Only Show: DH | T10: =IFERROR(INDEX($S$1:$S$24,SMALL(IF($S$1:$S$24<>"",ROW($S$1:$S$24)),ROW(B10))),"") -> Only Show: DH | U10: Net SB | V10: K-BB | W10: =IFERROR(INDEX($U$1:$U$26,SMALL(IF($U$1:$U$26<>"",ROW($U$1:$U$26)),ROW(B9))),"") -> 1B | X10: =IFERROR(INDEX($V$1:$V$28,SMALL(IF($V$1:$V$28<>"",ROW($V$1:$V$28)),ROW(B9))),"") -> ER
A11: K's | B11: =IFERROR(IF(VLOOKUP(A11,Settings!$C$5:$D$16,2,FALSE)="Full",1,IF(VLOOKUP(A11,Settings!$C$5:$D$16,2,FALSE)="Half",0.5,0)),0) -> 0 | C11: 15 | D11: 15 | E11: 32 | F11: K/9 | G11: =IFERROR(IF(VLOOKUP(F11,Settings!$C$19:$D$30,2,FALSE)="Full",1,IF(VLOOKUP(F11,Settings!$C$19:$D$30,2,FALSE)="Half",0.5,0)),0) -> 0 | H11: 12 | I11: 31 | J11: 23 | K11: =IF(OR(MATCH(L11,'Guts-1'!$A$1:$A$23,0)={11,20,21}),1,0) ->  | L11: =IF(ISBLANK(Settings!C14),"",Settings!C14) ->  | O11: =IFERROR(INDEX($L$1:$L$25,SMALL(IF($L$1:$L$25<>"",ROW($L$1:$L$25)),ROW(B11))),"") -> WHIP | P11: NL-Only | Q11: =IF('Guts-2'!$N$4>=ROW(Q3),"2B","") ->  | R11: Sort by SV | S11: Only Show: SP | T11: =IFERROR(INDEX($S$1:$S$24,SMALL(IF($S$1:$S$24<>"",ROW($S$1:$S$24)),ROW(B11))),"") -> Only Show: SP | U11: Total Bases | V11: K/BB | W11: =IFERROR(INDEX($U$1:$U$26,SMALL(IF($U$1:$U$26<>"",ROW($U$1:$U$26)),ROW(B10))),"") -> 2B | X11: =IFERROR(INDEX($V$1:$V$28,SMALL(IF($V$1:$V$28<>"",ROW($V$1:$V$28)),ROW(B10))),"") -> BAA
A12: Hits | B12: =IFERROR(IF(VLOOKUP(A12,Settings!$C$5:$D$16,2,FALSE)="Full",1,IF(VLOOKUP(A12,Settings!$C$5:$D$16,2,FALSE)="Half",0.5,0)),0) -> 0 | C12: 6 | D12: 6 | E12: 23 | F12: CG | G12: =IFERROR(IF(VLOOKUP(F12,Settings!$C$19:$D$30,2,FALSE)="Full",1,IF(VLOOKUP(F12,Settings!$C$19:$D$30,2,FALSE)="Half",0.5,0)),0) -> 0 | H12: 19 | I12: 19 | J12: 37 | K12: =IF(OR(MATCH(L12,'Guts-1'!$A$1:$A$23,0)={11,20,21}),1,0) ->  | L12: =IF(ISBLANK(Settings!C15),"",Settings!C15) ->  | O12: =IFERROR(INDEX($L$1:$L$25,SMALL(IF($L$1:$L$25<>"",ROW($L$1:$L$25)),ROW(B12))),"") ->  | P12: Specific Teams Only | Q12: =IF('Guts-2'!$N$5>=ROW(Q1),"3B","") -> 3B | R12: Sort by K | S12: Only Show: RP | T12: =IFERROR(INDEX($S$1:$S$24,SMALL(IF($S$1:$S$24<>"",ROW($S$1:$S$24)),ROW(B12))),"") -> Only Show: RP | U12: K's | V12: K/9 | W12: =IFERROR(INDEX($U$1:$U$26,SMALL(IF($U$1:$U$26<>"",ROW($U$1:$U$26)),ROW(B11))),"") -> 3B | X12: =IFERROR(INDEX($V$1:$V$28,SMALL(IF($V$1:$V$28<>"",ROW($V$1:$V$28)),ROW(B11))),"") -> Hits Allw
A13: BB | B13: =IFERROR(IF(VLOOKUP(A13,Settings!$C$5:$D$16,2,FALSE)="Full",1,IF(VLOOKUP(A13,Settings!$C$5:$D$16,2,FALSE)="Half",0.5,0)),0) -> 0 | C13: 14 | D13: 14 | E13: 31 | F13: Shutouts | G13: =IFERROR(IF(VLOOKUP(F13,Settings!$C$19:$D$30,2,FALSE)="Full",1,IF(VLOOKUP(F13,Settings!$C$19:$D$30,2,FALSE)="Half",0.5,0)),0) -> 0 | H13: 20 | I13: 20 | J13: 36 | K13: =IF(OR(MATCH(L13,'Guts-1'!$A$1:$A$23,0)={11,20,21}),1,0) ->  | L13: =IF(ISBLANK(Settings!C16),"",Settings!C16) ->  | O13: =IFERROR(INDEX($L$1:$L$25,SMALL(IF($L$1:$L$25<>"",ROW($L$1:$L$25)),ROW(B13))),"") ->  | P13: Y | Q13: =IF('Guts-2'!$N$5>=ROW(Q2),"3B","") ->  | R13: Sort by ERA | S13: Only Show: P | T13: =IFERROR(INDEX($S$1:$S$24,SMALL(IF($S$1:$S$24<>"",ROW($S$1:$S$24)),ROW(B13))),"") -> Only Show: P | U13: Hits | V13: CG | W13: =IFERROR(INDEX($U$1:$U$26,SMALL(IF($U$1:$U$26<>"",ROW($U$1:$U$26)),ROW(B12))),"") -> 2B + 3B | X13: =IFERROR(INDEX($V$1:$V$28,SMALL(IF($V$1:$V$28<>"",ROW($V$1:$V$28)),ROW(B12))),"") -> HR's
A14: 1B | B14: =IFERROR(IF(VLOOKUP(A14,Settings!$C$5:$D$16,2,FALSE)="Full",1,IF(VLOOKUP(A14,Settings!$C$5:$D$16,2,FALSE)="Half",0.5,0)),0) -> 0 | C14: 7 | D14: 7 | E14: 24 | F14: ER | G14: =IFERROR(IF(VLOOKUP(F14,Settings!$C$19:$D$30,2,FALSE)="Full",1,IF(VLOOKUP(F14,Settings!$C$19:$D$30,2,FALSE)="Half",0.5,0)),0) -> 0 | H14: 8 | I14: 8 | J14: 16 | K14: =IF(OR(MATCH(L14,'Guts-1'!$F$1:$F$27,0)={4,5,14,15,16,17,18,19,24,26}),1,0) -> 0 | L14: =IF(ISBLANK(Settings!C19),"",Settings!C19) -> W | M14: =IF(L$1=2,1,IF(OR(L14="ERA",L14="WHIP"),4,IF(OR(L14="K/9",L14="K/BB"),3,IF(L14="BAA",2,IF(L14="","",1))))) -> 1 | N14: =IF(OR(L14="ERA",L14="WHIP"),4,IF(OR(L14="K/9",L14="K/BB"),3,IF(L14="BAA",2,IF(L14="","",1)))) -> 1 | O14: =IFERROR(INDEX($L$1:$L$25,SMALL(IF($L$1:$L$25<>"",ROW($L$1:$L$25)),ROW(B14))),"") ->  | P14: N | Q14: =IF('Guts-2'!$N$5>=ROW(Q3),"3B","") ->  | R14: Sort by WHIP | S14: =IF('Guts-2'!$N14>0,"Only Show: "&'Guts-2'!M14,"") ->  | T14: =IFERROR(INDEX($S$1:$S$24,SMALL(IF($S$1:$S$24<>"",ROW($S$1:$S$24)),ROW(B14))),"") -> Only Show: Hitters | U14: BB | V14: Shutouts | W14: =IFERROR(INDEX($U$1:$U$26,SMALL(IF($U$1:$U$26<>"",ROW($U$1:$U$26)),ROW(B13))),"") -> R + RBI - HR | X14: =IFERROR(INDEX($V$1:$V$28,SMALL(IF($V$1:$V$28<>"",ROW($V$1:$V$28)),ROW(B13))),"") -> Walks
A15: 2B | B15: =IFERROR(IF(VLOOKUP(A15,Settings!$C$5:$D$16,2,FALSE)="Full",1,IF(VLOOKUP(A15,Settings!$C$5:$D$16,2,FALSE)="Half",0.5,0)),0) -> 0 | C15: 8 | D15: 8 | E15: 25 | F15: BAA | G15: =IFERROR(IF(VLOOKUP(F15,Settings!$C$19:$D$30,2,FALSE)="Full",1,IF(VLOOKUP(F15,Settings!$C$19:$D$30,2,FALSE)="Half",0.5,0)),0) -> 0 | H15: 18 | I15: 32 | J15: 33 | K15: =IF(OR(MATCH(L15,'Guts-1'!$F$1:$F$27,0)={4,5,14,15,16,17,18,19,24,26}),1,0) -> 0 | L15: =IF(ISBLANK(Settings!C20),"",Settings!C20) -> SV | M15: =IF(L$1=2,1,IF(OR(L15="ERA",L15="WHIP"),4,IF(OR(L15="K/9",L15="K/BB"),3,IF(L15="BAA",2,IF(L15="","",1))))) -> 1 | N15: =IF(OR(L15="ERA",L15="WHIP"),4,IF(OR(L15="K/9",L15="K/BB"),3,IF(L15="BAA",2,IF(L15="","",1)))) -> 1 | O15: =IFERROR(INDEX($L$1:$L$25,SMALL(IF($L$1:$L$25<>"",ROW($L$1:$L$25)),ROW(B15))),"") ->  | P15: Full | Q15: =IF('Guts-2'!$N$6>=ROW(Q1),"SS","") -> SS | S15: =IF('Guts-2'!$N15>0,"Only Show: "&'Guts-2'!M15,"") ->  | T15: =IFERROR(INDEX($S$1:$S$24,SMALL(IF($S$1:$S$24<>"",ROW($S$1:$S$24)),ROW(B15))),"") -> Only Show: Pitchers | U15: 1B | V15: ER | W15: =IFERROR(INDEX($U$1:$U$26,SMALL(IF($U$1:$U$26<>"",ROW($U$1:$U$26)),ROW(B14))),"") -> SB + BB - K | X15: =IFERROR(INDEX($V$1:$V$28,SMALL(IF($V$1:$V$28<>"",ROW($V$1:$V$28)),ROW(B14))),"") -> L
A16: 3B | B16: =IFERROR(IF(VLOOKUP(A16,Settings!$C$5:$D$16,2,FALSE)="Full",1,IF(VLOOKUP(A16,Settings!$C$5:$D$16,2,FALSE)="Half",0.5,0)),0) -> 0 | C16: 9 | D16: 9 | E16: 26 | F16: Hits Allw | G16: =IFERROR(IF(VLOOKUP(F16,Settings!$C$19:$D$30,2,FALSE)="Full",1,IF(VLOOKUP(F16,Settings!$C$19:$D$30,2,FALSE)="Half",0.5,0)),0) -> 0 | H16: 5 | I16: 5 | J16: 13 | K16: =IF(OR(MATCH(L16,'Guts-1'!$F$1:$F$27,0)={4,5,14,15,16,17,18,19,24,26}),1,0) -> 0 | L16: =IF(ISBLANK(Settings!C21),"",Settings!C21) -> K | M16: 1 | N16: 1 | O16: =IFERROR(INDEX($L$1:$L$25,SMALL(IF($L$1:$L$25<>"",ROW($L$1:$L$25)),ROW(B16))),"") ->  | P16: Half | Q16: =IF('Guts-2'!$N$6>=ROW(Q2),"SS","") ->  | S16: =IF('Guts-2'!$N16>0,"Only Show: "&'Guts-2'!M16,"") ->  | T16: =IFERROR(INDEX($S$1:$S$24,SMALL(IF($S$1:$S$24<>"",ROW($S$1:$S$24)),ROW(B16))),"") ->  | U16: 2B | V16: BAA | W16: =IFERROR(INDEX($U$1:$U$26,SMALL(IF($U$1:$U$26<>"",ROW($U$1:$U$26)),ROW(B15))),"") -> CS | X16: =IFERROR(INDEX($V$1:$V$28,SMALL(IF($V$1:$V$28<>"",ROW($V$1:$V$28)),ROW(B15))),"") -> IP
A17: 2B + 3B | B17: =IFERROR(IF(VLOOKUP(A17,Settings!$C$5:$D$16,2,FALSE)="Full",1,IF(VLOOKUP(A17,Settings!$C$5:$D$16,2,FALSE)="Half",0.5,0)),0) -> 0 | C17: 30 | D17: 30 | E17: 47 | F17: HR's | G17: =IFERROR(IF(VLOOKUP(F17,Settings!$C$19:$D$30,2,FALSE)="Full",1,IF(VLOOKUP(F17,Settings!$C$19:$D$30,2,FALSE)="Half",0.5,0)),0) -> 0 | H17: 16 | I17: 16 | J17: 31 | K17: =IF(OR(MATCH(L17,'Guts-1'!$F$1:$F$27,0)={4,5,14,15,16,17,18,19,24,26}),1,0) -> 1 | L17: =IF(ISBLANK(Settings!C22),"",Settings!C22) -> ERA | M17: 4 | N17: 4 | O17: =IFERROR(INDEX($L$1:$L$25,SMALL(IF($L$1:$L$25<>"",ROW($L$1:$L$25)),ROW(B17))),"") ->  | P17: Snake Draft | Q17: =IF('Guts-2'!$N$6>=ROW(Q3),"SS","") ->  | S17: =IF('Guts-2'!$N17>0,"Only Show: "&'Guts-2'!M17,"") ->  | T17: =IFERROR(INDEX($S$1:$S$24,SMALL(IF($S$1:$S$24<>"",ROW($S$1:$S$24)),ROW(B17))),"") ->  | U17: 3B | V17: Hits Allw | W17: =IFERROR(INDEX($U$1:$U$26,SMALL(IF($U$1:$U$26<>"",ROW($U$1:$U$26)),ROW(B16))),"") -> Errors | X17: =IFERROR(INDEX($V$1:$V$28,SMALL(IF($V$1:$V$28<>"",ROW($V$1:$V$28)),ROW(B16))),"") -> GS
A18: R + RBI - HR | B18: =IFERROR(IF(VLOOKUP(A18,Settings!$C$5:$D$16,2,FALSE)="Full",1,IF(VLOOKUP(A18,Settings!$C$5:$D$16,2,FALSE)="Half",0.5,0)),0) -> 0 | C18: 21 | D18: 21 | E18: 46 | F18: Walks | G18: =IFERROR(IF(VLOOKUP(F18,Settings!$C$19:$D$30,2,FALSE)="Full",1,IF(VLOOKUP(F18,Settings!$C$19:$D$30,2,FALSE)="Half",0.5,0)),0) -> 0 | H18: 6 | I18: 6 | J18: 14 | K18: =IF(OR(MATCH(L18,'Guts-1'!$F$1:$F$27,0)={4,5,14,15,16,17,18,19,24,26}),1,0) -> 1 | L18: =IF(ISBLANK(Settings!C23),"",Settings!C23) -> WHIP | M18: 4 | N18: 4 | O18: =IFERROR(INDEX($L$1:$L$25,SMALL(IF($L$1:$L$25<>"",ROW($L$1:$L$25)),ROW(B18))),"") ->  | P18: Same Order Every Round | Q18: =IF('Guts-2'!$N$7>=ROW(Q1),"CI","") -> CI | S18: Only Show: Hitters | U18: 2B + 3B | V18: HR's | W18: =IFERROR(INDEX($U$1:$U$26,SMALL(IF($U$1:$U$26<>"",ROW($U$1:$U$26)),ROW(B17))),"") -> XBH | X18: =IFERROR(INDEX($V$1:$V$28,SMALL(IF($V$1:$V$28<>"",ROW($V$1:$V$28)),ROW(B17))),"") -> Games
A19: SB + BB - K | B19: =IFERROR(IF(VLOOKUP(A19,Settings!$C$5:$D$16,2,FALSE)="Full",1,IF(VLOOKUP(A19,Settings!$C$5:$D$16,2,FALSE)="Half",0.5,0)),0) -> 0 | C19: 32 | D19: 32 | E19: 49 | F19: L | G19: =IFERROR(IF(VLOOKUP(F19,Settings!$C$19:$D$30,2,FALSE)="Full",1,IF(VLOOKUP(F19,Settings!$C$19:$D$30,2,FALSE)="Half",0.5,0)),0) -> 0 | H19: 3 | I19: 3 | J19: 11 | K19: =IF(OR(MATCH(L19,'Guts-1'!$F$1:$F$27,0)={4,5,14,15,16,17,18,19,24,26}),1,0) ->  | L19: =IF(ISBLANK(Settings!C24),"",Settings!C24) ->  | O19: =IFERROR(INDEX($L$1:$L$25,SMALL(IF($L$1:$L$25<>"",ROW($L$1:$L$25)),ROW(B19))),"") ->  | P19: Show Drafted Players | Q19: =IF('Guts-2'!$N$7>=ROW(Q2),"CI","") ->  | S19: Only Show: Pitchers | U19: R + RBI - HR | V19: Walks | W19: =IFERROR(INDEX($U$1:$U$26,SMALL(IF($U$1:$U$26<>"",ROW($U$1:$U$26)),ROW(B18))),"") -> HBP | X19: =IFERROR(INDEX($V$1:$V$28,SMALL(IF($V$1:$V$28<>"",ROW($V$1:$V$28)),ROW(B18))),"") -> GF
A20: CS | B20: =IFERROR(IF(VLOOKUP(A20,Settings!$C$5:$D$16,2,FALSE)="Full",1,IF(VLOOKUP(A20,Settings!$C$5:$D$16,2,FALSE)="Half",0.5,0)),0) -> 0 | C20: 13 | D20: 13 | E20: 30 | F20: IP | G20: =IFERROR(IF(VLOOKUP(F20,Settings!$C$19:$D$30,2,FALSE)="Full",1,IF(VLOOKUP(F20,Settings!$C$19:$D$30,2,FALSE)="Half",0.5,0)),0) -> 0 | H20: 4 | I20: 4 | J20: 12 | K20: =IF(OR(MATCH(L20,'Guts-1'!$F$1:$F$27,0)={4,5,14,15,16,17,18,19,24,26}),1,0) ->  | L20: =IF(ISBLANK(Settings!C25),"",Settings!C25) ->  | O20: =IFERROR(INDEX($L$1:$L$25,SMALL(IF($L$1:$L$25<>"",ROW($L$1:$L$25)),ROW(B20))),"") ->  | P20: Hide Drafted Players | Q20: =IF('Guts-2'!$N$7>=ROW(Q3),"CI","") ->  | U20: SB + BB - K | V20: L | W20: =IFERROR(INDEX($U$1:$U$26,SMALL(IF($U$1:$U$26<>"",ROW($U$1:$U$26)),ROW(B19))),"") ->  | X20: =IFERROR(INDEX($V$1:$V$28,SMALL(IF($V$1:$V$28<>"",ROW($V$1:$V$28)),ROW(B19))),"") -> Blown Sv
A21: Errors | B21: =IFERROR(IF(VLOOKUP(A21,Settings!$C$5:$D$16,2,FALSE)="Full",1,IF(VLOOKUP(A21,Settings!$C$5:$D$16,2,FALSE)="Half",0.5,0)),0) -> 0 | C21: 33 | D21: 33 | E21: 50 | F21: GS | G21: =IFERROR(IF(VLOOKUP(F21,Settings!$C$19:$D$30,2,FALSE)="Full",1,IF(VLOOKUP(F21,Settings!$C$19:$D$30,2,FALSE)="Half",0.5,0)),0) -> 0 | H21: 14 | I21: 14 | J21: 35 | K21: =IF(OR(MATCH(L21,'Guts-1'!$F$1:$F$27,0)={4,5,14,15,16,17,18,19,24,26}),1,0) ->  | L21: =IF(ISBLANK(Settings!C26),"",Settings!C26) ->  | O21: =IFERROR(INDEX($L$1:$L$25,SMALL(IF($L$1:$L$25<>"",ROW($L$1:$L$25)),ROW(B21))),"") ->  | P21: All Teams Have Same Budget | Q21: =IF('Guts-2'!$N$8>=ROW(Q1),"MI","") -> MI | U21: CS | V21: IP | W21: =IFERROR(INDEX($U$1:$U$26,SMALL(IF($U$1:$U$26<>"",ROW($U$1:$U$26)),ROW(B20))),"") ->  | X21: =IFERROR(INDEX($V$1:$V$28,SMALL(IF($V$1:$V$28<>"",ROW($V$1:$V$28)),ROW(B20))),"") -> Net Sv
A22: XBH | B22: =IFERROR(IF(VLOOKUP(A22,Settings!$C$5:$D$16,2,FALSE)="Full",1,IF(VLOOKUP(A22,Settings!$C$5:$D$16,2,FALSE)="Half",0.5,0)),0) -> 0 | C22: 34 | D22: 34 | E22: 51 | F22: Games | G22: =IFERROR(IF(VLOOKUP(F22,Settings!$C$19:$D$30,2,FALSE)="Full",1,IF(VLOOKUP(F22,Settings!$C$19:$D$30,2,FALSE)="Half",0.5,0)),0) -> 0 | H22: 15 | I22: 15 | J22: 38 | K22: =IF(OR(MATCH(L22,'Guts-1'!$F$1:$F$27,0)={4,5,14,15,16,17,18,19,24,26}),1,0) ->  | L22: =IF(ISBLANK(Settings!C27),"",Settings!C27) ->  | O22: =IFERROR(INDEX($L$1:$L$25,SMALL(IF($L$1:$L$25<>"",ROW($L$1:$L$25)),ROW(B26))),"") ->  | P22: Budgets Vary By Team | Q22: =IF('Guts-2'!$N$8>=ROW(Q2),"MI","") ->  | U22: Errors | V22: GS | W22: =IFERROR(INDEX($U$1:$U$26,SMALL(IF($U$1:$U$26<>"",ROW($U$1:$U$26)),ROW(B21))),"") ->  | X22: =IFERROR(INDEX($V$1:$V$28,SMALL(IF($V$1:$V$28<>"",ROW($V$1:$V$28)),ROW(B21))),"") -> H/9
A23: HBP | B23: =IFERROR(IF(VLOOKUP(A23,Settings!$C$5:$D$16,2,FALSE)="Full",1,IF(VLOOKUP(A23,Settings!$C$5:$D$16,2,FALSE)="Half",0.5,0)),0) -> 0 | C23: 35 | D23: 35 | E23: 52 | F23: GF | G23: =IFERROR(IF(VLOOKUP(F23,Settings!$C$19:$D$30,2,FALSE)="Full",1,IF(VLOOKUP(F23,Settings!$C$19:$D$30,2,FALSE)="Half",0.5,0)),0) -> 0 | H23: 21 | I23: 21 | J23: 39 | K23: =IF(OR(MATCH(L23,'Guts-1'!$F$1:$F$27,0)={4,5,14,15,16,17,18,19,24,26}),1,0) ->  | L23: =IF(ISBLANK(Settings!C28),"",Settings!C28) ->  | O23: =IFERROR(INDEX($L$1:$L$25,SMALL(IF($L$1:$L$25<>"",ROW($L$1:$L$25)),ROW(B27))),"") ->  | P23: Values Adjusted By Position | Q23: =IF('Guts-2'!$N$8>=ROW(Q3),"MI","") ->  | U23: XBH | V23: Games | X23: =IFERROR(INDEX($V$1:$V$28,SMALL(IF($V$1:$V$28<>"",ROW($V$1:$V$28)),ROW(B22))),"") -> IP-ER
F24: Blown Sv | G24: =IFERROR(IF(VLOOKUP(F24,Settings!$C$19:$D$30,2,FALSE)="Full",1,IF(VLOOKUP(F24,Settings!$C$19:$D$30,2,FALSE)="Half",0.5,0)),0) -> 0 | H24: 22 | I24: 22 | J24: 40 | K24: =IF(OR(MATCH(L24,'Guts-1'!$F$1:$F$27,0)={4,5,14,15,16,17,18,19,24,26}),1,0) ->  | L24: =IF(ISBLANK(Settings!C29),"",Settings!C29) ->  | O24: =IFERROR(INDEX($L$1:$L$25,SMALL(IF($L$1:$L$25<>"",ROW($L$1:$L$25)),ROW(B28))),"") ->  | P24: Turn Off Position Adjustments | Q24: =IF('Guts-2'!$N$17>=ROW(Q1),"IF","") ->  | U24: HBP | V24: GF | X24: =IFERROR(INDEX($V$1:$V$27,SMALL(IF($V$1:$V$27<>"",ROW($V$1:$V$27)),ROW(B23))),"") -> 
F25: Net Sv | G25: =IFERROR(IF(VLOOKUP(F25,Settings!$C$19:$D$30,2,FALSE)="Full",1,IF(VLOOKUP(F25,Settings!$C$19:$D$30,2,FALSE)="Half",0.5,0)),0) -> 0 | H25: 23 | I25: 23 | J25: 41 | K25: =IF(OR(MATCH(L25,'Guts-1'!$F$1:$F$27,0)={4,5,14,15,16,17,18,19,24,26}),1,0) ->  | L25: =IF(ISBLANK(Settings!C30),"",Settings!C30) ->  | O25: =IFERROR(INDEX($L$1:$L$25,SMALL(IF($L$1:$L$25<>"",ROW($L$1:$L$25)),ROW(B29))),"") ->  | Q25: =IF('Guts-2'!$N$17>=ROW(Q2),"IF","") ->  | V25: Blown Sv | X25: =IFERROR(INDEX($V$1:$V$27,SMALL(IF($V$1:$V$27<>"",ROW($V$1:$V$27)),ROW(B24))),"") -> 
A26: Budget Per Team | B26: =Settings!K6 -> 260 | F26: H/9 | G26: =IFERROR(IF(VLOOKUP(F26,Settings!$C$19:$D$30,2,FALSE)="Full",1,IF(VLOOKUP(F26,Settings!$C$19:$D$30,2,FALSE)="Half",0.5,0)),0) -> 0 | H26: 27 | I26: 28 | J26: 43 | P26: Hot | Q26: =IF('Guts-2'!$N$17>=ROW(Q3),"IF","") ->  | V26: Net Sv | X26: =IFERROR(INDEX($V$1:$V$27,SMALL(IF($V$1:$V$27<>"",ROW($V$1:$V$27)),ROW(B25))),"") -> 
A27: Players Per Team | B27: =Settings!G26 -> 28 | C27: =SUM('Guts-2'!N2:N17) -> 22 | F27: IP-ER | G27: =IFERROR(IF(VLOOKUP(F27,Settings!$C$19:$D$30,2,FALSE)="Full",1,IF(VLOOKUP(F27,Settings!$C$19:$D$30,2,FALSE)="Half",0.5,0)),0) -> 0 | H27: 34 | I27: 34 | J27: 44 | P27: Cold | Q27: =IF('Guts-2'!$N$17>=ROW(Q4),"IF","") ->  | V27: H/9 | X27: =IFERROR(INDEX($V$1:$V$27,SMALL(IF($V$1:$V$27<>"",ROW($V$1:$V$27)),ROW(B26))),"") -> 
A28: Total League Money | B28: =IF(Settings!K8="All Teams Have Same Budget",Settings!K5*Settings!K6,SUM(Settings!L12:L35)) -> 3120 | P28: Target | Q28: =IF('Guts-2'!$N$17>=ROW(Q5),"IF","") ->  | V28: IP-ER
A29: Minimum Bid | B29: =Settings!K7 -> 1 | F29: Budget Per Team | P29: Avoid | Q29: =IF('Guts-2'!$N$17>=ROW(Q6),"IF","") -> 
A30: Minimum Amount To Spend | B30: =B27*'Guts-2'!N1*B29 -> 336 | F30: Players Per Team | P30: Injury | Q30: =IF('Guts-2'!$N$9>=ROW(Q1),"OF","") -> OF
A31: Hitter Min | B31: ='Filter-H'!AR16 -> 156 | P31: Note | Q31: =IF('Guts-2'!$N$9>=ROW(Q2),"OF","") -> OF
... 38 more rows

Sheet Guts-2 (hidden)
B1: RotoChamp (Projected) | C1: RotoChamp | D1: THE BAT | E1: Teams | F1: Starters | G1: THE BAT | H1: =IF(OR(Settings!$P$42<>100,Settings!$O$42<>100),0,Settings!O35) -> 20 | I1: =IF(OR(Settings!$P$42<>100,Settings!$O$42<>100),0,Settings!P35) -> 20 | J1: LAA | K1: =IF(OR(Settings!$R$5="AL-Only",Settings!$R$5="Mixed (Standard)"),TRUE,IF(Settings!$R$5="Specific Teams Only",IF(Settings!T6="Y",TRUE,FALSE),FALSE)) -> TRUE | L1: C | M1: # of Teams | N1: =Settings!K5 -> 12 | P1: =IFERROR(INDEX($O$1:$O$19,SMALL(IF($O$1:$O$19<>"",ROW($O$1:$O$19)),ROW(O1))),"") -> C | Q1: None
A2: =IF($N$1>=ROW(A1),Settings!K12,#N/A) -> Team 1 | B2: CBS (Projected) | C2: Yahoo Staff | D2: Steamer | E2: 6 | F2: 0 | G2: Clay Davenport | H2: =IF(OR(Settings!$P$42<>100,Settings!$O$42<>100),0,Settings!O36) -> 5 | I2: =IF(OR(Settings!$P$42<>100,Settings!$O$42<>100),0,Settings!P36) -> 5 | J2: ARI | K2: =IF(OR(Settings!$R$5="NL-Only",Settings!$R$5="Mixed (Standard)"),TRUE,IF(Settings!$R$5="Specific Teams Only",IF(Settings!T7="Y",TRUE,FALSE),FALSE)) -> TRUE | L2: 1B | M2: C | N2: =Settings!G5 -> 1 | O2: =IF(N2>0,M2,"") -> C | P2: =IFERROR(INDEX($O$1:$O$19,SMALL(IF($O$1:$O$19<>"",ROW($O$1:$O$19)),ROW(O2))),"") -> 1B | Q2: Green
A3: =IF($N$1>=ROW(A2),Settings!K13,#N/A) -> Team 2 | B3: ESPN (AAV) | C3: Razzball - Grey | E3: 7 | F3: 1 | G3: Fangraphs - Depth Chart | H3: =IF(OR(Settings!$P$42<>100,Settings!$O$42<>100),0,Settings!O37) -> 25 | I3: =IF(OR(Settings!$P$42<>100,Settings!$O$42<>100),0,Settings!P37) -> 25 | J3: ATL | K3: =IF(OR(Settings!$R$5="NL-Only",Settings!$R$5="Mixed (Standard)"),TRUE,IF(Settings!$R$5="Specific Teams Only",IF(Settings!T8="Y",TRUE,FALSE),FALSE)) -> TRUE | L3: 2B | M3: 1B | N3: =Settings!G6 -> 1 | O3: =IF(N3>0,M3,"") -> 1B | P3: =IFERROR(INDEX($O$1:$O$19,SMALL(IF($O$1:$O$19<>"",ROW($O$1:$O$19)),ROW(O3))),"") -> 2B | Q3: Yellow
A4: =IF($N$1>=ROW(A3),Settings!K14,#N/A) -> Team 3 | B4: Razzball (Projected) | C4: ESPN - E. Karabell | D4: ZiPS | E4: 8 | F4: 2 | G4: Steamer | H4: =IF(OR(Settings!$P$42<>100,Settings!$O$42<>100),0,Settings!O38) -> 40 | I4: =IF(OR(Settings!$P$42<>100,Settings!$O$42<>100),0,Settings!P38) -> 40 | J4: BAL | K4: =IF(OR(Settings!$R$5="AL-Only",Settings!$R$5="Mixed (Standard)"),TRUE,IF(Settings!$R$5="Specific Teams Only",IF(Settings!T9="Y",TRUE,FALSE),FALSE)) -> TRUE | L4: 3B | M4: 2B | N4: =Settings!G7 -> 1 | O4: 2B | P4: =IFERROR(INDEX($O$1:$O$19,SMALL(IF($O$1:$O$19<>"",ROW($O$1:$O$19)),ROW(O4))),"") -> 3B | Q4: Red
A5: =IF($N$1>=ROW(A4),Settings!K15,#N/A) -> Team 4 | B5: NFBC (AAV) | C5: FantasyPros Avg | D5: Fangraphs - Depth Chart | E5: 9 | F5: 3 | G5: Steamer - 600 PA | H5: =IF(OR(Settings!$P$42<>100,Settings!$O$42<>100),0,Settings!O39) -> 0 | I5: =IF(OR(Settings!$P$42<>100,Settings!$O$42<>100),0,Settings!P39) -> 0 | J5: BOS | K5: =IF(OR(Settings!$R$5="AL-Only",Settings!$R$5="Mixed (Standard)"),TRUE,IF(Settings!$R$5="Specific Teams Only",IF(Settings!T10="Y",TRUE,FALSE),FALSE)) -> TRUE | L5: SS | M5: 3B | N5: =Settings!G8 -> 1 | O5: 3B | P5: =IFERROR(INDEX($O$1:$O$19,SMALL(IF($O$1:$O$19<>"",ROW($O$1:$O$19)),ROW(O5))),"") -> SS | Q5: Black
A6: =IF($N$1>=ROW(A5),Settings!K16,#N/A) -> Team 5 | C6: Mr. Cheatsheet | D6: Clay Davenport | E6: 10 | F6: 4 | G6: ZiPS | H6: =IF(OR(Settings!$P$42<>100,Settings!$O$42<>100),0,Settings!O40) -> 10 | I6: =IF(OR(Settings!$P$42<>100,Settings!$O$42<>100),0,Settings!P40) -> 10 | J6: CHC | K6: =IF(OR(Settings!$R$5="NL-Only",Settings!$R$5="Mixed (Standard)"),TRUE,IF(Settings!$R$5="Specific Teams Only",IF(Settings!T11="Y",TRUE,FALSE),FALSE)) -> TRUE | L6: OF | M6: SS | N6: =Settings!G9 -> 1 | O6: SS | P6: =IFERROR(INDEX($O$1:$O$19,SMALL(IF($O$1:$O$19<>"",ROW($O$1:$O$19)),ROW(O6))),"") -> CI
A7: =IF($N$1>=ROW(A6),Settings!K17,#N/A) -> Team 6 | B7: FantasyPros (Projected) | D7: Steamer - 600 PA | E7: 11 | F7: 5 | G7: Mr. Cheatsheet's Special Blend | H7: =IF(OR(Settings!$P$42<>100,Settings!$O$42<>100),0,Settings!O41) -> 0 | I7: =IF(OR(Settings!$P$42<>100,Settings!$O$42<>100),0,Settings!P41) -> 0 | J7: CHW | K7: =IF(OR(Settings!$R$5="AL-Only",Settings!$R$5="Mixed (Standard)"),TRUE,IF(Settings!$R$5="Specific Teams Only",IF(Settings!T12="Y",TRUE,FALSE),FALSE)) -> TRUE | L7: SP | M7: CI | N7: =Settings!G12 -> 1 | O7: CI | P7: =IFERROR(INDEX($O$1:$O$19,SMALL(IF($O$1:$O$19<>"",ROW($O$1:$O$19)),ROW(O7))),"") -> MI | Q7: Hitter Only
A8: =IF($N$1>=ROW(A7),Settings!K18,#N/A) -> Team 7 | B8: Average of All Options | D8: Your Own Custom Combination | E8: 12 | F8: 6 | J8: CIN | K8: =IF(OR(Settings!$R$5="NL-Only",Settings!$R$5="Mixed (Standard)"),TRUE,IF(Settings!$R$5="Specific Teams Only",IF(Settings!T13="Y",TRUE,FALSE),FALSE)) -> TRUE | L8: RP | M8: MI | N8: =Settings!G13 -> 1 | O8: MI | P8: =IFERROR(INDEX($O$1:$O$19,SMALL(IF($O$1:$O$19<>"",ROW($O$1:$O$19)),ROW(O8))),"") -> OF | Q8: Pitcher Only
A9: =IF($N$1>=ROW(A8),Settings!K19,#N/A) -> Team 8 | B9: Imported Values | C9: =IFERROR(INDEX($C$1:$C$8,SMALL(IF($C$1:$C$8<>"",ROW($C$1:$C$8)),ROW(C1))),"") -> RotoChamp | D9: Mr. Cheatsheet's Special Blend | E9: 13 | F9: 7 | G9: C | H9: =IF(N2>0,1,0) -> 1 | J9: CLE | K9: =IF(OR(Settings!$R$5="AL-Only",Settings!$R$5="Mixed (Standard)"),TRUE,IF(Settings!$R$5="Specific Teams Only",IF(Settings!T14="Y",TRUE,FALSE),FALSE)) -> TRUE | L9: DH | M9: OF | N9: =Settings!G10 -> 5 | O9: OF | P9: =IFERROR(INDEX($O$1:$O$19,SMALL(IF($O$1:$O$19<>"",ROW($O$1:$O$19)),ROW(O9))),"") -> DH | Q9: Can be used as both DH or SP
A10: =IF($N$1>=ROW(A9),Settings!K20,#N/A) -> Team 9 | C10: =IFERROR(INDEX($C$1:$C$8,SMALL(IF($C$1:$C$8<>"",ROW($C$1:$C$8)),ROW(C2))),"") -> Yahoo Staff | E10: 14 | F10: 8 | G10: 1B | H10: =IF(N3>0,MAX($H$9:H9)+1,0) -> 2 | J10: COL | K10: =IF(OR(Settings!$R$5="NL-Only",Settings!$R$5="Mixed (Standard)"),TRUE,IF(Settings!$R$5="Specific Teams Only",IF(Settings!T15="Y",TRUE,FALSE),FALSE)) -> TRUE | M10: DH | N10: =Settings!G11 -> 1 | O10: DH | P10: =IFERROR(INDEX($O$1:$O$19,SMALL(IF($O$1:$O$19<>"",ROW($O$1:$O$19)),ROW(O10))),"") -> P | Q10: Make him two separate players (SP and DH)
A11: =IF($N$1>=ROW(A10),Settings!K21,#N/A) -> Team 10 | B11: =IFERROR(INDEX($B$1:$B$10,SMALL(IF($B$1:$B$10<>"",ROW($B$1:$B$10)),ROW(B1))),"") -> RotoChamp (Projected) | C11: =IFERROR(INDEX($C$1:$C$8,SMALL(IF($C$1:$C$8<>"",ROW($C$1:$C$8)),ROW(C3))),"") -> Razzball - Grey | D11: Import Your Own Projections | E11: 15 | F11: 9 | G11: 2B | H11: =IF(N4>0,MAX($H$9:H10)+1,0) -> 3 | J11: DET | K11: =IF(OR(Settings!$R$5="AL-Only",Settings!$R$5="Mixed (Standard)"),TRUE,IF(Settings!$R$5="Specific Teams Only",IF(Settings!T16="Y",TRUE,FALSE),FALSE)) -> TRUE | M11: SP | N11: =Settings!G19 -> 0 | P11: =IFERROR(INDEX($O$1:$O$19,SMALL(IF($O$1:$O$19<>"",ROW($O$1:$O$19)),ROW(O11))),"") -> Bench | Q11: Show his hitting stats
A12: =IF($N$1>=ROW(A11),Settings!K22,#N/A) -> Team 11 | B12: =IFERROR(INDEX($B$1:$B$10,SMALL(IF($B$1:$B$10<>"",ROW($B$1:$B$10)),ROW(B2))),"") -> CBS (Projected) | C12: =IFERROR(INDEX($C$1:$C$8,SMALL(IF($C$1:$C$8<>"",ROW($C$1:$C$8)),ROW(C4))),"") -> ESPN - E. Karabell | E12: 16 | F12: 10 | G12: 3B | H12: =IF(N5>0,MAX($H$9:H11)+1,0) -> 4 | J12: HOU | K12: =IF(OR(Settings!$R$5="AL-Only",Settings!$R$5="Mixed (Standard)"),TRUE,IF(Settings!$R$5="Specific Teams Only",IF(Settings!T17="Y",TRUE,FALSE),FALSE)) -> TRUE | M12: RP | N12: =Settings!G20 -> 0 | P12: =IFERROR(INDEX($O$1:$O$19,SMALL(IF($O$1:$O$19<>"",ROW($O$1:$O$19)),ROW(O12))),"") -> Hitter4OF | Q12: Show his pitching stats
A13: =IF($N$1>=ROW(A12),Settings!K23,#N/A) -> Team 12 | B13: =IFERROR(INDEX($B$1:$B$10,SMALL(IF($B$1:$B$10<>"",ROW($B$1:$B$10)),ROW(B3))),"") -> ESPN (AAV) | C13: =IFERROR(INDEX($C$1:$C$8,SMALL(IF($C$1:$C$8<>"",ROW($C$1:$C$8)),ROW(C5))),"") -> FantasyPros Avg | E13: 17 | F13: 11 | G13: SS | H13: =IF(N6>0,MAX($H$9:H12)+1,0) -> 5 | J13: KC | K13: =IF(OR(Settings!$R$5="AL-Only",Settings!$R$5="Mixed (Standard)"),TRUE,IF(Settings!$R$5="Specific Teams Only",IF(Settings!T18="Y",TRUE,FALSE),FALSE)) -> TRUE | M13: P | N13: =Settings!G21 -> 9 | O13: P | P13: =IFERROR(INDEX($O$1:$O$19,SMALL(IF($O$1:$O$19<>"",ROW($O$1:$O$19)),ROW(O13))),"") ->  | Q13: Ohtani's hitting stats only
A14: =IF($N$1>=ROW(A13),Settings!K24,#N/A) ->  | B14: =IFERROR(INDEX($B$1:$B$10,SMALL(IF($B$1:$B$10<>"",ROW($B$1:$B$10)),ROW(B4))),"") -> Razzball (Projected) | C14: =IFERROR(INDEX($C$1:$C$8,SMALL(IF($C$1:$C$8<>"",ROW($C$1:$C$8)),ROW(C6))),"") -> Mr. Cheatsheet | D14: =IFERROR(INDEX($D$1:$D$12,SMALL(IF($D$1:$D$12<>"",ROW($D$1:$D$12)),ROW(D1))),"") -> THE BAT | E14: 18 | F14: 12 | G14: OF | H14: =IF(N9>0,MAX($H$9:H13)+1,0) -> 6 | J14: LAD | K14: =IF(OR(Settings!$R$5="NL-Only",Settings!$R$5="Mixed (Standard)"),TRUE,IF(Settings!$R$5="Specific Teams Only",IF(Settings!T19="Y",TRUE,FALSE),FALSE)) -> TRUE | M14: LF | N14: =Settings!G15 -> 0 | P14: =IFERROR(INDEX($O$1:$O$19,SMALL(IF($O$1:$O$19<>"",ROW($O$1:$O$19)),ROW(O14))),"") ->  | Q14: Ohtani's pitching stats only
A15: =IF($N$1>=ROW(A14),Settings!K25,#N/A) ->  | B15: =IFERROR(INDEX($B$1:$B$10,SMALL(IF($B$1:$B$10<>"",ROW($B$1:$B$10)),ROW(B5))),"") -> NFBC (AAV) | C15: =IFERROR(INDEX($C$1:$C$8,SMALL(IF($C$1:$C$8<>"",ROW($C$1:$C$8)),ROW(C7))),"") ->  | D15: =IFERROR(INDEX($D$1:$D$12,SMALL(IF($D$1:$D$12<>"",ROW($D$1:$D$12)),ROW(D2))),"") -> Steamer | E15: 19 | F15: 13 | G15: LF | H15: =IF(N14>0,MAX($H$9:H14)+1,0) -> 0 | J15: MIA | K15: =IF(OR(Settings!$R$5="NL-Only",Settings!$R$5="Mixed (Standard)"),TRUE,IF(Settings!$R$5="Specific Teams Only",IF(Settings!T20="Y",TRUE,FALSE),FALSE)) -> TRUE | M15: CF | N15: =Settings!G16 -> 0 | P15: =IFERROR(INDEX($O$1:$O$19,SMALL(IF($O$1:$O$19<>"",ROW($O$1:$O$19)),ROW(O15))),"") ->  | Q15: All of Ohtani's stats
A16: =IF($N$1>=ROW(A15),Settings!K26,#N/A) ->  | B16: =IFERROR(INDEX($B$1:$B$10,SMALL(IF($B$1:$B$10<>"",ROW($B$1:$B$10)),ROW(B6))),"") -> FantasyPros (Projected) | C16: =IFERROR(INDEX($C$1:$C$8,SMALL(IF($C$1:$C$8<>"",ROW($C$1:$C$8)),ROW(C8))),"") ->  | D16: =IFERROR(INDEX($D$1:$D$12,SMALL(IF($D$1:$D$12<>"",ROW($D$1:$D$12)),ROW(D3))),"") -> ZiPS | E16: 20 | F16: 14 | G16: CF | H16: =IF(N15>0,MAX($H$9:H15)+1,0) -> 0 | J16: MIL | K16: =IF(OR(Settings!$R$5="NL-Only",Settings!$R$5="Mixed (Standard)"),TRUE,IF(Settings!$R$5="Specific Teams Only",IF(Settings!T21="Y",TRUE,FALSE),FALSE)) -> TRUE | M16: RF | N16: =Settings!G17 -> 0 | P16: =IFERROR(INDEX($O$1:$O$19,SMALL(IF($O$1:$O$19<>"",ROW($O$1:$O$19)),ROW(O16))),"") -> 
A17: =IF($N$1>=ROW(A16),Settings!K27,#N/A) ->  | B17: =IFERROR(INDEX($B$1:$B$10,SMALL(IF($B$1:$B$10<>"",ROW($B$1:$B$10)),ROW(B7))),"") -> Average of All Options | D17: =IFERROR(INDEX($D$1:$D$12,SMALL(IF($D$1:$D$12<>"",ROW($D$1:$D$12)),ROW(D4))),"") -> Fangraphs - Depth Chart | E17: 21 | F17: 15 | G17: RF | H17: =IF(N16>0,MAX($H$9:H16)+1,0) -> 0 | J17: MIN | K17: =IF(OR(Settings!$R$5="AL-Only",Settings!$R$5="Mixed (Standard)"),TRUE,IF(Settings!$R$5="Specific Teams Only",IF(Settings!T22="Y",TRUE,FALSE),FALSE)) -> TRUE | M17: IF | N17: =Settings!G14 -> 0 | P17: =IFERROR(INDEX($O$1:$O$19,SMALL(IF($O$1:$O$19<>"",ROW($O$1:$O$19)),ROW(O17))),"") -> 
A18: =IF($N$1>=ROW(A17),Settings!K28,#N/A) ->  | B18: =IFERROR(INDEX($B$1:$B$10,SMALL(IF($B$1:$B$10<>"",ROW($B$1:$B$10)),ROW(B8))),"") -> Imported Values | D18: =IFERROR(INDEX($D$1:$D$12,SMALL(IF($D$1:$D$12<>"",ROW($D$1:$D$12)),ROW(D5))),"") -> Clay Davenport | E18: 22 | F18: 16 | G18: DH | H18: =IF(Settings!R5<>"NL-Only",MAX($H$9:H17)+1,0) -> 7 | J18: NYM | K18: =IF(OR(Settings!$R$5="NL-Only",Settings!$R$5="Mixed (Standard)"),TRUE,IF(Settings!$R$5="Specific Teams Only",IF(Settings!T23="Y",TRUE,FALSE),FALSE)) -> TRUE | O18: Bench | P18: =IFERROR(INDEX($O$1:$O$19,SMALL(IF($O$1:$O$19<>"",ROW($O$1:$O$19)),ROW(O18))),"") -> 
A19: =IF($N$1>=ROW(A18),Settings!K29,#N/A) ->  | B19: =IFERROR(INDEX($B$1:$B$10,SMALL(IF($B$1:$B$10<>"",ROW($B$1:$B$10)),ROW(B9))),"") ->  | D19: =IFERROR(INDEX($D$1:$D$12,SMALL(IF($D$1:$D$12<>"",ROW($D$1:$D$12)),ROW(D6))),"") -> Steamer - 600 PA | E19: 23 | F19: 17 | G19: SP | H19: =IF(OR(N11>0,N13>0),MAX($H$9:H18)+1,0) -> 8 | J19: NYY | K19: =IF(OR(Settings!$R$5="AL-Only",Settings!$R$5="Mixed (Standard)"),TRUE,IF(Settings!$R$5="Specific Teams Only",IF(Settings!T24="Y",TRUE,FALSE),FALSE)) -> TRUE | L19: Hitter | M19: Pitcher | N19: HitterDirOF | O19: Hitter4OF
A20: =IF($N$1>=ROW(A19),Settings!K30,#N/A) ->  | B20: =IFERROR(INDEX($B$1:$B$10,SMALL(IF($B$1:$B$10<>"",ROW($B$1:$B$10)),ROW(B10))),"") ->  | D20: =IFERROR(INDEX($D$1:$D$12,SMALL(IF($D$1:$D$12<>"",ROW($D$1:$D$12)),ROW(D7))),"") -> Your Own Custom Combination | E20: 24 | F20: 18 | G20: RP | H20: =IF(OR(N12>0,N13>0),MAX($H$9:H19)+1,0) -> 9 | J20: OAK | K20: =IF(OR(Settings!$R$5="AL-Only",Settings!$R$5="Mixed (Standard)"),TRUE,IF(Settings!$R$5="Specific Teams Only",IF(Settings!T25="Y",TRUE,FALSE),FALSE)) -> TRUE | L20: C | M20: SP | N20: C | O20: C
A21: =IF($N$1>=ROW(A20),Settings!K31,#N/A) ->  | B21: =IFERROR(INDEX($B$1:$B$10,SMALL(IF($B$1:$B$10<>"",ROW($B$1:$B$10)),ROW(B11))),"") ->  | D21: =IFERROR(INDEX($D$1:$D$12,SMALL(IF($D$1:$D$12<>"",ROW($D$1:$D$12)),ROW(D8))),"") -> Mr. Cheatsheet's Special Blend | F21: 19 | J21: PHI | K21: =IF(OR(Settings!$R$5="NL-Only",Settings!$R$5="Mixed (Standard)"),TRUE,IF(Settings!$R$5="Specific Teams Only",IF(Settings!T26="Y",TRUE,FALSE),FALSE)) -> TRUE | L21: 1B | M21: RP | N21: 1B | O21: 1B
A22: =IF($N$1>=ROW(A21),Settings!K32,#N/A) ->  | D22: =IFERROR(INDEX($D$1:$D$12,SMALL(IF($D$1:$D$12<>"",ROW($D$1:$D$12)),ROW(D9))),"") -> Import Your Own Projections | F22: 20 | J22: PIT | K22: =IF(OR(Settings!$R$5="NL-Only",Settings!$R$5="Mixed (Standard)"),TRUE,IF(Settings!$R$5="Specific Teams Only",IF(Settings!T27="Y",TRUE,FALSE),FALSE)) -> TRUE | L22: 2B | N22: 2B | O22: 2B
A23: =IF($N$1>=ROW(A22),Settings!K33,#N/A) ->  | D23: =IFERROR(INDEX($D$1:$D$12,SMALL(IF($D$1:$D$12<>"",ROW($D$1:$D$12)),ROW(D10))),"") ->  | F23: 21 | J23: SD | K23: =IF(OR(Settings!$R$5="NL-Only",Settings!$R$5="Mixed (Standard)"),TRUE,IF(Settings!$R$5="Specific Teams Only",IF(Settings!T28="Y",TRUE,FALSE),FALSE)) -> TRUE | L23: 3B | N23: 3B | O23: 3B
A24: =IF($N$1>=ROW(A23),Settings!K34,#N/A) ->  | D24: =IFERROR(INDEX($D$1:$D$12,SMALL(IF($D$1:$D$12<>"",ROW($D$1:$D$12)),ROW(D11))),"") ->  | F24: 22 | J24: SEA | K24: =IF(OR(Settings!$R$5="AL-Only",Settings!$R$5="Mixed (Standard)"),TRUE,IF(Settings!$R$5="Specific Teams Only",IF(Settings!T29="Y",TRUE,FALSE),FALSE)) -> TRUE | L24: SS | N24: SS | O24: SS
A25: =IF($N$1>=ROW(A24),Settings!K35,#N/A) ->  | D25: =IFERROR(INDEX($D$1:$D$12,SMALL(IF($D$1:$D$12<>"",ROW($D$1:$D$12)),ROW(D12))),"") ->  | F25: 23 | J25: SF | K25: =IF(OR(Settings!$R$5="NL-Only",Settings!$R$5="Mixed (Standard)"),TRUE,IF(Settings!$R$5="Specific Teams Only",IF(Settings!T30="Y",TRUE,FALSE),FALSE)) -> TRUE | L25: OF | N25: LF | O25: OF
A26: Auction Vl: | B26: =MATCH(Settings!O16,$B$11:$B$25,0) -> 5 | F26: 24 | J26: STL | K26: =IF(OR(Settings!$R$5="NL-Only",Settings!$R$5="Mixed (Standard)"),TRUE,IF(Settings!$R$5="Specific Teams Only",IF(Settings!T31="Y",TRUE,FALSE),FALSE)) -> TRUE | N26: CF | O26: LF
A27: Rankings: | B27: =MATCH(Settings!O20,$C$9:$C$25,0) -> 5 | J27: TB | K27: =IF(OR(Settings!$R$5="AL-Only",Settings!$R$5="Mixed (Standard)"),TRUE,IF(Settings!$R$5="Specific Teams Only",IF(Settings!T32="Y",TRUE,FALSE),FALSE)) -> TRUE | N27: RF | O27: CF
A28: Projections: | B28: =MATCH(Settings!O18,D1:D13,0) -> 9 | C28: =Settings!O18 -> Mr. Cheatsheet's Special Blend | J28: TEX | K28: =IF(OR(Settings!$R$5="AL-Only",Settings!$R$5="Mixed (Standard)"),TRUE,IF(Settings!$R$5="Specific Teams Only",IF(Settings!T33="Y",TRUE,FALSE),FALSE)) -> TRUE | O28: RF
A29: Ohtani Rule | B29: =MATCH(Settings!O27,Ohtani_Rule,0) -> 1 | C29: Ohtani Disp | D29: =CHOOSE(B30,1,2,MATCH(Settings!O29,Ohtani_Disp,0)) -> 1 | J29: TOR | K29: =IF(OR(Settings!$R$5="AL-Only",Settings!$R$5="Mixed (Standard)"),TRUE,IF(Settings!$R$5="Specific Teams Only",IF(Settings!T34="Y",TRUE,FALSE),FALSE)) -> TRUE
A30: Ohtani Stats: | B30: =CHOOSE(B29,1,2,MATCH(Settings!O28,Ohtani_Stats,0),1) -> 1 | J30: WAS | K30: =IF(OR(Settings!$R$5="NL-Only",Settings!$R$5="Mixed (Standard)"),TRUE,IF(Settings!$R$5="Specific Teams Only",IF(Settings!T35="Y",TRUE,FALSE),FALSE)) -> TRUE

Sheet Name-Sort (hidden)
C1: ORDER | D1: PLAYERNAME | E1: Team | F1: Original Pos | H1: Pos to Use | I1: =IF('Your Roto Auction'!$Q$5="Show All Positions",1,IF(OR('Your Roto Auction'!$Q$5="Only Show: C",'Your Roto Auction'!$Q$5="Only Show: 1B",'Your Roto Auction'!$Q$5="Only Show: 2B",'Your Roto Auction'!$Q$5="Only Show: 3B",'Your Roto Auction'!$Q$5="Only Show: SS",'Your Roto Auction'!$Q$5="Only Show: OF",'Your Roto Auction'!$Q$5="Only Show: SP",'Your Roto Auction'!$Q$5="Only Show: RP",'Your Roto Auction'!$Q$5="Only Show: DH",'Your Roto Auction'!$Q$5="Only Show: LF",'Your Roto Auction'!$Q$5="Only Show: RF",'Your Roto Auction'!$Q$5="Only Show: CF"),2,IF('Your Roto Auction'!$Q$5="Only Show: CI",3,IF('Your Roto Auction'!$Q$5="Only Show: MI",4,IF('Your Roto Auction'!$Q$5="Only Show: IF",5,IF('Your Roto Auction'!$Q$5="Only Show: P",6,IF('Your Roto Auction'!$Q$5="Only Show: Hitters",7,IF('Your Roto Auction'!$Q$5="Only Show: Pitchers",8,"")))))))) -> 1 | J1: Show Team? | K1: Drafted | L1: Show or No | M1: Original Projected Auction Value | N1: WERTH | O1: Expert Ranking | P1: ='Your Roto Auction'!Q10 -> AVG | Q1: ='Your Roto Auction'!R10 -> HR | R1: ='Your Roto Auction'!S10 -> R | S1: ='Your Roto Auction'!T10 -> RBI | T1: ='Your Roto Auction'!U10 -> SB | U1: ='Your Roto Auction'!V10 ->  | V1: ='Your Roto Auction'!W10 ->  | W1: ='Your Roto Auction'!X10 ->  | X1: ='Your Roto Auction'!Y10 ->  | Y1: ='Your Roto Auction'!Z10 ->  | Z1: ='Your Roto Auction'!AA10 ->  | AA1: ='Your Roto Auction'!AB10 ->  | AB1: ='Your Roto Auction'!Q9 -> W | AC1: ='Your Roto Auction'!R9 -> SV | AD1: ='Your Roto Auction'!S9 -> K | AE1: ='Your Roto Auction'!T9 -> ERA | AF1: ='Your Roto Auction'!U9 -> WHIP | AG1: ='Your Roto Auction'!V9 ->  | AH1: ='Your Roto Auction'!W9 ->  | AI1: ='Your Roto Auction'!X9 ->  | AJ1: ='Your Roto Auction'!Y9 ->  | AK1: ='Your Roto Auction'!Z9 ->  | AL1: ='Your Roto Auction'!AA9 ->  | AM1: ='Your Roto Auction'!AB9 ->  | AN1: Pos Adj WERTH
A2: =IFERROR(IF(VLOOKUP(ROW($A1),$C$2:$N$977,9,FALSE)=FALSE,VLOOKUP(ROW($A1),$C$2:$N$977,2,FALSE),""),"") -> Ronald Acuna | B2: =IFERROR(INDEX($A$1:$A$977,SMALL(IF($A$1:$A$977<>"",ROW($A$1:$A$977)),ROW(A1))),"") -> Ronald Acuna | C2: =IFERROR(IF(L2=FALSE,"",CHOOSE(MATCH(RIGHT('Your Roto Auction'!$Q$4,LEN('Your Roto Auction'!$Q$4)-8),$M$1:$AN$1,0),1+SUMPRODUCT(($L$2:$L$978=TRUE)*($M$2:$M$978>M2))+COUNTIFS($L$2:L2,L2,$M$2:M2,M2)-1,1+SUMPRODUCT(($L$2:$L$978=TRUE)*($N$2:$N$978>N2))+COUNTIFS($L$2:L2,L2,$N$2:N2,N2)-1,1+SUMPRODUCT(($L$2:$L$978=TRUE)*($O$2:$O$978<O2))+COUNTIFS($L$2:L2,L2,$O$2:O2,O2)-1,1+SUMPRODUCT(($L$2:$L$978=TRUE)*($P$2:$P$978>P2))+COUNTIFS($L$2:L2,L2,$P$2:P2,P2)-1,1+SUMPRODUCT(($L$2:$L$978=TRUE)*($Q$2:$Q$978>Q2))+COUNTIFS($L$2:L2,L2,$Q$2:Q2,Q2)-1,1+SUMPRODUCT(($L$2:$L$978=TRUE)*($R$2:$R$978>R2))+COUNTIFS($L$2:L2,L2,$R$2:R2,R2)-1,1+SUMPRODUCT(($L$2:$L$978=TRUE)*($S$2:$S$978>S2))+COUNTIFS($L$2:L2,L2,$S$2:S2,S2)-1,1+SUMPRODUCT(($L$2:$L$978=TRUE)*($T$2:$T$978>T2))+COUNTIFS($L$2:L2,L2,$T$2:T2,T2)-1,1+SUMPRODUCT(($L$2:$L$978=TRUE)*($U$2:$U$978>U2))+COUNTIFS($L$2:L2,L2,$U$2:U2,U2)-1,1+SUMPRODUCT(($L$2:$L$978=TRUE)*($V$2:$V$978>V2))+COUNTIFS($L$2:L2,L2,$V$2:V2,V2)-1,1+SUMPRODUCT(($L$2:$L$978=TRUE)*($W$2:$W$978>W2))+COUNTIFS($L$2:L2,L2,$W$2:W2,W2)-1,1+SUMPRODUCT(($L$2:$L$978=TRUE)*($X$2:$X$978>X2))+COUNTIFS($L$2:L2,L2,$X$2:X2,X2)-1,1+SUMPRODUCT(($L$2:$L$978=TRUE)*($Y$2:$Y$978>Y2))+COUNTIFS($L$2:L2,L2,$Y$2:Y2,Y2)-1,1+SUMPRODUCT(($L$2:$L$978=TRUE)*($Z$2:$Z$978>Z2))+COUNTIFS($L$2:L2,L2,$Z$2:Z2,Z2)-1,1+SUMPRODUCT(($L$2:$L$978=TRUE)*($AA$2:$AA$978>AA2))+COUNTIFS($L$2:L2,L2,$AA$2:AA2,AA2)-1,1+SUMPRODUCT(($L$2:$L$978=TRUE)*($AB$2:$AB$978>AB2))+COUNTIFS($L$2:L2,L2,$AB$2:AB2,AB2)-1,1+SUMPRODUCT(($L$2:$L$978=TRUE)*($AC$2:$AC$978>AC2))+COUNTIFS($L$2:L2,L2,$AC$2:AC2,AC2)-1,1+SUMPRODUCT(($L$2:$L$978=TRUE)*($AD$2:$AD$978>AD2))+COUNTIFS($L$2:L2,L2,$AD$2:AD2,AD2)-1,1+SUMPRODUCT(($L$2:$L$978=TRUE)*($AE$2:$AE$978>AE2))+COUNTIFS($L$2:L2,L2,$AE$2:AE2,AE2)-1,1+SUMPRODUCT(($L$2:$L$978=TRUE)*($AF$2:$AF$978>AF2))+COUNTIFS($L$2:L2,L2,$AF$2:AF2,AF2)-1,1+SUMPRODUCT(($L$2:$L$978=TRUE)*($AG$2:$AG$978>AG2))+COUNTIFS($L$2:L2,L2,$AG$2:AG2,AG2)-1,1+SUMPRODUCT(($L$2:$L$978=TRUE)*($AH$2:$AH$978>AH2))+COUNTIFS($L$2:L2,L2,$AH$2:AH2,AH2)-1,1+SUMPRODUCT(($L$2:$L$978=TRUE)*($AI$2:$AI$978>AI2))+COUNTIFS($L$2:L2,L2,$AI$2:AI2,AI2)-1,1+SUMPRODUCT(($L$2:$L$978=TRUE)*($AJ$2:$AJ$978>AJ2))+COUNTIFS($L$2:L2,L2,$AJ$2:AJ2,AJ2)-1,1+SUMPRODUCT(($L$2:$L$978=TRUE)*($AK$2:$AK$978>AK2))+COUNTIFS($L$2:L2,L2,$AK$2:AK2,AK2)-1,1+SUMPRODUCT(($L$2:$L$978=TRUE)*($AL$2:$AL$978>AL2))+COUNTIFS($L$2:L2,L2,$AL$2:AL2,AL2)-1,1+SUMPRODUCT(($L$2:$L$978=TRUE)*($AM$2:$AM$978>AM2))+COUNTIFS($L$2:L2,L2,$AM$2:AM2,AM2)-1,1+SUMPRODUCT(($L$2:$L$978=TRUE)*($AN$2:$AN$978>AN2))+COUNTIFS($L$2:L2,L2,$AN$2:AN2,AN2)-1)),"") -> 480 | D2: Andrew Abbott | E2: =IFERROR(INDEX('Auction Log'!$C$4:$C$806,MATCH(D2,'Auction Log'!$B$4:$B$806,0)),"") ->  | F2: =IFERROR(INDEX('Core-Data'!$C$2:$C$982,MATCH(D2,'Core-Data'!$A$2:$A$982,0)),"") -> SP | H2: =IFERROR(IF(I2="",F2,IF(I2<>F2,I2,F2)),"") -> SP | I2: =IF(AND(F2="OF",'Guts-2'!$N$9=0),IF(MAX(Pre!J2:L2)=Pre!J2,"LF",IF(MAX(Pre!J2:L2)=Pre!K2,"CF",IF(MAX(Pre!J2:L2)=Pre!L2,"RF","LF"))),"") ->  | J2: =IFERROR(INDEX('Core-Data'!$U$2:$U$982,MATCH(D2,'Core-Data'!$A$2:$A$982,0)),TRUE) -> TRUE | K2: =IF(E2="",FALSE,TRUE) -> FALSE | L2: =IF(J2=FALSE,FALSE,IF(AND('Your Roto Auction'!$Q$6="Hide Drafted Players",K2=TRUE),FALSE,CHOOSE($I$1,TRUE,OR(RIGHT('Your Roto Auction'!$Q$5,LEN('Your Roto Auction'!$Q$5)-11)=H2,IF(RIGHT('Your Roto Auction'!$Q$5,LEN('Your Roto Auction'!$Q$5)-11)<>"C",NOT(ISERROR(SEARCH(RIGHT('Your Roto Auction'!$Q$5,LEN('Your Roto Auction'!$Q$5)-11),Pre!$CB2))),AND(NOT(ISERROR(SEARCH(RIGHT('Your Roto Auction'!$Q$5,LEN('Your Roto Auction'!$Q$5)-11),Pre!$CB2))),ISERROR(SEARCH("CF",Pre!$CB2)))),RIGHT('Your Roto Auction'!$Q$5,LEN('Your Roto Auction'!$Q$5)-11)=Pre!BP2),OR(H2="1B",H2="3B",ISNUMBER(SEARCH("1B",Pre!$CB2)),ISNUMBER(SEARCH("3B",Pre!$CB2))),OR(H2="2B",H2="SS",ISNUMBER(SEARCH("2B",Pre!$CB2)),ISNUMBER(SEARCH("SS",Pre!$CB2))),OR(H2="1B",H2="3B",H2="2B",H2="SS",ISNUMBER(SEARCH("1B",Pre!$CB2)),ISNUMBER(SEARCH("3B",Pre!$CB2)),ISNUMBER(SEARCH("2B",Pre!$CB2)),ISNUMBER(SEARCH("SS",Pre!$CB2))),OR(H2="SP",H2="RP",ISNUMBER(SEARCH("SP",Pre!$CB2)),ISNUMBER(SEARCH("RP",Pre!$CB2))),AND(H2<>"RP",H2<>"SP",NOT(ISNUMBER(SEARCH("RP",Pre!$CB2))),NOT(ISNUMBER(SEARCH("SP",Pre!$CB2)))),OR(H2="SP",H2="RP",ISNUMBER(SEARCH("SP",Pre!$CB2)),ISNUMBER(SEARCH("RP",Pre!$CB2)))))) -> TRUE | M2: =IF('Inflation-Tracking'!J5="",-9999,'Inflation-Tracking'!J5) -> -8.714559707 | N2: =IF(LEFT($D2,15)="Unlisted Player",-1001,'All-WERTH'!AQ2) -> -6.249581014 | O2: =IF('Core-Data'!W2="",9999,'Core-Data'!W2) -> 273 | P2: =IF(LEFT($D2,15)="Unlisted Player",-1001,IF('All-WERTH'!S2="",-1000,'All-WERTH'!S2)) -> -1000 | Q2: =IF(LEFT($D2,15)="Unlisted Player",-1001,IF('All-WERTH'!T2="",-1000,'All-WERTH'!T2)) -> -1000 | R2: =IF(LEFT($D2,15)="Unlisted Player",-1001,IF('All-WERTH'!U2="",-1000,'All-WERTH'!U2)) -> -1000 | S2: =IF(LEFT($D2,15)="Unlisted Player",-1001,IF('All-WERTH'!V2="",-1000,'All-WERTH'!V2)) -> -1000 | T2: =IF(LEFT($D2,15)="Unlisted Player",-1001,IF('All-WERTH'!W2="",-1000,'All-WERTH'!W2)) -> -1000 | U2: =IF(LEFT($D2,15)="Unlisted Player",-1001,IF('All-WERTH'!X2="",-1000,'All-WERTH'!X2)) -> -1000 | V2: =IF(LEFT($D2,15)="Unlisted Player",-1001,IF('All-WERTH'!Y2="",-1000,'All-WERTH'!Y2)) -> -1000 | W2: =IF(LEFT($D2,15)="Unlisted Player",-1001,IF('All-WERTH'!Z2="",-1000,'All-WERTH'!Z2)) -> -1000 | X2: =IF(LEFT($D2,15)="Unlisted Player",-1001,IF('All-WERTH'!AA2="",-1000,'All-WERTH'!AA2)) -> -1000 | Y2: =IF(LEFT($D2,15)="Unlisted Player",-1001,IF('All-WERTH'!AB2="",-1000,'All-WERTH'!AB2)) -> -1000 | Z2: =IF(LEFT($D2,15)="Unlisted Player",-1001,IF('All-WERTH'!AC2="",-1000,'All-WERTH'!AC2)) -> -1000 | AA2: =IF(LEFT($D2,15)="Unlisted Player",-1001,IF('All-WERTH'!AD2="",-1000,'All-WERTH'!AD2)) -> -1000 | AB2: =IF(LEFT($D2,15)="Unlisted Player",-1001,IF('All-WERTH'!AE2="",-1000,'All-WERTH'!AE2)) -> -0.6966987932 | AC2: =IF(LEFT($D2,15)="Unlisted Player",-1001,IF('All-WERTH'!AF2="",-1000,'All-WERTH'!AF2)) -> -0.4471231172 | AD2: =IF(LEFT($D2,15)="Unlisted Player",-1001,IF('All-WERTH'!AG2="",-1000,'All-WERTH'!AG2)) -> -0.06262449622 | AE2: =IF(LEFT($D2,15)="Unlisted Player",-1001,IF('All-WERTH'!AH2="",-1000,'All-WERTH'!AH2)) -> -2.58776649 | AF2: =IF(LEFT($D2,15)="Unlisted Player",-1001,IF('All-WERTH'!AI2="",-1000,'All-WERTH'!AI2)) -> -2.455368117 | AG2: =IF(LEFT($D2,15)="Unlisted Player",-1001,IF('All-WERTH'!AJ2="",-1000,'All-WERTH'!AJ2)) -> -1000 | AH2: =IF(LEFT($D2,15)="Unlisted Player",-1001,IF('All-WERTH'!AK2="",-1000,'All-WERTH'!AK2)) -> -1000 | AI2: =IF(LEFT($D2,15)="Unlisted Player",-1001,IF('All-WERTH'!AL2="",-1000,'All-WERTH'!AL2)) -> -1000 | AJ2: =IF(LEFT($D2,15)="Unlisted Player",-1001,IF('All-WERTH'!AM2="",-1000,'All-WERTH'!AM2)) -> -1000 | AK2: =IF(LEFT($D2,15)="Unlisted Player",-1001,IF('All-WERTH'!AN2="",-1000,'All-WERTH'!AN2)) -> -1000 | AL2: =IF(LEFT($D2,15)="Unlisted Player",-1001,IF('All-WERTH'!AO2="",-1000,'All-WERTH'!AO2)) -> -1000 | AM2: =IF(LEFT($D2,15)="Unlisted Player",-1001,IF('All-WERTH'!AP2="",-1000,'All-WERTH'!AP2)) -> -1000 | AN2: =IF(LEFT($D2,15)="Unlisted Player",-1001,'All-WERTH'!AT2) -> -3.149394969
A3: Julio Rodriguez | B3: =IFERROR(INDEX($A$1:$A$977,SMALL(IF($A$1:$A$977<>"",ROW($A$1:$A$977)),ROW(A2))),"") -> Julio Rodriguez | C3: =IFERROR(IF(L3=FALSE,"",CHOOSE(MATCH(RIGHT('Your Roto Auction'!$Q$4,LEN('Your Roto Auction'!$Q$4)-8),$M$1:$AN$1,0),1+SUMPRODUCT(($L$2:$L$978=TRUE)*($M$2:$M$978>M3))+COUNTIFS($L$2:L3,L3,$M$2:M3,M3)-1,1+SUMPRODUCT(($L$2:$L$978=TRUE)*($N$2:$N$978>N3))+COUNTIFS($L$2:L3,L3,$N$2:N3,N3)-1,1+SUMPRODUCT(($L$2:$L$978=TRUE)*($O$2:$O$978<O3))+COUNTIFS($L$2:L3,L3,$O$2:O3,O3)-1,1+SUMPRODUCT(($L$2:$L$978=TRUE)*($P$2:$P$978>P3))+COUNTIFS($L$2:L3,L3,$P$2:P3,P3)-1,1+SUMPRODUCT(($L$2:$L$978=TRUE)*($Q$2:$Q$978>Q3))+COUNTIFS($L$2:L3,L3,$Q$2:Q3,Q3)-1,1+SUMPRODUCT(($L$2:$L$978=TRUE)*($R$2:$R$978>R3))+COUNTIFS($L$2:L3,L3,$R$2:R3,R3)-1,1+SUMPRODUCT(($L$2:$L$978=TRUE)*($S$2:$S$978>S3))+COUNTIFS($L$2:L3,L3,$S$2:S3,S3)-1,1+SUMPRODUCT(($L$2:$L$978=TRUE)*($T$2:$T$978>T3))+COUNTIFS($L$2:L3,L3,$T$2:T3,T3)-1,1+SUMPRODUCT(($L$2:$L$978=TRUE)*($U$2:$U$978>U3))+COUNTIFS($L$2:L3,L3,$U$2:U3,U3)-1,1+SUMPRODUCT(($L$2:$L$978=TRUE)*($V$2:$V$978>V3))+COUNTIFS($L$2:L3,L3,$V$2:V3,V3)-1,1+SUMPRODUCT(($L$2:$L$978=TRUE)*($W$2:$W$978>W3))+COUNTIFS($L$2:L3,L3,$W$2:W3,W3)-1,1+SUMPRODUCT(($L$2:$L$978=TRUE)*($X$2:$X$978>X3))+COUNTIFS($L$2:L3,L3,$X$2:X3,X3)-1,1+SUMPRODUCT(($L$2:$L$978=TRUE)*($Y$2:$Y$978>Y3))+COUNTIFS($L$2:L3,L3,$Y$2:Y3,Y3)-1,1+SUMPRODUCT(($L$2:$L$978=TRUE)*($Z$2:$Z$978>Z3))+COUNTIFS($L$2:L3,L3,$Z$2:Z3,Z3)-1,1+SUMPRODUCT(($L$2:$L$978=TRUE)*($AA$2:$AA$978>AA3))+COUNTIFS($L$2:L3,L3,$AA$2:AA3,AA3)-1,1+SUMPRODUCT(($L$2:$L$978=TRUE)*($AB$2:$AB$978>AB3))+COUNTIFS($L$2:L3,L3,$AB$2:AB3,AB3)-1,1+SUMPRODUCT(($L$2:$L$978=TRUE)*($AC$2:$AC$978>AC3))+COUNTIFS($L$2:L3,L3,$AC$2:AC3,AC3)-1,1+SUMPRODUCT(($L$2:$L$978=TRUE)*($AD$2:$AD$978>AD3))+COUNTIFS($L$2:L3,L3,$AD$2:AD3,AD3)-1,1+SUMPRODUCT(($L$2:$L$978=TRUE)*($AE$2:$AE$978>AE3))+COUNTIFS($L$2:L3,L3,$AE$2:AE3,AE3)-1,1+SUMPRODUCT(($L$2:$L$978=TRUE)*($AF$2:$AF$978>AF3))+COUNTIFS($L$2:L3,L3,$AF$2:AF3,AF3)-1,1+SUMPRODUCT(($L$2:$L$978=TRUE)*($AG$2:$AG$978>AG3))+COUNTIFS($L$2:L3,L3,$AG$2:AG3,AG3)-1,1+SUMPRODUCT(($L$2:$L$978=TRUE)*($AH$2:$AH$978>AH3))+COUNTIFS($L$2:L3,L3,$AH$2:AH3,AH3)-1,1+SUMPRODUCT(($L$2:$L$978=TRUE)*($AI$2:$AI$978>AI3))+COUNTIFS($L$2:L3,L3,$AI$2:AI3,AI3)-1,1+SUMPRODUCT(($L$2:$L$978=TRUE)*($AJ$2:$AJ$978>AJ3))+COUNTIFS($L$2:L3,L3,$AJ$2:AJ3,AJ3)-1,1+SUMPRODUCT(($L$2:$L$978=TRUE)*($AK$2:$AK$978>AK3))+COUNTIFS($L$2:L3,L3,$AK$2:AK3,AK3)-1,1+SUMPRODUCT(($L$2:$L$978=TRUE)*($AL$2:$AL$978>AL3))+COUNTIFS($L$2:L3,L3,$AL$2:AL3,AL3)-1,1+SUMPRODUCT(($L$2:$L$978=TRUE)*($AM$2:$AM$978>AM3))+COUNTIFS($L$2:L3,L3,$AM$2:AM3,AM3)-1,1+SUMPRODUCT(($L$2:$L$978=TRUE)*($AN$2:$AN$978>AN3))+COUNTIFS($L$2:L3,L3,$AN$2:AN3,AN3)-1)),"") -> 620 | D3: Mick Abel | E3: =IFERROR(INDEX('Auction Log'!$C$4:$C$806,MATCH(D3,'Auction Log'!$B$4:$B$806,0)),"") ->  | F3: =IFERROR(INDEX('Core-Data'!$C$2:$C$982,MATCH(D3,'Core-Data'!$A$2:$A$982,0)),"") -> SP | H3: SP | I3: =IF(AND(F3="OF",'Guts-2'!$N$9=0),IF(MAX(Pre!J3:L3)=Pre!J3,"LF",IF(MAX(Pre!J3:L3)=Pre!K3,"CF",IF(MAX(Pre!J3:L3)=Pre!L3,"RF","LF"))),"") ->  | J3: =IFERROR(INDEX('Core-Data'!$U$2:$U$982,MATCH(D3,'Core-Data'!$A$2:$A$982,0)),TRUE) -> TRUE | K3: =IF(E3="",FALSE,TRUE) -> FALSE | L3: =IF(J3=FALSE,FALSE,IF(AND('Your Roto Auction'!$Q$6="Hide Drafted Players",K3=TRUE),FALSE,CHOOSE($I$1,TRUE,OR(RIGHT('Your Roto Auction'!$Q$5,LEN('Your Roto Auction'!$Q$5)-11)=H3,IF(RIGHT('Your Roto Auction'!$Q$5,LEN('Your Roto Auction'!$Q$5)-11)<>"C",NOT(ISERROR(SEARCH(RIGHT('Your Roto Auction'!$Q$5,LEN('Your Roto Auction'!$Q$5)-11),Pre!$CB3))),AND(NOT(ISERROR(SEARCH(RIGHT('Your Roto Auction'!$Q$5,LEN('Your Roto Auction'!$Q$5)-11),Pre!$CB3))),ISERROR(SEARCH("CF",Pre!$CB3)))),RIGHT('Your Roto Auction'!$Q$5,LEN('Your Roto Auction'!$Q$5)-11)=Pre!BP3),OR(H3="1B",H3="3B",ISNUMBER(SEARCH("1B",Pre!$CB3)),ISNUMBER(SEARCH("3B",Pre!$CB3))),OR(H3="2B",H3="SS",ISNUMBER(SEARCH("2B",Pre!$CB3)),ISNUMBER(SEARCH("SS",Pre!$CB3))),OR(H3="1B",H3="3B",H3="2B",H3="SS",ISNUMBER(SEARCH("1B",Pre!$CB3)),ISNUMBER(SEARCH("3B",Pre!$CB3)),ISNUMBER(SEARCH("2B",Pre!$CB3)),ISNUMBER(SEARCH("SS",Pre!$CB3))),OR(H3="SP",H3="RP",ISNUMBER(SEARCH("SP",Pre!$CB3)),ISNUMBER(SEARCH("RP",Pre!$CB3))),AND(H3<>"RP",H3<>"SP",NOT(ISNUMBER(SEARCH("RP",Pre!$CB3))),NOT(ISNUMBER(SEARCH("SP",Pre!$CB3)))),OR(H3="SP",H3="RP",ISNUMBER(SEARCH("SP",Pre!$CB3)),ISNUMBER(SEARCH("RP",Pre!$CB3)))))) -> TRUE | M3: =IF('Inflation-Tracking'!J6="",-9999,'Inflation-Tracking'!J6) -> -16.60181091 | N3: =IF(LEFT($D3,15)="Unlisted Player",-1001,'All-WERTH'!AQ3) -> -9.099991142 | O3: =IF('Core-Data'!W3="",9999,'Core-Data'!W3) -> 739 | P3: =IF(LEFT($D3,15)="Unlisted Player",-1001,IF('All-WERTH'!S3="",-1000,'All-WERTH'!S3)) -> -1000 | Q3: =IF(LEFT($D3,15)="Unlisted Player",-1001,IF('All-WERTH'!T3="",-1000,'All-WERTH'!T3)) -> -1000 | R3: =IF(LEFT($D3,15)="Unlisted Player",-1001,IF('All-WERTH'!U3="",-1000,'All-WERTH'!U3)) -> -1000 | S3: =IF(LEFT($D3,15)="Unlisted Player",-1001,IF('All-WERTH'!V3="",-1000,'All-WERTH'!V3)) -> -1000 | T3: =IF(LEFT($D3,15)="Unlisted Player",-1001,IF('All-WERTH'!W3="",-1000,'All-WERTH'!W3)) -> -1000 | U3: =IF(LEFT($D3,15)="Unlisted Player",-1001,IF('All-WERTH'!X3="",-1000,'All-WERTH'!X3)) -> -1000 | V3: =IF(LEFT($D3,15)="Unlisted Player",-1001,IF('All-WERTH'!Y3="",-1000,'All-WERTH'!Y3)) -> -1000 | W3: =IF(LEFT($D3,15)="Unlisted Player",-1001,IF('All-WERTH'!Z3="",-1000,'All-WERTH'!Z3)) -> -1000 | X3: =IF(LEFT($D3,15)="Unlisted Player",-1001,IF('All-WERTH'!AA3="",-1000,'All-WERTH'!AA3)) -> -1000 | Y3: =IF(LEFT($D3,15)="Unlisted Player",-1001,IF('All-WERTH'!AB3="",-1000,'All-WERTH'!AB3)) -> -1000 | Z3: =IF(LEFT($D3,15)="Unlisted Player",-1001,IF('All-WERTH'!AC3="",-1000,'All-WERTH'!AC3)) -> -1000 | AA3: =IF(LEFT($D3,15)="Unlisted Player",-1001,IF('All-WERTH'!AD3="",-1000,'All-WERTH'!AD3)) -> -1000 | AB3: =IF(LEFT($D3,15)="Unlisted Player",-1001,IF('All-WERTH'!AE3="",-1000,'All-WERTH'!AE3)) -> -1.477413241 | AC3: =IF(LEFT($D3,15)="Unlisted Player",-1001,IF('All-WERTH'!AF3="",-1000,'All-WERTH'!AF3)) -> -0.4471231172 | AD3: =IF(LEFT($D3,15)="Unlisted Player",-1001,IF('All-WERTH'!AG3="",-1000,'All-WERTH'!AG3)) -> -1.747923006 | AE3: =IF(LEFT($D3,15)="Unlisted Player",-1001,IF('All-WERTH'!AH3="",-1000,'All-WERTH'!AH3)) -> -2.322167812 | AF3: =IF(LEFT($D3,15)="Unlisted Player",-1001,IF('All-WERTH'!AI3="",-1000,'All-WERTH'!AI3)) -> -3.105363966 | AG3: =IF(LEFT($D3,15)="Unlisted Player",-1001,IF('All-WERTH'!AJ3="",-1000,'All-WERTH'!AJ3)) -> -1000 | AH3: =IF(LEFT($D3,15)="Unlisted Player",-1001,IF('All-WERTH'!AK3="",-1000,'All-WERTH'!AK3)) -> -1000 | AI3: =IF(LEFT($D3,15)="Unlisted Player",-1001,IF('All-WERTH'!AL3="",-1000,'All-WERTH'!AL3)) -> -1000 | AJ3: =IF(LEFT($D3,15)="Unlisted Player",-1001,IF('All-WERTH'!AM3="",-1000,'All-WERTH'!AM3)) -> -1000 | AK3: =IF(LEFT($D3,15)="Unlisted Player",-1001,IF('All-WERTH'!AN3="",-1000,'All-WERTH'!AN3)) -> -1000 | AL3: =IF(LEFT($D3,15)="Unlisted Player",-1001,IF('All-WERTH'!AO3="",-1000,'All-WERTH'!AO3)) -> -1000 | AM3: =IF(LEFT($D3,15)="Unlisted Player",-1001,IF('All-WERTH'!AP3="",-1000,'All-WERTH'!AP3)) -> -1000 | AN3: =IF(LEFT($D3,15)="Unlisted Player",-1001,'All-WERTH'!AT3) -> -5.999805098
A4: Bobby Witt Jr. | B4: =IFERROR(INDEX($A$1:$A$977,SMALL(IF($A$1:$A$977<>"",ROW($A$1:$A$977)),ROW(A3))),"") -> Bobby Witt Jr. | C4: =IFERROR(IF(L4=FALSE,"",CHOOSE(MATCH(RIGHT('Your Roto Auction'!$Q$4,LEN('Your Roto Auction'!$Q$4)-8),$M$1:$AN$1,0),1+SUMPRODUCT(($L$2:$L$978=TRUE)*($M$2:$M$978>M4))+COUNTIFS($L$2:L4,L4,$M$2:M4,M4)-1,1+SUMPRODUCT(($L$2:$L$978=TRUE)*($N$2:$N$978>N4))+COUNTIFS($L$2:L4,L4,$N$2:N4,N4)-1,1+SUMPRODUCT(($L$2:$L$978=TRUE)*($O$2:$O$978<O4))+COUNTIFS($L$2:L4,L4,$O$2:O4,O4)-1,1+SUMPRODUCT(($L$2:$L$978=TRUE)*($P$2:$P$978>P4))+COUNTIFS($L$2:L4,L4,$P$2:P4,P4)-1,1+SUMPRODUCT(($L$2:$L$978=TRUE)*($Q$2:$Q$978>Q4))+COUNTIFS($L$2:L4,L4,$Q$2:Q4,Q4)-1,1+SUMPRODUCT(($L$2:$L$978=TRUE)*($R$2:$R$978>R4))+COUNTIFS($L$2:L4,L4,$R$2:R4,R4)-1,1+SUMPRODUCT(($L$2:$L$978=TRUE)*($S$2:$S$978>S4))+COUNTIFS($L$2:L4,L4,$S$2:S4,S4)-1,1+SUMPRODUCT(($L$2:$L$978=TRUE)*($T$2:$T$978>T4))+COUNTIFS($L$2:L4,L4,$T$2:T4,T4)-1,1+SUMPRODUCT(($L$2:$L$978=TRUE)*($U$2:$U$978>U4))+COUNTIFS($L$2:L4,L4,$U$2:U4,U4)-1,1+SUMPRODUCT(($L$2:$L$978=TRUE)*($V$2:$V$978>V4))+COUNTIFS($L$2:L4,L4,$V$2:V4,V4)-1,1+SUMPRODUCT(($L$2:$L$978=TRUE)*($W$2:$W$978>W4))+COUNTIFS($L$2:L4,L4,$W$2:W4,W4)-1,1+SUMPRODUCT(($L$2:$L$978=TRUE)*($X$2:$X$978>X4))+COUNTIFS($L$2:L4,L4,$X$2:X4,X4)-1,1+SUMPRODUCT(($L$2:$L$978=TRUE)*($Y$2:$Y$978>Y4))+COUNTIFS($L$2:L4,L4,$Y$2:Y4,Y4)-1,1+SUMPRODUCT(($L$2:$L$978=TRUE)*($Z$2:$Z$978>Z4))+COUNTIFS($L$2:L4,L4,$Z$2:Z4,Z4)-1,1+SUMPRODUCT(($L$2:$L$978=TRUE)*($AA$2:$AA$978>AA4))+COUNTIFS($L$2:L4,L4,$AA$2:AA4,AA4)-1,1+SUMPRODUCT(($L$2:$L$978=TRUE)*($AB$2:$AB$978>AB4))+COUNTIFS($L$2:L4,L4,$AB$2:AB4,AB4)-1,1+SUMPRODUCT(($L$2:$L$978=TRUE)*($AC$2:$AC$978>AC4))+COUNTIFS($L$2:L4,L4,$AC$2:AC4,AC4)-1,1+SUMPRODUCT(($L$2:$L$978=TRUE)*($AD$2:$AD$978>AD4))+COUNTIFS($L$2:L4,L4,$AD$2:AD4,AD4)-1,1+SUMPRODUCT(($L$2:$L$978=TRUE)*($AE$2:$AE$978>AE4))+COUNTIFS($L$2:L4,L4,$AE$2:AE4,AE4)-1,1+SUMPRODUCT(($L$2:$L$978=TRUE)*($AF$2:$AF$978>AF4))+COUNTIFS($L$2:L4,L4,$AF$2:AF4,AF4)-1,1+SUMPRODUCT(($L$2:$L$978=TRUE)*($AG$2:$AG$978>AG4))+COUNTIFS($L$2:L4,L4,$AG$2:AG4,AG4)-1,1+SUMPRODUCT(($L$2:$L$978=TRUE)*($AH$2:$AH$978>AH4))+COUNTIFS($L$2:L4,L4,$AH$2:AH4,AH4)-1,1+SUMPRODUCT(($L$2:$L$978=TRUE)*($AI$2:$AI$978>AI4))+COUNTIFS($L$2:L4,L4,$AI$2:AI4,AI4)-1,1+SUMPRODUCT(($L$2:$L$978=TRUE)*($AJ$2:$AJ$978>AJ4))+COUNTIFS($L$2:L4,L4,$AJ$2:AJ4,AJ4)-1,1+SUMPRODUCT(($L$2:$L$978=TRUE)*($AK$2:$AK$978>AK4))+COUNTIFS($L$2:L4,L4,$AK$2:AK4,AK4)-1,1+SUMPRODUCT(($L$2:$L$978=TRUE)*($AL$2:$AL$978>AL4))+COUNTIFS($L$2:L4,L4,$AL$2:AL4,AL4)-1,1+SUMPRODUCT(($L$2:$L$978=TRUE)*($AM$2:$AM$978>AM4))+COUNTIFS($L$2:L4,L4,$AM$2:AM4,AM4)-1,1+SUMPRODUCT(($L$2:$L$978=TRUE)*($AN$2:$AN$978>AN4))+COUNTIFS($L$2:L4,L4,$AN$2:AN4,AN4)-1)),"") -> 62 | D4: CJ Abrams | E4: =IFERROR(INDEX('Auction Log'!$C$4:$C$806,MATCH(D4,'Auction Log'!$B$4:$B$806,0)),"") ->  | F4: =IFERROR(INDEX('Core-Data'!$C$2:$C$982,MATCH(D4,'Core-Data'!$A$2:$A$982,0)),"") -> SS | H4: SS | I4: =IF(AND(F4="OF",'Guts-2'!$N$9=0),IF(MAX(Pre!J4:L4)=Pre!J4,"LF",IF(MAX(Pre!J4:L4)=Pre!K4,"CF",IF(MAX(Pre!J4:L4)=Pre!L4,"RF","LF"))),"") ->  | J4: =IFERROR(INDEX('Core-Data'!$U$2:$U$982,MATCH(D4,'Core-Data'!$A$2:$A$982,0)),TRUE) -> TRUE | K4: FALSE | L4: =IF(J4=FALSE,FALSE,IF(AND('Your Roto Auction'!$Q$6="Hide Drafted Players",K4=TRUE),FALSE,CHOOSE($I$1,TRUE,OR(RIGHT('Your Roto Auction'!$Q$5,LEN('Your Roto Auction'!$Q$5)-11)=H4,IF(RIGHT('Your Roto Auction'!$Q$5,LEN('Your Roto Auction'!$Q$5)-11)<>"C",NOT(ISERROR(SEARCH(RIGHT('Your Roto Auction'!$Q$5,LEN('Your Roto Auction'!$Q$5)-11),Pre!$CB4))),AND(NOT(ISERROR(SEARCH(RIGHT('Your Roto Auction'!$Q$5,LEN('Your Roto Auction'!$Q$5)-11),Pre!$CB4))),ISERROR(SEARCH("CF",Pre!$CB4)))),RIGHT('Your Roto Auction'!$Q$5,LEN('Your Roto Auction'!$Q$5)-11)=Pre!BP4),OR(H4="1B",H4="3B",ISNUMBER(SEARCH("1B",Pre!$CB4)),ISNUMBER(SEARCH("3B",Pre!$CB4))),OR(H4="2B",H4="SS",ISNUMBER(SEARCH("2B",Pre!$CB4)),ISNUMBER(SEARCH("SS",Pre!$CB4))),OR(H4="1B",H4="3B",H4="2B",H4="SS",ISNUMBER(SEARCH("1B",Pre!$CB4)),ISNUMBER(SEARCH("3B",Pre!$CB4)),ISNUMBER(SEARCH("2B",Pre!$CB4)),ISNUMBER(SEARCH("SS",Pre!$CB4))),OR(H4="SP",H4="RP",ISNUMBER(SEARCH("SP",Pre!$CB4)),ISNUMBER(SEARCH("RP",Pre!$CB4))),AND(H4<>"RP",H4<>"SP",NOT(ISNUMBER(SEARCH("RP",Pre!$CB4))),NOT(ISNUMBER(SEARCH("SP",Pre!$CB4)))),OR(H4="SP",H4="RP",ISNUMBER(SEARCH("SP",Pre!$CB4)),ISNUMBER(SEARCH("RP",Pre!$CB4)))))) -> TRUE | M4: =IF('Inflation-Tracking'!J7="",-9999,'Inflation-Tracking'!J7) -> 17.23844348 | N4: =IF(LEFT($D4,15)="Unlisted Player",-1001,'All-WERTH'!AQ4) -> 1.049021259 | O4: =IF('Core-Data'!W4="",9999,'Core-Data'!W4) -> 42 | P4: =IF(LEFT($D4,15)="Unlisted Player",-1001,IF('All-WERTH'!S4="",-1000,'All-WERTH'!S4)) -> -0.3730007934 | Q4: =IF(LEFT($D4,15)="Unlisted Player",-1001,IF('All-WERTH'!T4="",-1000,'All-WERTH'!T4)) -> -0.823031865 | R4: =IF(LEFT($D4,15)="Unlisted Player",-1001,IF('All-WERTH'!U4="",-1000,'All-WERTH'!U4)) -> 0.2743895775 | S4: =IF(LEFT($D4,15)="Unlisted Player",-1001,IF('All-WERTH'!V4="",-1000,'All-WERTH'!V4)) -> -0.9493160203 | T4: =IF(LEFT($D4,15)="Unlisted Player",-1001,IF('All-WERTH'!W4="",-1000,'All-WERTH'!W4)) -> 2.91998036 | U4: =IF(LEFT($D4,15)="Unlisted Player",-1001,IF('All-WERTH'!X4="",-1000,'All-WERTH'!X4)) -> -1000 | V4: =IF(LEFT($D4,15)="Unlisted Player",-1001,IF('All-WERTH'!Y4="",-1000,'All-WERTH'!Y4)) -> -1000 | W4: =IF(LEFT($D4,15)="Unlisted Player",-1001,IF('All-WERTH'!Z4="",-1000,'All-WERTH'!Z4)) -> -1000 | X4: =IF(LEFT($D4,15)="Unlisted Player",-1001,IF('All-WERTH'!AA4="",-1000,'All-WERTH'!AA4)) -> -1000 | Y4: =IF(LEFT($D4,15)="Unlisted Player",-1001,IF('All-WERTH'!AB4="",-1000,'All-WERTH'!AB4)) -> -1000 | Z4: =IF(LEFT($D4,15)="Unlisted Player",-1001,IF('All-WERTH'!AC4="",-1000,'All-WERTH'!AC4)) -> -1000 | AA4: =IF(LEFT($D4,15)="Unlisted Player",-1001,IF('All-WERTH'!AD4="",-1000,'All-WERTH'!AD4)) -> -1000 | AB4: =IF(LEFT($D4,15)="Unlisted Player",-1001,IF('All-WERTH'!AE4="",-1000,'All-WERTH'!AE4)) -> -1000 | AC4: =IF(LEFT($D4,15)="Unlisted Player",-1001,IF('All-WERTH'!AF4="",-1000,'All-WERTH'!AF4)) -> -1000 | AD4: =IF(LEFT($D4,15)="Unlisted Player",-1001,IF('All-WERTH'!AG4="",-1000,'All-WERTH'!AG4)) -> -1000 | AE4: =IF(LEFT($D4,15)="Unlisted Player",-1001,IF('All-WERTH'!AH4="",-1000,'All-WERTH'!AH4)) -> -1000 | AF4: =IF(LEFT($D4,15)="Unlisted Player",-1001,IF('All-WERTH'!AI4="",-1000,'All-WERTH'!AI4)) -> -1000 | AG4: =IF(LEFT($D4,15)="Unlisted Player",-1001,IF('All-WERTH'!AJ4="",-1000,'All-WERTH'!AJ4)) -> -1000 | AH4: =IF(LEFT($D4,15)="Unlisted Player",-1001,IF('All-WERTH'!AK4="",-1000,'All-WERTH'!AK4)) -> -1000 | AI4: =IF(LEFT($D4,15)="Unlisted Player",-1001,IF('All-WERTH'!AL4="",-1000,'All-WERTH'!AL4)) -> -1000 | AJ4: =IF(LEFT($D4,15)="Unlisted Player",-1001,IF('All-WERTH'!AM4="",-1000,'All-WERTH'!AM4)) -> -1000 | AK4: =IF(LEFT($D4,15)="Unlisted Player",-1001,IF('All-WERTH'!AN4="",-1000,'All-WERTH'!AN4)) -> -1000 | AL4: =IF(LEFT($D4,15)="Unlisted Player",-1001,IF('All-WERTH'!AO4="",-1000,'All-WERTH'!AO4)) -> -1000 | AM4: =IF(LEFT($D4,15)="Unlisted Player",-1001,IF('All-WERTH'!AP4="",-1000,'All-WERTH'!AP4)) -> -1000 | AN4: =IF(LEFT($D4,15)="Unlisted Player",-1001,'All-WERTH'!AT4) -> 4.629083923
A5: Shohei Ohtani | B5: =IFERROR(INDEX($A$1:$A$977,SMALL(IF($A$1:$A$977<>"",ROW($A$1:$A$977)),ROW(A4))),"") -> Shohei Ohtani | C5: =IFERROR(IF(L5=FALSE,"",CHOOSE(MATCH(RIGHT('Your Roto Auction'!$Q$4,LEN('Your Roto Auction'!$Q$4)-8),$M$1:$AN$1,0),1+SUMPRODUCT(($L$2:$L$978=TRUE)*($M$2:$M$978>M5))+COUNTIFS($L$2:L5,L5,$M$2:M5,M5)-1,1+SUMPRODUCT(($L$2:$L$978=TRUE)*($N$2:$N$978>N5))+COUNTIFS($L$2:L5,L5,$N$2:N5,N5)-1,1+SUMPRODUCT(($L$2:$L$978=TRUE)*($O$2:$O$978<O5))+COUNTIFS($L$2:L5,L5,$O$2:O5,O5)-1,1+SUMPRODUCT(($L$2:$L$978=TRUE)*($P$2:$P$978>P5))+COUNTIFS($L$2:L5,L5,$P$2:P5,P5)-1,1+SUMPRODUCT(($L$2:$L$978=TRUE)*($Q$2:$Q$978>Q5))+COUNTIFS($L$2:L5,L5,$Q$2:Q5,Q5)-1,1+SUMPRODUCT(($L$2:$L$978=TRUE)*($R$2:$R$978>R5))+COUNTIFS($L$2:L5,L5,$R$2:R5,R5)-1,1+SUMPRODUCT(($L$2:$L$978=TRUE)*($S$2:$S$978>S5))+COUNTIFS($L$2:L5,L5,$S$2:S5,S5)-1,1+SUMPRODUCT(($L$2:$L$978=TRUE)*($T$2:$T$978>T5))+COUNTIFS($L$2:L5,L5,$T$2:T5,T5)-1,1+SUMPRODUCT(($L$2:$L$978=TRUE)*($U$2:$U$978>U5))+COUNTIFS($L$2:L5,L5,$U$2:U5,U5)-1,1+SUMPRODUCT(($L$2:$L$978=TRUE)*($V$2:$V$978>V5))+COUNTIFS($L$2:L5,L5,$V$2:V5,V5)-1,1+SUMPRODUCT(($L$2:$L$978=TRUE)*($W$2:$W$978>W5))+COUNTIFS($L$2:L5,L5,$W$2:W5,W5)-1,1+SUMPRODUCT(($L$2:$L$978=TRUE)*($X$2:$X$978>X5))+COUNTIFS($L$2:L5,L5,$X$2:X5,X5)-1,1+SUMPRODUCT(($L$2:$L$978=TRUE)*($Y$2:$Y$978>Y5))+COUNTIFS($L$2:L5,L5,$Y$2:Y5,Y5)-1,1+SUMPRODUCT(($L$2:$L$978=TRUE)*($Z$2:$Z$978>Z5))+COUNTIFS($L$2:L5,L5,$Z$2:Z5,Z5)-1,1+SUMPRODUCT(($L$2:$L$978=TRUE)*($AA$2:$AA$978>AA5))+COUNTIFS($L$2:L5,L5,$AA$2:AA5,AA5)-1,1+SUMPRODUCT(($L$2:$L$978=TRUE)*($AB$2:$AB$978>AB5))+COUNTIFS($L$2:L5,L5,$AB$2:AB5,AB5)-1,1+SUMPRODUCT(($L$2:$L$978=TRUE)*($AC$2:$AC$978>AC5))+COUNTIFS($L$2:L5,L5,$AC$2:AC5,AC5)-1,1+SUMPRODUCT(($L$2:$L$978=TRUE)*($AD$2:$AD$978>AD5))+COUNTIFS($L$2:L5,L5,$AD$2:AD5,AD5)-1,1+SUMPRODUCT(($L$2:$L$978=TRUE)*($AE$2:$AE$978>AE5))+COUNTIFS($L$2:L5,L5,$AE$2:AE5,AE5)-1,1+SUMPRODUCT(($L$2:$L$978=TRUE)*($AF$2:$AF$978>AF5))+COUNTIFS($L$2:L5,L5,$AF$2:AF5,AF5)-1,1+SUMPRODUCT(($L$2:$L$978=TRUE)*($AG$2:$AG$978>AG5))+COUNTIFS($L$2:L5,L5,$AG$2:AG5,AG5)-1,1+SUMPRODUCT(($L$2:$L$978=TRUE)*($AH$2:$AH$978>AH5))+COUNTIFS($L$2:L5,L5,$AH$2:AH5,AH5)-1,1+SUMPRODUCT(($L$2:$L$978=TRUE)*($AI$2:$AI$978>AI5))+COUNTIFS($L$2:L5,L5,$AI$2:AI5,AI5)-1,1+SUMPRODUCT(($L$2:$L$978=TRUE)*($AJ$2:$AJ$978>AJ5))+COUNTIFS($L$2:L5,L5,$AJ$2:AJ5,AJ5)-1,1+SUMPRODUCT(($L$2:$L$978=TRUE)*($AK$2:$AK$978>AK5))+COUNTIFS($L$2:L5,L5,$AK$2:AK5,AK5)-1,1+SUMPRODUCT(($L$2:$L$978=TRUE)*($AL$2:$AL$978>AL5))+COUNTIFS($L$2:L5,L5,$AL$2:AL5,AL5)-1,1+SUMPRODUCT(($L$2:$L$978=TRUE)*($AM$2:$AM$978>AM5))+COUNTIFS($L$2:L5,L5,$AM$2:AM5,AM5)-1,1+SUMPRODUCT(($L$2:$L$978=TRUE)*($AN$2:$AN$978>AN5))+COUNTIFS($L$2:L5,L5,$AN$2:AN5,AN5)-1)),"") -> 278 | D5: Bryan Abreu | E5: =IFERROR(INDEX('Auction Log'!$C$4:$C$806,MATCH(D5,'Auction Log'!$B$4:$B$806,0)),"") ->  | F5: =IFERROR(INDEX('Core-Data'!$C$2:$C$982,MATCH(D5,'Core-Data'!$A$2:$A$982,0)),"") -> RP | H5: RP | I5: =IF(AND(F5="OF",'Guts-2'!$N$9=0),IF(MAX(Pre!J5:L5)=Pre!J5,"LF",IF(MAX(Pre!J5:L5)=Pre!K5,"CF",IF(MAX(Pre!J5:L5)=Pre!L5,"RF","LF"))),"") ->  | J5: =IFERROR(INDEX('Core-Data'!$U$2:$U$982,MATCH(D5,'Core-Data'!$A$2:$A$982,0)),TRUE) -> TRUE | K5: FALSE | L5: =IF(J5=FALSE,FALSE,IF(AND('Your Roto Auction'!$Q$6="Hide Drafted Players",K5=TRUE),FALSE,CHOOSE($I$1,TRUE,OR(RIGHT('Your Roto Auction'!$Q$5,LEN('Your Roto Auction'!$Q$5)-11)=H5,IF(RIGHT('Your Roto Auction'!$Q$5,LEN('Your Roto Auction'!$Q$5)-11)<>"C",NOT(ISERROR(SEARCH(RIGHT('Your Roto Auction'!$Q$5,LEN('Your Roto Auction'!$Q$5)-11),Pre!$CB5))),AND(NOT(ISERROR(SEARCH(RIGHT('Your Roto Auction'!$Q$5,LEN('Your Roto Auction'!$Q$5)-11),Pre!$CB5))),ISERROR(SEARCH("CF",Pre!$CB5)))),RIGHT('Your Roto Auction'!$Q$5,LEN('Your Roto Auction'!$Q$5)-11)=Pre!BP5),OR(H5="1B",H5="3B",ISNUMBER(SEARCH("1B",Pre!$CB5)),ISNUMBER(SEARCH("3B",Pre!$CB5))),OR(H5="2B",H5="SS",ISNUMBER(SEARCH("2B",Pre!$CB5)),ISNUMBER(SEARCH("SS",Pre!$CB5))),OR(H5="1B",H5="3B",H5="2B",H5="SS",ISNUMBER(SEARCH("1B",Pre!$CB5)),ISNUMBER(SEARCH("3B",Pre!$CB5)),ISNUMBER(SEARCH("2B",Pre!$CB5)),ISNUMBER(SEARCH("SS",Pre!$CB5))),OR(H5="SP",H5="RP",ISNUMBER(SEARCH("SP",Pre!$CB5)),ISNUMBER(SEARCH("RP",Pre!$CB5))),AND(H5<>"RP",H5<>"SP",NOT(ISNUMBER(SEARCH("RP",Pre!$CB5))),NOT(ISNUMBER(SEARCH("SP",Pre!$CB5)))),OR(H5="SP",H5="RP",ISNUMBER(SEARCH("SP",Pre!$CB5)),ISNUMBER(SEARCH("RP",Pre!$CB5)))))) -> TRUE | M5: =IF('Inflation-Tracking'!J8="",-9999,'Inflation-Tracking'!J8) -> -0.527936085 | N5: =IF(LEFT($D5,15)="Unlisted Player",-1001,'All-WERTH'!AQ5) -> -3.261847062 | O5: =IF('Core-Data'!W5="",9999,'Core-Data'!W5) -> 386 | P5: =IF(LEFT($D5,15)="Unlisted Player",-1001,IF('All-WERTH'!S5="",-1000,'All-WERTH'!S5)) -> -1000 | Q5: =IF(LEFT($D5,15)="Unlisted Player",-1001,IF('All-WERTH'!T5="",-1000,'All-WERTH'!T5)) -> -1000 | R5: =IF(LEFT($D5,15)="Unlisted Player",-1001,IF('All-WERTH'!U5="",-1000,'All-WERTH'!U5)) -> -1000 | S5: =IF(LEFT($D5,15)="Unlisted Player",-1001,IF('All-WERTH'!V5="",-1000,'All-WERTH'!V5)) -> -1000 | T5: =IF(LEFT($D5,15)="Unlisted Player",-1001,IF('All-WERTH'!W5="",-1000,'All-WERTH'!W5)) -> -1000 | U5: =IF(LEFT($D5,15)="Unlisted Player",-1001,IF('All-WERTH'!X5="",-1000,'All-WERTH'!X5)) -> -1000 | V5: =IF(LEFT($D5,15)="Unlisted Player",-1001,IF('All-WERTH'!Y5="",-1000,'All-WERTH'!Y5)) -> -1000 | W5: =IF(LEFT($D5,15)="Unlisted Player",-1001,IF('All-WERTH'!Z5="",-1000,'All-WERTH'!Z5)) -> -1000 | X5: =IF(LEFT($D5,15)="Unlisted Player",-1001,IF('All-WERTH'!AA5="",-1000,'All-WERTH'!AA5)) -> -1000 | Y5: =IF(LEFT($D5,15)="Unlisted Player",-1001,IF('All-WERTH'!AB5="",-1000,'All-WERTH'!AB5)) -> -1000 | Z5: =IF(LEFT($D5,15)="Unlisted Player",-1001,IF('All-WERTH'!AC5="",-1000,'All-WERTH'!AC5)) -> -1000 | AA5: =IF(LEFT($D5,15)="Unlisted Player",-1001,IF('All-WERTH'!AD5="",-1000,'All-WERTH'!AD5)) -> -1000 | AB5: =IF(LEFT($D5,15)="Unlisted Player",-1001,IF('All-WERTH'!AE5="",-1000,'All-WERTH'!AE5)) -> -1.518866157 | AC5: =IF(LEFT($D5,15)="Unlisted Player",-1001,IF('All-WERTH'!AF5="",-1000,'All-WERTH'!AF5)) -> -0.2626451351 | AD5: =IF(LEFT($D5,15)="Unlisted Player",-1001,IF('All-WERTH'!AG5="",-1000,'All-WERTH'!AG5)) -> -1.072114735 | AE5: =IF(LEFT($D5,15)="Unlisted Player",-1001,IF('All-WERTH'!AH5="",-1000,'All-WERTH'!AH5)) -> 0.2334443523 | AF5: =IF(LEFT($D5,15)="Unlisted Player",-1001,IF('All-WERTH'!AI5="",-1000,'All-WERTH'!AI5)) -> -0.6416653868 | AG5: =IF(LEFT($D5,15)="Unlisted Player",-1001,IF('All-WERTH'!AJ5="",-1000,'All-WERTH'!AJ5)) -> -1000 | AH5: =IF(LEFT($D5,15)="Unlisted Player",-1001,IF('All-WERTH'!AK5="",-1000,'All-WERTH'!AK5)) -> -1000 | AI5: =IF(LEFT($D5,15)="Unlisted Player",-1001,IF('All-WERTH'!AL5="",-1000,'All-WERTH'!AL5)) -> -1000 | AJ5: =IF(LEFT($D5,15)="Unlisted Player",-1001,IF('All-WERTH'!AM5="",-1000,'All-WERTH'!AM5)) -> -1000 | AK5: =IF(LEFT($D5,15)="Unlisted Player",-1001,IF('All-WERTH'!AN5="",-1000,'All-WERTH'!AN5)) -> -1000 | AL5: =IF(LEFT($D5,15)="Unlisted Player",-1001,IF('All-WERTH'!AO5="",-1000,'All-WERTH'!AO5)) -> -1000 | AM5: =IF(LEFT($D5,15)="Unlisted Player",-1001,IF('All-WERTH'!AP5="",-1000,'All-WERTH'!AP5)) -> -1000 | AN5: =IF(LEFT($D5,15)="Unlisted Player",-1001,'All-WERTH'!AT5) -> -0.1907932594
A6: Fernando Tatis Jr. | B6: =IFERROR(INDEX($A$1:$A$977,SMALL(IF($A$1:$A$977<>"",ROW($A$1:$A$977)),ROW(A5))),"") -> Fernando Tatis Jr. | C6: =IFERROR(IF(L6=FALSE,"",CHOOSE(MATCH(RIGHT('Your Roto Auction'!$Q$4,LEN('Your Roto Auction'!$Q$4)-8),$M$1:$AN$1,0),1+SUMPRODUCT(($L$2:$L$978=TRUE)*($M$2:$M$978>M6))+COUNTIFS($L$2:L6,L6,$M$2:M6,M6)-1,1+SUMPRODUCT(($L$2:$L$978=TRUE)*($N$2:$N$978>N6))+COUNTIFS($L$2:L6,L6,$N$2:N6,N6)-1,1+SUMPRODUCT(($L$2:$L$978=TRUE)*($O$2:$O$978<O6))+COUNTIFS($L$2:L6,L6,$O$2:O6,O6)-1,1+SUMPRODUCT(($L$2:$L$978=TRUE)*($P$2:$P$978>P6))+COUNTIFS($L$2:L6,L6,$P$2:P6,P6)-1,1+SUMPRODUCT(($L$2:$L$978=TRUE)*($Q$2:$Q$978>Q6))+COUNTIFS($L$2:L6,L6,$Q$2:Q6,Q6)-1,1+SUMPRODUCT(($L$2:$L$978=TRUE)*($R$2:$R$978>R6))+COUNTIFS($L$2:L6,L6,$R$2:R6,R6)-1,1+SUMPRODUCT(($L$2:$L$978=TRUE)*($S$2:$S$978>S6))+COUNTIFS($L$2:L6,L6,$S$2:S6,S6)-1,1+SUMPRODUCT(($L$2:$L$978=TRUE)*($T$2:$T$978>T6))+COUNTIFS($L$2:L6,L6,$T$2:T6,T6)-1,1+SUMPRODUCT(($L$2:$L$978=TRUE)*($U$2:$U$978>U6))+COUNTIFS($L$2:L6,L6,$U$2:U6,U6)-1,1+SUMPRODUCT(($L$2:$L$978=TRUE)*($V$2:$V$978>V6))+COUNTIFS($L$2:L6,L6,$V$2:V6,V6)-1,1+SUMPRODUCT(($L$2:$L$978=TRUE)*($W$2:$W$978>W6))+COUNTIFS($L$2:L6,L6,$W$2:W6,W6)-1,1+SUMPRODUCT(($L$2:$L$978=TRUE)*($X$2:$X$978>X6))+COUNTIFS($L$2:L6,L6,$X$2:X6,X6)-1,1+SUMPRODUCT(($L$2:$L$978=TRUE)*($Y$2:$Y$978>Y6))+COUNTIFS($L$2:L6,L6,$Y$2:Y6,Y6)-1,1+SUMPRODUCT(($L$2:$L$978=TRUE)*($Z$2:$Z$978>Z6))+COUNTIFS($L$2:L6,L6,$Z$2:Z6,Z6)-1,1+SUMPRODUCT(($L$2:$L$978=TRUE)*($AA$2:$AA$978>AA6))+COUNTIFS($L$2:L6,L6,$AA$2:AA6,AA6)-1,1+SUMPRODUCT(($L$2:$L$978=TRUE)*($AB$2:$AB$978>AB6))+COUNTIFS($L$2:L6,L6,$AB$2:AB6,AB6)-1,1+SUMPRODUCT(($L$2:$L$978=TRUE)*($AC$2:$AC$978>AC6))+COUNTIFS($L$2:L6,L6,$AC$2:AC6,AC6)-1,1+SUMPRODUCT(($L$2:$L$978=TRUE)*($AD$2:$AD$978>AD6))+COUNTIFS($L$2:L6,L6,$AD$2:AD6,AD6)-1,1+SUMPRODUCT(($L$2:$L$978=TRUE)*($AE$2:$AE$978>AE6))+COUNTIFS($L$2:L6,L6,$AE$2:AE6,AE6)-1,1+SUMPRODUCT(($L$2:$L$978=TRUE)*($AF$2:$AF$978>AF6))+COUNTIFS($L$2:L6,L6,$AF$2:AF6,AF6)-1,1+SUMPRODUCT(($L$2:$L$978=TRUE)*($AG$2:$AG$978>AG6))+COUNTIFS($L$2:L6,L6,$AG$2:AG6,AG6)-1,1+SUMPRODUCT(($L$2:$L$978=TRUE)*($AH$2:$AH$978>AH6))+COUNTIFS($L$2:L6,L6,$AH$2:AH6,AH6)-1,1+SUMPRODUCT(($L$2:$L$978=TRUE)*($AI$2:$AI$978>AI6))+COUNTIFS($L$2:L6,L6,$AI$2:AI6,AI6)-1,1+SUMPRODUCT(($L$2:$L$978=TRUE)*($AJ$2:$AJ$978>AJ6))+COUNTIFS($L$2:L6,L6,$AJ$2:AJ6,AJ6)-1,1+SUMPRODUCT(($L$2:$L$978=TRUE)*($AK$2:$AK$978>AK6))+COUNTIFS($L$2:L6,L6,$AK$2:AK6,AK6)-1,1+SUMPRODUCT(($L$2:$L$978=TRUE)*($AL$2:$AL$978>AL6))+COUNTIFS($L$2:L6,L6,$AL$2:AL6,AL6)-1,1+SUMPRODUCT(($L$2:$L$978=TRUE)*($AM$2:$AM$978>AM6))+COUNTIFS($L$2:L6,L6,$AM$2:AM6,AM6)-1,1+SUMPRODUCT(($L$2:$L$978=TRUE)*($AN$2:$AN$978>AN6))+COUNTIFS($L$2:L6,L6,$AN$2:AN6,AN6)-1)),"") -> 186 | D6: Jose Abreu | E6: =IFERROR(INDEX('Auction Log'!$C$4:$C$806,MATCH(D6,'Auction Log'!$B$4:$B$806,0)),"") ->  | F6: =IFERROR(INDEX('Core-Data'!$C$2:$C$982,MATCH(D6,'Core-Data'!$A$2:$A$982,0)),"") -> 1B | H6: 1B | I6: =IF(AND(F6="OF",'Guts-2'!$N$9=0),IF(MAX(Pre!J6:L6)=Pre!J6,"LF",IF(MAX(Pre!J6:L6)=Pre!K6,"CF",IF(MAX(Pre!J6:L6)=Pre!L6,"RF","LF"))),"") ->  | J6: =IFERROR(INDEX('Core-Data'!$U$2:$U$982,MATCH(D6,'Core-Data'!$A$2:$A$982,0)),TRUE) -> TRUE | K6: FALSE | L6: =IF(J6=FALSE,FALSE,IF(AND('Your Roto Auction'!$Q$6="Hide Drafted Players",K6=TRUE),FALSE,CHOOSE($I$1,TRUE,OR(RIGHT('Your Roto Auction'!$Q$5,LEN('Your Roto Auction'!$Q$5)-11)=H6,IF(RIGHT('Your Roto Auction'!$Q$5,LEN('Your Roto Auction'!$Q$5)-11)<>"C",NOT(ISERROR(SEARCH(RIGHT('Your Roto Auction'!$Q$5,LEN('Your Roto Auction'!$Q$5)-11),Pre!$CB6))),AND(NOT(ISERROR(SEARCH(RIGHT('Your Roto Auction'!$Q$5,LEN('Your Roto Auction'!$Q$5)-11),Pre!$CB6))),ISERROR(SEARCH("CF",Pre!$CB6)))),RIGHT('Your Roto Auction'!$Q$5,LEN('Your Roto Auction'!$Q$5)-11)=Pre!BP6),OR(H6="1B",H6="3B",ISNUMBER(SEARCH("1B",Pre!$CB6)),ISNUMBER(SEARCH("3B",Pre!$CB6))),OR(H6="2B",H6="SS",ISNUMBER(SEARCH("2B",Pre!$CB6)),ISNUMBER(SEARCH("SS",Pre!$CB6))),OR(H6="1B",H6="3B",H6="2B",H6="SS",ISNUMBER(SEARCH("1B",Pre!$CB6)),ISNUMBER(SEARCH("3B",Pre!$CB6)),ISNUMBER(SEARCH("2B",Pre!$CB6)),ISNUMBER(SEARCH("SS",Pre!$CB6))),OR(H6="SP",H6="RP",ISNUMBER(SEARCH("SP",Pre!$CB6)),ISNUMBER(SEARCH("RP",Pre!$CB6))),AND(H6<>"RP",H6<>"SP",NOT(ISNUMBER(SEARCH("RP",Pre!$CB6))),NOT(ISNUMBER(SEARCH("SP",Pre!$CB6)))),OR(H6="SP",H6="RP",ISNUMBER(SEARCH("SP",Pre!$CB6)),ISNUMBER(SEARCH("RP",Pre!$CB6)))))) -> TRUE | M6: =IF('Inflation-Tracking'!J9="",-9999,'Inflation-Tracking'!J9) -> 4.159732619 | N6: =IF(LEFT($D6,15)="Unlisted Player",-1001,'All-WERTH'!AQ6) -> -2.562643344 | O6: =IF('Core-Data'!W6="",9999,'Core-Data'!W6) -> 241 | P6: =IF(LEFT($D6,15)="Unlisted Player",-1001,IF('All-WERTH'!S6="",-1000,'All-WERTH'!S6)) -> -0.2585068599 | Q6: =IF(LEFT($D6,15)="Unlisted Player",-1001,IF('All-WERTH'!T6="",-1000,'All-WERTH'!T6)) -> -0.5582716921 | R6: =IF(LEFT($D6,15)="Unlisted Player",-1001,IF('All-WERTH'!U6="",-1000,'All-WERTH'!U6)) -> -0.6855604046 | S6: =IF(LEFT($D6,15)="Unlisted Player",-1001,IF('All-WERTH'!V6="",-1000,'All-WERTH'!V6)) -> 0.01337088458 | T6: =IF(LEFT($D6,15)="Unlisted Player",-1001,IF('All-WERTH'!W6="",-1000,'All-WERTH'!W6)) -> -1.073675272 | U6: =IF(LEFT($D6,15)="Unlisted Player",-1001,IF('All-WERTH'!X6="",-1000,'All-WERTH'!X6)) -> -1000 | V6: =IF(LEFT($D6,15)="Unlisted Player",-1001,IF('All-WERTH'!Y6="",-1000,'All-WERTH'!Y6)) -> -1000 | W6: =IF(LEFT($D6,15)="Unlisted Player",-1001,IF('All-WERTH'!Z6="",-1000,'All-WERTH'!Z6)) -> -1000 | X6: =IF(LEFT($D6,15)="Unlisted Player",-1001,IF('All-WERTH'!AA6="",-1000,'All-WERTH'!AA6)) -> -1000 | Y6: =IF(LEFT($D6,15)="Unlisted Player",-1001,IF('All-WERTH'!AB6="",-1000,'All-WERTH'!AB6)) -> -1000 | Z6: =IF(LEFT($D6,15)="Unlisted Player",-1001,IF('All-WERTH'!AC6="",-1000,'All-WERTH'!AC6)) -> -1000 | AA6: =IF(LEFT($D6,15)="Unlisted Player",-1001,IF('All-WERTH'!AD6="",-1000,'All-WERTH'!AD6)) -> -1000 | AB6: =IF(LEFT($D6,15)="Unlisted Player",-1001,IF('All-WERTH'!AE6="",-1000,'All-WERTH'!AE6)) -> -1000 | AC6: =IF(LEFT($D6,15)="Unlisted Player",-1001,IF('All-WERTH'!AF6="",-1000,'All-WERTH'!AF6)) -> -1000 | AD6: =IF(LEFT($D6,15)="Unlisted Player",-1001,IF('All-WERTH'!AG6="",-1000,'All-WERTH'!AG6)) -> -1000 | AE6: =IF(LEFT($D6,15)="Unlisted Player",-1001,IF('All-WERTH'!AH6="",-1000,'All-WERTH'!AH6)) -> -1000 | AF6: =IF(LEFT($D6,15)="Unlisted Player",-1001,IF('All-WERTH'!AI6="",-1000,'All-WERTH'!AI6)) -> -1000 | AG6: =IF(LEFT($D6,15)="Unlisted Player",-1001,IF('All-WERTH'!AJ6="",-1000,'All-WERTH'!AJ6)) -> -1000 | AH6: =IF(LEFT($D6,15)="Unlisted Player",-1001,IF('All-WERTH'!AK6="",-1000,'All-WERTH'!AK6)) -> -1000 | AI6: =IF(LEFT($D6,15)="Unlisted Player",-1001,IF('All-WERTH'!AL6="",-1000,'All-WERTH'!AL6)) -> -1000 | AJ6: =IF(LEFT($D6,15)="Unlisted Player",-1001,IF('All-WERTH'!AM6="",-1000,'All-WERTH'!AM6)) -> -1000 | AK6: =IF(LEFT($D6,15)="Unlisted Player",-1001,IF('All-WERTH'!AN6="",-1000,'All-WERTH'!AN6)) -> -1000 | AL6: =IF(LEFT($D6,15)="Unlisted Player",-1001,IF('All-WERTH'!AO6="",-1000,'All-WERTH'!AO6)) -> -1000 | AM6: =IF(LEFT($D6,15)="Unlisted Player",-1001,IF('All-WERTH'!AP6="",-1000,'All-WERTH'!AP6)) -> -1000 | AN6: =IF(LEFT($D6,15)="Unlisted Player",-1001,'All-WERTH'!AT6) -> 1.117023785
A7: Mookie Betts | B7: =IFERROR(INDEX($A$1:$A$977,SMALL(IF($A$1:$A$977<>"",ROW($A$1:$A$977)),ROW(A6))),"") -> Mookie Betts | C7: =IFERROR(IF(L7=FALSE,"",CHOOSE(MATCH(RIGHT('Your Roto Auction'!$Q$4,LEN('Your Roto Auction'!$Q$4)-8),$M$1:$AN$1,0),1+SUMPRODUCT(($L$2:$L$978=TRUE)*($M$2:$M$978>M7))+COUNTIFS($L$2:L7,L7,$M$2:M7,M7)-1,1+SUMPRODUCT(($L$2:$L$978=TRUE)*($N$2:$N$978>N7))+COUNTIFS($L$2:L7,L7,$N$2:N7,N7)-1,1+SUMPRODUCT(($L$2:$L$978=TRUE)*($O$2:$O$978<O7))+COUNTIFS($L$2:L7,L7,$O$2:O7,O7)-1,1+SUMPRODUCT(($L$2:$L$978=TRUE)*($P$2:$P$978>P7))+COUNTIFS($L$2:L7,L7,$P$2:P7,P7)-1,1+SUMPRODUCT(($L$2:$L$978=TRUE)*($Q$2:$Q$978>Q7))+COUNTIFS($L$2:L7,L7,$Q$2:Q7,Q7)-1,1+SUMPRODUCT(($L$2:$L$978=TRUE)*($R$2:$R$978>R7))+COUNTIFS($L$2:L7,L7,$R$2:R7,R7)-1,1+SUMPRODUCT(($L$2:$L$978=TRUE)*($S$2:$S$978>S7))+COUNTIFS($L$2:L7,L7,$S$2:S7,S7)-1,1+SUMPRODUCT(($L$2:$L$978=TRUE)*($T$2:$T$978>T7))+COUNTIFS($L$2:L7,L7,$T$2:T7,T7)-1,1+SUMPRODUCT(($L$2:$L$978=TRUE)*($U$2:$U$978>U7))+COUNTIFS($L$2:L7,L7,$U$2:U7,U7)-1,1+SUMPRODUCT(($L$2:$L$978=TRUE)*($V$2:$V$978>V7))+COUNTIFS($L$2:L7,L7,$V$2:V7,V7)-1,1+SUMPRODUCT(($L$2:$L$978=TRUE)*($W$2:$W$978>W7))+COUNTIFS($L$2:L7,L7,$W$2:W7,W7)-1,1+SUMPRODUCT(($L$2:$L$978=TRUE)*($X$2:$X$978>X7))+COUNTIFS($L$2:L7,L7,$X$2:X7,X7)-1,1+SUMPRODUCT(($L$2:$L$978=TRUE)*($Y$2:$Y$978>Y7))+COUNTIFS($L$2:L7,L7,$Y$2:Y7,Y7)-1,1+SUMPRODUCT(($L$2:$L$978=TRUE)*($Z$2:$Z$978>Z7))+COUNTIFS($L$2:L7,L7,$Z$2:Z7,Z7)-1,1+SUMPRODUCT(($L$2:$L$978=TRUE)*($AA$2:$AA$978>AA7))+COUNTIFS($L$2:L7,L7,$AA$2:AA7,AA7)-1,1+SUMPRODUCT(($L$2:$L$978=TRUE)*($AB$2:$AB$978>AB7))+COUNTIFS($L$2:L7,L7,$AB$2:AB7,AB7)-1,1+SUMPRODUCT(($L$2:$L$978=TRUE)*($AC$2:$AC$978>AC7))+COUNTIFS($L$2:L7,L7,$AC$2:AC7,AC7)-1,1+SUMPRODUCT(($L$2:$L$978=TRUE)*($AD$2:$AD$978>AD7))+COUNTIFS($L$2:L7,L7,$AD$2:AD7,AD7)-1,1+SUMPRODUCT(($L$2:$L$978=TRUE)*($AE$2:$AE$978>AE7))+COUNTIFS($L$2:L7,L7,$AE$2:AE7,AE7)-1,1+SUMPRODUCT(($L$2:$L$978=TRUE)*($AF$2:$AF$978>AF7))+COUNTIFS($L$2:L7,L7,$AF$2:AF7,AF7)-1,1+SUMPRODUCT(($L$2:$L$978=TRUE)*($AG$2:$AG$978>AG7))+COUNTIFS($L$2:L7,L7,$AG$2:AG7,AG7)-1,1+SUMPRODUCT(($L$2:$L$978=TRUE)*($AH$2:$AH$978>AH7))+COUNTIFS($L$2:L7,L7,$AH$2:AH7,AH7)-1,1+SUMPRODUCT(($L$2:$L$978=TRUE)*($AI$2:$AI$978>AI7))+COUNTIFS($L$2:L7,L7,$AI$2:AI7,AI7)-1,1+SUMPRODUCT(($L$2:$L$978=TRUE)*($AJ$2:$AJ$978>AJ7))+COUNTIFS($L$2:L7,L7,$AJ$2:AJ7,AJ7)-1,1+SUMPRODUCT(($L$2:$L$978=TRUE)*($AK$2:$AK$978>AK7))+COUNTIFS($L$2:L7,L7,$AK$2:AK7,AK7)-1,1+SUMPRODUCT(($L$2:$L$978=TRUE)*($AL$2:$AL$978>AL7))+COUNTIFS($L$2:L7,L7,$AL$2:AL7,AL7)-1,1+SUMPRODUCT(($L$2:$L$978=TRUE)*($AM$2:$AM$978>AM7))+COUNTIFS($L$2:L7,L7,$AM$2:AM7,AM7)-1,1+SUMPRODUCT(($L$2:$L$978=TRUE)*($AN$2:$AN$978>AN7))+COUNTIFS($L$2:L7,L7,$AN$2:AN7,AN7)-1)),"") -> 549 | D7: Wilyer Abreu | E7: =IFERROR(INDEX('Auction Log'!$C$4:$C$806,MATCH(D7,'Auction Log'!$B$4:$B$806,0)),"") ->  | F7: =IFERROR(INDEX('Core-Data'!$C$2:$C$982,MATCH(D7,'Core-Data'!$A$2:$A$982,0)),"") -> OF | H7: OF | I7: =IF(AND(F7="OF",'Guts-2'!$N$9=0),IF(MAX(Pre!J7:L7)=Pre!J7,"LF",IF(MAX(Pre!J7:L7)=Pre!K7,"CF",IF(MAX(Pre!J7:L7)=Pre!L7,"RF","LF"))),"") ->  | J7: =IFERROR(INDEX('Core-Data'!$U$2:$U$982,MATCH(D7,'Core-Data'!$A$2:$A$982,0)),TRUE) -> TRUE | K7: FALSE | L7: =IF(J7=FALSE,FALSE,IF(AND('Your Roto Auction'!$Q$6="Hide Drafted Players",K7=TRUE),FALSE,CHOOSE($I$1,TRUE,OR(RIGHT('Your Roto Auction'!$Q$5,LEN('Your Roto Auction'!$Q$5)-11)=H7,IF(RIGHT('Your Roto Auction'!$Q$5,LEN('Your Roto Auction'!$Q$5)-11)<>"C",NOT(ISERROR(SEARCH(RIGHT('Your Roto Auction'!$Q$5,LEN('Your Roto Auction'!$Q$5)-11),Pre!$CB7))),AND(NOT(ISERROR(SEARCH(RIGHT('Your Roto Auction'!$Q$5,LEN('Your Roto Auction'!$Q$5)-11),Pre!$CB7))),ISERROR(SEARCH("CF",Pre!$CB7)))),RIGHT('Your Roto Auction'!$Q$5,LEN('Your Roto Auction'!$Q$5)-11)=Pre!BP7),OR(H7="1B",H7="3B",ISNUMBER(SEARCH("1B",Pre!$CB7)),ISNUMBER(SEARCH("3B",Pre!$CB7))),OR(H7="2B",H7="SS",ISNUMBER(SEARCH("2B",Pre!$CB7)),ISNUMBER(SEARCH("SS",Pre!$CB7))),OR(H7="1B",H7="3B",H7="2B",H7="SS",ISNUMBER(SEARCH("1B",Pre!$CB7)),ISNUMBER(SEARCH("3B",Pre!$CB7)),ISNUMBER(SEARCH("2B",Pre!$CB7)),ISNUMBER(SEARCH("SS",Pre!$CB7))),OR(H7="SP",H7="RP",ISNUMBER(SEARCH("SP",Pre!$CB7)),ISNUMBER(SEARCH("RP",Pre!$CB7))),AND(H7<>"RP",H7<>"SP",NOT(ISNUMBER(SEARCH("RP",Pre!$CB7))),NOT(ISNUMBER(SEARCH("SP",Pre!$CB7)))),OR(H7="SP",H7="RP",ISNUMBER(SEARCH("SP",Pre!$CB7)),ISNUMBER(SEARCH("RP",Pre!$CB7)))))) -> TRUE | M7: =IF('Inflation-Tracking'!J10="",-9999,'Inflation-Tracking'!J10) -> -12.34173959 | N7: =IF(LEFT($D7,15)="Unlisted Player",-1001,'All-WERTH'!AQ7) -> -6.707891979 | O7: =IF('Core-Data'!W7="",9999,'Core-Data'!W7) -> 438 | P7: =IF(LEFT($D7,15)="Unlisted Player",-1001,IF('All-WERTH'!S7="",-1000,'All-WERTH'!S7)) -> -1.00021831 | Q7: =IF(LEFT($D7,15)="Unlisted Player",-1001,IF('All-WERTH'!T7="",-1000,'All-WERTH'!T7)) -> -1.457021902 | R7: =IF(LEFT($D7,15)="Unlisted Player",-1001,IF('All-WERTH'!U7="",-1000,'All-WERTH'!U7)) -> -1.768105236 | S7: =IF(LEFT($D7,15)="Unlisted Player",-1001,IF('All-WERTH'!V7="",-1000,'All-WERTH'!V7)) -> -2.064837434 | T7: =IF(LEFT($D7,15)="Unlisted Player",-1001,IF('All-WERTH'!W7="",-1000,'All-WERTH'!W7)) -> -0.4177090972 | U7: =IF(LEFT($D7,15)="Unlisted Player",-1001,IF('All-WERTH'!X7="",-1000,'All-WERTH'!X7)) -> -1000 | V7: =IF(LEFT($D7,15)="Unlisted Player",-1001,IF('All-WERTH'!Y7="",-1000,'All-WERTH'!Y7)) -> -1000 | W7: =IF(LEFT($D7,15)="Unlisted Player",-1001,IF('All-WERTH'!Z7="",-1000,'All-WERTH'!Z7)) -> -1000 | X7: =IF(LEFT($D7,15)="Unlisted Player",-1001,IF('All-WERTH'!AA7="",-1000,'All-WERTH'!AA7)) -> -1000 | Y7: =IF(LEFT($D7,15)="Unlisted Player",-1001,IF('All-WERTH'!AB7="",-1000,'All-WERTH'!AB7)) -> -1000 | Z7: =IF(LEFT($D7,15)="Unlisted Player",-1001,IF('All-WERTH'!AC7="",-1000,'All-WERTH'!AC7)) -> -1000 | AA7: =IF(LEFT($D7,15)="Unlisted Player",-1001,IF('All-WERTH'!AD7="",-1000,'All-WERTH'!AD7)) -> -1000 | AB7: =IF(LEFT($D7,15)="Unlisted Player",-1001,IF('All-WERTH'!AE7="",-1000,'All-WERTH'!AE7)) -> -1000 | AC7: =IF(LEFT($D7,15)="Unlisted Player",-1001,IF('All-WERTH'!AF7="",-1000,'All-WERTH'!AF7)) -> -1000 | AD7: =IF(LEFT($D7,15)="Unlisted Player",-1001,IF('All-WERTH'!AG7="",-1000,'All-WERTH'!AG7)) -> -1000 | AE7: =IF(LEFT($D7,15)="Unlisted Player",-1001,IF('All-WERTH'!AH7="",-1000,'All-WERTH'!AH7)) -> -1000 | AF7: =IF(LEFT($D7,15)="Unlisted Player",-1001,IF('All-WERTH'!AI7="",-1000,'All-WERTH'!AI7)) -> -1000 | AG7: =IF(LEFT($D7,15)="Unlisted Player",-1001,IF('All-WERTH'!AJ7="",-1000,'All-WERTH'!AJ7)) -> -1000 | AH7: =IF(LEFT($D7,15)="Unlisted Player",-1001,IF('All-WERTH'!AK7="",-1000,'All-WERTH'!AK7)) -> -1000 | AI7: =IF(LEFT($D7,15)="Unlisted Player",-1001,IF('All-WERTH'!AL7="",-1000,'All-WERTH'!AL7)) -> -1000 | AJ7: =IF(LEFT($D7,15)="Unlisted Player",-1001,IF('All-WERTH'!AM7="",-1000,'All-WERTH'!AM7)) -> -1000 | AK7: =IF(LEFT($D7,15)="Unlisted Player",-1001,IF('All-WERTH'!AN7="",-1000,'All-WERTH'!AN7)) -> -1000 | AL7: =IF(LEFT($D7,15)="Unlisted Player",-1001,IF('All-WERTH'!AO7="",-1000,'All-WERTH'!AO7)) -> -1000 | AM7: =IF(LEFT($D7,15)="Unlisted Player",-1001,IF('All-WERTH'!AP7="",-1000,'All-WERTH'!AP7)) -> -1000 | AN7: =IF(LEFT($D7,15)="Unlisted Player",-1001,'All-WERTH'!AT7) -> -3.314159331
A8: Kyle Tucker | B8: =IFERROR(INDEX($A$1:$A$977,SMALL(IF($A$1:$A$977<>"",ROW($A$1:$A$977)),ROW(A7))),"") -> Kyle Tucker | C8: =IFERROR(IF(L8=FALSE,"",CHOOSE(MATCH(RIGHT('Your Roto Auction'!$Q$4,LEN('Your Roto Auction'!$Q$4)-8),$M$1:$AN$1,0),1+SUMPRODUCT(($L$2:$L$978=TRUE)*($M$2:$M$978>M8))+COUNTIFS($L$2:L8,L8,$M$2:M8,M8)-1,1+SUMPRODUCT(($L$2:$L$978=TRUE)*($N$2:$N$978>N8))+COUNTIFS($L$2:L8,L8,$N$2:N8,N8)-1,1+SUMPRODUCT(($L$2:$L$978=TRUE)*($O$2:$O$978<O8))+COUNTIFS($L$2:L8,L8,$O$2:O8,O8)-1,1+SUMPRODUCT(($L$2:$L$978=TRUE)*($P$2:$P$978>P8))+COUNTIFS($L$2:L8,L8,$P$2:P8,P8)-1,1+SUMPRODUCT(($L$2:$L$978=TRUE)*($Q$2:$Q$978>Q8))+COUNTIFS($L$2:L8,L8,$Q$2:Q8,Q8)-1,1+SUMPRODUCT(($L$2:$L$978=TRUE)*($R$2:$R$978>R8))+COUNTIFS($L$2:L8,L8,$R$2:R8,R8)-1,1+SUMPRODUCT(($L$2:$L$978=TRUE)*($S$2:$S$978>S8))+COUNTIFS($L$2:L8,L8,$S$2:S8,S8)-1,1+SUMPRODUCT(($L$2:$L$978=TRUE)*($T$2:$T$978>T8))+COUNTIFS($L$2:L8,L8,$T$2:T8,T8)-1,1+SUMPRODUCT(($L$2:$L$978=TRUE)*($U$2:$U$978>U8))+COUNTIFS($L$2:L8,L8,$U$2:U8,U8)-1,1+SUMPRODUCT(($L$2:$L$978=TRUE)*($V$2:$V$978>V8))+COUNTIFS($L$2:L8,L8,$V$2:V8,V8)-1,1+SUMPRODUCT(($L$2:$L$978=TRUE)*($W$2:$W$978>W8))+COUNTIFS($L$2:L8,L8,$W$2:W8,W8)-1,1+SUMPRODUCT(($L$2:$L$978=TRUE)*($X$2:$X$978>X8))+COUNTIFS($L$2:L8,L8,$X$2:X8,X8)-1,1+SUMPRODUCT(($L$2:$L$978=TRUE)*($Y$2:$Y$978>Y8))+COUNTIFS($L$2:L8,L8,$Y$2:Y8,Y8)-1,1+SUMPRODUCT(($L$2:$L$978=TRUE)*($Z$2:$Z$978>Z8))+COUNTIFS($L$2:L8,L8,$Z$2:Z8,Z8)-1,1+SUMPRODUCT(($L$2:$L$978=TRUE)*($AA$2:$AA$978>AA8))+COUNTIFS($L$2:L8,L8,$AA$2:AA8,AA8)-1,1+SUMPRODUCT(($L$2:$L$978=TRUE)*($AB$2:$AB$978>AB8))+COUNTIFS($L$2:L8,L8,$AB$2:AB8,AB8)-1,1+SUMPRODUCT(($L$2:$L$978=TRUE)*($AC$2:$AC$978>AC8))+COUNTIFS($L$2:L8,L8,$AC$2:AC8,AC8)-1,1+SUMPRODUCT(($L$2:$L$978=TRUE)*($AD$2:$AD$978>AD8))+COUNTIFS($L$2:L8,L8,$AD$2:AD8,AD8)-1,1+SUMPRODUCT(($L$2:$L$978=TRUE)*($AE$2:$AE$978>AE8))+COUNTIFS($L$2:L8,L8,$AE$2:AE8,AE8)-1,1+SUMPRODUCT(($L$2:$L$978=TRUE)*($AF$2:$AF$978>AF8))+COUNTIFS($L$2:L8,L8,$AF$2:AF8,AF8)-1,1+SUMPRODUCT(($L$2:$L$978=TRUE)*($AG$2:$AG$978>AG8))+COUNTIFS($L$2:L8,L8,$AG$2:AG8,AG8)-1,1+SUMPRODUCT(($L$2:$L$978=TRUE)*($AH$2:$AH$978>AH8))+COUNTIFS($L$2:L8,L8,$AH$2:AH8,AH8)-1,1+SUMPRODUCT(($L$2:$L$978=TRUE)*($AI$2:$AI$978>AI8))+COUNTIFS($L$2:L8,L8,$AI$2:AI8,AI8)-1,1+SUMPRODUCT(($L$2:$L$978=TRUE)*($AJ$2:$AJ$978>AJ8))+COUNTIFS($L$2:L8,L8,$AJ$2:AJ8,AJ8)-1,1+SUMPRODUCT(($L$2:$L$978=TRUE)*($AK$2:$AK$978>AK8))+COUNTIFS($L$2:L8,L8,$AK$2:AK8,AK8)-1,1+SUMPRODUCT(($L$2:$L$978=TRUE)*($AL$2:$AL$978>AL8))+COUNTIFS($L$2:L8,L8,$AL$2:AL8,AL8)-1,1+SUMPRODUCT(($L$2:$L$978=TRUE)*($AM$2:$AM$978>AM8))+COUNTIFS($L$2:L8,L8,$AM$2:AM8,AM8)-1,1+SUMPRODUCT(($L$2:$L$978=TRUE)*($AN$2:$AN$978>AN8))+COUNTIFS($L$2:L8,L8,$AN$2:AN8,AN8)-1)),"") -> 739 | D8: Luisangel Acuna | E8: =IFERROR(INDEX('Auction Log'!$C$4:$C$806,MATCH(D8,'Auction Log'!$B$4:$B$806,0)),"") ->  | F8: =IFERROR(INDEX('Core-Data'!$C$2:$C$982,MATCH(D8,'Core-Data'!$A$2:$A$982,0)),"") -> SS | H8: SS | I8: =IF(AND(F8="OF",'Guts-2'!$N$9=0),IF(MAX(Pre!J8:L8)=Pre!J8,"LF",IF(MAX(Pre!J8:L8)=Pre!K8,"CF",IF(MAX(Pre!J8:L8)=Pre!L8,"RF","LF"))),"") ->  | J8: =IFERROR(INDEX('Core-Data'!$U$2:$U$982,MATCH(D8,'Core-Data'!$A$2:$A$982,0)),TRUE) -> TRUE | K8: FALSE | L8: =IF(J8=FALSE,FALSE,IF(AND('Your Roto Auction'!$Q$6="Hide Drafted Players",K8=TRUE),FALSE,CHOOSE($I$1,TRUE,OR(RIGHT('Your Roto Auction'!$Q$5,LEN('Your Roto Auction'!$Q$5)-11)=H8,IF(RIGHT('Your Roto Auction'!$Q$5,LEN('Your Roto Auction'!$Q$5)-11)<>"C",NOT(ISERROR(SEARCH(RIGHT('Your Roto Auction'!$Q$5,LEN('Your Roto Auction'!$Q$5)-11),Pre!$CB8))),AND(NOT(ISERROR(SEARCH(RIGHT('Your Roto Auction'!$Q$5,LEN('Your Roto Auction'!$Q$5)-11),Pre!$CB8))),ISERROR(SEARCH("CF",Pre!$CB8)))),RIGHT('Your Roto Auction'!$Q$5,LEN('Your Roto Auction'!$Q$5)-11)=Pre!BP8),OR(H8="1B",H8="3B",ISNUMBER(SEARCH("1B",Pre!$CB8)),ISNUMBER(SEARCH("3B",Pre!$CB8))),OR(H8="2B",H8="SS",ISNUMBER(SEARCH("2B",Pre!$CB8)),ISNUMBER(SEARCH("SS",Pre!$CB8))),OR(H8="1B",H8="3B",H8="2B",H8="SS",ISNUMBER(SEARCH("1B",Pre!$CB8)),ISNUMBER(SEARCH("3B",Pre!$CB8)),ISNUMBER(SEARCH("2B",Pre!$CB8)),ISNUMBER(SEARCH("SS",Pre!$CB8))),OR(H8="SP",H8="RP",ISNUMBER(SEARCH("SP",Pre!$CB8)),ISNUMBER(SEARCH("RP",Pre!$CB8))),AND(H8<>"RP",H8<>"SP",NOT(ISNUMBER(SEARCH("RP",Pre!$CB8))),NOT(ISNUMBER(SEARCH("SP",Pre!$CB8)))),OR(H8="SP",H8="RP",ISNUMBER(SEARCH("SP",Pre!$CB8)),ISNUMBER(SEARCH("RP",Pre!$CB8)))))) -> TRUE | M8: =IF('Inflation-Tracking'!J11="",-9999,'Inflation-Tracking'!J11) -> -9999 | N8: =IF(LEFT($D8,15)="Unlisted Player",-1001,'All-WERTH'!AQ8) -> -1000 | O8: =IF('Core-Data'!W8="",9999,'Core-Data'!W8) -> 782 | P8: =IF(LEFT($D8,15)="Unlisted Player",-1001,IF('All-WERTH'!S8="",-1000,'All-WERTH'!S8)) -> -1000 | Q8: =IF(LEFT($D8,15)="Unlisted Player",-1001,IF('All-WERTH'!T8="",-1000,'All-WERTH'!T8)) -> -1000 | R8: =IF(LEFT($D8,15)="Unlisted Player",-1001,IF('All-WERTH'!U8="",-1000,'All-WERTH'!U8)) -> -1000 | S8: =IF(LEFT($D8,15)="Unlisted Player",-1001,IF('All-WERTH'!V8="",-1000,'All-WERTH'!V8)) -> -1000 | T8: =IF(LEFT($D8,15)="Unlisted Player",-1001,IF('All-WERTH'!W8="",-1000,'All-WERTH'!W8)) -> -1000 | U8: =IF(LEFT($D8,15)="Unlisted Player",-1001,IF('All-WERTH'!X8="",-1000,'All-WERTH'!X8)) -> -1000 | V8: =IF(LEFT($D8,15)="Unlisted Player",-1001,IF('All-WERTH'!Y8="",-1000,'All-WERTH'!Y8)) -> -1000 | W8: =IF(LEFT($D8,15)="Unlisted Player",-1001,IF('All-WERTH'!Z8="",-1000,'All-WERTH'!Z8)) -> -1000 | X8: =IF(LEFT($D8,15)="Unlisted Player",-1001,IF('All-WERTH'!AA8="",-1000,'All-WERTH'!AA8)) -> -1000 | Y8: =IF(LEFT($D8,15)="Unlisted Player",-1001,IF('All-WERTH'!AB8="",-1000,'All-WERTH'!AB8)) -> -1000 | Z8: =IF(LEFT($D8,15)="Unlisted Player",-1001,IF('All-WERTH'!AC8="",-1000,'All-WERTH'!AC8)) -> -1000 | AA8: =IF(LEFT($D8,15)="Unlisted Player",-1001,IF('All-WERTH'!AD8="",-1000,'All-WERTH'!AD8)) -> -1000 | AB8: =IF(LEFT($D8,15)="Unlisted Player",-1001,IF('All-WERTH'!AE8="",-1000,'All-WERTH'!AE8)) -> -1000 | AC8: =IF(LEFT($D8,15)="Unlisted Player",-1001,IF('All-WERTH'!AF8="",-1000,'All-WERTH'!AF8)) -> -1000 | AD8: =IF(LEFT($D8,15)="Unlisted Player",-1001,IF('All-WERTH'!AG8="",-1000,'All-WERTH'!AG8)) -> -1000 | AE8: =IF(LEFT($D8,15)="Unlisted Player",-1001,IF('All-WERTH'!AH8="",-1000,'All-WERTH'!AH8)) -> -1000 | AF8: =IF(LEFT($D8,15)="Unlisted Player",-1001,IF('All-WERTH'!AI8="",-1000,'All-WERTH'!AI8)) -> -1000 | AG8: =IF(LEFT($D8,15)="Unlisted Player",-1001,IF('All-WERTH'!AJ8="",-1000,'All-WERTH'!AJ8)) -> -1000 | AH8: =IF(LEFT($D8,15)="Unlisted Player",-1001,IF('All-WERTH'!AK8="",-1000,'All-WERTH'!AK8)) -> -1000 | AI8: =IF(LEFT($D8,15)="Unlisted Player",-1001,IF('All-WERTH'!AL8="",-1000,'All-WERTH'!AL8)) -> -1000 | AJ8: =IF(LEFT($D8,15)="Unlisted Player",-1001,IF('All-WERTH'!AM8="",-1000,'All-WERTH'!AM8)) -> -1000 | AK8: =IF(LEFT($D8,15)="Unlisted Player",-1001,IF('All-WERTH'!AN8="",-1000,'All-WERTH'!AN8)) -> -1000 | AL8: =IF(LEFT($D8,15)="Unlisted Player",-1001,IF('All-WERTH'!AO8="",-1000,'All-WERTH'!AO8)) -> -1000 | AM8: =IF(LEFT($D8,15)="Unlisted Player",-1001,IF('All-WERTH'!AP8="",-1000,'All-WERTH'!AP8)) -> -1000 | AN8: =IF(LEFT($D8,15)="Unlisted Player",-1001,'All-WERTH'!AT8) -> -996.4199373
A9: Freddie Freeman | B9: =IFERROR(INDEX($A$1:$A$977,SMALL(IF($A$1:$A$977<>"",ROW($A$1:$A$977)),ROW(A8))),"") -> Freddie Freeman | C9: =IFERROR(IF(L9=FALSE,"",CHOOSE(MATCH(RIGHT('Your Roto Auction'!$Q$4,LEN('Your Roto Auction'!$Q$4)-8),$M$1:$AN$1,0),1+SUMPRODUCT(($L$2:$L$978=TRUE)*($M$2:$M$978>M9))+COUNTIFS($L$2:L9,L9,$M$2:M9,M9)-1,1+SUMPRODUCT(($L$2:$L$978=TRUE)*($N$2:$N$978>N9))+COUNTIFS($L$2:L9,L9,$N$2:N9,N9)-1,1+SUMPRODUCT(($L$2:$L$978=TRUE)*($O$2:$O$978<O9))+COUNTIFS($L$2:L9,L9,$O$2:O9,O9)-1,1+SUMPRODUCT(($L$2:$L$978=TRUE)*($P$2:$P$978>P9))+COUNTIFS($L$2:L9,L9,$P$2:P9,P9)-1,1+SUMPRODUCT(($L$2:$L$978=TRUE)*($Q$2:$Q$978>Q9))+COUNTIFS($L$2:L9,L9,$Q$2:Q9,Q9)-1,1+SUMPRODUCT(($L$2:$L$978=TRUE)*($R$2:$R$978>R9))+COUNTIFS($L$2:L9,L9,$R$2:R9,R9)-1,1+SUMPRODUCT(($L$2:$L$978=TRUE)*($S$2:$S$978>S9))+COUNTIFS($L$2:L9,L9,$S$2:S9,S9)-1,1+SUMPRODUCT(($L$2:$L$978=TRUE)*($T$2:$T$978>T9))+COUNTIFS($L$2:L9,L9,$T$2:T9,T9)-1,1+SUMPRODUCT(($L$2:$L$978=TRUE)*($U$2:$U$978>U9))+COUNTIFS($L$2:L9,L9,$U$2:U9,U9)-1,1+SUMPRODUCT(($L$2:$L$978=TRUE)*($V$2:$V$978>V9))+COUNTIFS($L$2:L9,L9,$V$2:V9,V9)-1,1+SUMPRODUCT(($L$2:$L$978=TRUE)*($W$2:$W$978>W9))+COUNTIFS($L$2:L9,L9,$W$2:W9,W9)-1,1+SUMPRODUCT(($L$2:$L$978=TRUE)*($X$2:$X$978>X9))+COUNTIFS($L$2:L9,L9,$X$2:X9,X9)-1,1+SUMPRODUCT(($L$2:$L$978=TRUE)*($Y$2:$Y$978>Y9))+COUNTIFS($L$2:L9,L9,$Y$2:Y9,Y9)-1,1+SUMPRODUCT(($L$2:$L$978=TRUE)*($Z$2:$Z$978>Z9))+COUNTIFS($L$2:L9,L9,$Z$2:Z9,Z9)-1,1+SUMPRODUCT(($L$2:$L$978=TRUE)*($AA$2:$AA$978>AA9))+COUNTIFS($L$2:L9,L9,$AA$2:AA9,AA9)-1,1+SUMPRODUCT(($L$2:$L$978=TRUE)*($AB$2:$AB$978>AB9))+COUNTIFS($L$2:L9,L9,$AB$2:AB9,AB9)-1,1+SUMPRODUCT(($L$2:$L$978=TRUE)*($AC$2:$AC$978>AC9))+COUNTIFS($L$2:L9,L9,$AC$2:AC9,AC9)-1,1+SUMPRODUCT(($L$2:$L$978=TRUE)*($AD$2:$AD$978>AD9))+COUNTIFS($L$2:L9,L9,$AD$2:AD9,AD9)-1,1+SUMPRODUCT(($L$2:$L$978=TRUE)*($AE$2:$AE$978>AE9))+COUNTIFS($L$2:L9,L9,$AE$2:AE9,AE9)-1,1+SUMPRODUCT(($L$2:$L$978=TRUE)*($AF$2:$AF$978>AF9))+COUNTIFS($L$2:L9,L9,$AF$2:AF9,AF9)-1,1+SUMPRODUCT(($L$2:$L$978=TRUE)*($AG$2:$AG$978>AG9))+COUNTIFS($L$2:L9,L9,$AG$2:AG9,AG9)-1,1+SUMPRODUCT(($L$2:$L$978=TRUE)*($AH$2:$AH$978>AH9))+COUNTIFS($L$2:L9,L9,$AH$2:AH9,AH9)-1,1+SUMPRODUCT(($L$2:$L$978=TRUE)*($AI$2:$AI$978>AI9))+COUNTIFS($L$2:L9,L9,$AI$2:AI9,AI9)-1,1+SUMPRODUCT(($L$2:$L$978=TRUE)*($AJ$2:$AJ$978>AJ9))+COUNTIFS($L$2:L9,L9,$AJ$2:AJ9,AJ9)-1,1+SUMPRODUCT(($L$2:$L$978=TRUE)*($AK$2:$AK$978>AK9))+COUNTIFS($L$2:L9,L9,$AK$2:AK9,AK9)-1,1+SUMPRODUCT(($L$2:$L$978=TRUE)*($AL$2:$AL$978>AL9))+COUNTIFS($L$2:L9,L9,$AL$2:AL9,AL9)-1,1+SUMPRODUCT(($L$2:$L$978=TRUE)*($AM$2:$AM$978>AM9))+COUNTIFS($L$2:L9,L9,$AM$2:AM9,AM9)-1,1+SUMPRODUCT(($L$2:$L$978=TRUE)*($AN$2:$AN$978>AN9))+COUNTIFS($L$2:L9,L9,$AN$2:AN9,AN9)-1)),"") -> 1 | D9: Ronald Acuna | E9: =IFERROR(INDEX('Auction Log'!$C$4:$C$806,MATCH(D9,'Auction Log'!$B$4:$B$806,0)),"") ->  | F9: =IFERROR(INDEX('Core-Data'!$C$2:$C$982,MATCH(D9,'Core-Data'!$A$2:$A$982,0)),"") -> OF | H9: OF | I9: =IF(AND(F9="OF",'Guts-2'!$N$9=0),IF(MAX(Pre!J9:L9)=Pre!J9,"LF",IF(MAX(Pre!J9:L9)=Pre!K9,"CF",IF(MAX(Pre!J9:L9)=Pre!L9,"RF","LF"))),"") ->  | J9: =IFERROR(INDEX('Core-Data'!$U$2:$U$982,MATCH(D9,'Core-Data'!$A$2:$A$982,0)),TRUE) -> TRUE | K9: FALSE | L9: =IF(J9=FALSE,FALSE,IF(AND('Your Roto Auction'!$Q$6="Hide Drafted Players",K9=TRUE),FALSE,CHOOSE($I$1,TRUE,OR(RIGHT('Your Roto Auction'!$Q$5,LEN('Your Roto Auction'!$Q$5)-11)=H9,IF(RIGHT('Your Roto Auction'!$Q$5,LEN('Your Roto Auction'!$Q$5)-11)<>"C",NOT(ISERROR(SEARCH(RIGHT('Your Roto Auction'!$Q$5,LEN('Your Roto Auction'!$Q$5)-11),Pre!$CB9))),AND(NOT(ISERROR(SEARCH(RIGHT('Your Roto Auction'!$Q$5,LEN('Your Roto Auction'!$Q$5)-11),Pre!$CB9))),ISERROR(SEARCH("CF",Pre!$CB9)))),RIGHT('Your Roto Auction'!$Q$5,LEN('Your Roto Auction'!$Q$5)-11)=Pre!BP9),OR(H9="1B",H9="3B",ISNUMBER(SEARCH("1B",Pre!$CB9)),ISNUMBER(SEARCH("3B",Pre!$CB9))),OR(H9="2B",H9="SS",ISNUMBER(SEARCH("2B",Pre!$CB9)),ISNUMBER(SEARCH("SS",Pre!$CB9))),OR(H9="1B",H9="3B",H9="2B",H9="SS",ISNUMBER(SEARCH("1B",Pre!$CB9)),ISNUMBER(SEARCH("3B",Pre!$CB9)),ISNUMBER(SEARCH("2B",Pre!$CB9)),ISNUMBER(SEARCH("SS",Pre!$CB9))),OR(H9="SP",H9="RP",ISNUMBER(SEARCH("SP",Pre!$CB9)),ISNUMBER(SEARCH("RP",Pre!$CB9))),AND(H9<>"RP",H9<>"SP",NOT(ISNUMBER(SEARCH("RP",Pre!$CB9))),NOT(ISNUMBER(SEARCH("SP",Pre!$CB9)))),OR(H9="SP",H9="RP",ISNUMBER(SEARCH("SP",Pre!$CB9)),ISNUMBER(SEARCH("RP",Pre!$CB9)))))) -> TRUE | M9: =IF('Inflation-Tracking'!J12="",-9999,'Inflation-Tracking'!J12) -> 73.61159949 | N9: =IF(LEFT($D9,15)="Unlisted Player",-1001,'All-WERTH'!AQ9) -> 16.37338102 | O9: =IF('Core-Data'!W9="",9999,'Core-Data'!W9) -> 1 | P9: =IF(LEFT($D9,15)="Unlisted Player",-1001,IF('All-WERTH'!S9="",-1000,'All-WERTH'!S9)) -> 3.434195079 | Q9: =IF(LEFT($D9,15)="Unlisted Player",-1001,IF('All-WERTH'!T9="",-1000,'All-WERTH'!T9)) -> 2.048824647 | R9: =IF(LEFT($D9,15)="Unlisted Player",-1001,IF('All-WERTH'!U9="",-1000,'All-WERTH'!U9)) -> 4.267524799 | S9: =IF(LEFT($D9,15)="Unlisted Player",-1001,IF('All-WERTH'!V9="",-1000,'All-WERTH'!V9)) -> 1.931966822 | T9: =IF(LEFT($D9,15)="Unlisted Player",-1001,IF('All-WERTH'!W9="",-1000,'All-WERTH'!W9)) -> 4.690869673 | U9: =IF(LEFT($D9,15)="Unlisted Player",-1001,IF('All-WERTH'!X9="",-1000,'All-WERTH'!X9)) -> -1000 | V9: =IF(LEFT($D9,15)="Unlisted Player",-1001,IF('All-WERTH'!Y9="",-1000,'All-WERTH'!Y9)) -> -1000 | W9: =IF(LEFT($D9,15)="Unlisted Player",-1001,IF('All-WERTH'!Z9="",-1000,'All-WERTH'!Z9)) -> -1000 | X9: =IF(LEFT($D9,15)="Unlisted Player",-1001,IF('All-WERTH'!AA9="",-1000,'All-WERTH'!AA9)) -> -1000 | Y9: =IF(LEFT($D9,15)="Unlisted Player",-1001,IF('All-WERTH'!AB9="",-1000,'All-WERTH'!AB9)) -> -1000 | Z9: =IF(LEFT($D9,15)="Unlisted Player",-1001,IF('All-WERTH'!AC9="",-1000,'All-WERTH'!AC9)) -> -1000 | AA9: =IF(LEFT($D9,15)="Unlisted Player",-1001,IF('All-WERTH'!AD9="",-1000,'All-WERTH'!AD9)) -> -1000 | AB9: =IF(LEFT($D9,15)="Unlisted Player",-1001,IF('All-WERTH'!AE9="",-1000,'All-WERTH'!AE9)) -> -1000 | AC9: =IF(LEFT($D9,15)="Unlisted Player",-1001,IF('All-WERTH'!AF9="",-1000,'All-WERTH'!AF9)) -> -1000 | AD9: =IF(LEFT($D9,15)="Unlisted Player",-1001,IF('All-WERTH'!AG9="",-1000,'All-WERTH'!AG9)) -> -1000 | AE9: =IF(LEFT($D9,15)="Unlisted Player",-1001,IF('All-WERTH'!AH9="",-1000,'All-WERTH'!AH9)) -> -1000 | AF9: =IF(LEFT($D9,15)="Unlisted Player",-1001,IF('All-WERTH'!AI9="",-1000,'All-WERTH'!AI9)) -> -1000 | AG9: =IF(LEFT($D9,15)="Unlisted Player",-1001,IF('All-WERTH'!AJ9="",-1000,'All-WERTH'!AJ9)) -> -1000 | AH9: =IF(LEFT($D9,15)="Unlisted Player",-1001,IF('All-WERTH'!AK9="",-1000,'All-WERTH'!AK9)) -> -1000 | AI9: =IF(LEFT($D9,15)="Unlisted Player",-1001,IF('All-WERTH'!AL9="",-1000,'All-WERTH'!AL9)) -> -1000 | AJ9: =IF(LEFT($D9,15)="Unlisted Player",-1001,IF('All-WERTH'!AM9="",-1000,'All-WERTH'!AM9)) -> -1000 | AK9: =IF(LEFT($D9,15)="Unlisted Player",-1001,IF('All-WERTH'!AN9="",-1000,'All-WERTH'!AN9)) -> -1000 | AL9: =IF(LEFT($D9,15)="Unlisted Player",-1001,IF('All-WERTH'!AO9="",-1000,'All-WERTH'!AO9)) -> -1000 | AM9: =IF(LEFT($D9,15)="Unlisted Player",-1001,IF('All-WERTH'!AP9="",-1000,'All-WERTH'!AP9)) -> -1000 | AN9: =IF(LEFT($D9,15)="Unlisted Player",-1001,'All-WERTH'!AT9) -> 19.76711367
A10: Juan Soto | B10: =IFERROR(INDEX($A$1:$A$977,SMALL(IF($A$1:$A$977<>"",ROW($A$1:$A$977)),ROW(A9))),"") -> Juan Soto | C10: =IFERROR(IF(L10=FALSE,"",CHOOSE(MATCH(RIGHT('Your Roto Auction'!$Q$4,LEN('Your Roto Auction'!$Q$4)-8),$M$1:$AN$1,0),1+SUMPRODUCT(($L$2:$L$978=TRUE)*($M$2:$M$978>M10))+COUNTIFS($L$2:L10,L10,$M$2:M10,M10)-1,1+SUMPRODUCT(($L$2:$L$978=TRUE)*($N$2:$N$978>N10))+COUNTIFS($L$2:L10,L10,$N$2:N10,N10)-1,1+SUMPRODUCT(($L$2:$L$978=TRUE)*($O$2:$O$978<O10))+COUNTIFS($L$2:L10,L10,$O$2:O10,O10)-1,1+SUMPRODUCT(($L$2:$L$978=TRUE)*($P$2:$P$978>P10))+COUNTIFS($L$2:L10,L10,$P$2:P10,P10)-1,1+SUMPRODUCT(($L$2:$L$978=TRUE)*($Q$2:$Q$978>Q10))+COUNTIFS($L$2:L10,L10,$Q$2:Q10,Q10)-1,1+SUMPRODUCT(($L$2:$L$978=TRUE)*($R$2:$R$978>R10))+COUNTIFS($L$2:L10,L10,$R$2:R10,R10)-1,1+SUMPRODUCT(($L$2:$L$978=TRUE)*($S$2:$S$978>S10))+COUNTIFS($L$2:L10,L10,$S$2:S10,S10)-1,1+SUMPRODUCT(($L$2:$L$978=TRUE)*($T$2:$T$978>T10))+COUNTIFS($L$2:L10,L10,$T$2:T10,T10)-1,1+SUMPRODUCT(($L$2:$L$978=TRUE)*($U$2:$U$978>U10))+COUNTIFS($L$2:L10,L10,$U$2:U10,U10)-1,1+SUMPRODUCT(($L$2:$L$978=TRUE)*($V$2:$V$978>V10))+COUNTIFS($L$2:L10,L10,$V$2:V10,V10)-1,1+SUMPRODUCT(($L$2:$L$978=TRUE)*($W$2:$W$978>W10))+COUNTIFS($L$2:L10,L10,$W$2:W10,W10)-1,1+SUMPRODUCT(($L$2:$L$978=TRUE)*($X$2:$X$978>X10))+COUNTIFS($L$2:L10,L10,$X$2:X10,X10)-1,1+SUMPRODUCT(($L$2:$L$978=TRUE)*($Y$2:$Y$978>Y10))+COUNTIFS($L$2:L10,L10,$Y$2:Y10,Y10)-1,1+SUMPRODUCT(($L$2:$L$978=TRUE)*($Z$2:$Z$978>Z10))+COUNTIFS($L$2:L10,L10,$Z$2:Z10,Z10)-1,1+SUMPRODUCT(($L$2:$L$978=TRUE)*($AA$2:$AA$978>AA10))+COUNTIFS($L$2:L10,L10,$AA$2:AA10,AA10)-1,1+SUMPRODUCT(($L$2:$L$978=TRUE)*($AB$2:$AB$978>AB10))+COUNTIFS($L$2:L10,L10,$AB$2:AB10,AB10)-1,1+SUMPRODUCT(($L$2:$L$978=TRUE)*($AC$2:$AC$978>AC10))+COUNTIFS($L$2:L10,L10,$AC$2:AC10,AC10)-1,1+SUMPRODUCT(($L$2:$L$978=TRUE)*($AD$2:$AD$978>AD10))+COUNTIFS($L$2:L10,L10,$AD$2:AD10,AD10)-1,1+SUMPRODUCT(($L$2:$L$978=TRUE)*($AE$2:$AE$978>AE10))+COUNTIFS($L$2:L10,L10,$AE$2:AE10,AE10)-1,1+SUMPRODUCT(($L$2:$L$978=TRUE)*($AF$2:$AF$978>AF10))+COUNTIFS($L$2:L10,L10,$AF$2:AF10,AF10)-1,1+SUMPRODUCT(($L$2:$L$978=TRUE)*($AG$2:$AG$978>AG10))+COUNTIFS($L$2:L10,L10,$AG$2:AG10,AG10)-1,1+SUMPRODUCT(($L$2:$L$978=TRUE)*($AH$2:$AH$978>AH10))+COUNTIFS($L$2:L10,L10,$AH$2:AH10,AH10)-1,1+SUMPRODUCT(($L$2:$L$978=TRUE)*($AI$2:$AI$978>AI10))+COUNTIFS($L$2:L10,L10,$AI$2:AI10,AI10)-1,1+SUMPRODUCT(($L$2:$L$978=TRUE)*($AJ$2:$AJ$978>AJ10))+COUNTIFS($L$2:L10,L10,$AJ$2:AJ10,AJ10)-1,1+SUMPRODUCT(($L$2:$L$978=TRUE)*($AK$2:$AK$978>AK10))+COUNTIFS($L$2:L10,L10,$AK$2:AK10,AK10)-1,1+SUMPRODUCT(($L$2:$L$978=TRUE)*($AL$2:$AL$978>AL10))+COUNTIFS($L$2:L10,L10,$AL$2:AL10,AL10)-1,1+SUMPRODUCT(($L$2:$L$978=TRUE)*($AM$2:$AM$978>AM10))+COUNTIFS($L$2:L10,L10,$AM$2:AM10,AM10)-1,1+SUMPRODUCT(($L$2:$L$978=TRUE)*($AN$2:$AN$978>AN10))+COUNTIFS($L$2:L10,L10,$AN$2:AN10,AN10)-1)),"") -> 90 | D10: Willy Adames | E10: =IFERROR(INDEX('Auction Log'!$C$4:$C$806,MATCH(D10,'Auction Log'!$B$4:$B$806,0)),"") ->  | F10: =IFERROR(INDEX('Core-Data'!$C$2:$C$982,MATCH(D10,'Core-Data'!$A$2:$A$982,0)),"") -> SS | H10: SS | I10: =IF(AND(F10="OF",'Guts-2'!$N$9=0),IF(MAX(Pre!J10:L10)=Pre!J10,"LF",IF(MAX(Pre!J10:L10)=Pre!K10,"CF",IF(MAX(Pre!J10:L10)=Pre!L10,"RF","LF"))),"") ->  | J10: =IFERROR(INDEX('Core-Data'!$U$2:$U$982,MATCH(D10,'Core-Data'!$A$2:$A$982,0)),TRUE) -> TRUE | K10: FALSE | L10: =IF(J10=FALSE,FALSE,IF(AND('Your Roto Auction'!$Q$6="Hide Drafted Players",K10=TRUE),FALSE,CHOOSE($I$1,TRUE,OR(RIGHT('Your Roto Auction'!$Q$5,LEN('Your Roto Auction'!$Q$5)-11)=H10,IF(RIGHT('Your Roto Auction'!$Q$5,LEN('Your Roto Auction'!$Q$5)-11)<>"C",NOT(ISERROR(SEARCH(RIGHT('Your Roto Auction'!$Q$5,LEN('Your Roto Auction'!$Q$5)-11),Pre!$CB10))),AND(NOT(ISERROR(SEARCH(RIGHT('Your Roto Auction'!$Q$5,LEN('Your Roto Auction'!$Q$5)-11),Pre!$CB10))),ISERROR(SEARCH("CF",Pre!$CB10)))),RIGHT('Your Roto Auction'!$Q$5,LEN('Your Roto Auction'!$Q$5)-11)=Pre!BP10),OR(H10="1B",H10="3B",ISNUMBER(SEARCH("1B",Pre!$CB10)),ISNUMBER(SEARCH("3B",Pre!$CB10))),OR(H10="2B",H10="SS",ISNUMBER(SEARCH("2B",Pre!$CB10)),ISNUMBER(SEARCH("SS",Pre!$CB10))),OR(H10="1B",H10="3B",H10="2B",H10="SS",ISNUMBER(SEARCH("1B",Pre!$CB10)),ISNUMBER(SEARCH("3B",Pre!$CB10)),ISNUMBER(SEARCH("2B",Pre!$CB10)),ISNUMBER(SEARCH("SS",Pre!$CB10))),OR(H10="SP",H10="RP",ISNUMBER(SEARCH("SP",Pre!$CB10)),ISNUMBER(SEARCH("RP",Pre!$CB10))),AND(H10<>"RP",H10<>"SP",NOT(ISNUMBER(SEARCH("RP",Pre!$CB10))),NOT(ISNUMBER(SEARCH("SP",Pre!$CB10)))),OR(H10="SP",H10="RP",ISNUMBER(SEARCH("SP",Pre!$CB10)),ISNUMBER(SEARCH("RP",Pre!$CB10)))))) -> TRUE | M10: =IF('Inflation-Tracking'!J13="",-9999,'Inflation-Tracking'!J13) -> 12.6826699 | N10: =IF(LEFT($D10,15)="Unlisted Player",-1001,'All-WERTH'!AQ10) -> -0.1743524315 | O10: =IF('Core-Data'!W10="",9999,'Core-Data'!W10) -> 167 | P10: =IF(LEFT($D10,15)="Unlisted Player",-1001,IF('All-WERTH'!S10="",-1000,'All-WERTH'!S10)) -> -1.308520051 | Q10: =IF(LEFT($D10,15)="Unlisted Player",-1001,IF('All-WERTH'!T10="",-1000,'All-WERTH'!T10)) -> 0.6117717953 | R10: =IF(LEFT($D10,15)="Unlisted Player",-1001,IF('All-WERTH'!U10="",-1000,'All-WERTH'!U10)) -> 0.3624208444 | S10: =IF(LEFT($D10,15)="Unlisted Player",-1001,IF('All-WERTH'!V10="",-1000,'All-WERTH'!V10)) -> 0.632620724 | T10: =IF(LEFT($D10,15)="Unlisted Player",-1001,IF('All-WERTH'!W10="",-1000,'All-WERTH'!W10)) -> -0.4726457437 | U10: =IF(LEFT($D10,15)="Unlisted Player",-1001,IF('All-WERTH'!X10="",-1000,'All-WERTH'!X10)) -> -1000 | V10: =IF(LEFT($D10,15)="Unlisted Player",-1001,IF('All-WERTH'!Y10="",-1000,'All-WERTH'!Y10)) -> -1000 | W10: =IF(LEFT($D10,15)="Unlisted Player",-1001,IF('All-WERTH'!Z10="",-1000,'All-WERTH'!Z10)) -> -1000 | X10: =IF(LEFT($D10,15)="Unlisted Player",-1001,IF('All-WERTH'!AA10="",-1000,'All-WERTH'!AA10)) -> -1000 | Y10: =IF(LEFT($D10,15)="Unlisted Player",-1001,IF('All-WERTH'!AB10="",-1000,'All-WERTH'!AB10)) -> -1000 | Z10: =IF(LEFT($D10,15)="Unlisted Player",-1001,IF('All-WERTH'!AC10="",-1000,'All-WERTH'!AC10)) -> -1000 | AA10: =IF(LEFT($D10,15)="Unlisted Player",-1001,IF('All-WERTH'!AD10="",-1000,'All-WERTH'!AD10)) -> -1000 | AB10: =IF(LEFT($D10,15)="Unlisted Player",-1001,IF('All-WERTH'!AE10="",-1000,'All-WERTH'!AE10)) -> -1000 | AC10: =IF(LEFT($D10,15)="Unlisted Player",-1001,IF('All-WERTH'!AF10="",-1000,'All-WERTH'!AF10)) -> -1000 | AD10: =IF(LEFT($D10,15)="Unlisted Player",-1001,IF('All-WERTH'!AG10="",-1000,'All-WERTH'!AG10)) -> -1000 | AE10: =IF(LEFT($D10,15)="Unlisted Player",-1001,IF('All-WERTH'!AH10="",-1000,'All-WERTH'!AH10)) -> -1000 | AF10: =IF(LEFT($D10,15)="Unlisted Player",-1001,IF('All-WERTH'!AI10="",-1000,'All-WERTH'!AI10)) -> -1000 | AG10: =IF(LEFT($D10,15)="Unlisted Player",-1001,IF('All-WERTH'!AJ10="",-1000,'All-WERTH'!AJ10)) -> -1000 | AH10: =IF(LEFT($D10,15)="Unlisted Player",-1001,IF('All-WERTH'!AK10="",-1000,'All-WERTH'!AK10)) -> -1000 | AI10: =IF(LEFT($D10,15)="Unlisted Player",-1001,IF('All-WERTH'!AL10="",-1000,'All-WERTH'!AL10)) -> -1000 | AJ10: =IF(LEFT($D10,15)="Unlisted Player",-1001,IF('All-WERTH'!AM10="",-1000,'All-WERTH'!AM10)) -> -1000 | AK10: =IF(LEFT($D10,15)="Unlisted Player",-1001,IF('All-WERTH'!AN10="",-1000,'All-WERTH'!AN10)) -> -1000 | AL10: =IF(LEFT($D10,15)="Unlisted Player",-1001,IF('All-WERTH'!AO10="",-1000,'All-WERTH'!AO10)) -> -1000 | AM10: =IF(LEFT($D10,15)="Unlisted Player",-1001,IF('All-WERTH'!AP10="",-1000,'All-WERTH'!AP10)) -> -1000 | AN10: =IF(LEFT($D10,15)="Unlisted Player",-1001,'All-WERTH'!AT10) -> 3.405710232
A11: Corbin Carroll | B11: =IFERROR(INDEX($A$1:$A$977,SMALL(IF($A$1:$A$977<>"",ROW($A$1:$A$977)),ROW(A10))),"") -> Corbin Carroll | C11: =IFERROR(IF(L11=FALSE,"",CHOOSE(MATCH(RIGHT('Your Roto Auction'!$Q$4,LEN('Your Roto Auction'!$Q$4)-8),$M$1:$AN$1,0),1+SUMPRODUCT(($L$2:$L$978=TRUE)*($M$2:$M$978>M11))+COUNTIFS($L$2:L11,L11,$M$2:M11,M11)-1,1+SUMPRODUCT(($L$2:$L$978=TRUE)*($N$2:$N$978>N11))+COUNTIFS($L$2:L11,L11,$N$2:N11,N11)-1,1+SUMPRODUCT(($L$2:$L$978=TRUE)*($O$2:$O$978<O11))+COUNTIFS($L$2:L11,L11,$O$2:O11,O11)-1,1+SUMPRODUCT(($L$2:$L$978=TRUE)*($P$2:$P$978>P11))+COUNTIFS($L$2:L11,L11,$P$2:P11,P11)-1,1+SUMPRODUCT(($L$2:$L$978=TRUE)*($Q$2:$Q$978>Q11))+COUNTIFS($L$2:L11,L11,$Q$2:Q11,Q11)-1,1+SUMPRODUCT(($L$2:$L$978=TRUE)*($R$2:$R$978>R11))+COUNTIFS($L$2:L11,L11,$R$2:R11,R11)-1,1+SUMPRODUCT(($L$2:$L$978=TRUE)*($S$2:$S$978>S11))+COUNTIFS($L$2:L11,L11,$S$2:S11,S11)-1,1+SUMPRODUCT(($L$2:$L$978=TRUE)*($T$2:$T$978>T11))+COUNTIFS($L$2:L11,L11,$T$2:T11,T11)-1,1+SUMPRODUCT(($L$2:$L$978=TRUE)*($U$2:$U$978>U11))+COUNTIFS($L$2:L11,L11,$U$2:U11,U11)-1,1+SUMPRODUCT(($L$2:$L$978=TRUE)*($V$2:$V$978>V11))+COUNTIFS($L$2:L11,L11,$V$2:V11,V11)-1,1+SUMPRODUCT(($L$2:$L$978=TRUE)*($W$2:$W$978>W11))+COUNTIFS($L$2:L11,L11,$W$2:W11,W11)-1,1+SUMPRODUCT(($L$2:$L$978=TRUE)*($X$2:$X$978>X11))+COUNTIFS($L$2:L11,L11,$X$2:X11,X11)-1,1+SUMPRODUCT(($L$2:$L$978=TRUE)*($Y$2:$Y$978>Y11))+COUNTIFS($L$2:L11,L11,$Y$2:Y11,Y11)-1,1+SUMPRODUCT(($L$2:$L$978=TRUE)*($Z$2:$Z$978>Z11))+COUNTIFS($L$2:L11,L11,$Z$2:Z11,Z11)-1,1+SUMPRODUCT(($L$2:$L$978=TRUE)*($AA$2:$AA$978>AA11))+COUNTIFS($L$2:L11,L11,$AA$2:AA11,AA11)-1,1+SUMPRODUCT(($L$2:$L$978=TRUE)*($AB$2:$AB$978>AB11))+COUNTIFS($L$2:L11,L11,$AB$2:AB11,AB11)-1,1+SUMPRODUCT(($L$2:$L$978=TRUE)*($AC$2:$AC$978>AC11))+COUNTIFS($L$2:L11,L11,$AC$2:AC11,AC11)-1,1+SUMPRODUCT(($L$2:$L$978=TRUE)*($AD$2:$AD$978>AD11))+COUNTIFS($L$2:L11,L11,$AD$2:AD11,AD11)-1,1+SUMPRODUCT(($L$2:$L$978=TRUE)*($AE$2:$AE$978>AE11))+COUNTIFS($L$2:L11,L11,$AE$2:AE11,AE11)-1,1+SUMPRODUCT(($L$2:$L$978=TRUE)*($AF$2:$AF$978>AF11))+COUNTIFS($L$2:L11,L11,$AF$2:AF11,AF11)-1,1+SUMPRODUCT(($L$2:$L$978=TRUE)*($AG$2:$AG$978>AG11))+COUNTIFS($L$2:L11,L11,$AG$2:AG11,AG11)-1,1+SUMPRODUCT(($L$2:$L$978=TRUE)*($AH$2:$AH$978>AH11))+COUNTIFS($L$2:L11,L11,$AH$2:AH11,AH11)-1,1+SUMPRODUCT(($L$2:$L$978=TRUE)*($AI$2:$AI$978>AI11))+COUNTIFS($L$2:L11,L11,$AI$2:AI11,AI11)-1,1+SUMPRODUCT(($L$2:$L$978=TRUE)*($AJ$2:$AJ$978>AJ11))+COUNTIFS($L$2:L11,L11,$AJ$2:AJ11,AJ11)-1,1+SUMPRODUCT(($L$2:$L$978=TRUE)*($AK$2:$AK$978>AK11))+COUNTIFS($L$2:L11,L11,$AK$2:AK11,AK11)-1,1+SUMPRODUCT(($L$2:$L$978=TRUE)*($AL$2:$AL$978>AL11))+COUNTIFS($L$2:L11,L11,$AL$2:AL11,AL11)-1,1+SUMPRODUCT(($L$2:$L$978=TRUE)*($AM$2:$AM$978>AM11))+COUNTIFS($L$2:L11,L11,$AM$2:AM11,AM11)-1,1+SUMPRODUCT(($L$2:$L$978=TRUE)*($AN$2:$AN$978>AN11))+COUNTIFS($L$2:L11,L11,$AN$2:AN11,AN11)-1)),"") -> 286 | D11: Jason Adam | E11: =IFERROR(INDEX('Auction Log'!$C$4:$C$806,MATCH(D11,'Auction Log'!$B$4:$B$806,0)),"") ->  | F11: =IFERROR(INDEX('Core-Data'!$C$2:$C$982,MATCH(D11,'Core-Data'!$A$2:$A$982,0)),"") -> RP | H11: RP | I11: =IF(AND(F11="OF",'Guts-2'!$N$9=0),IF(MAX(Pre!J11:L11)=Pre!J11,"LF",IF(MAX(Pre!J11:L11)=Pre!K11,"CF",IF(MAX(Pre!J11:L11)=Pre!L11,"RF","LF"))),"") ->  | J11: =IFERROR(INDEX('Core-Data'!$U$2:$U$982,MATCH(D11,'Core-Data'!$A$2:$A$982,0)),TRUE) -> TRUE | K11: FALSE | L11: =IF(J11=FALSE,FALSE,IF(AND('Your Roto Auction'!$Q$6="Hide Drafted Players",K11=TRUE),FALSE,CHOOSE($I$1,TRUE,OR(RIGHT('Your Roto Auction'!$Q$5,LEN('Your Roto Auction'!$Q$5)-11)=H11,IF(RIGHT('Your Roto Auction'!$Q$5,LEN('Your Roto Auction'!$Q$5)-11)<>"C",NOT(ISERROR(SEARCH(RIGHT('Your Roto Auction'!$Q$5,LEN('Your Roto Auction'!$Q$5)-11),Pre!$CB11))),AND(NOT(ISERROR(SEARCH(RIGHT('Your Roto Auction'!$Q$5,LEN('Your Roto Auction'!$Q$5)-11),Pre!$CB11))),ISERROR(SEARCH("CF",Pre!$CB11)))),RIGHT('Your Roto Auction'!$Q$5,LEN('Your Roto Auction'!$Q$5)-11)=Pre!BP11),OR(H11="1B",H11="3B",ISNUMBER(SEARCH("1B",Pre!$CB11)),ISNUMBER(SEARCH("3B",Pre!$CB11))),OR(H11="2B",H11="SS",ISNUMBER(SEARCH("2B",Pre!$CB11)),ISNUMBER(SEARCH("SS",Pre!$CB11))),OR(H11="1B",H11="3B",H11="2B",H11="SS",ISNUMBER(SEARCH("1B",Pre!$CB11)),ISNUMBER(SEARCH("3B",Pre!$CB11)),ISNUMBER(SEARCH("2B",Pre!$CB11)),ISNUMBER(SEARCH("SS",Pre!$CB11))),OR(H11="SP",H11="RP",ISNUMBER(SEARCH("SP",Pre!$CB11)),ISNUMBER(SEARCH("RP",Pre!$CB11))),AND(H11<>"RP",H11<>"SP",NOT(ISNUMBER(SEARCH("RP",Pre!$CB11))),NOT(ISNUMBER(SEARCH("SP",Pre!$CB11)))),OR(H11="SP",H11="RP",ISNUMBER(SEARCH("SP",Pre!$CB11)),ISNUMBER(SEARCH("RP",Pre!$CB11)))))) -> TRUE | M11: =IF('Inflation-Tracking'!J14="",-9999,'Inflation-Tracking'!J14) -> -0.8861498316 | N11: =IF(LEFT($D11,15)="Unlisted Player",-1001,'All-WERTH'!AQ11) -> -3.391303582 | O11: =IF('Core-Data'!W11="",9999,'Core-Data'!W11) -> 333 | P11: =IF(LEFT($D11,15)="Unlisted Player",-1001,IF('All-WERTH'!S11="",-1000,'All-WERTH'!S11)) -> -1000 | Q11: =IF(LEFT($D11,15)="Unlisted Player",-1001,IF('All-WERTH'!T11="",-1000,'All-WERTH'!T11)) -> -1000 | R11: =IF(LEFT($D11,15)="Unlisted Player",-1001,IF('All-WERTH'!U11="",-1000,'All-WERTH'!U11)) -> -1000 | S11: =IF(LEFT($D11,15)="Unlisted Player",-1001,IF('All-WERTH'!V11="",-1000,'All-WERTH'!V11)) -> -1000 | T11: =IF(LEFT($D11,15)="Unlisted Player",-1001,IF('All-WERTH'!W11="",-1000,'All-WERTH'!W11)) -> -1000 | U11: =IF(LEFT($D11,15)="Unlisted Player",-1001,IF('All-WERTH'!X11="",-1000,'All-WERTH'!X11)) -> -1000 | V11: =IF(LEFT($D11,15)="Unlisted Player",-1001,IF('All-WERTH'!Y11="",-1000,'All-WERTH'!Y11)) -> -1000 | W11: =IF(LEFT($D11,15)="Unlisted Player",-1001,IF('All-WERTH'!Z11="",-1000,'All-WERTH'!Z11)) -> -1000 | X11: =IF(LEFT($D11,15)="Unlisted Player",-1001,IF('All-WERTH'!AA11="",-1000,'All-WERTH'!AA11)) -> -1000 | Y11: =IF(LEFT($D11,15)="Unlisted Player",-1001,IF('All-WERTH'!AB11="",-1000,'All-WERTH'!AB11)) -> -1000 | Z11: =IF(LEFT($D11,15)="Unlisted Player",-1001,IF('All-WERTH'!AC11="",-1000,'All-WERTH'!AC11)) -> -1000 | AA11: =IF(LEFT($D11,15)="Unlisted Player",-1001,IF('All-WERTH'!AD11="",-1000,'All-WERTH'!AD11)) -> -1000 | AB11: =IF(LEFT($D11,15)="Unlisted Player",-1001,IF('All-WERTH'!AE11="",-1000,'All-WERTH'!AE11)) -> -1.688602671 | AC11: =IF(LEFT($D11,15)="Unlisted Player",-1001,IF('All-WERTH'!AF11="",-1000,'All-WERTH'!AF11)) -> 0.04963688422 | AD11: =IF(LEFT($D11,15)="Unlisted Player",-1001,IF('All-WERTH'!AG11="",-1000,'All-WERTH'!AG11)) -> -1.610814975 | AE11: =IF(LEFT($D11,15)="Unlisted Player",-1001,IF('All-WERTH'!AH11="",-1000,'All-WERTH'!AH11)) -> -0.01105301925 | AF11: =IF(LEFT($D11,15)="Unlisted Player",-1001,IF('All-WERTH'!AI11="",-1000,'All-WERTH'!AI11)) -> -0.1304698006 | AG11: =IF(LEFT($D11,15)="Unlisted Player",-1001,IF('All-WERTH'!AJ11="",-1000,'All-WERTH'!AJ11)) -> -1000 | AH11: =IF(LEFT($D11,15)="Unlisted Player",-1001,IF('All-WERTH'!AK11="",-1000,'All-WERTH'!AK11)) -> -1000 | AI11: =IF(LEFT($D11,15)="Unlisted Player",-1001,IF('All-WERTH'!AL11="",-1000,'All-WERTH'!AL11)) -> -1000 | AJ11: =IF(LEFT($D11,15)="Unlisted Player",-1001,IF('All-WERTH'!AM11="",-1000,'All-WERTH'!AM11)) -> -1000 | AK11: =IF(LEFT($D11,15)="Unlisted Player",-1001,IF('All-WERTH'!AN11="",-1000,'All-WERTH'!AN11)) -> -1000 | AL11: =IF(LEFT($D11,15)="Unlisted Player",-1001,IF('All-WERTH'!AO11="",-1000,'All-WERTH'!AO11)) -> -1000 | AM11: =IF(LEFT($D11,15)="Unlisted Player",-1001,IF('All-WERTH'!AP11="",-1000,'All-WERTH'!AP11)) -> -1000 | AN11: =IF(LEFT($D11,15)="Unlisted Player",-1001,'All-WERTH'!AT11) -> -0.3202497792
A12: Yordan Alvarez | B12: =IFERROR(INDEX($A$1:$A$977,SMALL(IF($A$1:$A$977<>"",ROW($A$1:$A$977)),ROW(A11))),"") -> Yordan Alvarez | C12: =IFERROR(IF(L12=FALSE,"",CHOOSE(MATCH(RIGHT('Your Roto Auction'!$Q$4,LEN('Your Roto Auction'!$Q$4)-8),$M$1:$AN$1,0),1+SUMPRODUCT(($L$2:$L$978=TRUE)*($M$2:$M$978>M12))+COUNTIFS($L$2:L12,L12,$M$2:M12,M12)-1,1+SUMPRODUCT(($L$2:$L$978=TRUE)*($N$2:$N$978>N12))+COUNTIFS($L$2:L12,L12,$N$2:N12,N12)-1,1+SUMPRODUCT(($L$2:$L$978=TRUE)*($O$2:$O$978<O12))+COUNTIFS($L$2:L12,L12,$O$2:O12,O12)-1,1+SUMPRODUCT(($L$2:$L$978=TRUE)*($P$2:$P$978>P12))+COUNTIFS($L$2:L12,L12,$P$2:P12,P12)-1,1+SUMPRODUCT(($L$2:$L$978=TRUE)*($Q$2:$Q$978>Q12))+COUNTIFS($L$2:L12,L12,$Q$2:Q12,Q12)-1,1+SUMPRODUCT(($L$2:$L$978=TRUE)*($R$2:$R$978>R12))+COUNTIFS($L$2:L12,L12,$R$2:R12,R12)-1,1+SUMPRODUCT(($L$2:$L$978=TRUE)*($S$2:$S$978>S12))+COUNTIFS($L$2:L12,L12,$S$2:S12,S12)-1,1+SUMPRODUCT(($L$2:$L$978=TRUE)*($T$2:$T$978>T12))+COUNTIFS($L$2:L12,L12,$T$2:T12,T12)-1,1+SUMPRODUCT(($L$2:$L$978=TRUE)*($U$2:$U$978>U12))+COUNTIFS($L$2:L12,L12,$U$2:U12,U12)-1,1+SUMPRODUCT(($L$2:$L$978=TRUE)*($V$2:$V$978>V12))+COUNTIFS($L$2:L12,L12,$V$2:V12,V12)-1,1+SUMPRODUCT(($L$2:$L$978=TRUE)*($W$2:$W$978>W12))+COUNTIFS($L$2:L12,L12,$W$2:W12,W12)-1,1+SUMPRODUCT(($L$2:$L$978=TRUE)*($X$2:$X$978>X12))+COUNTIFS($L$2:L12,L12,$X$2:X12,X12)-1,1+SUMPRODUCT(($L$2:$L$978=TRUE)*($Y$2:$Y$978>Y12))+COUNTIFS($L$2:L12,L12,$Y$2:Y12,Y12)-1,1+SUMPRODUCT(($L$2:$L$978=TRUE)*($Z$2:$Z$978>Z12))+COUNTIFS($L$2:L12,L12,$Z$2:Z12,Z12)-1,1+SUMPRODUCT(($L$2:$L$978=TRUE)*($AA$2:$AA$978>AA12))+COUNTIFS($L$2:L12,L12,$AA$2:AA12,AA12)-1,1+SUMPRODUCT(($L$2:$L$978=TRUE)*($AB$2:$AB$978>AB12))+COUNTIFS($L$2:L12,L12,$AB$2:AB12,AB12)-1,1+SUMPRODUCT(($L$2:$L$978=TRUE)*($AC$2:$AC$978>AC12))+COUNTIFS($L$2:L12,L12,$AC$2:AC12,AC12)-1,1+SUMPRODUCT(($L$2:$L$978=TRUE)*($AD$2:$AD$978>AD12))+COUNTIFS($L$2:L12,L12,$AD$2:AD12,AD12)-1,1+SUMPRODUCT(($L$2:$L$978=TRUE)*($AE$2:$AE$978>AE12))+COUNTIFS($L$2:L12,L12,$AE$2:AE12,AE12)-1,1+SUMPRODUCT(($L$2:$L$978=TRUE)*($AF$2:$AF$978>AF12))+COUNTIFS($L$2:L12,L12,$AF$2:AF12,AF12)-1,1+SUMPRODUCT(($L$2:$L$978=TRUE)*($AG$2:$AG$978>AG12))+COUNTIFS($L$2:L12,L12,$AG$2:AG12,AG12)-1,1+SUMPRODUCT(($L$2:$L$978=TRUE)*($AH$2:$AH$978>AH12))+COUNTIFS($L$2:L12,L12,$AH$2:AH12,AH12)-1,1+SUMPRODUCT(($L$2:$L$978=TRUE)*($AI$2:$AI$978>AI12))+COUNTIFS($L$2:L12,L12,$AI$2:AI12,AI12)-1,1+SUMPRODUCT(($L$2:$L$978=TRUE)*($AJ$2:$AJ$978>AJ12))+COUNTIFS($L$2:L12,L12,$AJ$2:AJ12,AJ12)-1,1+SUMPRODUCT(($L$2:$L$978=TRUE)*($AK$2:$AK$978>AK12))+COUNTIFS($L$2:L12,L12,$AK$2:AK12,AK12)-1,1+SUMPRODUCT(($L$2:$L$978=TRUE)*($AL$2:$AL$978>AL12))+COUNTIFS($L$2:L12,L12,$AL$2:AL12,AL12)-1,1+SUMPRODUCT(($L$2:$L$978=TRUE)*($AM$2:$AM$978>AM12))+COUNTIFS($L$2:L12,L12,$AM$2:AM12,AM12)-1,1+SUMPRODUCT(($L$2:$L$978=TRUE)*($AN$2:$AN$978>AN12))+COUNTIFS($L$2:L12,L12,$AN$2:AN12,AN12)-1)),"") -> 733 | D12: Riley Adams | E12: =IFERROR(INDEX('Auction Log'!$C$4:$C$806,MATCH(D12,'Auction Log'!$B$4:$B$806,0)),"") ->  | F12: =IFERROR(INDEX('Core-Data'!$C$2:$C$982,MATCH(D12,'Core-Data'!$A$2:$A$982,0)),"") -> C | H12: C | I12: =IF(AND(F12="OF",'Guts-2'!$N$9=0),IF(MAX(Pre!J12:L12)=Pre!J12,"LF",IF(MAX(Pre!J12:L12)=Pre!K12,"CF",IF(MAX(Pre!J12:L12)=Pre!L12,"RF","LF"))),"") ->  | J12: =IFERROR(INDEX('Core-Data'!$U$2:$U$982,MATCH(D12,'Core-Data'!$A$2:$A$982,0)),TRUE) -> TRUE | K12: FALSE | L12: =IF(J12=FALSE,FALSE,IF(AND('Your Roto Auction'!$Q$6="Hide Drafted Players",K12=TRUE),FALSE,CHOOSE($I$1,TRUE,OR(RIGHT('Your Roto Auction'!$Q$5,LEN('Your Roto Auction'!$Q$5)-11)=H12,IF(RIGHT('Your Roto Auction'!$Q$5,LEN('Your Roto Auction'!$Q$5)-11)<>"C",NOT(ISERROR(SEARCH(RIGHT('Your Roto Auction'!$Q$5,LEN('Your Roto Auction'!$Q$5)-11),Pre!$CB12))),AND(NOT(ISERROR(SEARCH(RIGHT('Your Roto Auction'!$Q$5,LEN('Your Roto Auction'!$Q$5)-11),Pre!$CB12))),ISERROR(SEARCH("CF",Pre!$CB12)))),RIGHT('Your Roto Auction'!$Q$5,LEN('Your Roto Auction'!$Q$5)-11)=Pre!BP12),OR(H12="1B",H12="3B",ISNUMBER(SEARCH("1B",Pre!$CB12)),ISNUMBER(SEARCH("3B",Pre!$CB12))),OR(H12="2B",H12="SS",ISNUMBER(SEARCH("2B",Pre!$CB12)),ISNUMBER(SEARCH("SS",Pre!$CB12))),OR(H12="1B",H12="3B",H12="2B",H12="SS",ISNUMBER(SEARCH("1B",Pre!$CB12)),ISNUMBER(SEARCH("3B",Pre!$CB12)),ISNUMBER(SEARCH("2B",Pre!$CB12)),ISNUMBER(SEARCH("SS",Pre!$CB12))),OR(H12="SP",H12="RP",ISNUMBER(SEARCH("SP",Pre!$CB12)),ISNUMBER(SEARCH("RP",Pre!$CB12))),AND(H12<>"RP",H12<>"SP",NOT(ISNUMBER(SEARCH("RP",Pre!$CB12))),NOT(ISNUMBER(SEARCH("SP",Pre!$CB12)))),OR(H12="SP",H12="RP",ISNUMBER(SEARCH("SP",Pre!$CB12)),ISNUMBER(SEARCH("RP",Pre!$CB12)))))) -> TRUE | M12: =IF('Inflation-Tracking'!J15="",-9999,'Inflation-Tracking'!J15) -> -29.63749214 | N12: =IF(LEFT($D12,15)="Unlisted Player",-1001,'All-WERTH'!AQ12) -> -12.37034843 | O12: =IF('Core-Data'!W12="",9999,'Core-Data'!W12) -> 756 | P12: =IF(LEFT($D12,15)="Unlisted Player",-1001,IF('All-WERTH'!S12="",-1000,'All-WERTH'!S12)) -> -1.314306033 | Q12: =IF(LEFT($D12,15)="Unlisted Player",-1001,IF('All-WERTH'!T12="",-1000,'All-WERTH'!T12)) -> -2.174132864 | R12: =IF(LEFT($D12,15)="Unlisted Player",-1001,IF('All-WERTH'!U12="",-1000,'All-WERTH'!U12)) -> -4.124505082 | S12: =IF(LEFT($D12,15)="Unlisted Player",-1001,IF('All-WERTH'!V12="",-1000,'All-WERTH'!V12)) -> -3.607986817 | T12: =IF(LEFT($D12,15)="Unlisted Player",-1001,IF('All-WERTH'!W12="",-1000,'All-WERTH'!W12)) -> -1.149417633 | U12: =IF(LEFT($D12,15)="Unlisted Player",-1001,IF('All-WERTH'!X12="",-1000,'All-WERTH'!X12)) -> -1000 | V12: =IF(LEFT($D12,15)="Unlisted Player",-1001,IF('All-WERTH'!Y12="",-1000,'All-WERTH'!Y12)) -> -1000 | W12: =IF(LEFT($D12,15)="Unlisted Player",-1001,IF('All-WERTH'!Z12="",-1000,'All-WERTH'!Z12)) -> -1000 | X12: =IF(LEFT($D12,15)="Unlisted Player",-1001,IF('All-WERTH'!AA12="",-1000,'All-WERTH'!AA12)) -> -1000 | Y12: =IF(LEFT($D12,15)="Unlisted Player",-1001,IF('All-WERTH'!AB12="",-1000,'All-WERTH'!AB12)) -> -1000 | Z12: =IF(LEFT($D12,15)="Unlisted Player",-1001,IF('All-WERTH'!AC12="",-1000,'All-WERTH'!AC12)) -> -1000 | AA12: =IF(LEFT($D12,15)="Unlisted Player",-1001,IF('All-WERTH'!AD12="",-1000,'All-WERTH'!AD12)) -> -1000 | AB12: =IF(LEFT($D12,15)="Unlisted Player",-1001,IF('All-WERTH'!AE12="",-1000,'All-WERTH'!AE12)) -> -1000 | AC12: =IF(LEFT($D12,15)="Unlisted Player",-1001,IF('All-WERTH'!AF12="",-1000,'All-WERTH'!AF12)) -> -1000 | AD12: =IF(LEFT($D12,15)="Unlisted Player",-1001,IF('All-WERTH'!AG12="",-1000,'All-WERTH'!AG12)) -> -1000 | AE12: =IF(LEFT($D12,15)="Unlisted Player",-1001,IF('All-WERTH'!AH12="",-1000,'All-WERTH'!AH12)) -> -1000 | AF12: =IF(LEFT($D12,15)="Unlisted Player",-1001,IF('All-WERTH'!AI12="",-1000,'All-WERTH'!AI12)) -> -1000 | AG12: =IF(LEFT($D12,15)="Unlisted Player",-1001,IF('All-WERTH'!AJ12="",-1000,'All-WERTH'!AJ12)) -> -1000 | AH12: =IF(LEFT($D12,15)="Unlisted Player",-1001,IF('All-WERTH'!AK12="",-1000,'All-WERTH'!AK12)) -> -1000 | AI12: =IF(LEFT($D12,15)="Unlisted Player",-1001,IF('All-WERTH'!AL12="",-1000,'All-WERTH'!AL12)) -> -1000 | AJ12: =IF(LEFT($D12,15)="Unlisted Player",-1001,IF('All-WERTH'!AM12="",-1000,'All-WERTH'!AM12)) -> -1000 | AK12: =IF(LEFT($D12,15)="Unlisted Player",-1001,IF('All-WERTH'!AN12="",-1000,'All-WERTH'!AN12)) -> -1000 | AL12: =IF(LEFT($D12,15)="Unlisted Player",-1001,IF('All-WERTH'!AO12="",-1000,'All-WERTH'!AO12)) -> -1000 | AM12: =IF(LEFT($D12,15)="Unlisted Player",-1001,IF('All-WERTH'!AP12="",-1000,'All-WERTH'!AP12)) -> -1000 | AN12: =IF(LEFT($D12,15)="Unlisted Player",-1001,'All-WERTH'!AT12) -> -7.958632607
A13: Matt Olson | B13: =IFERROR(INDEX($A$1:$A$977,SMALL(IF($A$1:$A$977<>"",ROW($A$1:$A$977)),ROW(A12))),"") -> Matt Olson | C13: =IFERROR(IF(L13=FALSE,"",CHOOSE(MATCH(RIGHT('Your Roto Auction'!$Q$4,LEN('Your Roto Auction'!$Q$4)-8),$M$1:$AN$1,0),1+SUMPRODUCT(($L$2:$L$978=TRUE)*($M$2:$M$978>M13))+COUNTIFS($L$2:L13,L13,$M$2:M13,M13)-1,1+SUMPRODUCT(($L$2:$L$978=TRUE)*($N$2:$N$978>N13))+COUNTIFS($L$2:L13,L13,$N$2:N13,N13)-1,1+SUMPRODUCT(($L$2:$L$978=TRUE)*($O$2:$O$978<O13))+COUNTIFS($L$2:L13,L13,$O$2:O13,O13)-1,1+SUMPRODUCT(($L$2:$L$978=TRUE)*($P$2:$P$978>P13))+COUNTIFS($L$2:L13,L13,$P$2:P13,P13)-1,1+SUMPRODUCT(($L$2:$L$978=TRUE)*($Q$2:$Q$978>Q13))+COUNTIFS($L$2:L13,L13,$Q$2:Q13,Q13)-1,1+SUMPRODUCT(($L$2:$L$978=TRUE)*($R$2:$R$978>R13))+COUNTIFS($L$2:L13,L13,$R$2:R13,R13)-1,1+SUMPRODUCT(($L$2:$L$978=TRUE)*($S$2:$S$978>S13))+COUNTIFS($L$2:L13,L13,$S$2:S13,S13)-1,1+SUMPRODUCT(($L$2:$L$978=TRUE)*($T$2:$T$978>T13))+COUNTIFS($L$2:L13,L13,$T$2:T13,T13)-1,1+SUMPRODUCT(($L$2:$L$978=TRUE)*($U$2:$U$978>U13))+COUNTIFS($L$2:L13,L13,$U$2:U13,U13)-1,1+SUMPRODUCT(($L$2:$L$978=TRUE)*($V$2:$V$978>V13))+COUNTIFS($L$2:L13,L13,$V$2:V13,V13)-1,1+SUMPRODUCT(($L$2:$L$978=TRUE)*($W$2:$W$978>W13))+COUNTIFS($L$2:L13,L13,$W$2:W13,W13)-1,1+SUMPRODUCT(($L$2:$L$978=TRUE)*($X$2:$X$978>X13))+COUNTIFS($L$2:L13,L13,$X$2:X13,X13)-1,1+SUMPRODUCT(($L$2:$L$978=TRUE)*($Y$2:$Y$978>Y13))+COUNTIFS($L$2:L13,L13,$Y$2:Y13,Y13)-1,1+SUMPRODUCT(($L$2:$L$978=TRUE)*($Z$2:$Z$978>Z13))+COUNTIFS($L$2:L13,L13,$Z$2:Z13,Z13)-1,1+SUMPRODUCT(($L$2:$L$978=TRUE)*($AA$2:$AA$978>AA13))+COUNTIFS($L$2:L13,L13,$AA$2:AA13,AA13)-1,1+SUMPRODUCT(($L$2:$L$978=TRUE)*($AB$2:$AB$978>AB13))+COUNTIFS($L$2:L13,L13,$AB$2:AB13,AB13)-1,1+SUMPRODUCT(($L$2:$L$978=TRUE)*($AC$2:$AC$978>AC13))+COUNTIFS($L$2:L13,L13,$AC$2:AC13,AC13)-1,1+SUMPRODUCT(($L$2:$L$978=TRUE)*($AD$2:$AD$978>AD13))+COUNTIFS($L$2:L13,L13,$AD$2:AD13,AD13)-1,1+SUMPRODUCT(($L$2:$L$978=TRUE)*($AE$2:$AE$978>AE13))+COUNTIFS($L$2:L13,L13,$AE$2:AE13,AE13)-1,1+SUMPRODUCT(($L$2:$L$978=TRUE)*($AF$2:$AF$978>AF13))+COUNTIFS($L$2:L13,L13,$AF$2:AF13,AF13)-1,1+SUMPRODUCT(($L$2:$L$978=TRUE)*($AG$2:$AG$978>AG13))+COUNTIFS($L$2:L13,L13,$AG$2:AG13,AG13)-1,1+SUMPRODUCT(($L$2:$L$978=TRUE)*($AH$2:$AH$978>AH13))+COUNTIFS($L$2:L13,L13,$AH$2:AH13,AH13)-1,1+SUMPRODUCT(($L$2:$L$978=TRUE)*($AI$2:$AI$978>AI13))+COUNTIFS($L$2:L13,L13,$AI$2:AI13,AI13)-1,1+SUMPRODUCT(($L$2:$L$978=TRUE)*($AJ$2:$AJ$978>AJ13))+COUNTIFS($L$2:L13,L13,$AJ$2:AJ13,AJ13)-1,1+SUMPRODUCT(($L$2:$L$978=TRUE)*($AK$2:$AK$978>AK13))+COUNTIFS($L$2:L13,L13,$AK$2:AK13,AK13)-1,1+SUMPRODUCT(($L$2:$L$978=TRUE)*($AL$2:$AL$978>AL13))+COUNTIFS($L$2:L13,L13,$AL$2:AL13,AL13)-1,1+SUMPRODUCT(($L$2:$L$978=TRUE)*($AM$2:$AM$978>AM13))+COUNTIFS($L$2:L13,L13,$AM$2:AM13,AM13)-1,1+SUMPRODUCT(($L$2:$L$978=TRUE)*($AN$2:$AN$978>AN13))+COUNTIFS($L$2:L13,L13,$AN$2:AN13,AN13)-1)),"") -> 575 | D13: Jo Adell | E13: =IFERROR(INDEX('Auction Log'!$C$4:$C$806,MATCH(D13,'Auction Log'!$B$4:$B$806,0)),"") ->  | F13: =IFERROR(INDEX('Core-Data'!$C$2:$C$982,MATCH(D13,'Core-Data'!$A$2:$A$982,0)),"") -> OF | H13: OF | I13: =IF(AND(F13="OF",'Guts-2'!$N$9=0),IF(MAX(Pre!J13:L13)=Pre!J13,"LF",IF(MAX(Pre!J13:L13)=Pre!K13,"CF",IF(MAX(Pre!J13:L13)=Pre!L13,"RF","LF"))),"") ->  | J13: =IFERROR(INDEX('Core-Data'!$U$2:$U$982,MATCH(D13,'Core-Data'!$A$2:$A$982,0)),TRUE) -> TRUE | K13: FALSE | L13: =IF(J13=FALSE,FALSE,IF(AND('Your Roto Auction'!$Q$6="Hide Drafted Players",K13=TRUE),FALSE,CHOOSE($I$1,TRUE,OR(RIGHT('Your Roto Auction'!$Q$5,LEN('Your Roto Auction'!$Q$5)-11)=H13,IF(RIGHT('Your Roto Auction'!$Q$5,LEN('Your Roto Auction'!$Q$5)-11)<>"C",NOT(ISERROR(SEARCH(RIGHT('Your Roto Auction'!$Q$5,LEN('Your Roto Auction'!$Q$5)-11),Pre!$CB13))),AND(NOT(ISERROR(SEARCH(RIGHT('Your Roto Auction'!$Q$5,LEN('Your Roto Auction'!$Q$5)-11),Pre!$CB13))),ISERROR(SEARCH("CF",Pre!$CB13)))),RIGHT('Your Roto Auction'!$Q$5,LEN('Your Roto Auction'!$Q$5)-11)=Pre!BP13),OR(H13="1B",H13="3B",ISNUMBER(SEARCH("1B",Pre!$CB13)),ISNUMBER(SEARCH("3B",Pre!$CB13))),OR(H13="2B",H13="SS",ISNUMBER(SEARCH("2B",Pre!$CB13)),ISNUMBER(SEARCH("SS",Pre!$CB13))),OR(H13="1B",H13="3B",H13="2B",H13="SS",ISNUMBER(SEARCH("1B",Pre!$CB13)),ISNUMBER(SEARCH("3B",Pre!$CB13)),ISNUMBER(SEARCH("2B",Pre!$CB13)),ISNUMBER(SEARCH("SS",Pre!$CB13))),OR(H13="SP",H13="RP",ISNUMBER(SEARCH("SP",Pre!$CB13)),ISNUMBER(SEARCH("RP",Pre!$CB13))),AND(H13<>"RP",H13<>"SP",NOT(ISNUMBER(SEARCH("RP",Pre!$CB13))),NOT(ISNUMBER(SEARCH("SP",Pre!$CB13)))),OR(H13="SP",H13="RP",ISNUMBER(SEARCH("SP",Pre!$CB13)),ISNUMBER(SEARCH("RP",Pre!$CB13)))))) -> TRUE | M13: =IF('Inflation-Tracking'!J16="",-9999,'Inflation-Tracking'!J16) -> -14.26039232 | N13: =IF(LEFT($D13,15)="Unlisted Player",-1001,'All-WERTH'!AQ13) -> -7.223112772 | O13: =IF('Core-Data'!W13="",9999,'Core-Data'!W13) -> 665 | P13: =IF(LEFT($D13,15)="Unlisted Player",-1001,IF('All-WERTH'!S13="",-1000,'All-WERTH'!S13)) -> -1.69926371 | Q13: =IF(LEFT($D13,15)="Unlisted Player",-1001,IF('All-WERTH'!T13="",-1000,'All-WERTH'!T13)) -> -0.9162580882 | R13: =IF(LEFT($D13,15)="Unlisted Player",-1001,IF('All-WERTH'!U13="",-1000,'All-WERTH'!U13)) -> -2.145816852 | S13: =IF(LEFT($D13,15)="Unlisted Player",-1001,IF('All-WERTH'!V13="",-1000,'All-WERTH'!V13)) -> -1.836761982 | T13: =IF(LEFT($D13,15)="Unlisted Player",-1001,IF('All-WERTH'!W13="",-1000,'All-WERTH'!W13)) -> -0.6250121392 | U13: =IF(LEFT($D13,15)="Unlisted Player",-1001,IF('All-WERTH'!X13="",-1000,'All-WERTH'!X13)) -> -1000 | V13: =IF(LEFT($D13,15)="Unlisted Player",-1001,IF('All-WERTH'!Y13="",-1000,'All-WERTH'!Y13)) -> -1000 | W13: =IF(LEFT($D13,15)="Unlisted Player",-1001,IF('All-WERTH'!Z13="",-1000,'All-WERTH'!Z13)) -> -1000 | X13: =IF(LEFT($D13,15)="Unlisted Player",-1001,IF('All-WERTH'!AA13="",-1000,'All-WERTH'!AA13)) -> -1000 | Y13: =IF(LEFT($D13,15)="Unlisted Player",-1001,IF('All-WERTH'!AB13="",-1000,'All-WERTH'!AB13)) -> -1000 | Z13: =IF(LEFT($D13,15)="Unlisted Player",-1001,IF('All-WERTH'!AC13="",-1000,'All-WERTH'!AC13)) -> -1000 | AA13: =IF(LEFT($D13,15)="Unlisted Player",-1001,IF('All-WERTH'!AD13="",-1000,'All-WERTH'!AD13)) -> -1000 | AB13: =IF(LEFT($D13,15)="Unlisted Player",-1001,IF('All-WERTH'!AE13="",-1000,'All-WERTH'!AE13)) -> -1000 | AC13: =IF(LEFT($D13,15)="Unlisted Player",-1001,IF('All-WERTH'!AF13="",-1000,'All-WERTH'!AF13)) -> -1000 | AD13: =IF(LEFT($D13,15)="Unlisted Player",-1001,IF('All-WERTH'!AG13="",-1000,'All-WERTH'!AG13)) -> -1000 | AE13: =IF(LEFT($D13,15)="Unlisted Player",-1001,IF('All-WERTH'!AH13="",-1000,'All-WERTH'!AH13)) -> -1000 | AF13: =IF(LEFT($D13,15)="Unlisted Player",-1001,IF('All-WERTH'!AI13="",-1000,'All-WERTH'!AI13)) -> -1000 | AG13: =IF(LEFT($D13,15)="Unlisted Player",-1001,IF('All-WERTH'!AJ13="",-1000,'All-WERTH'!AJ13)) -> -1000 | AH13: =IF(LEFT($D13,15)="Unlisted Player",-1001,IF('All-WERTH'!AK13="",-1000,'All-WERTH'!AK13)) -> -1000 | AI13: =IF(LEFT($D13,15)="Unlisted Player",-1001,IF('All-WERTH'!AL13="",-1000,'All-WERTH'!AL13)) -> -1000 | AJ13: =IF(LEFT($D13,15)="Unlisted Player",-1001,IF('All-WERTH'!AM13="",-1000,'All-WERTH'!AM13)) -> -1000 | AK13: =IF(LEFT($D13,15)="Unlisted Player",-1001,IF('All-WERTH'!AN13="",-1000,'All-WERTH'!AN13)) -> -1000 | AL13: =IF(LEFT($D13,15)="Unlisted Player",-1001,IF('All-WERTH'!AO13="",-1000,'All-WERTH'!AO13)) -> -1000 | AM13: =IF(LEFT($D13,15)="Unlisted Player",-1001,IF('All-WERTH'!AP13="",-1000,'All-WERTH'!AP13)) -> -1000 | AN13: =IF(LEFT($D13,15)="Unlisted Player",-1001,'All-WERTH'!AT13) -> -3.829380123
A14: Aaron Judge | B14: =IFERROR(INDEX($A$1:$A$977,SMALL(IF($A$1:$A$977<>"",ROW($A$1:$A$977)),ROW(A13))),"") -> Aaron Judge | C14: =IFERROR(IF(L14=FALSE,"",CHOOSE(MATCH(RIGHT('Your Roto Auction'!$Q$4,LEN('Your Roto Auction'!$Q$4)-8),$M$1:$AN$1,0),1+SUMPRODUCT(($L$2:$L$978=TRUE)*($M$2:$M$978>M14))+COUNTIFS($L$2:L14,L14,$M$2:M14,M14)-1,1+SUMPRODUCT(($L$2:$L$978=TRUE)*($N$2:$N$978>N14))+COUNTIFS($L$2:L14,L14,$N$2:N14,N14)-1,1+SUMPRODUCT(($L$2:$L$978=TRUE)*($O$2:$O$978<O14))+COUNTIFS($L$2:L14,L14,$O$2:O14,O14)-1,1+SUMPRODUCT(($L$2:$L$978=TRUE)*($P$2:$P$978>P14))+COUNTIFS($L$2:L14,L14,$P$2:P14,P14)-1,1+SUMPRODUCT(($L$2:$L$978=TRUE)*($Q$2:$Q$978>Q14))+COUNTIFS($L$2:L14,L14,$Q$2:Q14,Q14)-1,1+SUMPRODUCT(($L$2:$L$978=TRUE)*($R$2:$R$978>R14))+COUNTIFS($L$2:L14,L14,$R$2:R14,R14)-1,1+SUMPRODUCT(($L$2:$L$978=TRUE)*($S$2:$S$978>S14))+COUNTIFS($L$2:L14,L14,$S$2:S14,S14)-1,1+SUMPRODUCT(($L$2:$L$978=TRUE)*($T$2:$T$978>T14))+COUNTIFS($L$2:L14,L14,$T$2:T14,T14)-1,1+SUMPRODUCT(($L$2:$L$978=TRUE)*($U$2:$U$978>U14))+COUNTIFS($L$2:L14,L14,$U$2:U14,U14)-1,1+SUMPRODUCT(($L$2:$L$978=TRUE)*($V$2:$V$978>V14))+COUNTIFS($L$2:L14,L14,$V$2:V14,V14)-1,1+SUMPRODUCT(($L$2:$L$978=TRUE)*($W$2:$W$978>W14))+COUNTIFS($L$2:L14,L14,$W$2:W14,W14)-1,1+SUMPRODUCT(($L$2:$L$978=TRUE)*($X$2:$X$978>X14))+COUNTIFS($L$2:L14,L14,$X$2:X14,X14)-1,1+SUMPRODUCT(($L$2:$L$978=TRUE)*($Y$2:$Y$978>Y14))+COUNTIFS($L$2:L14,L14,$Y$2:Y14,Y14)-1,1+SUMPRODUCT(($L$2:$L$978=TRUE)*($Z$2:$Z$978>Z14))+COUNTIFS($L$2:L14,L14,$Z$2:Z14,Z14)-1,1+SUMPRODUCT(($L$2:$L$978=TRUE)*($AA$2:$AA$978>AA14))+COUNTIFS($L$2:L14,L14,$AA$2:AA14,AA14)-1,1+SUMPRODUCT(($L$2:$L$978=TRUE)*($AB$2:$AB$978>AB14))+COUNTIFS($L$2:L14,L14,$AB$2:AB14,AB14)-1,1+SUMPRODUCT(($L$2:$L$978=TRUE)*($AC$2:$AC$978>AC14))+COUNTIFS($L$2:L14,L14,$AC$2:AC14,AC14)-1,1+SUMPRODUCT(($L$2:$L$978=TRUE)*($AD$2:$AD$978>AD14))+COUNTIFS($L$2:L14,L14,$AD$2:AD14,AD14)-1,1+SUMPRODUCT(($L$2:$L$978=TRUE)*($AE$2:$AE$978>AE14))+COUNTIFS($L$2:L14,L14,$AE$2:AE14,AE14)-1,1+SUMPRODUCT(($L$2:$L$978=TRUE)*($AF$2:$AF$978>AF14))+COUNTIFS($L$2:L14,L14,$AF$2:AF14,AF14)-1,1+SUMPRODUCT(($L$2:$L$978=TRUE)*($AG$2:$AG$978>AG14))+COUNTIFS($L$2:L14,L14,$AG$2:AG14,AG14)-1,1+SUMPRODUCT(($L$2:$L$978=TRUE)*($AH$2:$AH$978>AH14))+COUNTIFS($L$2:L14,L14,$AH$2:AH14,AH14)-1,1+SUMPRODUCT(($L$2:$L$978=TRUE)*($AI$2:$AI$978>AI14))+COUNTIFS($L$2:L14,L14,$AI$2:AI14,AI14)-1,1+SUMPRODUCT(($L$2:$L$978=TRUE)*($AJ$2:$AJ$978>AJ14))+COUNTIFS($L$2:L14,L14,$AJ$2:AJ14,AJ14)-1,1+SUMPRODUCT(($L$2:$L$978=TRUE)*($AK$2:$AK$978>AK14))+COUNTIFS($L$2:L14,L14,$AK$2:AK14,AK14)-1,1+SUMPRODUCT(($L$2:$L$978=TRUE)*($AL$2:$AL$978>AL14))+COUNTIFS($L$2:L14,L14,$AL$2:AL14,AL14)-1,1+SUMPRODUCT(($L$2:$L$978=TRUE)*($AM$2:$AM$978>AM14))+COUNTIFS($L$2:L14,L14,$AM$2:AM14,AM14)-1,1+SUMPRODUCT(($L$2:$L$978=TRUE)*($AN$2:$AN$978>AN14))+COUNTIFS($L$2:L14,L14,$AN$2:AN14,AN14)-1)),"") -> 22 | D14: Ozzie Albies | E14: =IFERROR(INDEX('Auction Log'!$C$4:$C$806,MATCH(D14,'Auction Log'!$B$4:$B$806,0)),"") ->  | F14: =IFERROR(INDEX('Core-Data'!$C$2:$C$982,MATCH(D14,'Core-Data'!$A$2:$A$982,0)),"") -> 2B | H14: 2B | I14: =IF(AND(F14="OF",'Guts-2'!$N$9=0),IF(MAX(Pre!J14:L14)=Pre!J14,"LF",IF(MAX(Pre!J14:L14)=Pre!K14,"CF",IF(MAX(Pre!J14:L14)=Pre!L14,"RF","LF"))),"") ->  | J14: =IFERROR(INDEX('Core-Data'!$U$2:$U$982,MATCH(D14,'Core-Data'!$A$2:$A$982,0)),TRUE) -> TRUE | K14: FALSE | L14: =IF(J14=FALSE,FALSE,IF(AND('Your Roto Auction'!$Q$6="Hide Drafted Players",K14=TRUE),FALSE,CHOOSE($I$1,TRUE,OR(RIGHT('Your Roto Auction'!$Q$5,LEN('Your Roto Auction'!$Q$5)-11)=H14,IF(RIGHT('Your Roto Auction'!$Q$5,LEN('Your Roto Auction'!$Q$5)-11)<>"C",NOT(ISERROR(SEARCH(RIGHT('Your Roto Auction'!$Q$5,LEN('Your Roto Auction'!$Q$5)-11),Pre!$CB14))),AND(NOT(ISERROR(SEARCH(RIGHT('Your Roto Auction'!$Q$5,LEN('Your Roto Auction'!$Q$5)-11),Pre!$CB14))),ISERROR(SEARCH("CF",Pre!$CB14)))),RIGHT('Your Roto Auction'!$Q$5,LEN('Your Roto Auction'!$Q$5)-11)=Pre!BP14),OR(H14="1B",H14="3B",ISNUMBER(SEARCH("1B",Pre!$CB14)),ISNUMBER(SEARCH("3B",Pre!$CB14))),OR(H14="2B",H14="SS",ISNUMBER(SEARCH("2B",Pre!$CB14)),ISNUMBER(SEARCH("SS",Pre!$CB14))),OR(H14="1B",H14="3B",H14="2B",H14="SS",ISNUMBER(SEARCH("1B",Pre!$CB14)),ISNUMBER(SEARCH("3B",Pre!$CB14)),ISNUMBER(SEARCH("2B",Pre!$CB14)),ISNUMBER(SEARCH("SS",Pre!$CB14))),OR(H14="SP",H14="RP",ISNUMBER(SEARCH("SP",Pre!$CB14)),ISNUMBER(SEARCH("RP",Pre!$CB14))),AND(H14<>"RP",H14<>"SP",NOT(ISNUMBER(SEARCH("RP",Pre!$CB14))),NOT(ISNUMBER(SEARCH("SP",Pre!$CB14)))),OR(H14="SP",H14="RP",ISNUMBER(SEARCH("SP",Pre!$CB14)),ISNUMBER(SEARCH("RP",Pre!$CB14)))))) -> TRUE | M14: =IF('Inflation-Tracking'!J17="",-9999,'Inflation-Tracking'!J17) -> 29.36664401 | N14: =IF(LEFT($D14,15)="Unlisted Player",-1001,'All-WERTH'!AQ14) -> 4.54741469 | O14: =IF('Core-Data'!W14="",9999,'Core-Data'!W14) -> 21 | P14: =IF(LEFT($D14,15)="Unlisted Player",-1001,IF('All-WERTH'!S14="",-1000,'All-WERTH'!S14)) -> 0.8837851692 | Q14: =IF(LEFT($D14,15)="Unlisted Player",-1001,IF('All-WERTH'!T14="",-1000,'All-WERTH'!T14)) -> 0.7586309042 | R14: =IF(LEFT($D14,15)="Unlisted Player",-1001,IF('All-WERTH'!U14="",-1000,'All-WERTH'!U14)) -> 1.453780425 | S14: =IF(LEFT($D14,15)="Unlisted Player",-1001,IF('All-WERTH'!V14="",-1000,'All-WERTH'!V14)) -> 1.250574726 | T14: =IF(LEFT($D14,15)="Unlisted Player",-1001,IF('All-WERTH'!W14="",-1000,'All-WERTH'!W14)) -> 0.2006434653 | U14: =IF(LEFT($D14,15)="Unlisted Player",-1001,IF('All-WERTH'!X14="",-1000,'All-WERTH'!X14)) -> -1000 | V14: =IF(LEFT($D14,15)="Unlisted Player",-1001,IF('All-WERTH'!Y14="",-1000,'All-WERTH'!Y14)) -> -1000 | W14: =IF(LEFT($D14,15)="Unlisted Player",-1001,IF('All-WERTH'!Z14="",-1000,'All-WERTH'!Z14)) -> -1000 | X14: =IF(LEFT($D14,15)="Unlisted Player",-1001,IF('All-WERTH'!AA14="",-1000,'All-WERTH'!AA14)) -> -1000 | Y14: =IF(LEFT($D14,15)="Unlisted Player",-1001,IF('All-WERTH'!AB14="",-1000,'All-WERTH'!AB14)) -> -1000 | Z14: =IF(LEFT($D14,15)="Unlisted Player",-1001,IF('All-WERTH'!AC14="",-1000,'All-WERTH'!AC14)) -> -1000 | AA14: =IF(LEFT($D14,15)="Unlisted Player",-1001,IF('All-WERTH'!AD14="",-1000,'All-WERTH'!AD14)) -> -1000 | AB14: =IF(LEFT($D14,15)="Unlisted Player",-1001,IF('All-WERTH'!AE14="",-1000,'All-WERTH'!AE14)) -> -1000 | AC14: =IF(LEFT($D14,15)="Unlisted Player",-1001,IF('All-WERTH'!AF14="",-1000,'All-WERTH'!AF14)) -> -1000 | AD14: =IF(LEFT($D14,15)="Unlisted Player",-1001,IF('All-WERTH'!AG14="",-1000,'All-WERTH'!AG14)) -> -1000 | AE14: =IF(LEFT($D14,15)="Unlisted Player",-1001,IF('All-WERTH'!AH14="",-1000,'All-WERTH'!AH14)) -> -1000 | AF14: =IF(LEFT($D14,15)="Unlisted Player",-1001,IF('All-WERTH'!AI14="",-1000,'All-WERTH'!AI14)) -> -1000 | AG14: =IF(LEFT($D14,15)="Unlisted Player",-1001,IF('All-WERTH'!AJ14="",-1000,'All-WERTH'!AJ14)) -> -1000 | AH14: =IF(LEFT($D14,15)="Unlisted Player",-1001,IF('All-WERTH'!AK14="",-1000,'All-WERTH'!AK14)) -> -1000 | AI14: =IF(LEFT($D14,15)="Unlisted Player",-1001,IF('All-WERTH'!AL14="",-1000,'All-WERTH'!AL14)) -> -1000 | AJ14: =IF(LEFT($D14,15)="Unlisted Player",-1001,IF('All-WERTH'!AM14="",-1000,'All-WERTH'!AM14)) -> -1000 | AK14: =IF(LEFT($D14,15)="Unlisted Player",-1001,IF('All-WERTH'!AN14="",-1000,'All-WERTH'!AN14)) -> -1000 | AL14: =IF(LEFT($D14,15)="Unlisted Player",-1001,IF('All-WERTH'!AO14="",-1000,'All-WERTH'!AO14)) -> -1000 | AM14: =IF(LEFT($D14,15)="Unlisted Player",-1001,IF('All-WERTH'!AP14="",-1000,'All-WERTH'!AP14)) -> -1000 | AN14: =IF(LEFT($D14,15)="Unlisted Player",-1001,'All-WERTH'!AT14) -> 7.885901056
A15: Rafael Devers | B15: =IFERROR(INDEX($A$1:$A$977,SMALL(IF($A$1:$A$977<>"",ROW($A$1:$A$977)),ROW(A14))),"") -> Rafael Devers | C15: =IFERROR(IF(L15=FALSE,"",CHOOSE(MATCH(RIGHT('Your Roto Auction'!$Q$4,LEN('Your Roto Auction'!$Q$4)-8),$M$1:$AN$1,0),1+SUMPRODUCT(($L$2:$L$978=TRUE)*($M$2:$M$978>M15))+COUNTIFS($L$2:L15,L15,$M$2:M15,M15)-1,1+SUMPRODUCT(($L$2:$L$978=TRUE)*($N$2:$N$978>N15))+COUNTIFS($L$2:L15,L15,$N$2:N15,N15)-1,1+SUMPRODUCT(($L$2:$L$978=TRUE)*($O$2:$O$978<O15))+COUNTIFS($L$2:L15,L15,$O$2:O15,O15)-1,1+SUMPRODUCT(($L$2:$L$978=TRUE)*($P$2:$P$978>P15))+COUNTIFS($L$2:L15,L15,$P$2:P15,P15)-1,1+SUMPRODUCT(($L$2:$L$978=TRUE)*($Q$2:$Q$978>Q15))+COUNTIFS($L$2:L15,L15,$Q$2:Q15,Q15)-1,1+SUMPRODUCT(($L$2:$L$978=TRUE)*($R$2:$R$978>R15))+COUNTIFS($L$2:L15,L15,$R$2:R15,R15)-1,1+SUMPRODUCT(($L$2:$L$978=TRUE)*($S$2:$S$978>S15))+COUNTIFS($L$2:L15,L15,$S$2:S15,S15)-1,1+SUMPRODUCT(($L$2:$L$978=TRUE)*($T$2:$T$978>T15))+COUNTIFS($L$2:L15,L15,$T$2:T15,T15)-1,1+SUMPRODUCT(($L$2:$L$978=TRUE)*($U$2:$U$978>U15))+COUNTIFS($L$2:L15,L15,$U$2:U15,U15)-1,1+SUMPRODUCT(($L$2:$L$978=TRUE)*($V$2:$V$978>V15))+COUNTIFS($L$2:L15,L15,$V$2:V15,V15)-1,1+SUMPRODUCT(($L$2:$L$978=TRUE)*($W$2:$W$978>W15))+COUNTIFS($L$2:L15,L15,$W$2:W15,W15)-1,1+SUMPRODUCT(($L$2:$L$978=TRUE)*($X$2:$X$978>X15))+COUNTIFS($L$2:L15,L15,$X$2:X15,X15)-1,1+SUMPRODUCT(($L$2:$L$978=TRUE)*($Y$2:$Y$978>Y15))+COUNTIFS($L$2:L15,L15,$Y$2:Y15,Y15)-1,1+SUMPRODUCT(($L$2:$L$978=TRUE)*($Z$2:$Z$978>Z15))+COUNTIFS($L$2:L15,L15,$Z$2:Z15,Z15)-1,1+SUMPRODUCT(($L$2:$L$978=TRUE)*($AA$2:$AA$978>AA15))+COUNTIFS($L$2:L15,L15,$AA$2:AA15,AA15)-1,1+SUMPRODUCT(($L$2:$L$978=TRUE)*($AB$2:$AB$978>AB15))+COUNTIFS($L$2:L15,L15,$AB$2:AB15,AB15)-1,1+SUMPRODUCT(($L$2:$L$978=TRUE)*($AC$2:$AC$978>AC15))+COUNTIFS($L$2:L15,L15,$AC$2:AC15,AC15)-1,1+SUMPRODUCT(($L$2:$L$978=TRUE)*($AD$2:$AD$978>AD15))+COUNTIFS($L$2:L15,L15,$AD$2:AD15,AD15)-1,1+SUMPRODUCT(($L$2:$L$978=TRUE)*($AE$2:$AE$978>AE15))+COUNTIFS($L$2:L15,L15,$AE$2:AE15,AE15)-1,1+SUMPRODUCT(($L$2:$L$978=TRUE)*($AF$2:$AF$978>AF15))+COUNTIFS($L$2:L15,L15,$AF$2:AF15,AF15)-1,1+SUMPRODUCT(($L$2:$L$978=TRUE)*($AG$2:$AG$978>AG15))+COUNTIFS($L$2:L15,L15,$AG$2:AG15,AG15)-1,1+SUMPRODUCT(($L$2:$L$978=TRUE)*($AH$2:$AH$978>AH15))+COUNTIFS($L$2:L15,L15,$AH$2:AH15,AH15)-1,1+SUMPRODUCT(($L$2:$L$978=TRUE)*($AI$2:$AI$978>AI15))+COUNTIFS($L$2:L15,L15,$AI$2:AI15,AI15)-1,1+SUMPRODUCT(($L$2:$L$978=TRUE)*($AJ$2:$AJ$978>AJ15))+COUNTIFS($L$2:L15,L15,$AJ$2:AJ15,AJ15)-1,1+SUMPRODUCT(($L$2:$L$978=TRUE)*($AK$2:$AK$978>AK15))+COUNTIFS($L$2:L15,L15,$AK$2:AK15,AK15)-1,1+SUMPRODUCT(($L$2:$L$978=TRUE)*($AL$2:$AL$978>AL15))+COUNTIFS($L$2:L15,L15,$AL$2:AL15,AL15)-1,1+SUMPRODUCT(($L$2:$L$978=TRUE)*($AM$2:$AM$978>AM15))+COUNTIFS($L$2:L15,L15,$AM$2:AM15,AM15)-1,1+SUMPRODUCT(($L$2:$L$978=TRUE)*($AN$2:$AN$978>AN15))+COUNTIFS($L$2:L15,L15,$AN$2:AN15,AN15)-1)),"") -> 479 | D15: Tyler Alexander | E15: =IFERROR(INDEX('Auction Log'!$C$4:$C$806,MATCH(D15,'Auction Log'!$B$4:$B$806,0)),"") ->  | F15: =IFERROR(INDEX('Core-Data'!$C$2:$C$982,MATCH(D15,'Core-Data'!$A$2:$A$982,0)),"") -> RP | H15: RP | I15: =IF(AND(F15="OF",'Guts-2'!$N$9=0),IF(MAX(Pre!J15:L15)=Pre!J15,"LF",IF(MAX(Pre!J15:L15)=Pre!K15,"CF",IF(MAX(Pre!J15:L15)=Pre!L15,"RF","LF"))),"") ->  | J15: =IFERROR(INDEX('Core-Data'!$U$2:$U$982,MATCH(D15,'Core-Data'!$A$2:$A$982,0)),TRUE) -> TRUE | K15: FALSE | L15: =IF(J15=FALSE,FALSE,IF(AND('Your Roto Auction'!$Q$6="Hide Drafted Players",K15=TRUE),FALSE,CHOOSE($I$1,TRUE,OR(RIGHT('Your Roto Auction'!$Q$5,LEN('Your Roto Auction'!$Q$5)-11)=H15,IF(RIGHT('Your Roto Auction'!$Q$5,LEN('Your Roto Auction'!$Q$5)-11)<>"C",NOT(ISERROR(SEARCH(RIGHT('Your Roto Auction'!$Q$5,LEN('Your Roto Auction'!$Q$5)-11),Pre!$CB15))),AND(NOT(ISERROR(SEARCH(RIGHT('Your Roto Auction'!$Q$5,LEN('Your Roto Auction'!$Q$5)-11),Pre!$CB15))),ISERROR(SEARCH("CF",Pre!$CB15)))),RIGHT('Your Roto Auction'!$Q$5,LEN('Your Roto Auction'!$Q$5)-11)=Pre!BP15),OR(H15="1B",H15="3B",ISNUMBER(SEARCH("1B",Pre!$CB15)),ISNUMBER(SEARCH("3B",Pre!$CB15))),OR(H15="2B",H15="SS",ISNUMBER(SEARCH("2B",Pre!$CB15)),ISNUMBER(SEARCH("SS",Pre!$CB15))),OR(H15="1B",H15="3B",H15="2B",H15="SS",ISNUMBER(SEARCH("1B",Pre!$CB15)),ISNUMBER(SEARCH("3B",Pre!$CB15)),ISNUMBER(SEARCH("2B",Pre!$CB15)),ISNUMBER(SEARCH("SS",Pre!$CB15))),OR(H15="SP",H15="RP",ISNUMBER(SEARCH("SP",Pre!$CB15)),ISNUMBER(SEARCH("RP",Pre!$CB15))),AND(H15<>"RP",H15<>"SP",NOT(ISNUMBER(SEARCH("RP",Pre!$CB15))),NOT(ISNUMBER(SEARCH("SP",Pre!$CB15)))),OR(H15="SP",H15="RP",ISNUMBER(SEARCH("SP",Pre!$CB15)),ISNUMBER(SEARCH("RP",Pre!$CB15)))))) -> TRUE | M15: =IF('Inflation-Tracking'!J18="",-9999,'Inflation-Tracking'!J18) -> -8.7127189 | N15: =IF(LEFT($D15,15)="Unlisted Player",-1001,'All-WERTH'!AQ15) -> -6.219783514 | O15: =IF('Core-Data'!W15="",9999,'Core-Data'!W15) -> 642 | P15: =IF(LEFT($D15,15)="Unlisted Player",-1001,IF('All-WERTH'!S15="",-1000,'All-WERTH'!S15)) -> -1000 | Q15: =IF(LEFT($D15,15)="Unlisted Player",-1001,IF('All-WERTH'!T15="",-1000,'All-WERTH'!T15)) -> -1000 | R15: =IF(LEFT($D15,15)="Unlisted Player",-1001,IF('All-WERTH'!U15="",-1000,'All-WERTH'!U15)) -> -1000 | S15: =IF(LEFT($D15,15)="Unlisted Player",-1001,IF('All-WERTH'!V15="",-1000,'All-WERTH'!V15)) -> -1000 | T15: =IF(LEFT($D15,15)="Unlisted Player",-1001,IF('All-WERTH'!W15="",-1000,'All-WERTH'!W15)) -> -1000 | U15: =IF(LEFT($D15,15)="Unlisted Player",-1001,IF('All-WERTH'!X15="",-1000,'All-WERTH'!X15)) -> -1000 | V15: =IF(LEFT($D15,15)="Unlisted Player",-1001,IF('All-WERTH'!Y15="",-1000,'All-WERTH'!Y15)) -> -1000 | W15: =IF(LEFT($D15,15)="Unlisted Player",-1001,IF('All-WERTH'!Z15="",-1000,'All-WERTH'!Z15)) -> -1000 | X15: =IF(LEFT($D15,15)="Unlisted Player",-1001,IF('All-WERTH'!AA15="",-1000,'All-WERTH'!AA15)) -> -1000 | Y15: =IF(LEFT($D15,15)="Unlisted Player",-1001,IF('All-WERTH'!AB15="",-1000,'All-WERTH'!AB15)) -> -1000 | Z15: =IF(LEFT($D15,15)="Unlisted Player",-1001,IF('All-WERTH'!AC15="",-1000,'All-WERTH'!AC15)) -> -1000 | AA15: =IF(LEFT($D15,15)="Unlisted Player",-1001,IF('All-WERTH'!AD15="",-1000,'All-WERTH'!AD15)) -> -1000 | AB15: =IF(LEFT($D15,15)="Unlisted Player",-1001,IF('All-WERTH'!AE15="",-1000,'All-WERTH'!AE15)) -> -1.534604246 | AC15: =IF(LEFT($D15,15)="Unlisted Player",-1001,IF('All-WERTH'!AF15="",-1000,'All-WERTH'!AF15)) -> -0.4471231172 | AD15: =IF(LEFT($D15,15)="Unlisted Player",-1001,IF('All-WERTH'!AG15="",-1000,'All-WERTH'!AG15)) -> -1.961170853 | AE15: =IF(LEFT($D15,15)="Unlisted Player",-1001,IF('All-WERTH'!AH15="",-1000,'All-WERTH'!AH15)) -> -1.202916634 | AF15: =IF(LEFT($D15,15)="Unlisted Player",-1001,IF('All-WERTH'!AI15="",-1000,'All-WERTH'!AI15)) -> -1.073968663 | AG15: =IF(LEFT($D15,15)="Unlisted Player",-1001,IF('All-WERTH'!AJ15="",-1000,'All-WERTH'!AJ15)) -> -1000 | AH15: =IF(LEFT($D15,15)="Unlisted Player",-1001,IF('All-WERTH'!AK15="",-1000,'All-WERTH'!AK15)) -> -1000 | AI15: =IF(LEFT($D15,15)="Unlisted Player",-1001,IF('All-WERTH'!AL15="",-1000,'All-WERTH'!AL15)) -> -1000 | AJ15: =IF(LEFT($D15,15)="Unlisted Player",-1001,IF('All-WERTH'!AM15="",-1000,'All-WERTH'!AM15)) -> -1000 | AK15: =IF(LEFT($D15,15)="Unlisted Player",-1001,IF('All-WERTH'!AN15="",-1000,'All-WERTH'!AN15)) -> -1000 | AL15: =IF(LEFT($D15,15)="Unlisted Player",-1001,IF('All-WERTH'!AO15="",-1000,'All-WERTH'!AO15)) -> -1000 | AM15: =IF(LEFT($D15,15)="Unlisted Player",-1001,IF('All-WERTH'!AP15="",-1000,'All-WERTH'!AP15)) -> -1000 | AN15: =IF(LEFT($D15,15)="Unlisted Player",-1001,'All-WERTH'!AT15) -> -3.148729712
A16: Austin Riley | B16: =IFERROR(INDEX($A$1:$A$977,SMALL(IF($A$1:$A$977<>"",ROW($A$1:$A$977)),ROW(A15))),"") -> Austin Riley | C16: =IFERROR(IF(L16=FALSE,"",CHOOSE(MATCH(RIGHT('Your Roto Auction'!$Q$4,LEN('Your Roto Auction'!$Q$4)-8),$M$1:$AN$1,0),1+SUMPRODUCT(($L$2:$L$978=TRUE)*($M$2:$M$978>M16))+COUNTIFS($L$2:L16,L16,$M$2:M16,M16)-1,1+SUMPRODUCT(($L$2:$L$978=TRUE)*($N$2:$N$978>N16))+COUNTIFS($L$2:L16,L16,$N$2:N16,N16)-1,1+SUMPRODUCT(($L$2:$L$978=TRUE)*($O$2:$O$978<O16))+COUNTIFS($L$2:L16,L16,$O$2:O16,O16)-1,1+SUMPRODUCT(($L$2:$L$978=TRUE)*($P$2:$P$978>P16))+COUNTIFS($L$2:L16,L16,$P$2:P16,P16)-1,1+SUMPRODUCT(($L$2:$L$978=TRUE)*($Q$2:$Q$978>Q16))+COUNTIFS($L$2:L16,L16,$Q$2:Q16,Q16)-1,1+SUMPRODUCT(($L$2:$L$978=TRUE)*($R$2:$R$978>R16))+COUNTIFS($L$2:L16,L16,$R$2:R16,R16)-1,1+SUMPRODUCT(($L$2:$L$978=TRUE)*($S$2:$S$978>S16))+COUNTIFS($L$2:L16,L16,$S$2:S16,S16)-1,1+SUMPRODUCT(($L$2:$L$978=TRUE)*($T$2:$T$978>T16))+COUNTIFS($L$2:L16,L16,$T$2:T16,T16)-1,1+SUMPRODUCT(($L$2:$L$978=TRUE)*($U$2:$U$978>U16))+COUNTIFS($L$2:L16,L16,$U$2:U16,U16)-1,1+SUMPRODUCT(($L$2:$L$978=TRUE)*($V$2:$V$978>V16))+COUNTIFS($L$2:L16,L16,$V$2:V16,V16)-1,1+SUMPRODUCT(($L$2:$L$978=TRUE)*($W$2:$W$978>W16))+COUNTIFS($L$2:L16,L16,$W$2:W16,W16)-1,1+SUMPRODUCT(($L$2:$L$978=TRUE)*($X$2:$X$978>X16))+COUNTIFS($L$2:L16,L16,$X$2:X16,X16)-1,1+SUMPRODUCT(($L$2:$L$978=TRUE)*($Y$2:$Y$978>Y16))+COUNTIFS($L$2:L16,L16,$Y$2:Y16,Y16)-1,1+SUMPRODUCT(($L$2:$L$978=TRUE)*($Z$2:$Z$978>Z16))+COUNTIFS($L$2:L16,L16,$Z$2:Z16,Z16)-1,1+SUMPRODUCT(($L$2:$L$978=TRUE)*($AA$2:$AA$978>AA16))+COUNTIFS($L$2:L16,L16,$AA$2:AA16,AA16)-1,1+SUMPRODUCT(($L$2:$L$978=TRUE)*($AB$2:$AB$978>AB16))+COUNTIFS($L$2:L16,L16,$AB$2:AB16,AB16)-1,1+SUMPRODUCT(($L$2:$L$978=TRUE)*($AC$2:$AC$978>AC16))+COUNTIFS($L$2:L16,L16,$AC$2:AC16,AC16)-1,1+SUMPRODUCT(($L$2:$L$978=TRUE)*($AD$2:$AD$978>AD16))+COUNTIFS($L$2:L16,L16,$AD$2:AD16,AD16)-1,1+SUMPRODUCT(($L$2:$L$978=TRUE)*($AE$2:$AE$978>AE16))+COUNTIFS($L$2:L16,L16,$AE$2:AE16,AE16)-1,1+SUMPRODUCT(($L$2:$L$978=TRUE)*($AF$2:$AF$978>AF16))+COUNTIFS($L$2:L16,L16,$AF$2:AF16,AF16)-1,1+SUMPRODUCT(($L$2:$L$978=TRUE)*($AG$2:$AG$978>AG16))+COUNTIFS($L$2:L16,L16,$AG$2:AG16,AG16)-1,1+SUMPRODUCT(($L$2:$L$978=TRUE)*($AH$2:$AH$978>AH16))+COUNTIFS($L$2:L16,L16,$AH$2:AH16,AH16)-1,1+SUMPRODUCT(($L$2:$L$978=TRUE)*($AI$2:$AI$978>AI16))+COUNTIFS($L$2:L16,L16,$AI$2:AI16,AI16)-1,1+SUMPRODUCT(($L$2:$L$978=TRUE)*($AJ$2:$AJ$978>AJ16))+COUNTIFS($L$2:L16,L16,$AJ$2:AJ16,AJ16)-1,1+SUMPRODUCT(($L$2:$L$978=TRUE)*($AK$2:$AK$978>AK16))+COUNTIFS($L$2:L16,L16,$AK$2:AK16,AK16)-1,1+SUMPRODUCT(($L$2:$L$978=TRUE)*($AL$2:$AL$978>AL16))+COUNTIFS($L$2:L16,L16,$AL$2:AL16,AL16)-1,1+SUMPRODUCT(($L$2:$L$978=TRUE)*($AM$2:$AM$978>AM16))+COUNTIFS($L$2:L16,L16,$AM$2:AM16,AM16)-1,1+SUMPRODUCT(($L$2:$L$978=TRUE)*($AN$2:$AN$978>AN16))+COUNTIFS($L$2:L16,L16,$AN$2:AN16,AN16)-1)),"") -> 740 | D16: Logan Allen | E16: =IFERROR(INDEX('Auction Log'!$C$4:$C$806,MATCH(D16,'Auction Log'!$B$4:$B$806,0)),"") ->  | F16: =IFERROR(INDEX('Core-Data'!$C$2:$C$982,MATCH(D16,'Core-Data'!$A$2:$A$982,0)),"") -> SP | H16: SP | I16: =IF(AND(F16="OF",'Guts-2'!$N$9=0),IF(MAX(Pre!J16:L16)=Pre!J16,"LF",IF(MAX(Pre!J16:L16)=Pre!K16,"CF",IF(MAX(Pre!J16:L16)=Pre!L16,"RF","LF"))),"") ->  | J16: =IFERROR(INDEX('Core-Data'!$U$2:$U$982,MATCH(D16,'Core-Data'!$A$2:$A$982,0)),TRUE) -> TRUE | K16: FALSE | L16: =IF(J16=FALSE,FALSE,IF(AND('Your Roto Auction'!$Q$6="Hide Drafted Players",K16=TRUE),FALSE,CHOOSE($I$1,TRUE,OR(RIGHT('Your Roto Auction'!$Q$5,LEN('Your Roto Auction'!$Q$5)-11)=H16,IF(RIGHT('Your Roto Auction'!$Q$5,LEN('Your Roto Auction'!$Q$5)-11)<>"C",NOT(ISERROR(SEARCH(RIGHT('Your Roto Auction'!$Q$5,LEN('Your Roto Auction'!$Q$5)-11),Pre!$CB16))),AND(NOT(ISERROR(SEARCH(RIGHT('Your Roto Auction'!$Q$5,LEN('Your Roto Auction'!$Q$5)-11),Pre!$CB16))),ISERROR(SEARCH("CF",Pre!$CB16)))),RIGHT('Your Roto Auction'!$Q$5,LEN('Your Roto Auction'!$Q$5)-11)=Pre!BP16),OR(H16="1B",H16="3B",ISNUMBER(SEARCH("1B",Pre!$CB16)),ISNUMBER(SEARCH("3B",Pre!$CB16))),OR(H16="2B",H16="SS",ISNUMBER(SEARCH("2B",Pre!$CB16)),ISNUMBER(SEARCH("SS",Pre!$CB16))),OR(H16="1B",H16="3B",H16="2B",H16="SS",ISNUMBER(SEARCH("1B",Pre!$CB16)),ISNUMBER(SEARCH("3B",Pre!$CB16)),ISNUMBER(SEARCH("2B",Pre!$CB16)),ISNUMBER(SEARCH("SS",Pre!$CB16))),OR(H16="SP",H16="RP",ISNUMBER(SEARCH("SP",Pre!$CB16)),ISNUMBER(SEARCH("RP",Pre!$CB16))),AND(H16<>"RP",H16<>"SP",NOT(ISNUMBER(SEARCH("RP",Pre!$CB16))),NOT(ISNUMBER(SEARCH("SP",Pre!$CB16)))),OR(H16="SP",H16="RP",ISNUMBER(SEARCH("SP",Pre!$CB16)),ISNUMBER(SEARCH("RP",Pre!$CB16)))))) -> TRUE | M16: =IF('Inflation-Tracking'!J19="",-9999,'Inflation-Tracking'!J19) -> -9999 | N16: =IF(LEFT($D16,15)="Unlisted Player",-1001,'All-WERTH'!AQ16) -> -1000 | O16: =IF('Core-Data'!W16="",9999,'Core-Data'!W16) -> 352 | P16: =IF(LEFT($D16,15)="Unlisted Player",-1001,IF('All-WERTH'!S16="",-1000,'All-WERTH'!S16)) -> -1000 | Q16: =IF(LEFT($D16,15)="Unlisted Player",-1001,IF('All-WERTH'!T16="",-1000,'All-WERTH'!T16)) -> -1000 | R16: =IF(LEFT($D16,15)="Unlisted Player",-1001,IF('All-WERTH'!U16="",-1000,'All-WERTH'!U16)) -> -1000 | S16: =IF(LEFT($D16,15)="Unlisted Player",-1001,IF('All-WERTH'!V16="",-1000,'All-WERTH'!V16)) -> -1000 | T16: =IF(LEFT($D16,15)="Unlisted Player",-1001,IF('All-WERTH'!W16="",-1000,'All-WERTH'!W16)) -> -1000 | U16: =IF(LEFT($D16,15)="Unlisted Player",-1001,IF('All-WERTH'!X16="",-1000,'All-WERTH'!X16)) -> -1000 | V16: =IF(LEFT($D16,15)="Unlisted Player",-1001,IF('All-WERTH'!Y16="",-1000,'All-WERTH'!Y16)) -> -1000 | W16: =IF(LEFT($D16,15)="Unlisted Player",-1001,IF('All-WERTH'!Z16="",-1000,'All-WERTH'!Z16)) -> -1000 | X16: =IF(LEFT($D16,15)="Unlisted Player",-1001,IF('All-WERTH'!AA16="",-1000,'All-WERTH'!AA16)) -> -1000 | Y16: =IF(LEFT($D16,15)="Unlisted Player",-1001,IF('All-WERTH'!AB16="",-1000,'All-WERTH'!AB16)) -> -1000 | Z16: =IF(LEFT($D16,15)="Unlisted Player",-1001,IF('All-WERTH'!AC16="",-1000,'All-WERTH'!AC16)) -> -1000 | AA16: =IF(LEFT($D16,15)="Unlisted Player",-1001,IF('All-WERTH'!AD16="",-1000,'All-WERTH'!AD16)) -> -1000 | AB16: =IF(LEFT($D16,15)="Unlisted Player",-1001,IF('All-WERTH'!AE16="",-1000,'All-WERTH'!AE16)) -> -1000 | AC16: =IF(LEFT($D16,15)="Unlisted Player",-1001,IF('All-WERTH'!AF16="",-1000,'All-WERTH'!AF16)) -> -1000 | AD16: =IF(LEFT($D16,15)="Unlisted Player",-1001,IF('All-WERTH'!AG16="",-1000,'All-WERTH'!AG16)) -> -1000 | AE16: =IF(LEFT($D16,15)="Unlisted Player",-1001,IF('All-WERTH'!AH16="",-1000,'All-WERTH'!AH16)) -> -1000 | AF16: =IF(LEFT($D16,15)="Unlisted Player",-1001,IF('All-WERTH'!AI16="",-1000,'All-WERTH'!AI16)) -> -1000 | AG16: =IF(LEFT($D16,15)="Unlisted Player",-1001,IF('All-WERTH'!AJ16="",-1000,'All-WERTH'!AJ16)) -> -1000 | AH16: =IF(LEFT($D16,15)="Unlisted Player",-1001,IF('All-WERTH'!AK16="",-1000,'All-WERTH'!AK16)) -> -1000 | AI16: =IF(LEFT($D16,15)="Unlisted Player",-1001,IF('All-WERTH'!AL16="",-1000,'All-WERTH'!AL16)) -> -1000 | AJ16: =IF(LEFT($D16,15)="Unlisted Player",-1001,IF('All-WERTH'!AM16="",-1000,'All-WERTH'!AM16)) -> -1000 | AK16: =IF(LEFT($D16,15)="Unlisted Player",-1001,IF('All-WERTH'!AN16="",-1000,'All-WERTH'!AN16)) -> -1000 | AL16: =IF(LEFT($D16,15)="Unlisted Player",-1001,IF('All-WERTH'!AO16="",-1000,'All-WERTH'!AO16)) -> -1000 | AM16: =IF(LEFT($D16,15)="Unlisted Player",-1001,IF('All-WERTH'!AP16="",-1000,'All-WERTH'!AP16)) -> -1000 | AN16: =IF(LEFT($D16,15)="Unlisted Player",-1001,'All-WERTH'!AT16) -> -996.899814
A17: Spencer Strider | B17: =IFERROR(INDEX($A$1:$A$977,SMALL(IF($A$1:$A$977<>"",ROW($A$1:$A$977)),ROW(A16))),"") -> Spencer Strider | C17: =IFERROR(IF(L17=FALSE,"",CHOOSE(MATCH(RIGHT('Your Roto Auction'!$Q$4,LEN('Your Roto Auction'!$Q$4)-8),$M$1:$AN$1,0),1+SUMPRODUCT(($L$2:$L$978=TRUE)*($M$2:$M$978>M17))+COUNTIFS($L$2:L17,L17,$M$2:M17,M17)-1,1+SUMPRODUCT(($L$2:$L$978=TRUE)*($N$2:$N$978>N17))+COUNTIFS($L$2:L17,L17,$N$2:N17,N17)-1,1+SUMPRODUCT(($L$2:$L$978=TRUE)*($O$2:$O$978<O17))+COUNTIFS($L$2:L17,L17,$O$2:O17,O17)-1,1+SUMPRODUCT(($L$2:$L$978=TRUE)*($P$2:$P$978>P17))+COUNTIFS($L$2:L17,L17,$P$2:P17,P17)-1,1+SUMPRODUCT(($L$2:$L$978=TRUE)*($Q$2:$Q$978>Q17))+COUNTIFS($L$2:L17,L17,$Q$2:Q17,Q17)-1,1+SUMPRODUCT(($L$2:$L$978=TRUE)*($R$2:$R$978>R17))+COUNTIFS($L$2:L17,L17,$R$2:R17,R17)-1,1+SUMPRODUCT(($L$2:$L$978=TRUE)*($S$2:$S$978>S17))+COUNTIFS($L$2:L17,L17,$S$2:S17,S17)-1,1+SUMPRODUCT(($L$2:$L$978=TRUE)*($T$2:$T$978>T17))+COUNTIFS($L$2:L17,L17,$T$2:T17,T17)-1,1+SUMPRODUCT(($L$2:$L$978=TRUE)*($U$2:$U$978>U17))+COUNTIFS($L$2:L17,L17,$U$2:U17,U17)-1,1+SUMPRODUCT(($L$2:$L$978=TRUE)*($V$2:$V$978>V17))+COUNTIFS($L$2:L17,L17,$V$2:V17,V17)-1,1+SUMPRODUCT(($L$2:$L$978=TRUE)*($W$2:$W$978>W17))+COUNTIFS($L$2:L17,L17,$W$2:W17,W17)-1,1+SUMPRODUCT(($L$2:$L$978=TRUE)*($X$2:$X$978>X17))+COUNTIFS($L$2:L17,L17,$X$2:X17,X17)-1,1+SUMPRODUCT(($L$2:$L$978=TRUE)*($Y$2:$Y$978>Y17))+COUNTIFS($L$2:L17,L17,$Y$2:Y17,Y17)-1,1+SUMPRODUCT(($L$2:$L$978=TRUE)*($Z$2:$Z$978>Z17))+COUNTIFS($L$2:L17,L17,$Z$2:Z17,Z17)-1,1+SUMPRODUCT(($L$2:$L$978=TRUE)*($AA$2:$AA$978>AA17))+COUNTIFS($L$2:L17,L17,$AA$2:AA17,AA17)-1,1+SUMPRODUCT(($L$2:$L$978=TRUE)*($AB$2:$AB$978>AB17))+COUNTIFS($L$2:L17,L17,$AB$2:AB17,AB17)-1,1+SUMPRODUCT(($L$2:$L$978=TRUE)*($AC$2:$AC$978>AC17))+COUNTIFS($L$2:L17,L17,$AC$2:AC17,AC17)-1,1+SUMPRODUCT(($L$2:$L$978=TRUE)*($AD$2:$AD$978>AD17))+COUNTIFS($L$2:L17,L17,$AD$2:AD17,AD17)-1,1+SUMPRODUCT(($L$2:$L$978=TRUE)*($AE$2:$AE$978>AE17))+COUNTIFS($L$2:L17,L17,$AE$2:AE17,AE17)-1,1+SUMPRODUCT(($L$2:$L$978=TRUE)*($AF$2:$AF$978>AF17))+COUNTIFS($L$2:L17,L17,$AF$2:AF17,AF17)-1,1+SUMPRODUCT(($L$2:$L$978=TRUE)*($AG$2:$AG$978>AG17))+COUNTIFS($L$2:L17,L17,$AG$2:AG17,AG17)-1,1+SUMPRODUCT(($L$2:$L$978=TRUE)*($AH$2:$AH$978>AH17))+COUNTIFS($L$2:L17,L17,$AH$2:AH17,AH17)-1,1+SUMPRODUCT(($L$2:$L$978=TRUE)*($AI$2:$AI$978>AI17))+COUNTIFS($L$2:L17,L17,$AI$2:AI17,AI17)-1,1+SUMPRODUCT(($L$2:$L$978=TRUE)*($AJ$2:$AJ$978>AJ17))+COUNTIFS($L$2:L17,L17,$AJ$2:AJ17,AJ17)-1,1+SUMPRODUCT(($L$2:$L$978=TRUE)*($AK$2:$AK$978>AK17))+COUNTIFS($L$2:L17,L17,$AK$2:AK17,AK17)-1,1+SUMPRODUCT(($L$2:$L$978=TRUE)*($AL$2:$AL$978>AL17))+COUNTIFS($L$2:L17,L17,$AL$2:AL17,AL17)-1,1+SUMPRODUCT(($L$2:$L$978=TRUE)*($AM$2:$AM$978>AM17))+COUNTIFS($L$2:L17,L17,$AM$2:AM17,AM17)-1,1+SUMPRODUCT(($L$2:$L$978=TRUE)*($AN$2:$AN$978>AN17))+COUNTIFS($L$2:L17,L17,$AN$2:AN17,AN17)-1)),"") -> 20 | D17: Pete Alonso | E17: =IFERROR(INDEX('Auction Log'!$C$4:$C$806,MATCH(D17,'Auction Log'!$B$4:$B$806,0)),"") ->  | F17: =IFERROR(INDEX('Core-Data'!$C$2:$C$982,MATCH(D17,'Core-Data'!$A$2:$A$982,0)),"") -> 1B | H17: 1B | I17: =IF(AND(F17="OF",'Guts-2'!$N$9=0),IF(MAX(Pre!J17:L17)=Pre!J17,"LF",IF(MAX(Pre!J17:L17)=Pre!K17,"CF",IF(MAX(Pre!J17:L17)=Pre!L17,"RF","LF"))),"") ->  | J17: =IFERROR(INDEX('Core-Data'!$U$2:$U$982,MATCH(D17,'Core-Data'!$A$2:$A$982,0)),TRUE) -> TRUE | K17: FALSE | L17: =IF(J17=FALSE,FALSE,IF(AND('Your Roto Auction'!$Q$6="Hide Drafted Players",K17=TRUE),FALSE,CHOOSE($I$1,TRUE,OR(RIGHT('Your Roto Auction'!$Q$5,LEN('Your Roto Auction'!$Q$5)-11)=H17,IF(RIGHT('Your Roto Auction'!$Q$5,LEN('Your Roto Auction'!$Q$5)-11)<>"C",NOT(ISERROR(SEARCH(RIGHT('Your Roto Auction'!$Q$5,LEN('Your Roto Auction'!$Q$5)-11),Pre!$CB17))),AND(NOT(ISERROR(SEARCH(RIGHT('Your Roto Auction'!$Q$5,LEN('Your Roto Auction'!$Q$5)-11),Pre!$CB17))),ISERROR(SEARCH("CF",Pre!$CB17)))),RIGHT('Your Roto Auction'!$Q$5,LEN('Your Roto Auction'!$Q$5)-11)=Pre!BP17),OR(H17="1B",H17="3B",ISNUMBER(SEARCH("1B",Pre!$CB17)),ISNUMBER(SEARCH("3B",Pre!$CB17))),OR(H17="2B",H17="SS",ISNUMBER(SEARCH("2B",Pre!$CB17)),ISNUMBER(SEARCH("SS",Pre!$CB17))),OR(H17="1B",H17="3B",H17="2B",H17="SS",ISNUMBER(SEARCH("1B",Pre!$CB17)),ISNUMBER(SEARCH("3B",Pre!$CB17)),ISNUMBER(SEARCH("2B",Pre!$CB17)),ISNUMBER(SEARCH("SS",Pre!$CB17))),OR(H17="SP",H17="RP",ISNUMBER(SEARCH("SP",Pre!$CB17)),ISNUMBER(SEARCH("RP",Pre!$CB17))),AND(H17<>"RP",H17<>"SP",NOT(ISNUMBER(SEARCH("RP",Pre!$CB17))),NOT(ISNUMBER(SEARCH("SP",Pre!$CB17)))),OR(H17="SP",H17="RP",ISNUMBER(SEARCH("SP",Pre!$CB17)),ISNUMBER(SEARCH("RP",Pre!$CB17)))))) -> TRUE | M17: =IF('Inflation-Tracking'!J20="",-9999,'Inflation-Tracking'!J20) -> 29.58491079 | N17: =IF(LEFT($D17,15)="Unlisted Player",-1001,'All-WERTH'!AQ17) -> 4.26484567 | O17: =IF('Core-Data'!W17="",9999,'Core-Data'!W17) -> 23 | P17: =IF(LEFT($D17,15)="Unlisted Player",-1001,IF('All-WERTH'!S17="",-1000,'All-WERTH'!S17)) -> -0.8375925403 | Q17: =IF(LEFT($D17,15)="Unlisted Player",-1001,IF('All-WERTH'!T17="",-1000,'All-WERTH'!T17)) -> 2.501652132 | R17: =IF(LEFT($D17,15)="Unlisted Player",-1001,IF('All-WERTH'!U17="",-1000,'All-WERTH'!U17)) -> 0.8918430802 | S17: =IF(LEFT($D17,15)="Unlisted Player",-1001,IF('All-WERTH'!V17="",-1000,'All-WERTH'!V17)) -> 2.409683958 | T17: =IF(LEFT($D17,15)="Unlisted Player",-1001,IF('All-WERTH'!W17="",-1000,'All-WERTH'!W17)) -> -0.7007409597 | U17: =IF(LEFT($D17,15)="Unlisted Player",-1001,IF('All-WERTH'!X17="",-1000,'All-WERTH'!X17)) -> -1000 | V17: =IF(LEFT($D17,15)="Unlisted Player",-1001,IF('All-WERTH'!Y17="",-1000,'All-WERTH'!Y17)) -> -1000 | W17: =IF(LEFT($D17,15)="Unlisted Player",-1001,IF('All-WERTH'!Z17="",-1000,'All-WERTH'!Z17)) -> -1000 | X17: =IF(LEFT($D17,15)="Unlisted Player",-1001,IF('All-WERTH'!AA17="",-1000,'All-WERTH'!AA17)) -> -1000 | Y17: =IF(LEFT($D17,15)="Unlisted Player",-1001,IF('All-WERTH'!AB17="",-1000,'All-WERTH'!AB17)) -> -1000 | Z17: =IF(LEFT($D17,15)="Unlisted Player",-1001,IF('All-WERTH'!AC17="",-1000,'All-WERTH'!AC17)) -> -1000 | AA17: =IF(LEFT($D17,15)="Unlisted Player",-1001,IF('All-WERTH'!AD17="",-1000,'All-WERTH'!AD17)) -> -1000 | AB17: =IF(LEFT($D17,15)="Unlisted Player",-1001,IF('All-WERTH'!AE17="",-1000,'All-WERTH'!AE17)) -> -1000 | AC17: =IF(LEFT($D17,15)="Unlisted Player",-1001,IF('All-WERTH'!AF17="",-1000,'All-WERTH'!AF17)) -> -1000 | AD17: =IF(LEFT($D17,15)="Unlisted Player",-1001,IF('All-WERTH'!AG17="",-1000,'All-WERTH'!AG17)) -> -1000 | AE17: =IF(LEFT($D17,15)="Unlisted Player",-1001,IF('All-WERTH'!AH17="",-1000,'All-WERTH'!AH17)) -> -1000 | AF17: =IF(LEFT($D17,15)="Unlisted Player",-1001,IF('All-WERTH'!AI17="",-1000,'All-WERTH'!AI17)) -> -1000 | AG17: =IF(LEFT($D17,15)="Unlisted Player",-1001,IF('All-WERTH'!AJ17="",-1000,'All-WERTH'!AJ17)) -> -1000 | AH17: =IF(LEFT($D17,15)="Unlisted Player",-1001,IF('All-WERTH'!AK17="",-1000,'All-WERTH'!AK17)) -> -1000 | AI17: =IF(LEFT($D17,15)="Unlisted Player",-1001,IF('All-WERTH'!AL17="",-1000,'All-WERTH'!AL17)) -> -1000 | AJ17: =IF(LEFT($D17,15)="Unlisted Player",-1001,IF('All-WERTH'!AM17="",-1000,'All-WERTH'!AM17)) -> -1000 | AK17: =IF(LEFT($D17,15)="Unlisted Player",-1001,IF('All-WERTH'!AN17="",-1000,'All-WERTH'!AN17)) -> -1000 | AL17: =IF(LEFT($D17,15)="Unlisted Player",-1001,IF('All-WERTH'!AO17="",-1000,'All-WERTH'!AO17)) -> -1000 | AM17: =IF(LEFT($D17,15)="Unlisted Player",-1001,IF('All-WERTH'!AP17="",-1000,'All-WERTH'!AP17)) -> -1000 | AN17: =IF(LEFT($D17,15)="Unlisted Player",-1001,'All-WERTH'!AT17) -> 7.9445128
A18: Jose Ramirez | B18: =IFERROR(INDEX($A$1:$A$977,SMALL(IF($A$1:$A$977<>"",ROW($A$1:$A$977)),ROW(A17))),"") -> Jose Ramirez | C18: =IFERROR(IF(L18=FALSE,"",CHOOSE(MATCH(RIGHT('Your Roto Auction'!$Q$4,LEN('Your Roto Auction'!$Q$4)-8),$M$1:$AN$1,0),1+SUMPRODUCT(($L$2:$L$978=TRUE)*($M$2:$M$978>M18))+COUNTIFS($L$2:L18,L18,$M$2:M18,M18)-1,1+SUMPRODUCT(($L$2:$L$978=TRUE)*($N$2:$N$978>N18))+COUNTIFS($L$2:L18,L18,$N$2:N18,N18)-1,1+SUMPRODUCT(($L$2:$L$978=TRUE)*($O$2:$O$978<O18))+COUNTIFS($L$2:L18,L18,$O$2:O18,O18)-1,1+SUMPRODUCT(($L$2:$L$978=TRUE)*($P$2:$P$978>P18))+COUNTIFS($L$2:L18,L18,$P$2:P18,P18)-1,1+SUMPRODUCT(($L$2:$L$978=TRUE)*($Q$2:$Q$978>Q18))+COUNTIFS($L$2:L18,L18,$Q$2:Q18,Q18)-1,1+SUMPRODUCT(($L$2:$L$978=TRUE)*($R$2:$R$978>R18))+COUNTIFS($L$2:L18,L18,$R$2:R18,R18)-1,1+SUMPRODUCT(($L$2:$L$978=TRUE)*($S$2:$S$978>S18))+COUNTIFS($L$2:L18,L18,$S$2:S18,S18)-1,1+SUMPRODUCT(($L$2:$L$978=TRUE)*($T$2:$T$978>T18))+COUNTIFS($L$2:L18,L18,$T$2:T18,T18)-1,1+SUMPRODUCT(($L$2:$L$978=TRUE)*($U$2:$U$978>U18))+COUNTIFS($L$2:L18,L18,$U$2:U18,U18)-1,1+SUMPRODUCT(($L$2:$L$978=TRUE)*($V$2:$V$978>V18))+COUNTIFS($L$2:L18,L18,$V$2:V18,V18)-1,1+SUMPRODUCT(($L$2:$L$978=TRUE)*($W$2:$W$978>W18))+COUNTIFS($L$2:L18,L18,$W$2:W18,W18)-1,1+SUMPRODUCT(($L$2:$L$978=TRUE)*($X$2:$X$978>X18))+COUNTIFS($L$2:L18,L18,$X$2:X18,X18)-1,1+SUMPRODUCT(($L$2:$L$978=TRUE)*($Y$2:$Y$978>Y18))+COUNTIFS($L$2:L18,L18,$Y$2:Y18,Y18)-1,1+SUMPRODUCT(($L$2:$L$978=TRUE)*($Z$2:$Z$978>Z18))+COUNTIFS($L$2:L18,L18,$Z$2:Z18,Z18)-1,1+SUMPRODUCT(($L$2:$L$978=TRUE)*($AA$2:$AA$978>AA18))+COUNTIFS($L$2:L18,L18,$AA$2:AA18,AA18)-1,1+SUMPRODUCT(($L$2:$L$978=TRUE)*($AB$2:$AB$978>AB18))+COUNTIFS($L$2:L18,L18,$AB$2:AB18,AB18)-1,1+SUMPRODUCT(($L$2:$L$978=TRUE)*($AC$2:$AC$978>AC18))+COUNTIFS($L$2:L18,L18,$AC$2:AC18,AC18)-1,1+SUMPRODUCT(($L$2:$L$978=TRUE)*($AD$2:$AD$978>AD18))+COUNTIFS($L$2:L18,L18,$AD$2:AD18,AD18)-1,1+SUMPRODUCT(($L$2:$L$978=TRUE)*($AE$2:$AE$978>AE18))+COUNTIFS($L$2:L18,L18,$AE$2:AE18,AE18)-1,1+SUMPRODUCT(($L$2:$L$978=TRUE)*($AF$2:$AF$978>AF18))+COUNTIFS($L$2:L18,L18,$AF$2:AF18,AF18)-1,1+SUMPRODUCT(($L$2:$L$978=TRUE)*($AG$2:$AG$978>AG18))+COUNTIFS($L$2:L18,L18,$AG$2:AG18,AG18)-1,1+SUMPRODUCT(($L$2:$L$978=TRUE)*($AH$2:$AH$978>AH18))+COUNTIFS($L$2:L18,L18,$AH$2:AH18,AH18)-1,1+SUMPRODUCT(($L$2:$L$978=TRUE)*($AI$2:$AI$978>AI18))+COUNTIFS($L$2:L18,L18,$AI$2:AI18,AI18)-1,1+SUMPRODUCT(($L$2:$L$978=TRUE)*($AJ$2:$AJ$978>AJ18))+COUNTIFS($L$2:L18,L18,$AJ$2:AJ18,AJ18)-1,1+SUMPRODUCT(($L$2:$L$978=TRUE)*($AK$2:$AK$978>AK18))+COUNTIFS($L$2:L18,L18,$AK$2:AK18,AK18)-1,1+SUMPRODUCT(($L$2:$L$978=TRUE)*($AL$2:$AL$978>AL18))+COUNTIFS($L$2:L18,L18,$AL$2:AL18,AL18)-1,1+SUMPRODUCT(($L$2:$L$978=TRUE)*($AM$2:$AM$978>AM18))+COUNTIFS($L$2:L18,L18,$AM$2:AM18,AM18)-1,1+SUMPRODUCT(($L$2:$L$978=TRUE)*($AN$2:$AN$978>AN18))+COUNTIFS($L$2:L18,L18,$AN$2:AN18,AN18)-1)),"") -> 53 | D18: Jose Altuve | E18: =IFERROR(INDEX('Auction Log'!$C$4:$C$806,MATCH(D18,'Auction Log'!$B$4:$B$806,0)),"") ->  | F18: =IFERROR(INDEX('Core-Data'!$C$2:$C$982,MATCH(D18,'Core-Data'!$A$2:$A$982,0)),"") -> 2B | H18: 2B | I18: =IF(AND(F18="OF",'Guts-2'!$N$9=0),IF(MAX(Pre!J18:L18)=Pre!J18,"LF",IF(MAX(Pre!J18:L18)=Pre!K18,"CF",IF(MAX(Pre!J18:L18)=Pre!L18,"RF","LF"))),"") ->  | J18: =IFERROR(INDEX('Core-Data'!$U$2:$U$982,MATCH(D18,'Core-Data'!$A$2:$A$982,0)),TRUE) -> TRUE | K18: FALSE | L18: =IF(J18=FALSE,FALSE,IF(AND('Your Roto Auction'!$Q$6="Hide Drafted Players",K18=TRUE),FALSE,CHOOSE($I$1,TRUE,OR(RIGHT('Your Roto Auction'!$Q$5,LEN('Your Roto Auction'!$Q$5)-11)=H18,IF(RIGHT('Your Roto Auction'!$Q$5,LEN('Your Roto Auction'!$Q$5)-11)<>"C",NOT(ISERROR(SEARCH(RIGHT('Your Roto Auction'!$Q$5,LEN('Your Roto Auction'!$Q$5)-11),Pre!$CB18))),AND(NOT(ISERROR(SEARCH(RIGHT('Your Roto Auction'!$Q$5,LEN('Your Roto Auction'!$Q$5)-11),Pre!$CB18))),ISERROR(SEARCH("CF",Pre!$CB18)))),RIGHT('Your Roto Auction'!$Q$5,LEN('Your Roto Auction'!$Q$5)-11)=Pre!BP18),OR(H18="1B",H18="3B",ISNUMBER(SEARCH("1B",Pre!$CB18)),ISNUMBER(SEARCH("3B",Pre!$CB18))),OR(H18="2B",H18="SS",ISNUMBER(SEARCH("2B",Pre!$CB18)),ISNUMBER(SEARCH("SS",Pre!$CB18))),OR(H18="1B",H18="3B",H18="2B",H18="SS",ISNUMBER(SEARCH("1B",Pre!$CB18)),ISNUMBER(SEARCH("3B",Pre!$CB18)),ISNUMBER(SEARCH("2B",Pre!$CB18)),ISNUMBER(SEARCH("SS",Pre!$CB18))),OR(H18="SP",H18="RP",ISNUMBER(SEARCH("SP",Pre!$CB18)),ISNUMBER(SEARCH("RP",Pre!$CB18))),AND(H18<>"RP",H18<>"SP",NOT(ISNUMBER(SEARCH("RP",Pre!$CB18))),NOT(ISNUMBER(SEARCH("SP",Pre!$CB18)))),OR(H18="SP",H18="RP",ISNUMBER(SEARCH("SP",Pre!$CB18)),ISNUMBER(SEARCH("RP",Pre!$CB18)))))) -> TRUE | M18: =IF('Inflation-Tracking'!J21="",-9999,'Inflation-Tracking'!J21) -> 19.3749419 | N18: =IF(LEFT($D18,15)="Unlisted Player",-1001,'All-WERTH'!AQ18) -> 1.864317015 | O18: =IF('Core-Data'!W18="",9999,'Core-Data'!W18) -> 34 | P18: =IF(LEFT($D18,15)="Unlisted Player",-1001,IF('All-WERTH'!S18="",-1000,'All-WERTH'!S18)) -> 0.7315844581 | Q18: =IF(LEFT($D18,15)="Unlisted Player",-1001,IF('All-WERTH'!T18="",-1000,'All-WERTH'!T18)) -> 0.09953988867 | R18: =IF(LEFT($D18,15)="Unlisted Player",-1001,IF('All-WERTH'!U18="",-1000,'All-WERTH'!U18)) -> 1.129037735 | S18: =IF(LEFT($D18,15)="Unlisted Player",-1001,IF('All-WERTH'!V18="",-1000,'All-WERTH'!V18)) -> -0.3490248711 | T18: =IF(LEFT($D18,15)="Unlisted Player",-1001,IF('All-WERTH'!W18="",-1000,'All-WERTH'!W18)) -> 0.2531798042 | U18: =IF(LEFT($D18,15)="Unlisted Player",-1001,IF('All-WERTH'!X18="",-1000,'All-WERTH'!X18)) -> -1000 | V18: =IF(LEFT($D18,15)="Unlisted Player",-1001,IF('All-WERTH'!Y18="",-1000,'All-WERTH'!Y18)) -> -1000 | W18: =IF(LEFT($D18,15)="Unlisted Player",-1001,IF('All-WERTH'!Z18="",-1000,'All-WERTH'!Z18)) -> -1000 | X18: =IF(LEFT($D18,15)="Unlisted Player",-1001,IF('All-WERTH'!AA18="",-1000,'All-WERTH'!AA18)) -> -1000 | Y18: =IF(LEFT($D18,15)="Unlisted Player",-1001,IF('All-WERTH'!AB18="",-1000,'All-WERTH'!AB18)) -> -1000 | Z18: =IF(LEFT($D18,15)="Unlisted Player",-1001,IF('All-WERTH'!AC18="",-1000,'All-WERTH'!AC18)) -> -1000 | AA18: =IF(LEFT($D18,15)="Unlisted Player",-1001,IF('All-WERTH'!AD18="",-1000,'All-WERTH'!AD18)) -> -1000 | AB18: =IF(LEFT($D18,15)="Unlisted Player",-1001,IF('All-WERTH'!AE18="",-1000,'All-WERTH'!AE18)) -> -1000 | AC18: =IF(LEFT($D18,15)="Unlisted Player",-1001,IF('All-WERTH'!AF18="",-1000,'All-WERTH'!AF18)) -> -1000 | AD18: =IF(LEFT($D18,15)="Unlisted Player",-1001,IF('All-WERTH'!AG18="",-1000,'All-WERTH'!AG18)) -> -1000 | AE18: =IF(LEFT($D18,15)="Unlisted Player",-1001,IF('All-WERTH'!AH18="",-1000,'All-WERTH'!AH18)) -> -1000 | AF18: =IF(LEFT($D18,15)="Unlisted Player",-1001,IF('All-WERTH'!AI18="",-1000,'All-WERTH'!AI18)) -> -1000 | AG18: =IF(LEFT($D18,15)="Unlisted Player",-1001,IF('All-WERTH'!AJ18="",-1000,'All-WERTH'!AJ18)) -> -1000 | AH18: =IF(LEFT($D18,15)="Unlisted Player",-1001,IF('All-WERTH'!AK18="",-1000,'All-WERTH'!AK18)) -> -1000 | AI18: =IF(LEFT($D18,15)="Unlisted Player",-1001,IF('All-WERTH'!AL18="",-1000,'All-WERTH'!AL18)) -> -1000 | AJ18: =IF(LEFT($D18,15)="Unlisted Player",-1001,IF('All-WERTH'!AM18="",-1000,'All-WERTH'!AM18)) -> -1000 | AK18: =IF(LEFT($D18,15)="Unlisted Player",-1001,IF('All-WERTH'!AN18="",-1000,'All-WERTH'!AN18)) -> -1000 | AL18: =IF(LEFT($D18,15)="Unlisted Player",-1001,IF('All-WERTH'!AO18="",-1000,'All-WERTH'!AO18)) -> -1000 | AM18: =IF(LEFT($D18,15)="Unlisted Player",-1001,IF('All-WERTH'!AP18="",-1000,'All-WERTH'!AP18)) -> -1000 | AN18: =IF(LEFT($D18,15)="Unlisted Player",-1001,'All-WERTH'!AT18) -> 5.202803382
A19: Vladimir Guerrero Jr. | B19: =IFERROR(INDEX($A$1:$A$977,SMALL(IF($A$1:$A$977<>"",ROW($A$1:$A$977)),ROW(A18))),"") -> Vladimir Guerrero Jr. | C19: =IFERROR(IF(L19=FALSE,"",CHOOSE(MATCH(RIGHT('Your Roto Auction'!$Q$4,LEN('Your Roto Auction'!$Q$4)-8),$M$1:$AN$1,0),1+SUMPRODUCT(($L$2:$L$978=TRUE)*($M$2:$M$978>M19))+COUNTIFS($L$2:L19,L19,$M$2:M19,M19)-1,1+SUMPRODUCT(($L$2:$L$978=TRUE)*($N$2:$N$978>N19))+COUNTIFS($L$2:L19,L19,$N$2:N19,N19)-1,1+SUMPRODUCT(($L$2:$L$978=TRUE)*($O$2:$O$978<O19))+COUNTIFS($L$2:L19,L19,$O$2:O19,O19)-1,1+SUMPRODUCT(($L$2:$L$978=TRUE)*($P$2:$P$978>P19))+COUNTIFS($L$2:L19,L19,$P$2:P19,P19)-1,1+SUMPRODUCT(($L$2:$L$978=TRUE)*($Q$2:$Q$978>Q19))+COUNTIFS($L$2:L19,L19,$Q$2:Q19,Q19)-1,1+SUMPRODUCT(($L$2:$L$978=TRUE)*($R$2:$R$978>R19))+COUNTIFS($L$2:L19,L19,$R$2:R19,R19)-1,1+SUMPRODUCT(($L$2:$L$978=TRUE)*($S$2:$S$978>S19))+COUNTIFS($L$2:L19,L19,$S$2:S19,S19)-1,1+SUMPRODUCT(($L$2:$L$978=TRUE)*($T$2:$T$978>T19))+COUNTIFS($L$2:L19,L19,$T$2:T19,T19)-1,1+SUMPRODUCT(($L$2:$L$978=TRUE)*($U$2:$U$978>U19))+COUNTIFS($L$2:L19,L19,$U$2:U19,U19)-1,1+SUMPRODUCT(($L$2:$L$978=TRUE)*($V$2:$V$978>V19))+COUNTIFS($L$2:L19,L19,$V$2:V19,V19)-1,1+SUMPRODUCT(($L$2:$L$978=TRUE)*($W$2:$W$978>W19))+COUNTIFS($L$2:L19,L19,$W$2:W19,W19)-1,1+SUMPRODUCT(($L$2:$L$978=TRUE)*($X$2:$X$978>X19))+COUNTIFS($L$2:L19,L19,$X$2:X19,X19)-1,1+SUMPRODUCT(($L$2:$L$978=TRUE)*($Y$2:$Y$978>Y19))+COUNTIFS($L$2:L19,L19,$Y$2:Y19,Y19)-1,1+SUMPRODUCT(($L$2:$L$978=TRUE)*($Z$2:$Z$978>Z19))+COUNTIFS($L$2:L19,L19,$Z$2:Z19,Z19)-1,1+SUMPRODUCT(($L$2:$L$978=TRUE)*($AA$2:$AA$978>AA19))+COUNTIFS($L$2:L19,L19,$AA$2:AA19,AA19)-1,1+SUMPRODUCT(($L$2:$L$978=TRUE)*($AB$2:$AB$978>AB19))+COUNTIFS($L$2:L19,L19,$AB$2:AB19,AB19)-1,1+SUMPRODUCT(($L$2:$L$978=TRUE)*($AC$2:$AC$978>AC19))+COUNTIFS($L$2:L19,L19,$AC$2:AC19,AC19)-1,1+SUMPRODUCT(($L$2:$L$978=TRUE)*($AD$2:$AD$978>AD19))+COUNTIFS($L$2:L19,L19,$AD$2:AD19,AD19)-1,1+SUMPRODUCT(($L$2:$L$978=TRUE)*($AE$2:$AE$978>AE19))+COUNTIFS($L$2:L19,L19,$AE$2:AE19,AE19)-1,1+SUMPRODUCT(($L$2:$L$978=TRUE)*($AF$2:$AF$978>AF19))+COUNTIFS($L$2:L19,L19,$AF$2:AF19,AF19)-1,1+SUMPRODUCT(($L$2:$L$978=TRUE)*($AG$2:$AG$978>AG19))+COUNTIFS($L$2:L19,L19,$AG$2:AG19,AG19)-1,1+SUMPRODUCT(($L$2:$L$978=TRUE)*($AH$2:$AH$978>AH19))+COUNTIFS($L$2:L19,L19,$AH$2:AH19,AH19)-1,1+SUMPRODUCT(($L$2:$L$978=TRUE)*($AI$2:$AI$978>AI19))+COUNTIFS($L$2:L19,L19,$AI$2:AI19,AI19)-1,1+SUMPRODUCT(($L$2:$L$978=TRUE)*($AJ$2:$AJ$978>AJ19))+COUNTIFS($L$2:L19,L19,$AJ$2:AJ19,AJ19)-1,1+SUMPRODUCT(($L$2:$L$978=TRUE)*($AK$2:$AK$978>AK19))+COUNTIFS($L$2:L19,L19,$AK$2:AK19,AK19)-1,1+SUMPRODUCT(($L$2:$L$978=TRUE)*($AL$2:$AL$978>AL19))+COUNTIFS($L$2:L19,L19,$AL$2:AL19,AL19)-1,1+SUMPRODUCT(($L$2:$L$978=TRUE)*($AM$2:$AM$978>AM19))+COUNTIFS($L$2:L19,L19,$AM$2:AM19,AM19)-1,1+SUMPRODUCT(($L$2:$L$978=TRUE)*($AN$2:$AN$978>AN19))+COUNTIFS($L$2:L19,L19,$AN$2:AN19,AN19)-1)),"") -> 677 | D19: Jake Alu | E19: =IFERROR(INDEX('Auction Log'!$C$4:$C$806,MATCH(D19,'Auction Log'!$B$4:$B$806,0)),"") ->  | F19: =IFERROR(INDEX('Core-Data'!$C$2:$C$982,MATCH(D19,'Core-Data'!$A$2:$A$982,0)),"") -> 2B | H19: 2B | I19: =IF(AND(F19="OF",'Guts-2'!$N$9=0),IF(MAX(Pre!J19:L19)=Pre!J19,"LF",IF(MAX(Pre!J19:L19)=Pre!K19,"CF",IF(MAX(Pre!J19:L19)=Pre!L19,"RF","LF"))),"") ->  | J19: =IFERROR(INDEX('Core-Data'!$U$2:$U$982,MATCH(D19,'Core-Data'!$A$2:$A$982,0)),TRUE) -> TRUE | K19: FALSE | L19: =IF(J19=FALSE,FALSE,IF(AND('Your Roto Auction'!$Q$6="Hide Drafted Players",K19=TRUE),FALSE,CHOOSE($I$1,TRUE,OR(RIGHT('Your Roto Auction'!$Q$5,LEN('Your Roto Auction'!$Q$5)-11)=H19,IF(RIGHT('Your Roto Auction'!$Q$5,LEN('Your Roto Auction'!$Q$5)-11)<>"C",NOT(ISERROR(SEARCH(RIGHT('Your Roto Auction'!$Q$5,LEN('Your Roto Auction'!$Q$5)-11),Pre!$CB19))),AND(NOT(ISERROR(SEARCH(RIGHT('Your Roto Auction'!$Q$5,LEN('Your Roto Auction'!$Q$5)-11),Pre!$CB19))),ISERROR(SEARCH("CF",Pre!$CB19)))),RIGHT('Your Roto Auction'!$Q$5,LEN('Your Roto Auction'!$Q$5)-11)=Pre!BP19),OR(H19="1B",H19="3B",ISNUMBER(SEARCH("1B",Pre!$CB19)),ISNUMBER(SEARCH("3B",Pre!$CB19))),OR(H19="2B",H19="SS",ISNUMBER(SEARCH("2B",Pre!$CB19)),ISNUMBER(SEARCH("SS",Pre!$CB19))),OR(H19="1B",H19="3B",H19="2B",H19="SS",ISNUMBER(SEARCH("1B",Pre!$CB19)),ISNUMBER(SEARCH("3B",Pre!$CB19)),ISNUMBER(SEARCH("2B",Pre!$CB19)),ISNUMBER(SEARCH("SS",Pre!$CB19))),OR(H19="SP",H19="RP",ISNUMBER(SEARCH("SP",Pre!$CB19)),ISNUMBER(SEARCH("RP",Pre!$CB19))),AND(H19<>"RP",H19<>"SP",NOT(ISNUMBER(SEARCH("RP",Pre!$CB19))),NOT(ISNUMBER(SEARCH("SP",Pre!$CB19)))),OR(H19="SP",H19="RP",ISNUMBER(SEARCH("SP",Pre!$CB19)),ISNUMBER(SEARCH("RP",Pre!$CB19)))))) -> TRUE | M19: =IF('Inflation-Tracking'!J22="",-9999,'Inflation-Tracking'!J22) -> -21.6103467 | N19: =IF(LEFT($D19,15)="Unlisted Player",-1001,'All-WERTH'!AQ19) -> -9.641568796 | O19: =IF('Core-Data'!W19="",9999,'Core-Data'!W19) -> 795 | P19: =IF(LEFT($D19,15)="Unlisted Player",-1001,IF('All-WERTH'!S19="",-1000,'All-WERTH'!S19)) -> -0.6019028848 | Q19: =IF(LEFT($D19,15)="Unlisted Player",-1001,IF('All-WERTH'!T19="",-1000,'All-WERTH'!T19)) -> -2.43161103 | R19: =IF(LEFT($D19,15)="Unlisted Player",-1001,IF('All-WERTH'!U19="",-1000,'All-WERTH'!U19)) -> -3.0080887 | S19: =IF(LEFT($D19,15)="Unlisted Player",-1001,IF('All-WERTH'!V19="",-1000,'All-WERTH'!V19)) -> -3.008817164 | T19: =IF(LEFT($D19,15)="Unlisted Player",-1001,IF('All-WERTH'!W19="",-1000,'All-WERTH'!W19)) -> -0.5911490167 | U19: =IF(LEFT($D19,15)="Unlisted Player",-1001,IF('All-WERTH'!X19="",-1000,'All-WERTH'!X19)) -> -1000 | V19: =IF(LEFT($D19,15)="Unlisted Player",-1001,IF('All-WERTH'!Y19="",-1000,'All-WERTH'!Y19)) -> -1000 | W19: =IF(LEFT($D19,15)="Unlisted Player",-1001,IF('All-WERTH'!Z19="",-1000,'All-WERTH'!Z19)) -> -1000 | X19: =IF(LEFT($D19,15)="Unlisted Player",-1001,IF('All-WERTH'!AA19="",-1000,'All-WERTH'!AA19)) -> -1000 | Y19: =IF(LEFT($D19,15)="Unlisted Player",-1001,IF('All-WERTH'!AB19="",-1000,'All-WERTH'!AB19)) -> -1000 | Z19: =IF(LEFT($D19,15)="Unlisted Player",-1001,IF('All-WERTH'!AC19="",-1000,'All-WERTH'!AC19)) -> -1000 | AA19: =IF(LEFT($D19,15)="Unlisted Player",-1001,IF('All-WERTH'!AD19="",-1000,'All-WERTH'!AD19)) -> -1000 | AB19: =IF(LEFT($D19,15)="Unlisted Player",-1001,IF('All-WERTH'!AE19="",-1000,'All-WERTH'!AE19)) -> -1000 | AC19: =IF(LEFT($D19,15)="Unlisted Player",-1001,IF('All-WERTH'!AF19="",-1000,'All-WERTH'!AF19)) -> -1000 | AD19: =IF(LEFT($D19,15)="Unlisted Player",-1001,IF('All-WERTH'!AG19="",-1000,'All-WERTH'!AG19)) -> -1000 | AE19: =IF(LEFT($D19,15)="Unlisted Player",-1001,IF('All-WERTH'!AH19="",-1000,'All-WERTH'!AH19)) -> -1000 | AF19: =IF(LEFT($D19,15)="Unlisted Player",-1001,IF('All-WERTH'!AI19="",-1000,'All-WERTH'!AI19)) -> -1000 | AG19: =IF(LEFT($D19,15)="Unlisted Player",-1001,IF('All-WERTH'!AJ19="",-1000,'All-WERTH'!AJ19)) -> -1000 | AH19: =IF(LEFT($D19,15)="Unlisted Player",-1001,IF('All-WERTH'!AK19="",-1000,'All-WERTH'!AK19)) -> -1000 | AI19: =IF(LEFT($D19,15)="Unlisted Player",-1001,IF('All-WERTH'!AL19="",-1000,'All-WERTH'!AL19)) -> -1000 | AJ19: =IF(LEFT($D19,15)="Unlisted Player",-1001,IF('All-WERTH'!AM19="",-1000,'All-WERTH'!AM19)) -> -1000 | AK19: =IF(LEFT($D19,15)="Unlisted Player",-1001,IF('All-WERTH'!AN19="",-1000,'All-WERTH'!AN19)) -> -1000 | AL19: =IF(LEFT($D19,15)="Unlisted Player",-1001,IF('All-WERTH'!AO19="",-1000,'All-WERTH'!AO19)) -> -1000 | AM19: =IF(LEFT($D19,15)="Unlisted Player",-1001,IF('All-WERTH'!AP19="",-1000,'All-WERTH'!AP19)) -> -1000 | AN19: =IF(LEFT($D19,15)="Unlisted Player",-1001,'All-WERTH'!AT19) -> -5.803082429
A20: Trea Turner | B20: =IFERROR(INDEX($A$1:$A$977,SMALL(IF($A$1:$A$977<>"",ROW($A$1:$A$977)),ROW(A19))),"") -> Trea Turner | C20: =IFERROR(IF(L20=FALSE,"",CHOOSE(MATCH(RIGHT('Your Roto Auction'!$Q$4,LEN('Your Roto Auction'!$Q$4)-8),$M$1:$AN$1,0),1+SUMPRODUCT(($L$2:$L$978=TRUE)*($M$2:$M$978>M20))+COUNTIFS($L$2:L20,L20,$M$2:M20,M20)-1,1+SUMPRODUCT(($L$2:$L$978=TRUE)*($N$2:$N$978>N20))+COUNTIFS($L$2:L20,L20,$N$2:N20,N20)-1,1+SUMPRODUCT(($L$2:$L$978=TRUE)*($O$2:$O$978<O20))+COUNTIFS($L$2:L20,L20,$O$2:O20,O20)-1,1+SUMPRODUCT(($L$2:$L$978=TRUE)*($P$2:$P$978>P20))+COUNTIFS($L$2:L20,L20,$P$2:P20,P20)-1,1+SUMPRODUCT(($L$2:$L$978=TRUE)*($Q$2:$Q$978>Q20))+COUNTIFS($L$2:L20,L20,$Q$2:Q20,Q20)-1,1+SUMPRODUCT(($L$2:$L$978=TRUE)*($R$2:$R$978>R20))+COUNTIFS($L$2:L20,L20,$R$2:R20,R20)-1,1+SUMPRODUCT(($L$2:$L$978=TRUE)*($S$2:$S$978>S20))+COUNTIFS($L$2:L20,L20,$S$2:S20,S20)-1,1+SUMPRODUCT(($L$2:$L$978=TRUE)*($T$2:$T$978>T20))+COUNTIFS($L$2:L20,L20,$T$2:T20,T20)-1,1+SUMPRODUCT(($L$2:$L$978=TRUE)*($U$2:$U$978>U20))+COUNTIFS($L$2:L20,L20,$U$2:U20,U20)-1,1+SUMPRODUCT(($L$2:$L$978=TRUE)*($V$2:$V$978>V20))+COUNTIFS($L$2:L20,L20,$V$2:V20,V20)-1,1+SUMPRODUCT(($L$2:$L$978=TRUE)*($W$2:$W$978>W20))+COUNTIFS($L$2:L20,L20,$W$2:W20,W20)-1,1+SUMPRODUCT(($L$2:$L$978=TRUE)*($X$2:$X$978>X20))+COUNTIFS($L$2:L20,L20,$X$2:X20,X20)-1,1+SUMPRODUCT(($L$2:$L$978=TRUE)*($Y$2:$Y$978>Y20))+COUNTIFS($L$2:L20,L20,$Y$2:Y20,Y20)-1,1+SUMPRODUCT(($L$2:$L$978=TRUE)*($Z$2:$Z$978>Z20))+COUNTIFS($L$2:L20,L20,$Z$2:Z20,Z20)-1,1+SUMPRODUCT(($L$2:$L$978=TRUE)*($AA$2:$AA$978>AA20))+COUNTIFS($L$2:L20,L20,$AA$2:AA20,AA20)-1,1+SUMPRODUCT(($L$2:$L$978=TRUE)*($AB$2:$AB$978>AB20))+COUNTIFS($L$2:L20,L20,$AB$2:AB20,AB20)-1,1+SUMPRODUCT(($L$2:$L$978=TRUE)*($AC$2:$AC$978>AC20))+COUNTIFS($L$2:L20,L20,$AC$2:AC20,AC20)-1,1+SUMPRODUCT(($L$2:$L$978=TRUE)*($AD$2:$AD$978>AD20))+COUNTIFS($L$2:L20,L20,$AD$2:AD20,AD20)-1,1+SUMPRODUCT(($L$2:$L$978=TRUE)*($AE$2:$AE$978>AE20))+COUNTIFS($L$2:L20,L20,$AE$2:AE20,AE20)-1,1+SUMPRODUCT(($L$2:$L$978=TRUE)*($AF$2:$AF$978>AF20))+COUNTIFS($L$2:L20,L20,$AF$2:AF20,AF20)-1,1+SUMPRODUCT(($L$2:$L$978=TRUE)*($AG$2:$AG$978>AG20))+COUNTIFS($L$2:L20,L20,$AG$2:AG20,AG20)-1,1+SUMPRODUCT(($L$2:$L$978=TRUE)*($AH$2:$AH$978>AH20))+COUNTIFS($L$2:L20,L20,$AH$2:AH20,AH20)-1,1+SUMPRODUCT(($L$2:$L$978=TRUE)*($AI$2:$AI$978>AI20))+COUNTIFS($L$2:L20,L20,$AI$2:AI20,AI20)-1,1+SUMPRODUCT(($L$2:$L$978=TRUE)*($AJ$2:$AJ$978>AJ20))+COUNTIFS($L$2:L20,L20,$AJ$2:AJ20,AJ20)-1,1+SUMPRODUCT(($L$2:$L$978=TRUE)*($AK$2:$AK$978>AK20))+COUNTIFS($L$2:L20,L20,$AK$2:AK20,AK20)-1,1+SUMPRODUCT(($L$2:$L$978=TRUE)*($AL$2:$AL$978>AL20))+COUNTIFS($L$2:L20,L20,$AL$2:AL20,AL20)-1,1+SUMPRODUCT(($L$2:$L$978=TRUE)*($AM$2:$AM$978>AM20))+COUNTIFS($L$2:L20,L20,$AM$2:AM20,AM20)-1,1+SUMPRODUCT(($L$2:$L$978=TRUE)*($AN$2:$AN$978>AN20))+COUNTIFS($L$2:L20,L20,$AN$2:AN20,AN20)-1)),"") -> 260 | D20: Francisco Alvarez | E20: =IFERROR(INDEX('Auction Log'!$C$4:$C$806,MATCH(D20,'Auction Log'!$B$4:$B$806,0)),"") ->  | F20: =IFERROR(INDEX('Core-Data'!$C$2:$C$982,MATCH(D20,'Core-Data'!$A$2:$A$982,0)),"") -> C | H20: C | I20: =IF(AND(F20="OF",'Guts-2'!$N$9=0),IF(MAX(Pre!J20:L20)=Pre!J20,"LF",IF(MAX(Pre!J20:L20)=Pre!K20,"CF",IF(MAX(Pre!J20:L20)=Pre!L20,"RF","LF"))),"") ->  | J20: =IFERROR(INDEX('Core-Data'!$U$2:$U$982,MATCH(D20,'Core-Data'!$A$2:$A$982,0)),TRUE) -> TRUE | K20: FALSE | L20: =IF(J20=FALSE,FALSE,IF(AND('Your Roto Auction'!$Q$6="Hide Drafted Players",K20=TRUE),FALSE,CHOOSE($I$1,TRUE,OR(RIGHT('Your Roto Auction'!$Q$5,LEN('Your Roto Auction'!$Q$5)-11)=H20,IF(RIGHT('Your Roto Auction'!$Q$5,LEN('Your Roto Auction'!$Q$5)-11)<>"C",NOT(ISERROR(SEARCH(RIGHT('Your Roto Auction'!$Q$5,LEN('Your Roto Auction'!$Q$5)-11),Pre!$CB20))),AND(NOT(ISERROR(SEARCH(RIGHT('Your Roto Auction'!$Q$5,LEN('Your Roto Auction'!$Q$5)-11),Pre!$CB20))),ISERROR(SEARCH("CF",Pre!$CB20)))),RIGHT('Your Roto Auction'!$Q$5,LEN('Your Roto Auction'!$Q$5)-11)=Pre!BP20),OR(H20="1B",H20="3B",ISNUMBER(SEARCH("1B",Pre!$CB20)),ISNUMBER(SEARCH("3B",Pre!$CB20))),OR(H20="2B",H20="SS",ISNUMBER(SEARCH("2B",Pre!$CB20)),ISNUMBER(SEARCH("SS",Pre!$CB20))),OR(H20="1B",H20="3B",H20="2B",H20="SS",ISNUMBER(SEARCH("1B",Pre!$CB20)),ISNUMBER(SEARCH("3B",Pre!$CB20)),ISNUMBER(SEARCH("2B",Pre!$CB20)),ISNUMBER(SEARCH("SS",Pre!$CB20))),OR(H20="SP",H20="RP",ISNUMBER(SEARCH("SP",Pre!$CB20)),ISNUMBER(SEARCH("RP",Pre!$CB20))),AND(H20<>"RP",H20<>"SP",NOT(ISNUMBER(SEARCH("RP",Pre!$CB20))),NOT(ISNUMBER(SEARCH("SP",Pre!$CB20)))),OR(H20="SP",H20="RP",ISNUMBER(SEARCH("SP",Pre!$CB20)),ISNUMBER(SEARCH("RP",Pre!$CB20)))))) -> TRUE | M20: =IF('Inflation-Tracking'!J23="",-9999,'Inflation-Tracking'!J23) -> 0.461756783 | N20: =IF(LEFT($D20,15)="Unlisted Player",-1001,'All-WERTH'!AQ20) -> -4.287719076 | O20: =IF('Core-Data'!W20="",9999,'Core-Data'!W20) -> 169 | P20: =IF(LEFT($D20,15)="Unlisted Player",-1001,IF('All-WERTH'!S20="",-1000,'All-WERTH'!S20)) -> -1.875640497 | Q20: =IF(LEFT($D20,15)="Unlisted Player",-1001,IF('All-WERTH'!T20="",-1000,'All-WERTH'!T20)) -> 0.2982764071 | R20: =IF(LEFT($D20,15)="Unlisted Player",-1001,IF('All-WERTH'!U20="",-1000,'All-WERTH'!U20)) -> -1.306603099 | S20: =IF(LEFT($D20,15)="Unlisted Player",-1001,IF('All-WERTH'!V20="",-1000,'All-WERTH'!V20)) -> -0.4841792422 | T20: =IF(LEFT($D20,15)="Unlisted Player",-1001,IF('All-WERTH'!W20="",-1000,'All-WERTH'!W20)) -> -0.9195726446 | U20: =IF(LEFT($D20,15)="Unlisted Player",-1001,IF('All-WERTH'!X20="",-1000,'All-WERTH'!X20)) -> -1000 | V20: =IF(LEFT($D20,15)="Unlisted Player",-1001,IF('All-WERTH'!Y20="",-1000,'All-WERTH'!Y20)) -> -1000 | W20: =IF(LEFT($D20,15)="Unlisted Player",-1001,IF('All-WERTH'!Z20="",-1000,'All-WERTH'!Z20)) -> -1000 | X20: =IF(LEFT($D20,15)="Unlisted Player",-1001,IF('All-WERTH'!AA20="",-1000,'All-WERTH'!AA20)) -> -1000 | Y20: =IF(LEFT($D20,15)="Unlisted Player",-1001,IF('All-WERTH'!AB20="",-1000,'All-WERTH'!AB20)) -> -1000 | Z20: =IF(LEFT($D20,15)="Unlisted Player",-1001,IF('All-WERTH'!AC20="",-1000,'All-WERTH'!AC20)) -> -1000 | AA20: =IF(LEFT($D20,15)="Unlisted Player",-1001,IF('All-WERTH'!AD20="",-1000,'All-WERTH'!AD20)) -> -1000 | AB20: =IF(LEFT($D20,15)="Unlisted Player",-1001,IF('All-WERTH'!AE20="",-1000,'All-WERTH'!AE20)) -> -1000 | AC20: =IF(LEFT($D20,15)="Unlisted Player",-1001,IF('All-WERTH'!AF20="",-1000,'All-WERTH'!AF20)) -> -1000 | AD20: =IF(LEFT($D20,15)="Unlisted Player",-1001,IF('All-WERTH'!AG20="",-1000,'All-WERTH'!AG20)) -> -1000 | AE20: =IF(LEFT($D20,15)="Unlisted Player",-1001,IF('All-WERTH'!AH20="",-1000,'All-WERTH'!AH20)) -> -1000 | AF20: =IF(LEFT($D20,15)="Unlisted Player",-1001,IF('All-WERTH'!AI20="",-1000,'All-WERTH'!AI20)) -> -1000 | AG20: =IF(LEFT($D20,15)="Unlisted Player",-1001,IF('All-WERTH'!AJ20="",-1000,'All-WERTH'!AJ20)) -> -1000 | AH20: =IF(LEFT($D20,15)="Unlisted Player",-1001,IF('All-WERTH'!AK20="",-1000,'All-WERTH'!AK20)) -> -1000 | AI20: =IF(LEFT($D20,15)="Unlisted Player",-1001,IF('All-WERTH'!AL20="",-1000,'All-WERTH'!AL20)) -> -1000 | AJ20: =IF(LEFT($D20,15)="Unlisted Player",-1001,IF('All-WERTH'!AM20="",-1000,'All-WERTH'!AM20)) -> -1000 | AK20: =IF(LEFT($D20,15)="Unlisted Player",-1001,IF('All-WERTH'!AN20="",-1000,'All-WERTH'!AN20)) -> -1000 | AL20: =IF(LEFT($D20,15)="Unlisted Player",-1001,IF('All-WERTH'!AO20="",-1000,'All-WERTH'!AO20)) -> -1000 | AM20: =IF(LEFT($D20,15)="Unlisted Player",-1001,IF('All-WERTH'!AP20="",-1000,'All-WERTH'!AP20)) -> -1000 | AN20: =IF(LEFT($D20,15)="Unlisted Player",-1001,'All-WERTH'!AT20) -> 0.1239967461
A21: Pete Alonso | B21: =IFERROR(INDEX($A$1:$A$977,SMALL(IF($A$1:$A$977<>"",ROW($A$1:$A$977)),ROW(A20))),"") -> Pete Alonso | C21: =IFERROR(IF(L21=FALSE,"",CHOOSE(MATCH(RIGHT('Your Roto Auction'!$Q$4,LEN('Your Roto Auction'!$Q$4)-8),$M$1:$AN$1,0),1+SUMPRODUCT(($L$2:$L$978=TRUE)*($M$2:$M$978>M21))+COUNTIFS($L$2:L21,L21,$M$2:M21,M21)-1,1+SUMPRODUCT(($L$2:$L$978=TRUE)*($N$2:$N$978>N21))+COUNTIFS($L$2:L21,L21,$N$2:N21,N21)-1,1+SUMPRODUCT(($L$2:$L$978=TRUE)*($O$2:$O$978<O21))+COUNTIFS($L$2:L21,L21,$O$2:O21,O21)-1,1+SUMPRODUCT(($L$2:$L$978=TRUE)*($P$2:$P$978>P21))+COUNTIFS($L$2:L21,L21,$P$2:P21,P21)-1,1+SUMPRODUCT(($L$2:$L$978=TRUE)*($Q$2:$Q$978>Q21))+COUNTIFS($L$2:L21,L21,$Q$2:Q21,Q21)-1,1+SUMPRODUCT(($L$2:$L$978=TRUE)*($R$2:$R$978>R21))+COUNTIFS($L$2:L21,L21,$R$2:R21,R21)-1,1+SUMPRODUCT(($L$2:$L$978=TRUE)*($S$2:$S$978>S21))+COUNTIFS($L$2:L21,L21,$S$2:S21,S21)-1,1+SUMPRODUCT(($L$2:$L$978=TRUE)*($T$2:$T$978>T21))+COUNTIFS($L$2:L21,L21,$T$2:T21,T21)-1,1+SUMPRODUCT(($L$2:$L$978=TRUE)*($U$2:$U$978>U21))+COUNTIFS($L$2:L21,L21,$U$2:U21,U21)-1,1+SUMPRODUCT(($L$2:$L$978=TRUE)*($V$2:$V$978>V21))+COUNTIFS($L$2:L21,L21,$V$2:V21,V21)-1,1+SUMPRODUCT(($L$2:$L$978=TRUE)*($W$2:$W$978>W21))+COUNTIFS($L$2:L21,L21,$W$2:W21,W21)-1,1+SUMPRODUCT(($L$2:$L$978=TRUE)*($X$2:$X$978>X21))+COUNTIFS($L$2:L21,L21,$X$2:X21,X21)-1,1+SUMPRODUCT(($L$2:$L$978=TRUE)*($Y$2:$Y$978>Y21))+COUNTIFS($L$2:L21,L21,$Y$2:Y21,Y21)-1,1+SUMPRODUCT(($L$2:$L$978=TRUE)*($Z$2:$Z$978>Z21))+COUNTIFS($L$2:L21,L21,$Z$2:Z21,Z21)-1,1+SUMPRODUCT(($L$2:$L$978=TRUE)*($AA$2:$AA$978>AA21))+COUNTIFS($L$2:L21,L21,$AA$2:AA21,AA21)-1,1+SUMPRODUCT(($L$2:$L$978=TRUE)*($AB$2:$AB$978>AB21))+COUNTIFS($L$2:L21,L21,$AB$2:AB21,AB21)-1,1+SUMPRODUCT(($L$2:$L$978=TRUE)*($AC$2:$AC$978>AC21))+COUNTIFS($L$2:L21,L21,$AC$2:AC21,AC21)-1,1+SUMPRODUCT(($L$2:$L$978=TRUE)*($AD$2:$AD$978>AD21))+COUNTIFS($L$2:L21,L21,$AD$2:AD21,AD21)-1,1+SUMPRODUCT(($L$2:$L$978=TRUE)*($AE$2:$AE$978>AE21))+COUNTIFS($L$2:L21,L21,$AE$2:AE21,AE21)-1,1+SUMPRODUCT(($L$2:$L$978=TRUE)*($AF$2:$AF$978>AF21))+COUNTIFS($L$2:L21,L21,$AF$2:AF21,AF21)-1,1+SUMPRODUCT(($L$2:$L$978=TRUE)*($AG$2:$AG$978>AG21))+COUNTIFS($L$2:L21,L21,$AG$2:AG21,AG21)-1,1+SUMPRODUCT(($L$2:$L$978=TRUE)*($AH$2:$AH$978>AH21))+COUNTIFS($L$2:L21,L21,$AH$2:AH21,AH21)-1,1+SUMPRODUCT(($L$2:$L$978=TRUE)*($AI$2:$AI$978>AI21))+COUNTIFS($L$2:L21,L21,$AI$2:AI21,AI21)-1,1+SUMPRODUCT(($L$2:$L$978=TRUE)*($AJ$2:$AJ$978>AJ21))+COUNTIFS($L$2:L21,L21,$AJ$2:AJ21,AJ21)-1,1+SUMPRODUCT(($L$2:$L$978=TRUE)*($AK$2:$AK$978>AK21))+COUNTIFS($L$2:L21,L21,$AK$2:AK21,AK21)-1,1+SUMPRODUCT(($L$2:$L$978=TRUE)*($AL$2:$AL$978>AL21))+COUNTIFS($L$2:L21,L21,$AL$2:AL21,AL21)-1,1+SUMPRODUCT(($L$2:$L$978=TRUE)*($AM$2:$AM$978>AM21))+COUNTIFS($L$2:L21,L21,$AM$2:AM21,AM21)-1,1+SUMPRODUCT(($L$2:$L$978=TRUE)*($AN$2:$AN$978>AN21))+COUNTIFS($L$2:L21,L21,$AN$2:AN21,AN21)-1)),"") -> 180 | D21: Jose Alvarado | E21: =IFERROR(INDEX('Auction Log'!$C$4:$C$806,MATCH(D21,'Auction Log'!$B$4:$B$806,0)),"") ->  | F21: =IFERROR(INDEX('Core-Data'!$C$2:$C$982,MATCH(D21,'Core-Data'!$A$2:$A$982,0)),"") -> RP | H21: RP | I21: =IF(AND(F21="OF",'Guts-2'!$N$9=0),IF(MAX(Pre!J21:L21)=Pre!J21,"LF",IF(MAX(Pre!J21:L21)=Pre!K21,"CF",IF(MAX(Pre!J21:L21)=Pre!L21,"RF","LF"))),"") ->  | J21: =IFERROR(INDEX('Core-Data'!$U$2:$U$982,MATCH(D21,'Core-Data'!$A$2:$A$982,0)),TRUE) -> TRUE | K21: FALSE | L21: =IF(J21=FALSE,FALSE,IF(AND('Your Roto Auction'!$Q$6="Hide Drafted Players",K21=TRUE),FALSE,CHOOSE($I$1,TRUE,OR(RIGHT('Your Roto Auction'!$Q$5,LEN('Your Roto Auction'!$Q$5)-11)=H21,IF(RIGHT('Your Roto Auction'!$Q$5,LEN('Your Roto Auction'!$Q$5)-11)<>"C",NOT(ISERROR(SEARCH(RIGHT('Your Roto Auction'!$Q$5,LEN('Your Roto Auction'!$Q$5)-11),Pre!$CB21))),AND(NOT(ISERROR(SEARCH(RIGHT('Your Roto Auction'!$Q$5,LEN('Your Roto Auction'!$Q$5)-11),Pre!$CB21))),ISERROR(SEARCH("CF",Pre!$CB21)))),RIGHT('Your Roto Auction'!$Q$5,LEN('Your Roto Auction'!$Q$5)-11)=Pre!BP21),OR(H21="1B",H21="3B",ISNUMBER(SEARCH("1B",Pre!$CB21)),ISNUMBER(SEARCH("3B",Pre!$CB21))),OR(H21="2B",H21="SS",ISNUMBER(SEARCH("2B",Pre!$CB21)),ISNUMBER(SEARCH("SS",Pre!$CB21))),OR(H21="1B",H21="3B",H21="2B",H21="SS",ISNUMBER(SEARCH("1B",Pre!$CB21)),ISNUMBER(SEARCH("3B",Pre!$CB21)),ISNUMBER(SEARCH("2B",Pre!$CB21)),ISNUMBER(SEARCH("SS",Pre!$CB21))),OR(H21="SP",H21="RP",ISNUMBER(SEARCH("SP",Pre!$CB21)),ISNUMBER(SEARCH("RP",Pre!$CB21))),AND(H21<>"RP",H21<>"SP",NOT(ISNUMBER(SEARCH("RP",Pre!$CB21))),NOT(ISNUMBER(SEARCH("SP",Pre!$CB21)))),OR(H21="SP",H21="RP",ISNUMBER(SEARCH("SP",Pre!$CB21)),ISNUMBER(SEARCH("RP",Pre!$CB21)))))) -> TRUE | M21: =IF('Inflation-Tracking'!J24="",-9999,'Inflation-Tracking'!J24) -> 4.889831762 | N21: =IF(LEFT($D21,15)="Unlisted Player",-1001,'All-WERTH'!AQ21) -> -1.303894925 | O21: =IF('Core-Data'!W21="",9999,'Core-Data'!W21) -> 199 | P21: =IF(LEFT($D21,15)="Unlisted Player",-1001,IF('All-WERTH'!S21="",-1000,'All-WERTH'!S21)) -> -1000 | Q21: =IF(LEFT($D21,15)="Unlisted Player",-1001,IF('All-WERTH'!T21="",-1000,'All-WERTH'!T21)) -> -1000 | R21: =IF(LEFT($D21,15)="Unlisted Player",-1001,IF('All-WERTH'!U21="",-1000,'All-WERTH'!U21)) -> -1000 | S21: =IF(LEFT($D21,15)="Unlisted Player",-1001,IF('All-WERTH'!V21="",-1000,'All-WERTH'!V21)) -> -1000 | T21: =IF(LEFT($D21,15)="Unlisted Player",-1001,IF('All-WERTH'!W21="",-1000,'All-WERTH'!W21)) -> -1000 | U21: =IF(LEFT($D21,15)="Unlisted Player",-1001,IF('All-WERTH'!X21="",-1000,'All-WERTH'!X21)) -> -1000 | V21: =IF(LEFT($D21,15)="Unlisted Player",-1001,IF('All-WERTH'!Y21="",-1000,'All-WERTH'!Y21)) -> -1000 | W21: =IF(LEFT($D21,15)="Unlisted Player",-1001,IF('All-WERTH'!Z21="",-1000,'All-WERTH'!Z21)) -> -1000 | X21: =IF(LEFT($D21,15)="Unlisted Player",-1001,IF('All-WERTH'!AA21="",-1000,'All-WERTH'!AA21)) -> -1000 | Y21: =IF(LEFT($D21,15)="Unlisted Player",-1001,IF('All-WERTH'!AB21="",-1000,'All-WERTH'!AB21)) -> -1000 | Z21: =IF(LEFT($D21,15)="Unlisted Player",-1001,IF('All-WERTH'!AC21="",-1000,'All-WERTH'!AC21)) -> -1000 | AA21: =IF(LEFT($D21,15)="Unlisted Player",-1001,IF('All-WERTH'!AD21="",-1000,'All-WERTH'!AD21)) -> -1000 | AB21: =IF(LEFT($D21,15)="Unlisted Player",-1001,IF('All-WERTH'!AE21="",-1000,'All-WERTH'!AE21)) -> -1.593513531 | AC21: =IF(LEFT($D21,15)="Unlisted Player",-1001,IF('All-WERTH'!AF21="",-1000,'All-WERTH'!AF21)) -> 1.670588412 | AD21: =IF(LEFT($D21,15)="Unlisted Player",-1001,IF('All-WERTH'!AG21="",-1000,'All-WERTH'!AG21)) -> -1.320105487 | AE21: =IF(LEFT($D21,15)="Unlisted Player",-1001,IF('All-WERTH'!AH21="",-1000,'All-WERTH'!AH21)) -> 0.4379558878 | AF21: =IF(LEFT($D21,15)="Unlisted Player",-1001,IF('All-WERTH'!AI21="",-1000,'All-WERTH'!AI21)) -> -0.4988202064 | AG21: =IF(LEFT($D21,15)="Unlisted Player",-1001,IF('All-WERTH'!AJ21="",-1000,'All-WERTH'!AJ21)) -> -1000 | AH21: =IF(LEFT($D21,15)="Unlisted Player",-1001,IF('All-WERTH'!AK21="",-1000,'All-WERTH'!AK21)) -> -1000 | AI21: =IF(LEFT($D21,15)="Unlisted Player",-1001,IF('All-WERTH'!AL21="",-1000,'All-WERTH'!AL21)) -> -1000 | AJ21: =IF(LEFT($D21,15)="Unlisted Player",-1001,IF('All-WERTH'!AM21="",-1000,'All-WERTH'!AM21)) -> -1000 | AK21: =IF(LEFT($D21,15)="Unlisted Player",-1001,IF('All-WERTH'!AN21="",-1000,'All-WERTH'!AN21)) -> -1000 | AL21: =IF(LEFT($D21,15)="Unlisted Player",-1001,IF('All-WERTH'!AO21="",-1000,'All-WERTH'!AO21)) -> -1000 | AM21: =IF(LEFT($D21,15)="Unlisted Player",-1001,IF('All-WERTH'!AP21="",-1000,'All-WERTH'!AP21)) -> -1000 | AN21: =IF(LEFT($D21,15)="Unlisted Player",-1001,'All-WERTH'!AT21) -> 1.767158878
A22: Bo Bichette | B22: =IFERROR(INDEX($A$1:$A$977,SMALL(IF($A$1:$A$977<>"",ROW($A$1:$A$977)),ROW(A21))),"") -> Bo Bichette | C22: =IFERROR(IF(L22=FALSE,"",CHOOSE(MATCH(RIGHT('Your Roto Auction'!$Q$4,LEN('Your Roto Auction'!$Q$4)-8),$M$1:$AN$1,0),1+SUMPRODUCT(($L$2:$L$978=TRUE)*($M$2:$M$978>M22))+COUNTIFS($L$2:L22,L22,$M$2:M22,M22)-1,1+SUMPRODUCT(($L$2:$L$978=TRUE)*($N$2:$N$978>N22))+COUNTIFS($L$2:L22,L22,$N$2:N22,N22)-1,1+SUMPRODUCT(($L$2:$L$978=TRUE)*($O$2:$O$978<O22))+COUNTIFS($L$2:L22,L22,$O$2:O22,O22)-1,1+SUMPRODUCT(($L$2:$L$978=TRUE)*($P$2:$P$978>P22))+COUNTIFS($L$2:L22,L22,$P$2:P22,P22)-1,1+SUMPRODUCT(($L$2:$L$978=TRUE)*($Q$2:$Q$978>Q22))+COUNTIFS($L$2:L22,L22,$Q$2:Q22,Q22)-1,1+SUMPRODUCT(($L$2:$L$978=TRUE)*($R$2:$R$978>R22))+COUNTIFS($L$2:L22,L22,$R$2:R22,R22)-1,1+SUMPRODUCT(($L$2:$L$978=TRUE)*($S$2:$S$978>S22))+COUNTIFS($L$2:L22,L22,$S$2:S22,S22)-1,1+SUMPRODUCT(($L$2:$L$978=TRUE)*($T$2:$T$978>T22))+COUNTIFS($L$2:L22,L22,$T$2:T22,T22)-1,1+SUMPRODUCT(($L$2:$L$978=TRUE)*($U$2:$U$978>U22))+COUNTIFS($L$2:L22,L22,$U$2:U22,U22)-1,1+SUMPRODUCT(($L$2:$L$978=TRUE)*($V$2:$V$978>V22))+COUNTIFS($L$2:L22,L22,$V$2:V22,V22)-1,1+SUMPRODUCT(($L$2:$L$978=TRUE)*($W$2:$W$978>W22))+COUNTIFS($L$2:L22,L22,$W$2:W22,W22)-1,1+SUMPRODUCT(($L$2:$L$978=TRUE)*($X$2:$X$978>X22))+COUNTIFS($L$2:L22,L22,$X$2:X22,X22)-1,1+SUMPRODUCT(($L$2:$L$978=TRUE)*($Y$2:$Y$978>Y22))+COUNTIFS($L$2:L22,L22,$Y$2:Y22,Y22)-1,1+SUMPRODUCT(($L$2:$L$978=TRUE)*($Z$2:$Z$978>Z22))+COUNTIFS($L$2:L22,L22,$Z$2:Z22,Z22)-1,1+SUMPRODUCT(($L$2:$L$978=TRUE)*($AA$2:$AA$978>AA22))+COUNTIFS($L$2:L22,L22,$AA$2:AA22,AA22)-1,1+SUMPRODUCT(($L$2:$L$978=TRUE)*($AB$2:$AB$978>AB22))+COUNTIFS($L$2:L22,L22,$AB$2:AB22,AB22)-1,1+SUMPRODUCT(($L$2:$L$978=TRUE)*($AC$2:$AC$978>AC22))+COUNTIFS($L$2:L22,L22,$AC$2:AC22,AC22)-1,1+SUMPRODUCT(($L$2:$L$978=TRUE)*($AD$2:$AD$978>AD22))+COUNTIFS($L$2:L22,L22,$AD$2:AD22,AD22)-1,1+SUMPRODUCT(($L$2:$L$978=TRUE)*($AE$2:$AE$978>AE22))+COUNTIFS($L$2:L22,L22,$AE$2:AE22,AE22)-1,1+SUMPRODUCT(($L$2:$L$978=TRUE)*($AF$2:$AF$978>AF22))+COUNTIFS($L$2:L22,L22,$AF$2:AF22,AF22)-1,1+SUMPRODUCT(($L$2:$L$978=TRUE)*($AG$2:$AG$978>AG22))+COUNTIFS($L$2:L22,L22,$AG$2:AG22,AG22)-1,1+SUMPRODUCT(($L$2:$L$978=TRUE)*($AH$2:$AH$978>AH22))+COUNTIFS($L$2:L22,L22,$AH$2:AH22,AH22)-1,1+SUMPRODUCT(($L$2:$L$978=TRUE)*($AI$2:$AI$978>AI22))+COUNTIFS($L$2:L22,L22,$AI$2:AI22,AI22)-1,1+SUMPRODUCT(($L$2:$L$978=TRUE)*($AJ$2:$AJ$978>AJ22))+COUNTIFS($L$2:L22,L22,$AJ$2:AJ22,AJ22)-1,1+SUMPRODUCT(($L$2:$L$978=TRUE)*($AK$2:$AK$978>AK22))+COUNTIFS($L$2:L22,L22,$AK$2:AK22,AK22)-1,1+SUMPRODUCT(($L$2:$L$978=TRUE)*($AL$2:$AL$978>AL22))+COUNTIFS($L$2:L22,L22,$AL$2:AL22,AL22)-1,1+SUMPRODUCT(($L$2:$L$978=TRUE)*($AM$2:$AM$978>AM22))+COUNTIFS($L$2:L22,L22,$AM$2:AM22,AM22)-1,1+SUMPRODUCT(($L$2:$L$978=TRUE)*($AN$2:$AN$978>AN22))+COUNTIFS($L$2:L22,L22,$AN$2:AN22,AN22)-1)),"") -> 11 | D22: Yordan Alvarez | E22: =IFERROR(INDEX('Auction Log'!$C$4:$C$806,MATCH(D22,'Auction Log'!$B$4:$B$806,0)),"") ->  | F22: =IFERROR(INDEX('Core-Data'!$C$2:$C$982,MATCH(D22,'Core-Data'!$A$2:$A$982,0)),"") -> DH | H22: DH | I22: =IF(AND(F22="OF",'Guts-2'!$N$9=0),IF(MAX(Pre!J22:L22)=Pre!J22,"LF",IF(MAX(Pre!J22:L22)=Pre!K22,"CF",IF(MAX(Pre!J22:L22)=Pre!L22,"RF","LF"))),"") ->  | J22: =IFERROR(INDEX('Core-Data'!$U$2:$U$982,MATCH(D22,'Core-Data'!$A$2:$A$982,0)),TRUE) -> TRUE | K22: FALSE | L22: =IF(J22=FALSE,FALSE,IF(AND('Your Roto Auction'!$Q$6="Hide Drafted Players",K22=TRUE),FALSE,CHOOSE($I$1,TRUE,OR(RIGHT('Your Roto Auction'!$Q$5,LEN('Your Roto Auction'!$Q$5)-11)=H22,IF(RIGHT('Your Roto Auction'!$Q$5,LEN('Your Roto Auction'!$Q$5)-11)<>"C",NOT(ISERROR(SEARCH(RIGHT('Your Roto Auction'!$Q$5,LEN('Your Roto Auction'!$Q$5)-11),Pre!$CB22))),AND(NOT(ISERROR(SEARCH(RIGHT('Your Roto Auction'!$Q$5,LEN('Your Roto Auction'!$Q$5)-11),Pre!$CB22))),ISERROR(SEARCH("CF",Pre!$CB22)))),RIGHT('Your Roto Auction'!$Q$5,LEN('Your Roto Auction'!$Q$5)-11)=Pre!BP22),OR(H22="1B",H22="3B",ISNUMBER(SEARCH("1B",Pre!$CB22)),ISNUMBER(SEARCH("3B",Pre!$CB22))),OR(H22="2B",H22="SS",ISNUMBER(SEARCH("2B",Pre!$CB22)),ISNUMBER(SEARCH("SS",Pre!$CB22))),OR(H22="1B",H22="3B",H22="2B",H22="SS",ISNUMBER(SEARCH("1B",Pre!$CB22)),ISNUMBER(SEARCH("3B",Pre!$CB22)),ISNUMBER(SEARCH("2B",Pre!$CB22)),ISNUMBER(SEARCH("SS",Pre!$CB22))),OR(H22="SP",H22="RP",ISNUMBER(SEARCH("SP",Pre!$CB22)),ISNUMBER(SEARCH("RP",Pre!$CB22))),AND(H22<>"RP",H22<>"SP",NOT(ISNUMBER(SEARCH("RP",Pre!$CB22))),NOT(ISNUMBER(SEARCH("SP",Pre!$CB22)))),OR(H22="SP",H22="RP",ISNUMBER(SEARCH("SP",Pre!$CB22)),ISNUMBER(SEARCH("RP",Pre!$CB22)))))) -> TRUE | M22: =IF('Inflation-Tracking'!J25="",-9999,'Inflation-Tracking'!J25) -> 37.10638107 | N22: =IF(LEFT($D22,15)="Unlisted Player",-1001,'All-WERTH'!AQ22) -> 6.570540066 | O22: =IF('Core-Data'!W22="",9999,'Core-Data'!W22) -> 16 | P22: =IF(LEFT($D22,15)="Unlisted Player",-1001,IF('All-WERTH'!S22="",-1000,'All-WERTH'!S22)) -> 2.090157898 | Q22: =IF(LEFT($D22,15)="Unlisted Player",-1001,IF('All-WERTH'!T22="",-1000,'All-WERTH'!T22)) -> 1.995592962 | R22: =IF(LEFT($D22,15)="Unlisted Player",-1001,IF('All-WERTH'!U22="",-1000,'All-WERTH'!U22)) -> 1.409778061 | S22: =IF(LEFT($D22,15)="Unlisted Player",-1001,IF('All-WERTH'!V22="",-1000,'All-WERTH'!V22)) -> 2.10843093 | T22: =IF(LEFT($D22,15)="Unlisted Player",-1001,IF('All-WERTH'!W22="",-1000,'All-WERTH'!W22)) -> -1.033419784 | U22: =IF(LEFT($D22,15)="Unlisted Player",-1001,IF('All-WERTH'!X22="",-1000,'All-WERTH'!X22)) -> -1000 | V22: =IF(LEFT($D22,15)="Unlisted Player",-1001,IF('All-WERTH'!Y22="",-1000,'All-WERTH'!Y22)) -> -1000 | W22: =IF(LEFT($D22,15)="Unlisted Player",-1001,IF('All-WERTH'!Z22="",-1000,'All-WERTH'!Z22)) -> -1000 | X22: =IF(LEFT($D22,15)="Unlisted Player",-1001,IF('All-WERTH'!AA22="",-1000,'All-WERTH'!AA22)) -> -1000 | Y22: =IF(LEFT($D22,15)="Unlisted Player",-1001,IF('All-WERTH'!AB22="",-1000,'All-WERTH'!AB22)) -> -1000 | Z22: =IF(LEFT($D22,15)="Unlisted Player",-1001,IF('All-WERTH'!AC22="",-1000,'All-WERTH'!AC22)) -> -1000 | AA22: =IF(LEFT($D22,15)="Unlisted Player",-1001,IF('All-WERTH'!AD22="",-1000,'All-WERTH'!AD22)) -> -1000 | AB22: =IF(LEFT($D22,15)="Unlisted Player",-1001,IF('All-WERTH'!AE22="",-1000,'All-WERTH'!AE22)) -> -1000 | AC22: =IF(LEFT($D22,15)="Unlisted Player",-1001,IF('All-WERTH'!AF22="",-1000,'All-WERTH'!AF22)) -> -1000 | AD22: =IF(LEFT($D22,15)="Unlisted Player",-1001,IF('All-WERTH'!AG22="",-1000,'All-WERTH'!AG22)) -> -1000 | AE22: =IF(LEFT($D22,15)="Unlisted Player",-1001,IF('All-WERTH'!AH22="",-1000,'All-WERTH'!AH22)) -> -1000 | AF22: =IF(LEFT($D22,15)="Unlisted Player",-1001,IF('All-WERTH'!AI22="",-1000,'All-WERTH'!AI22)) -> -1000 | AG22: =IF(LEFT($D22,15)="Unlisted Player",-1001,IF('All-WERTH'!AJ22="",-1000,'All-WERTH'!AJ22)) -> -1000 | AH22: =IF(LEFT($D22,15)="Unlisted Player",-1001,IF('All-WERTH'!AK22="",-1000,'All-WERTH'!AK22)) -> -1000 | AI22: =IF(LEFT($D22,15)="Unlisted Player",-1001,IF('All-WERTH'!AL22="",-1000,'All-WERTH'!AL22)) -> -1000 | AJ22: =IF(LEFT($D22,15)="Unlisted Player",-1001,IF('All-WERTH'!AM22="",-1000,'All-WERTH'!AM22)) -> -1000 | AK22: =IF(LEFT($D22,15)="Unlisted Player",-1001,IF('All-WERTH'!AN22="",-1000,'All-WERTH'!AN22)) -> -1000 | AL22: =IF(LEFT($D22,15)="Unlisted Player",-1001,IF('All-WERTH'!AO22="",-1000,'All-WERTH'!AO22)) -> -1000 | AM22: =IF(LEFT($D22,15)="Unlisted Player",-1001,IF('All-WERTH'!AP22="",-1000,'All-WERTH'!AP22)) -> -1000 | AN22: =IF(LEFT($D22,15)="Unlisted Player",-1001,'All-WERTH'!AT22) -> 9.964272715
A23: Ozzie Albies | B23: =IFERROR(INDEX($A$1:$A$977,SMALL(IF($A$1:$A$977<>"",ROW($A$1:$A$977)),ROW(A22))),"") -> Ozzie Albies | C23: =IFERROR(IF(L23=FALSE,"",CHOOSE(MATCH(RIGHT('Your Roto Auction'!$Q$4,LEN('Your Roto Auction'!$Q$4)-8),$M$1:$AN$1,0),1+SUMPRODUCT(($L$2:$L$978=TRUE)*($M$2:$M$978>M23))+COUNTIFS($L$2:L23,L23,$M$2:M23,M23)-1,1+SUMPRODUCT(($L$2:$L$978=TRUE)*($N$2:$N$978>N23))+COUNTIFS($L$2:L23,L23,$N$2:N23,N23)-1,1+SUMPRODUCT(($L$2:$L$978=TRUE)*($O$2:$O$978<O23))+COUNTIFS($L$2:L23,L23,$O$2:O23,O23)-1,1+SUMPRODUCT(($L$2:$L$978=TRUE)*($P$2:$P$978>P23))+COUNTIFS($L$2:L23,L23,$P$2:P23,P23)-1,1+SUMPRODUCT(($L$2:$L$978=TRUE)*($Q$2:$Q$978>Q23))+COUNTIFS($L$2:L23,L23,$Q$2:Q23,Q23)-1,1+SUMPRODUCT(($L$2:$L$978=TRUE)*($R$2:$R$978>R23))+COUNTIFS($L$2:L23,L23,$R$2:R23,R23)-1,1+SUMPRODUCT(($L$2:$L$978=TRUE)*($S$2:$S$978>S23))+COUNTIFS($L$2:L23,L23,$S$2:S23,S23)-1,1+SUMPRODUCT(($L$2:$L$978=TRUE)*($T$2:$T$978>T23))+COUNTIFS($L$2:L23,L23,$T$2:T23,T23)-1,1+SUMPRODUCT(($L$2:$L$978=TRUE)*($U$2:$U$978>U23))+COUNTIFS($L$2:L23,L23,$U$2:U23,U23)-1,1+SUMPRODUCT(($L$2:$L$978=TRUE)*($V$2:$V$978>V23))+COUNTIFS($L$2:L23,L23,$V$2:V23,V23)-1,1+SUMPRODUCT(($L$2:$L$978=TRUE)*($W$2:$W$978>W23))+COUNTIFS($L$2:L23,L23,$W$2:W23,W23)-1,1+SUMPRODUCT(($L$2:$L$978=TRUE)*($X$2:$X$978>X23))+COUNTIFS($L$2:L23,L23,$X$2:X23,X23)-1,1+SUMPRODUCT(($L$2:$L$978=TRUE)*($Y$2:$Y$978>Y23))+COUNTIFS($L$2:L23,L23,$Y$2:Y23,Y23)-1,1+SUMPRODUCT(($L$2:$L$978=TRUE)*($Z$2:$Z$978>Z23))+COUNTIFS($L$2:L23,L23,$Z$2:Z23,Z23)-1,1+SUMPRODUCT(($L$2:$L$978=TRUE)*($AA$2:$AA$978>AA23))+COUNTIFS($L$2:L23,L23,$AA$2:AA23,AA23)-1,1+SUMPRODUCT(($L$2:$L$978=TRUE)*($AB$2:$AB$978>AB23))+COUNTIFS($L$2:L23,L23,$AB$2:AB23,AB23)-1,1+SUMPRODUCT(($L$2:$L$978=TRUE)*($AC$2:$AC$978>AC23))+COUNTIFS($L$2:L23,L23,$AC$2:AC23,AC23)-1,1+SUMPRODUCT(($L$2:$L$978=TRUE)*($AD$2:$AD$978>AD23))+COUNTIFS($L$2:L23,L23,$AD$2:AD23,AD23)-1,1+SUMPRODUCT(($L$2:$L$978=TRUE)*($AE$2:$AE$978>AE23))+COUNTIFS($L$2:L23,L23,$AE$2:AE23,AE23)-1,1+SUMPRODUCT(($L$2:$L$978=TRUE)*($AF$2:$AF$978>AF23))+COUNTIFS($L$2:L23,L23,$AF$2:AF23,AF23)-1,1+SUMPRODUCT(($L$2:$L$978=TRUE)*($AG$2:$AG$978>AG23))+COUNTIFS($L$2:L23,L23,$AG$2:AG23,AG23)-1,1+SUMPRODUCT(($L$2:$L$978=TRUE)*($AH$2:$AH$978>AH23))+COUNTIFS($L$2:L23,L23,$AH$2:AH23,AH23)-1,1+SUMPRODUCT(($L$2:$L$978=TRUE)*($AI$2:$AI$978>AI23))+COUNTIFS($L$2:L23,L23,$AI$2:AI23,AI23)-1,1+SUMPRODUCT(($L$2:$L$978=TRUE)*($AJ$2:$AJ$978>AJ23))+COUNTIFS($L$2:L23,L23,$AJ$2:AJ23,AJ23)-1,1+SUMPRODUCT(($L$2:$L$978=TRUE)*($AK$2:$AK$978>AK23))+COUNTIFS($L$2:L23,L23,$AK$2:AK23,AK23)-1,1+SUMPRODUCT(($L$2:$L$978=TRUE)*($AL$2:$AL$978>AL23))+COUNTIFS($L$2:L23,L23,$AL$2:AL23,AL23)-1,1+SUMPRODUCT(($L$2:$L$978=TRUE)*($AM$2:$AM$978>AM23))+COUNTIFS($L$2:L23,L23,$AM$2:AM23,AM23)-1,1+SUMPRODUCT(($L$2:$L$978=TRUE)*($AN$2:$AN$978>AN23))+COUNTIFS($L$2:L23,L23,$AN$2:AN23,AN23)-1)),"") -> 195 | D23: Adbert Alzolay | E23: =IFERROR(INDEX('Auction Log'!$C$4:$C$806,MATCH(D23,'Auction Log'!$B$4:$B$806,0)),"") ->  | F23: =IFERROR(INDEX('Core-Data'!$C$2:$C$982,MATCH(D23,'Core-Data'!$A$2:$A$982,0)),"") -> RP | H23: RP | I23: =IF(AND(F23="OF",'Guts-2'!$N$9=0),IF(MAX(Pre!J23:L23)=Pre!J23,"LF",IF(MAX(Pre!J23:L23)=Pre!K23,"CF",IF(MAX(Pre!J23:L23)=Pre!L23,"RF","LF"))),"") ->  | J23: =IFERROR(INDEX('Core-Data'!$U$2:$U$982,MATCH(D23,'Core-Data'!$A$2:$A$982,0)),TRUE) -> TRUE | K23: FALSE | L23: =IF(J23=FALSE,FALSE,IF(AND('Your Roto Auction'!$Q$6="Hide Drafted Players",K23=TRUE),FALSE,CHOOSE($I$1,TRUE,OR(RIGHT('Your Roto Auction'!$Q$5,LEN('Your Roto Auction'!$Q$5)-11)=H23,IF(RIGHT('Your Roto Auction'!$Q$5,LEN('Your Roto Auction'!$Q$5)-11)<>"C",NOT(ISERROR(SEARCH(RIGHT('Your Roto Auction'!$Q$5,LEN('Your Roto Auction'!$Q$5)-11),Pre!$CB23))),AND(NOT(ISERROR(SEARCH(RIGHT('Your Roto Auction'!$Q$5,LEN('Your Roto Auction'!$Q$5)-11),Pre!$CB23))),ISERROR(SEARCH("CF",Pre!$CB23)))),RIGHT('Your Roto Auction'!$Q$5,LEN('Your Roto Auction'!$Q$5)-11)=Pre!BP23),OR(H23="1B",H23="3B",ISNUMBER(SEARCH("1B",Pre!$CB23)),ISNUMBER(SEARCH("3B",Pre!$CB23))),OR(H23="2B",H23="SS",ISNUMBER(SEARCH("2B",Pre!$CB23)),ISNUMBER(SEARCH("SS",Pre!$CB23))),OR(H23="1B",H23="3B",H23="2B",H23="SS",ISNUMBER(SEARCH("1B",Pre!$CB23)),ISNUMBER(SEARCH("3B",Pre!$CB23)),ISNUMBER(SEARCH("2B",Pre!$CB23)),ISNUMBER(SEARCH("SS",Pre!$CB23))),OR(H23="SP",H23="RP",ISNUMBER(SEARCH("SP",Pre!$CB23)),ISNUMBER(SEARCH("RP",Pre!$CB23))),AND(H23<>"RP",H23<>"SP",NOT(ISNUMBER(SEARCH("RP",Pre!$CB23))),NOT(ISNUMBER(SEARCH("SP",Pre!$CB23)))),OR(H23="SP",H23="RP",ISNUMBER(SEARCH("SP",Pre!$CB23)),ISNUMBER(SEARCH("RP",Pre!$CB23)))))) -> TRUE | M23: =IF('Inflation-Tracking'!J26="",-9999,'Inflation-Tracking'!J26) -> 3.832782753 | N23: =IF(LEFT($D23,15)="Unlisted Player",-1001,'All-WERTH'!AQ23) -> -1.685906747 | O23: =IF('Core-Data'!W23="",9999,'Core-Data'!W23) -> 173 | P23: =IF(LEFT($D23,15)="Unlisted Player",-1001,IF('All-WERTH'!S23="",-1000,'All-WERTH'!S23)) -> -1000 | Q23: =IF(LEFT($D23,15)="Unlisted Player",-1001,IF('All-WERTH'!T23="",-1000,'All-WERTH'!T23)) -> -1000 | R23: =IF(LEFT($D23,15)="Unlisted Player",-1001,IF('All-WERTH'!U23="",-1000,'All-WERTH'!U23)) -> -1000 | S23: =IF(LEFT($D23,15)="Unlisted Player",-1001,IF('All-WERTH'!V23="",-1000,'All-WERTH'!V23)) -> -1000 | T23: =IF(LEFT($D23,15)="Unlisted Player",-1001,IF('All-WERTH'!W23="",-1000,'All-WERTH'!W23)) -> -1000 | U23: =IF(LEFT($D23,15)="Unlisted Player",-1001,IF('All-WERTH'!X23="",-1000,'All-WERTH'!X23)) -> -1000 | V23: =IF(LEFT($D23,15)="Unlisted Player",-1001,IF('All-WERTH'!Y23="",-1000,'All-WERTH'!Y23)) -> -1000 | W23: =IF(LEFT($D23,15)="Unlisted Player",-1001,IF('All-WERTH'!Z23="",-1000,'All-WERTH'!Z23)) -> -1000 | X23: =IF(LEFT($D23,15)="Unlisted Player",-1001,IF('All-WERTH'!AA23="",-1000,'All-WERTH'!AA23)) -> -1000 | Y23: =IF(LEFT($D23,15)="Unlisted Player",-1001,IF('All-WERTH'!AB23="",-1000,'All-WERTH'!AB23)) -> -1000 | Z23: =IF(LEFT($D23,15)="Unlisted Player",-1001,IF('All-WERTH'!AC23="",-1000,'All-WERTH'!AC23)) -> -1000 | AA23: =IF(LEFT($D23,15)="Unlisted Player",-1001,IF('All-WERTH'!AD23="",-1000,'All-WERTH'!AD23)) -> -1000 | AB23: =IF(LEFT($D23,15)="Unlisted Player",-1001,IF('All-WERTH'!AE23="",-1000,'All-WERTH'!AE23)) -> -1.442756866 | AC23: =IF(LEFT($D23,15)="Unlisted Player",-1001,IF('All-WERTH'!AF23="",-1000,'All-WERTH'!AF23)) -> 2.015956107 | AD23: =IF(LEFT($D23,15)="Unlisted Player",-1001,IF('All-WERTH'!AG23="",-1000,'All-WERTH'!AG23)) -> -1.520363935 | AE23: =IF(LEFT($D23,15)="Unlisted Player",-1001,IF('All-WERTH'!AH23="",-1000,'All-WERTH'!AH23)) -> -0.3268299708 | AF23: =IF(LEFT($D23,15)="Unlisted Player",-1001,IF('All-WERTH'!AI23="",-1000,'All-WERTH'!AI23)) -> -0.4119120812 | AG23: =IF(LEFT($D23,15)="Unlisted Player",-1001,IF('All-WERTH'!AJ23="",-1000,'All-WERTH'!AJ23)) -> -1000 | AH23: =IF(LEFT($D23,15)="Unlisted Player",-1001,IF('All-WERTH'!AK23="",-1000,'All-WERTH'!AK23)) -> -1000 | AI23: =IF(LEFT($D23,15)="Unlisted Player",-1001,IF('All-WERTH'!AL23="",-1000,'All-WERTH'!AL23)) -> -1000 | AJ23: =IF(LEFT($D23,15)="Unlisted Player",-1001,IF('All-WERTH'!AM23="",-1000,'All-WERTH'!AM23)) -> -1000 | AK23: =IF(LEFT($D23,15)="Unlisted Player",-1001,IF('All-WERTH'!AN23="",-1000,'All-WERTH'!AN23)) -> -1000 | AL23: =IF(LEFT($D23,15)="Unlisted Player",-1001,IF('All-WERTH'!AO23="",-1000,'All-WERTH'!AO23)) -> -1000 | AM23: =IF(LEFT($D23,15)="Unlisted Player",-1001,IF('All-WERTH'!AP23="",-1000,'All-WERTH'!AP23)) -> -1000 | AN23: =IF(LEFT($D23,15)="Unlisted Player",-1001,'All-WERTH'!AT23) -> 1.385147056
A24: Yoshinobu Yamamoto | B24: =IFERROR(INDEX($A$1:$A$977,SMALL(IF($A$1:$A$977<>"",ROW($A$1:$A$977)),ROW(A23))),"") -> Yoshinobu Yamamoto | C24: =IFERROR(IF(L24=FALSE,"",CHOOSE(MATCH(RIGHT('Your Roto Auction'!$Q$4,LEN('Your Roto Auction'!$Q$4)-8),$M$1:$AN$1,0),1+SUMPRODUCT(($L$2:$L$978=TRUE)*($M$2:$M$978>M24))+COUNTIFS($L$2:L24,L24,$M$2:M24,M24)-1,1+SUMPRODUCT(($L$2:$L$978=TRUE)*($N$2:$N$978>N24))+COUNTIFS($L$2:L24,L24,$N$2:N24,N24)-1,1+SUMPRODUCT(($L$2:$L$978=TRUE)*($O$2:$O$978<O24))+COUNTIFS($L$2:L24,L24,$O$2:O24,O24)-1,1+SUMPRODUCT(($L$2:$L$978=TRUE)*($P$2:$P$978>P24))+COUNTIFS($L$2:L24,L24,$P$2:P24,P24)-1,1+SUMPRODUCT(($L$2:$L$978=TRUE)*($Q$2:$Q$978>Q24))+COUNTIFS($L$2:L24,L24,$Q$2:Q24,Q24)-1,1+SUMPRODUCT(($L$2:$L$978=TRUE)*($R$2:$R$978>R24))+COUNTIFS($L$2:L24,L24,$R$2:R24,R24)-1,1+SUMPRODUCT(($L$2:$L$978=TRUE)*($S$2:$S$978>S24))+COUNTIFS($L$2:L24,L24,$S$2:S24,S24)-1,1+SUMPRODUCT(($L$2:$L$978=TRUE)*($T$2:$T$978>T24))+COUNTIFS($L$2:L24,L24,$T$2:T24,T24)-1,1+SUMPRODUCT(($L$2:$L$978=TRUE)*($U$2:$U$978>U24))+COUNTIFS($L$2:L24,L24,$U$2:U24,U24)-1,1+SUMPRODUCT(($L$2:$L$978=TRUE)*($V$2:$V$978>V24))+COUNTIFS($L$2:L24,L24,$V$2:V24,V24)-1,1+SUMPRODUCT(($L$2:$L$978=TRUE)*($W$2:$W$978>W24))+COUNTIFS($L$2:L24,L24,$W$2:W24,W24)-1,1+SUMPRODUCT(($L$2:$L$978=TRUE)*($X$2:$X$978>X24))+COUNTIFS($L$2:L24,L24,$X$2:X24,X24)-1,1+SUMPRODUCT(($L$2:$L$978=TRUE)*($Y$2:$Y$978>Y24))+COUNTIFS($L$2:L24,L24,$Y$2:Y24,Y24)-1,1+SUMPRODUCT(($L$2:$L$978=TRUE)*($Z$2:$Z$978>Z24))+COUNTIFS($L$2:L24,L24,$Z$2:Z24,Z24)-1,1+SUMPRODUCT(($L$2:$L$978=TRUE)*($AA$2:$AA$978>AA24))+COUNTIFS($L$2:L24,L24,$AA$2:AA24,AA24)-1,1+SUMPRODUCT(($L$2:$L$978=TRUE)*($AB$2:$AB$978>AB24))+COUNTIFS($L$2:L24,L24,$AB$2:AB24,AB24)-1,1+SUMPRODUCT(($L$2:$L$978=TRUE)*($AC$2:$AC$978>AC24))+COUNTIFS($L$2:L24,L24,$AC$2:AC24,AC24)-1,1+SUMPRODUCT(($L$2:$L$978=TRUE)*($AD$2:$AD$978>AD24))+COUNTIFS($L$2:L24,L24,$AD$2:AD24,AD24)-1,1+SUMPRODUCT(($L$2:$L$978=TRUE)*($AE$2:$AE$978>AE24))+COUNTIFS($L$2:L24,L24,$AE$2:AE24,AE24)-1,1+SUMPRODUCT(($L$2:$L$978=TRUE)*($AF$2:$AF$978>AF24))+COUNTIFS($L$2:L24,L24,$AF$2:AF24,AF24)-1,1+SUMPRODUCT(($L$2:$L$978=TRUE)*($AG$2:$AG$978>AG24))+COUNTIFS($L$2:L24,L24,$AG$2:AG24,AG24)-1,1+SUMPRODUCT(($L$2:$L$978=TRUE)*($AH$2:$AH$978>AH24))+COUNTIFS($L$2:L24,L24,$AH$2:AH24,AH24)-1,1+SUMPRODUCT(($L$2:$L$978=TRUE)*($AI$2:$AI$978>AI24))+COUNTIFS($L$2:L24,L24,$AI$2:AI24,AI24)-1,1+SUMPRODUCT(($L$2:$L$978=TRUE)*($AJ$2:$AJ$978>AJ24))+COUNTIFS($L$2:L24,L24,$AJ$2:AJ24,AJ24)-1,1+SUMPRODUCT(($L$2:$L$978=TRUE)*($AK$2:$AK$978>AK24))+COUNTIFS($L$2:L24,L24,$AK$2:AK24,AK24)-1,1+SUMPRODUCT(($L$2:$L$978=TRUE)*($AL$2:$AL$978>AL24))+COUNTIFS($L$2:L24,L24,$AL$2:AL24,AL24)-1,1+SUMPRODUCT(($L$2:$L$978=TRUE)*($AM$2:$AM$978>AM24))+COUNTIFS($L$2:L24,L24,$AM$2:AM24,AM24)-1,1+SUMPRODUCT(($L$2:$L$978=TRUE)*($AN$2:$AN$978>AN24))+COUNTIFS($L$2:L24,L24,$AN$2:AN24,AN24)-1)),"") -> 741 | D24: Adael Amador | E24: =IFERROR(INDEX('Auction Log'!$C$4:$C$806,MATCH(D24,'Auction Log'!$B$4:$B$806,0)),"") ->  | F24: =IFERROR(INDEX('Core-Data'!$C$2:$C$982,MATCH(D24,'Core-Data'!$A$2:$A$982,0)),"") -> SS | H24: SS | I24: =IF(AND(F24="OF",'Guts-2'!$N$9=0),IF(MAX(Pre!J24:L24)=Pre!J24,"LF",IF(MAX(Pre!J24:L24)=Pre!K24,"CF",IF(MAX(Pre!J24:L24)=Pre!L24,"RF","LF"))),"") ->  | J24: =IFERROR(INDEX('Core-Data'!$U$2:$U$982,MATCH(D24,'Core-Data'!$A$2:$A$982,0)),TRUE) -> TRUE | K24: FALSE | L24: =IF(J24=FALSE,FALSE,IF(AND('Your Roto Auction'!$Q$6="Hide Drafted Players",K24=TRUE),FALSE,CHOOSE($I$1,TRUE,OR(RIGHT('Your Roto Auction'!$Q$5,LEN('Your Roto Auction'!$Q$5)-11)=H24,IF(RIGHT('Your Roto Auction'!$Q$5,LEN('Your Roto Auction'!$Q$5)-11)<>"C",NOT(ISERROR(SEARCH(RIGHT('Your Roto Auction'!$Q$5,LEN('Your Roto Auction'!$Q$5)-11),Pre!$CB24))),AND(NOT(ISERROR(SEARCH(RIGHT('Your Roto Auction'!$Q$5,LEN('Your Roto Auction'!$Q$5)-11),Pre!$CB24))),ISERROR(SEARCH("CF",Pre!$CB24)))),RIGHT('Your Roto Auction'!$Q$5,LEN('Your Roto Auction'!$Q$5)-11)=Pre!BP24),OR(H24="1B",H24="3B",ISNUMBER(SEARCH("1B",Pre!$CB24)),ISNUMBER(SEARCH("3B",Pre!$CB24))),OR(H24="2B",H24="SS",ISNUMBER(SEARCH("2B",Pre!$CB24)),ISNUMBER(SEARCH("SS",Pre!$CB24))),OR(H24="1B",H24="3B",H24="2B",H24="SS",ISNUMBER(SEARCH("1B",Pre!$CB24)),ISNUMBER(SEARCH("3B",Pre!$CB24)),ISNUMBER(SEARCH("2B",Pre!$CB24)),ISNUMBER(SEARCH("SS",Pre!$CB24))),OR(H24="SP",H24="RP",ISNUMBER(SEARCH("SP",Pre!$CB24)),ISNUMBER(SEARCH("RP",Pre!$CB24))),AND(H24<>"RP",H24<>"SP",NOT(ISNUMBER(SEARCH("RP",Pre!$CB24))),NOT(ISNUMBER(SEARCH("SP",Pre!$CB24)))),OR(H24="SP",H24="RP",ISNUMBER(SEARCH("SP",Pre!$CB24)),ISNUMBER(SEARCH("RP",Pre!$CB24)))))) -> TRUE | M24: =IF('Inflation-Tracking'!J27="",-9999,'Inflation-Tracking'!J27) -> -9999 | N24: =IF(LEFT($D24,15)="Unlisted Player",-1001,'All-WERTH'!AQ24) -> -1000 | O24: =IF('Core-Data'!W24="",9999,'Core-Data'!W24) -> 633 | P24: =IF(LEFT($D24,15)="Unlisted Player",-1001,IF('All-WERTH'!S24="",-1000,'All-WERTH'!S24)) -> -1000 | Q24: =IF(LEFT($D24,15)="Unlisted Player",-1001,IF('All-WERTH'!T24="",-1000,'All-WERTH'!T24)) -> -1000 | R24: =IF(LEFT($D24,15)="Unlisted Player",-1001,IF('All-WERTH'!U24="",-1000,'All-WERTH'!U24)) -> -1000 | S24: =IF(LEFT($D24,15)="Unlisted Player",-1001,IF('All-WERTH'!V24="",-1000,'All-WERTH'!V24)) -> -1000 | T24: =IF(LEFT($D24,15)="Unlisted Player",-1001,IF('All-WERTH'!W24="",-1000,'All-WERTH'!W24)) -> -1000 | U24: =IF(LEFT($D24,15)="Unlisted Player",-1001,IF('All-WERTH'!X24="",-1000,'All-WERTH'!X24)) -> -1000 | V24: =IF(LEFT($D24,15)="Unlisted Player",-1001,IF('All-WERTH'!Y24="",-1000,'All-WERTH'!Y24)) -> -1000 | W24: =IF(LEFT($D24,15)="Unlisted Player",-1001,IF('All-WERTH'!Z24="",-1000,'All-WERTH'!Z24)) -> -1000 | X24: =IF(LEFT($D24,15)="Unlisted Player",-1001,IF('All-WERTH'!AA24="",-1000,'All-WERTH'!AA24)) -> -1000 | Y24: =IF(LEFT($D24,15)="Unlisted Player",-1001,IF('All-WERTH'!AB24="",-1000,'All-WERTH'!AB24)) -> -1000 | Z24: =IF(LEFT($D24,15)="Unlisted Player",-1001,IF('All-WERTH'!AC24="",-1000,'All-WERTH'!AC24)) -> -1000 | AA24: =IF(LEFT($D24,15)="Unlisted Player",-1001,IF('All-WERTH'!AD24="",-1000,'All-WERTH'!AD24)) -> -1000 | AB24: =IF(LEFT($D24,15)="Unlisted Player",-1001,IF('All-WERTH'!AE24="",-1000,'All-WERTH'!AE24)) -> -1000 | AC24: =IF(LEFT($D24,15)="Unlisted Player",-1001,IF('All-WERTH'!AF24="",-1000,'All-WERTH'!AF24)) -> -1000 | AD24: =IF(LEFT($D24,15)="Unlisted Player",-1001,IF('All-WERTH'!AG24="",-1000,'All-WERTH'!AG24)) -> -1000 | AE24: =IF(LEFT($D24,15)="Unlisted Player",-1001,IF('All-WERTH'!AH24="",-1000,'All-WERTH'!AH24)) -> -1000 | AF24: =IF(LEFT($D24,15)="Unlisted Player",-1001,IF('All-WERTH'!AI24="",-1000,'All-WERTH'!AI24)) -> -1000 | AG24: =IF(LEFT($D24,15)="Unlisted Player",-1001,IF('All-WERTH'!AJ24="",-1000,'All-WERTH'!AJ24)) -> -1000 | AH24: =IF(LEFT($D24,15)="Unlisted Player",-1001,IF('All-WERTH'!AK24="",-1000,'All-WERTH'!AK24)) -> -1000 | AI24: =IF(LEFT($D24,15)="Unlisted Player",-1001,IF('All-WERTH'!AL24="",-1000,'All-WERTH'!AL24)) -> -1000 | AJ24: =IF(LEFT($D24,15)="Unlisted Player",-1001,IF('All-WERTH'!AM24="",-1000,'All-WERTH'!AM24)) -> -1000 | AK24: =IF(LEFT($D24,15)="Unlisted Player",-1001,IF('All-WERTH'!AN24="",-1000,'All-WERTH'!AN24)) -> -1000 | AL24: =IF(LEFT($D24,15)="Unlisted Player",-1001,IF('All-WERTH'!AO24="",-1000,'All-WERTH'!AO24)) -> -1000 | AM24: =IF(LEFT($D24,15)="Unlisted Player",-1001,IF('All-WERTH'!AP24="",-1000,'All-WERTH'!AP24)) -> -1000 | AN24: =IF(LEFT($D24,15)="Unlisted Player",-1001,'All-WERTH'!AT24) -> -996.4199373
A25: Luis Robert | B25: =IFERROR(INDEX($A$1:$A$977,SMALL(IF($A$1:$A$977<>"",ROW($A$1:$A$977)),ROW(A24))),"") -> Luis Robert | C25: =IFERROR(IF(L25=FALSE,"",CHOOSE(MATCH(RIGHT('Your Roto Auction'!$Q$4,LEN('Your Roto Auction'!$Q$4)-8),$M$1:$AN$1,0),1+SUMPRODUCT(($L$2:$L$978=TRUE)*($M$2:$M$978>M25))+COUNTIFS($L$2:L25,L25,$M$2:M25,M25)-1,1+SUMPRODUCT(($L$2:$L$978=TRUE)*($N$2:$N$978>N25))+COUNTIFS($L$2:L25,L25,$N$2:N25,N25)-1,1+SUMPRODUCT(($L$2:$L$978=TRUE)*($O$2:$O$978<O25))+COUNTIFS($L$2:L25,L25,$O$2:O25,O25)-1,1+SUMPRODUCT(($L$2:$L$978=TRUE)*($P$2:$P$978>P25))+COUNTIFS($L$2:L25,L25,$P$2:P25,P25)-1,1+SUMPRODUCT(($L$2:$L$978=TRUE)*($Q$2:$Q$978>Q25))+COUNTIFS($L$2:L25,L25,$Q$2:Q25,Q25)-1,1+SUMPRODUCT(($L$2:$L$978=TRUE)*($R$2:$R$978>R25))+COUNTIFS($L$2:L25,L25,$R$2:R25,R25)-1,1+SUMPRODUCT(($L$2:$L$978=TRUE)*($S$2:$S$978>S25))+COUNTIFS($L$2:L25,L25,$S$2:S25,S25)-1,1+SUMPRODUCT(($L$2:$L$978=TRUE)*($T$2:$T$978>T25))+COUNTIFS($L$2:L25,L25,$T$2:T25,T25)-1,1+SUMPRODUCT(($L$2:$L$978=TRUE)*($U$2:$U$978>U25))+COUNTIFS($L$2:L25,L25,$U$2:U25,U25)-1,1+SUMPRODUCT(($L$2:$L$978=TRUE)*($V$2:$V$978>V25))+COUNTIFS($L$2:L25,L25,$V$2:V25,V25)-1,1+SUMPRODUCT(($L$2:$L$978=TRUE)*($W$2:$W$978>W25))+COUNTIFS($L$2:L25,L25,$W$2:W25,W25)-1,1+SUMPRODUCT(($L$2:$L$978=TRUE)*($X$2:$X$978>X25))+COUNTIFS($L$2:L25,L25,$X$2:X25,X25)-1,1+SUMPRODUCT(($L$2:$L$978=TRUE)*($Y$2:$Y$978>Y25))+COUNTIFS($L$2:L25,L25,$Y$2:Y25,Y25)-1,1+SUMPRODUCT(($L$2:$L$978=TRUE)*($Z$2:$Z$978>Z25))+COUNTIFS($L$2:L25,L25,$Z$2:Z25,Z25)-1,1+SUMPRODUCT(($L$2:$L$978=TRUE)*($AA$2:$AA$978>AA25))+COUNTIFS($L$2:L25,L25,$AA$2:AA25,AA25)-1,1+SUMPRODUCT(($L$2:$L$978=TRUE)*($AB$2:$AB$978>AB25))+COUNTIFS($L$2:L25,L25,$AB$2:AB25,AB25)-1,1+SUMPRODUCT(($L$2:$L$978=TRUE)*($AC$2:$AC$978>AC25))+COUNTIFS($L$2:L25,L25,$AC$2:AC25,AC25)-1,1+SUMPRODUCT(($L$2:$L$978=TRUE)*($AD$2:$AD$978>AD25))+COUNTIFS($L$2:L25,L25,$AD$2:AD25,AD25)-1,1+SUMPRODUCT(($L$2:$L$978=TRUE)*($AE$2:$AE$978>AE25))+COUNTIFS($L$2:L25,L25,$AE$2:AE25,AE25)-1,1+SUMPRODUCT(($L$2:$L$978=TRUE)*($AF$2:$AF$978>AF25))+COUNTIFS($L$2:L25,L25,$AF$2:AF25,AF25)-1,1+SUMPRODUCT(($L$2:$L$978=TRUE)*($AG$2:$AG$978>AG25))+COUNTIFS($L$2:L25,L25,$AG$2:AG25,AG25)-1,1+SUMPRODUCT(($L$2:$L$978=TRUE)*($AH$2:$AH$978>AH25))+COUNTIFS($L$2:L25,L25,$AH$2:AH25,AH25)-1,1+SUMPRODUCT(($L$2:$L$978=TRUE)*($AI$2:$AI$978>AI25))+COUNTIFS($L$2:L25,L25,$AI$2:AI25,AI25)-1,1+SUMPRODUCT(($L$2:$L$978=TRUE)*($AJ$2:$AJ$978>AJ25))+COUNTIFS($L$2:L25,L25,$AJ$2:AJ25,AJ25)-1,1+SUMPRODUCT(($L$2:$L$978=TRUE)*($AK$2:$AK$978>AK25))+COUNTIFS($L$2:L25,L25,$AK$2:AK25,AK25)-1,1+SUMPRODUCT(($L$2:$L$978=TRUE)*($AL$2:$AL$978>AL25))+COUNTIFS($L$2:L25,L25,$AL$2:AL25,AL25)-1,1+SUMPRODUCT(($L$2:$L$978=TRUE)*($AM$2:$AM$978>AM25))+COUNTIFS($L$2:L25,L25,$AM$2:AM25,AM25)-1,1+SUMPRODUCT(($L$2:$L$978=TRUE)*($AN$2:$AN$978>AN25))+COUNTIFS($L$2:L25,L25,$AN$2:AN25,AN25)-1)),"") -> 720 | D25: Miguel Amaya | E25: =IFERROR(INDEX('Auction Log'!$C$4:$C$806,MATCH(D25,'Auction Log'!$B$4:$B$806,0)),"") ->  | F25: =IFERROR(INDEX('Core-Data'!$C$2:$C$982,MATCH(D25,'Core-Data'!$A$2:$A$982,0)),"") -> C | H25: C | I25: =IF(AND(F25="OF",'Guts-2'!$N$9=0),IF(MAX(Pre!J25:L25)=Pre!J25,"LF",IF(MAX(Pre!J25:L25)=Pre!K25,"CF",IF(MAX(Pre!J25:L25)=Pre!L25,"RF","LF"))),"") ->  | J25: =IFERROR(INDEX('Core-Data'!$U$2:$U$982,MATCH(D25,'Core-Data'!$A$2:$A$982,0)),TRUE) -> TRUE | K25: FALSE | L25: =IF(J25=FALSE,FALSE,IF(AND('Your Roto Auction'!$Q$6="Hide Drafted Players",K25=TRUE),FALSE,CHOOSE($I$1,TRUE,OR(RIGHT('Your Roto Auction'!$Q$5,LEN('Your Roto Auction'!$Q$5)-11)=H25,IF(RIGHT('Your Roto Auction'!$Q$5,LEN('Your Roto Auction'!$Q$5)-11)<>"C",NOT(ISERROR(SEARCH(RIGHT('Your Roto Auction'!$Q$5,LEN('Your Roto Auction'!$Q$5)-11),Pre!$CB25))),AND(NOT(ISERROR(SEARCH(RIGHT('Your Roto Auction'!$Q$5,LEN('Your Roto Auction'!$Q$5)-11),Pre!$CB25))),ISERROR(SEARCH("CF",Pre!$CB25)))),RIGHT('Your Roto Auction'!$Q$5,LEN('Your Roto Auction'!$Q$5)-11)=Pre!BP25),OR(H25="1B",H25="3B",ISNUMBER(SEARCH("1B",Pre!$CB25)),ISNUMBER(SEARCH("3B",Pre!$CB25))),OR(H25="2B",H25="SS",ISNUMBER(SEARCH("2B",Pre!$CB25)),ISNUMBER(SEARCH("SS",Pre!$CB25))),OR(H25="1B",H25="3B",H25="2B",H25="SS",ISNUMBER(SEARCH("1B",Pre!$CB25)),ISNUMBER(SEARCH("3B",Pre!$CB25)),ISNUMBER(SEARCH("2B",Pre!$CB25)),ISNUMBER(SEARCH("SS",Pre!$CB25))),OR(H25="SP",H25="RP",ISNUMBER(SEARCH("SP",Pre!$CB25)),ISNUMBER(SEARCH("RP",Pre!$CB25))),AND(H25<>"RP",H25<>"SP",NOT(ISNUMBER(SEARCH("RP",Pre!$CB25))),NOT(ISNUMBER(SEARCH("SP",Pre!$CB25)))),OR(H25="SP",H25="RP",ISNUMBER(SEARCH("SP",Pre!$CB25)),ISNUMBER(SEARCH("RP",Pre!$CB25)))))) -> TRUE | M25: =IF('Inflation-Tracking'!J28="",-9999,'Inflation-Tracking'!J28) -> -26.71967536 | N25: =IF(LEFT($D25,15)="Unlisted Player",-1001,'All-WERTH'!AQ25) -> -11.58681952 | O25: =IF('Core-Data'!W25="",9999,'Core-Data'!W25) -> 560 | P25: =IF(LEFT($D25,15)="Unlisted Player",-1001,IF('All-WERTH'!S25="",-1000,'All-WERTH'!S25)) -> -1.381140412 | Q25: =IF(LEFT($D25,15)="Unlisted Player",-1001,IF('All-WERTH'!T25="",-1000,'All-WERTH'!T25)) -> -2.075482451 | R25: =IF(LEFT($D25,15)="Unlisted Player",-1001,IF('All-WERTH'!U25="",-1000,'All-WERTH'!U25)) -> -3.740696857 | S25: =IF(LEFT($D25,15)="Unlisted Player",-1001,IF('All-WERTH'!V25="",-1000,'All-WERTH'!V25)) -> -3.335741619 | T25: =IF(LEFT($D25,15)="Unlisted Player",-1001,IF('All-WERTH'!W25="",-1000,'All-WERTH'!W25)) -> -1.053758187 | U25: =IF(LEFT($D25,15)="Unlisted Player",-1001,IF('All-WERTH'!X25="",-1000,'All-WERTH'!X25)) -> -1000 | V25: =IF(LEFT($D25,15)="Unlisted Player",-1001,IF('All-WERTH'!Y25="",-1000,'All-WERTH'!Y25)) -> -1000 | W25: =IF(LEFT($D25,15)="Unlisted Player",-1001,IF('All-WERTH'!Z25="",-1000,'All-WERTH'!Z25)) -> -1000 | X25: =IF(LEFT($D25,15)="Unlisted Player",-1001,IF('All-WERTH'!AA25="",-1000,'All-WERTH'!AA25)) -> -1000 | Y25: =IF(LEFT($D25,15)="Unlisted Player",-1001,IF('All-WERTH'!AB25="",-1000,'All-WERTH'!AB25)) -> -1000 | Z25: =IF(LEFT($D25,15)="Unlisted Player",-1001,IF('All-WERTH'!AC25="",-1000,'All-WERTH'!AC25)) -> -1000 | AA25: =IF(LEFT($D25,15)="Unlisted Player",-1001,IF('All-WERTH'!AD25="",-1000,'All-WERTH'!AD25)) -> -1000 | AB25: =IF(LEFT($D25,15)="Unlisted Player",-1001,IF('All-WERTH'!AE25="",-1000,'All-WERTH'!AE25)) -> -1000 | AC25: =IF(LEFT($D25,15)="Unlisted Player",-1001,IF('All-WERTH'!AF25="",-1000,'All-WERTH'!AF25)) -> -1000 | AD25: =IF(LEFT($D25,15)="Unlisted Player",-1001,IF('All-WERTH'!AG25="",-1000,'All-WERTH'!AG25)) -> -1000 | AE25: =IF(LEFT($D25,15)="Unlisted Player",-1001,IF('All-WERTH'!AH25="",-1000,'All-WERTH'!AH25)) -> -1000 | AF25: =IF(LEFT($D25,15)="Unlisted Player",-1001,IF('All-WERTH'!AI25="",-1000,'All-WERTH'!AI25)) -> -1000 | AG25: =IF(LEFT($D25,15)="Unlisted Player",-1001,IF('All-WERTH'!AJ25="",-1000,'All-WERTH'!AJ25)) -> -1000 | AH25: =IF(LEFT($D25,15)="Unlisted Player",-1001,IF('All-WERTH'!AK25="",-1000,'All-WERTH'!AK25)) -> -1000 | AI25: =IF(LEFT($D25,15)="Unlisted Player",-1001,IF('All-WERTH'!AL25="",-1000,'All-WERTH'!AL25)) -> -1000 | AJ25: =IF(LEFT($D25,15)="Unlisted Player",-1001,IF('All-WERTH'!AM25="",-1000,'All-WERTH'!AM25)) -> -1000 | AK25: =IF(LEFT($D25,15)="Unlisted Player",-1001,IF('All-WERTH'!AN25="",-1000,'All-WERTH'!AN25)) -> -1000 | AL25: =IF(LEFT($D25,15)="Unlisted Player",-1001,IF('All-WERTH'!AO25="",-1000,'All-WERTH'!AO25)) -> -1000 | AM25: =IF(LEFT($D25,15)="Unlisted Player",-1001,IF('All-WERTH'!AP25="",-1000,'All-WERTH'!AP25)) -> -1000 | AN25: =IF(LEFT($D25,15)="Unlisted Player",-1001,'All-WERTH'!AT25) -> -7.175103703
A26: Bryce Harper | B26: =IFERROR(INDEX($A$1:$A$977,SMALL(IF($A$1:$A$977<>"",ROW($A$1:$A$977)),ROW(A25))),"") -> Bryce Harper | C26: =IFERROR(IF(L26=FALSE,"",CHOOSE(MATCH(RIGHT('Your Roto Auction'!$Q$4,LEN('Your Roto Auction'!$Q$4)-8),$M$1:$AN$1,0),1+SUMPRODUCT(($L$2:$L$978=TRUE)*($M$2:$M$978>M26))+COUNTIFS($L$2:L26,L26,$M$2:M26,M26)-1,1+SUMPRODUCT(($L$2:$L$978=TRUE)*($N$2:$N$978>N26))+COUNTIFS($L$2:L26,L26,$N$2:N26,N26)-1,1+SUMPRODUCT(($L$2:$L$978=TRUE)*($O$2:$O$978<O26))+COUNTIFS($L$2:L26,L26,$O$2:O26,O26)-1,1+SUMPRODUCT(($L$2:$L$978=TRUE)*($P$2:$P$978>P26))+COUNTIFS($L$2:L26,L26,$P$2:P26,P26)-1,1+SUMPRODUCT(($L$2:$L$978=TRUE)*($Q$2:$Q$978>Q26))+COUNTIFS($L$2:L26,L26,$Q$2:Q26,Q26)-1,1+SUMPRODUCT(($L$2:$L$978=TRUE)*($R$2:$R$978>R26))+COUNTIFS($L$2:L26,L26,$R$2:R26,R26)-1,1+SUMPRODUCT(($L$2:$L$978=TRUE)*($S$2:$S$978>S26))+COUNTIFS($L$2:L26,L26,$S$2:S26,S26)-1,1+SUMPRODUCT(($L$2:$L$978=TRUE)*($T$2:$T$978>T26))+COUNTIFS($L$2:L26,L26,$T$2:T26,T26)-1,1+SUMPRODUCT(($L$2:$L$978=TRUE)*($U$2:$U$978>U26))+COUNTIFS($L$2:L26,L26,$U$2:U26,U26)-1,1+SUMPRODUCT(($L$2:$L$978=TRUE)*($V$2:$V$978>V26))+COUNTIFS($L$2:L26,L26,$V$2:V26,V26)-1,1+SUMPRODUCT(($L$2:$L$978=TRUE)*($W$2:$W$978>W26))+COUNTIFS($L$2:L26,L26,$W$2:W26,W26)-1,1+SUMPRODUCT(($L$2:$L$978=TRUE)*($X$2:$X$978>X26))+COUNTIFS($L$2:L26,L26,$X$2:X26,X26)-1,1+SUMPRODUCT(($L$2:$L$978=TRUE)*($Y$2:$Y$978>Y26))+COUNTIFS($L$2:L26,L26,$Y$2:Y26,Y26)-1,1+SUMPRODUCT(($L$2:$L$978=TRUE)*($Z$2:$Z$978>Z26))+COUNTIFS($L$2:L26,L26,$Z$2:Z26,Z26)-1,1+SUMPRODUCT(($L$2:$L$978=TRUE)*($AA$2:$AA$978>AA26))+COUNTIFS($L$2:L26,L26,$AA$2:AA26,AA26)-1,1+SUMPRODUCT(($L$2:$L$978=TRUE)*($AB$2:$AB$978>AB26))+COUNTIFS($L$2:L26,L26,$AB$2:AB26,AB26)-1,1+SUMPRODUCT(($L$2:$L$978=TRUE)*($AC$2:$AC$978>AC26))+COUNTIFS($L$2:L26,L26,$AC$2:AC26,AC26)-1,1+SUMPRODUCT(($L$2:$L$978=TRUE)*($AD$2:$AD$978>AD26))+COUNTIFS($L$2:L26,L26,$AD$2:AD26,AD26)-1,1+SUMPRODUCT(($L$2:$L$978=TRUE)*($AE$2:$AE$978>AE26))+COUNTIFS($L$2:L26,L26,$AE$2:AE26,AE26)-1,1+SUMPRODUCT(($L$2:$L$978=TRUE)*($AF$2:$AF$978>AF26))+COUNTIFS($L$2:L26,L26,$AF$2:AF26,AF26)-1,1+SUMPRODUCT(($L$2:$L$978=TRUE)*($AG$2:$AG$978>AG26))+COUNTIFS($L$2:L26,L26,$AG$2:AG26,AG26)-1,1+SUMPRODUCT(($L$2:$L$978=TRUE)*($AH$2:$AH$978>AH26))+COUNTIFS($L$2:L26,L26,$AH$2:AH26,AH26)-1,1+SUMPRODUCT(($L$2:$L$978=TRUE)*($AI$2:$AI$978>AI26))+COUNTIFS($L$2:L26,L26,$AI$2:AI26,AI26)-1,1+SUMPRODUCT(($L$2:$L$978=TRUE)*($AJ$2:$AJ$978>AJ26))+COUNTIFS($L$2:L26,L26,$AJ$2:AJ26,AJ26)-1,1+SUMPRODUCT(($L$2:$L$978=TRUE)*($AK$2:$AK$978>AK26))+COUNTIFS($L$2:L26,L26,$AK$2:AK26,AK26)-1,1+SUMPRODUCT(($L$2:$L$978=TRUE)*($AL$2:$AL$978>AL26))+COUNTIFS($L$2:L26,L26,$AL$2:AL26,AL26)-1,1+SUMPRODUCT(($L$2:$L$978=TRUE)*($AM$2:$AM$978>AM26))+COUNTIFS($L$2:L26,L26,$AM$2:AM26,AM26)-1,1+SUMPRODUCT(($L$2:$L$978=TRUE)*($AN$2:$AN$978>AN26))+COUNTIFS($L$2:L26,L26,$AN$2:AN26,AN26)-1)),"") -> 280 | D26: Tim Anderson | E26: =IFERROR(INDEX('Auction Log'!$C$4:$C$806,MATCH(D26,'Auction Log'!$B$4:$B$806,0)),"") ->  | F26: =IFERROR(INDEX('Core-Data'!$C$2:$C$982,MATCH(D26,'Core-Data'!$A$2:$A$982,0)),"") -> SS | H26: SS | I26: =IF(AND(F26="OF",'Guts-2'!$N$9=0),IF(MAX(Pre!J26:L26)=Pre!J26,"LF",IF(MAX(Pre!J26:L26)=Pre!K26,"CF",IF(MAX(Pre!J26:L26)=Pre!L26,"RF","LF"))),"") ->  | J26: =IFERROR(INDEX('Core-Data'!$U$2:$U$982,MATCH(D26,'Core-Data'!$A$2:$A$982,0)),TRUE) -> TRUE | K26: FALSE | L26: =IF(J26=FALSE,FALSE,IF(AND('Your Roto Auction'!$Q$6="Hide Drafted Players",K26=TRUE),FALSE,CHOOSE($I$1,TRUE,OR(RIGHT('Your Roto Auction'!$Q$5,LEN('Your Roto Auction'!$Q$5)-11)=H26,IF(RIGHT('Your Roto Auction'!$Q$5,LEN('Your Roto Auction'!$Q$5)-11)<>"C",NOT(ISERROR(SEARCH(RIGHT('Your Roto Auction'!$Q$5,LEN('Your Roto Auction'!$Q$5)-11),Pre!$CB26))),AND(NOT(ISERROR(SEARCH(RIGHT('Your Roto Auction'!$Q$5,LEN('Your Roto Auction'!$Q$5)-11),Pre!$CB26))),ISERROR(SEARCH("CF",Pre!$CB26)))),RIGHT('Your Roto Auction'!$Q$5,LEN('Your Roto Auction'!$Q$5)-11)=Pre!BP26),OR(H26="1B",H26="3B",ISNUMBER(SEARCH("1B",Pre!$CB26)),ISNUMBER(SEARCH("3B",Pre!$CB26))),OR(H26="2B",H26="SS",ISNUMBER(SEARCH("2B",Pre!$CB26)),ISNUMBER(SEARCH("SS",Pre!$CB26))),OR(H26="1B",H26="3B",H26="2B",H26="SS",ISNUMBER(SEARCH("1B",Pre!$CB26)),ISNUMBER(SEARCH("3B",Pre!$CB26)),ISNUMBER(SEARCH("2B",Pre!$CB26)),ISNUMBER(SEARCH("SS",Pre!$CB26))),OR(H26="SP",H26="RP",ISNUMBER(SEARCH("SP",Pre!$CB26)),ISNUMBER(SEARCH("RP",Pre!$CB26))),AND(H26<>"RP",H26<>"SP",NOT(ISNUMBER(SEARCH("RP",Pre!$CB26))),NOT(ISNUMBER(SEARCH("SP",Pre!$CB26)))),OR(H26="SP",H26="RP",ISNUMBER(SEARCH("SP",Pre!$CB26)),ISNUMBER(SEARCH("RP",Pre!$CB26)))))) -> TRUE | M26: =IF('Inflation-Tracking'!J29="",-9999,'Inflation-Tracking'!J29) -> -0.623996485 | N26: =IF(LEFT($D26,15)="Unlisted Player",-1001,'All-WERTH'!AQ26) -> -3.747626058 | O26: =IF('Core-Data'!W26="",9999,'Core-Data'!W26) -> 303 | P26: =IF(LEFT($D26,15)="Unlisted Player",-1001,IF('All-WERTH'!S26="",-1000,'All-WERTH'!S26)) -> 0.9889964138 | Q26: =IF(LEFT($D26,15)="Unlisted Player",-1001,IF('All-WERTH'!T26="",-1000,'All-WERTH'!T26)) -> -2.067097569 | R26: =IF(LEFT($D26,15)="Unlisted Player",-1001,IF('All-WERTH'!U26="",-1000,'All-WERTH'!U26)) -> -0.9896250703 | S26: =IF(LEFT($D26,15)="Unlisted Player",-1001,IF('All-WERTH'!V26="",-1000,'All-WERTH'!V26)) -> -1.981584225 | T26: =IF(LEFT($D26,15)="Unlisted Player",-1001,IF('All-WERTH'!W26="",-1000,'All-WERTH'!W26)) -> 0.3016843929 | U26: =IF(LEFT($D26,15)="Unlisted Player",-1001,IF('All-WERTH'!X26="",-1000,'All-WERTH'!X26)) -> -1000 | V26: =IF(LEFT($D26,15)="Unlisted Player",-1001,IF('All-WERTH'!Y26="",-1000,'All-WERTH'!Y26)) -> -1000 | W26: =IF(LEFT($D26,15)="Unlisted Player",-1001,IF('All-WERTH'!Z26="",-1000,'All-WERTH'!Z26)) -> -1000 | X26: =IF(LEFT($D26,15)="Unlisted Player",-1001,IF('All-WERTH'!AA26="",-1000,'All-WERTH'!AA26)) -> -1000 | Y26: =IF(LEFT($D26,15)="Unlisted Player",-1001,IF('All-WERTH'!AB26="",-1000,'All-WERTH'!AB26)) -> -1000 | Z26: =IF(LEFT($D26,15)="Unlisted Player",-1001,IF('All-WERTH'!AC26="",-1000,'All-WERTH'!AC26)) -> -1000 | AA26: =IF(LEFT($D26,15)="Unlisted Player",-1001,IF('All-WERTH'!AD26="",-1000,'All-WERTH'!AD26)) -> -1000 | AB26: =IF(LEFT($D26,15)="Unlisted Player",-1001,IF('All-WERTH'!AE26="",-1000,'All-WERTH'!AE26)) -> -1000 | AC26: =IF(LEFT($D26,15)="Unlisted Player",-1001,IF('All-WERTH'!AF26="",-1000,'All-WERTH'!AF26)) -> -1000 | AD26: =IF(LEFT($D26,15)="Unlisted Player",-1001,IF('All-WERTH'!AG26="",-1000,'All-WERTH'!AG26)) -> -1000 | AE26: =IF(LEFT($D26,15)="Unlisted Player",-1001,IF('All-WERTH'!AH26="",-1000,'All-WERTH'!AH26)) -> -1000 | AF26: =IF(LEFT($D26,15)="Unlisted Player",-1001,IF('All-WERTH'!AI26="",-1000,'All-WERTH'!AI26)) -> -1000 | AG26: =IF(LEFT($D26,15)="Unlisted Player",-1001,IF('All-WERTH'!AJ26="",-1000,'All-WERTH'!AJ26)) -> -1000 | AH26: =IF(LEFT($D26,15)="Unlisted Player",-1001,IF('All-WERTH'!AK26="",-1000,'All-WERTH'!AK26)) -> -1000 | AI26: =IF(LEFT($D26,15)="Unlisted Player",-1001,IF('All-WERTH'!AL26="",-1000,'All-WERTH'!AL26)) -> -1000 | AJ26: =IF(LEFT($D26,15)="Unlisted Player",-1001,IF('All-WERTH'!AM26="",-1000,'All-WERTH'!AM26)) -> -1000 | AK26: =IF(LEFT($D26,15)="Unlisted Player",-1001,IF('All-WERTH'!AN26="",-1000,'All-WERTH'!AN26)) -> -1000 | AL26: =IF(LEFT($D26,15)="Unlisted Player",-1001,IF('All-WERTH'!AO26="",-1000,'All-WERTH'!AO26)) -> -1000 | AM26: =IF(LEFT($D26,15)="Unlisted Player",-1001,IF('All-WERTH'!AP26="",-1000,'All-WERTH'!AP26)) -> -1000 | AN26: =IF(LEFT($D26,15)="Unlisted Player",-1001,'All-WERTH'!AT26) -> -0.167563394
A27: Marcus Semien | B27: =IFERROR(INDEX($A$1:$A$977,SMALL(IF($A$1:$A$977<>"",ROW($A$1:$A$977)),ROW(A26))),"") -> Marcus Semien | C27: =IFERROR(IF(L27=FALSE,"",CHOOSE(MATCH(RIGHT('Your Roto Auction'!$Q$4,LEN('Your Roto Auction'!$Q$4)-8),$M$1:$AN$1,0),1+SUMPRODUCT(($L$2:$L$978=TRUE)*($M$2:$M$978>M27))+COUNTIFS($L$2:L27,L27,$M$2:M27,M27)-1,1+SUMPRODUCT(($L$2:$L$978=TRUE)*($N$2:$N$978>N27))+COUNTIFS($L$2:L27,L27,$N$2:N27,N27)-1,1+SUMPRODUCT(($L$2:$L$978=TRUE)*($O$2:$O$978<O27))+COUNTIFS($L$2:L27,L27,$O$2:O27,O27)-1,1+SUMPRODUCT(($L$2:$L$978=TRUE)*($P$2:$P$978>P27))+COUNTIFS($L$2:L27,L27,$P$2:P27,P27)-1,1+SUMPRODUCT(($L$2:$L$978=TRUE)*($Q$2:$Q$978>Q27))+COUNTIFS($L$2:L27,L27,$Q$2:Q27,Q27)-1,1+SUMPRODUCT(($L$2:$L$978=TRUE)*($R$2:$R$978>R27))+COUNTIFS($L$2:L27,L27,$R$2:R27,R27)-1,1+SUMPRODUCT(($L$2:$L$978=TRUE)*($S$2:$S$978>S27))+COUNTIFS($L$2:L27,L27,$S$2:S27,S27)-1,1+SUMPRODUCT(($L$2:$L$978=TRUE)*($T$2:$T$978>T27))+COUNTIFS($L$2:L27,L27,$T$2:T27,T27)-1,1+SUMPRODUCT(($L$2:$L$978=TRUE)*($U$2:$U$978>U27))+COUNTIFS($L$2:L27,L27,$U$2:U27,U27)-1,1+SUMPRODUCT(($L$2:$L$978=TRUE)*($V$2:$V$978>V27))+COUNTIFS($L$2:L27,L27,$V$2:V27,V27)-1,1+SUMPRODUCT(($L$2:$L$978=TRUE)*($W$2:$W$978>W27))+COUNTIFS($L$2:L27,L27,$W$2:W27,W27)-1,1+SUMPRODUCT(($L$2:$L$978=TRUE)*($X$2:$X$978>X27))+COUNTIFS($L$2:L27,L27,$X$2:X27,X27)-1,1+SUMPRODUCT(($L$2:$L$978=TRUE)*($Y$2:$Y$978>Y27))+COUNTIFS($L$2:L27,L27,$Y$2:Y27,Y27)-1,1+SUMPRODUCT(($L$2:$L$978=TRUE)*($Z$2:$Z$978>Z27))+COUNTIFS($L$2:L27,L27,$Z$2:Z27,Z27)-1,1+SUMPRODUCT(($L$2:$L$978=TRUE)*($AA$2:$AA$978>AA27))+COUNTIFS($L$2:L27,L27,$AA$2:AA27,AA27)-1,1+SUMPRODUCT(($L$2:$L$978=TRUE)*($AB$2:$AB$978>AB27))+COUNTIFS($L$2:L27,L27,$AB$2:AB27,AB27)-1,1+SUMPRODUCT(($L$2:$L$978=TRUE)*($AC$2:$AC$978>AC27))+COUNTIFS($L$2:L27,L27,$AC$2:AC27,AC27)-1,1+SUMPRODUCT(($L$2:$L$978=TRUE)*($AD$2:$AD$978>AD27))+COUNTIFS($L$2:L27,L27,$AD$2:AD27,AD27)-1,1+SUMPRODUCT(($L$2:$L$978=TRUE)*($AE$2:$AE$978>AE27))+COUNTIFS($L$2:L27,L27,$AE$2:AE27,AE27)-1,1+SUMPRODUCT(($L$2:$L$978=TRUE)*($AF$2:$AF$978>AF27))+COUNTIFS($L$2:L27,L27,$AF$2:AF27,AF27)-1,1+SUMPRODUCT(($L$2:$L$978=TRUE)*($AG$2:$AG$978>AG27))+COUNTIFS($L$2:L27,L27,$AG$2:AG27,AG27)-1,1+SUMPRODUCT(($L$2:$L$978=TRUE)*($AH$2:$AH$978>AH27))+COUNTIFS($L$2:L27,L27,$AH$2:AH27,AH27)-1,1+SUMPRODUCT(($L$2:$L$978=TRUE)*($AI$2:$AI$978>AI27))+COUNTIFS($L$2:L27,L27,$AI$2:AI27,AI27)-1,1+SUMPRODUCT(($L$2:$L$978=TRUE)*($AJ$2:$AJ$978>AJ27))+COUNTIFS($L$2:L27,L27,$AJ$2:AJ27,AJ27)-1,1+SUMPRODUCT(($L$2:$L$978=TRUE)*($AK$2:$AK$978>AK27))+COUNTIFS($L$2:L27,L27,$AK$2:AK27,AK27)-1,1+SUMPRODUCT(($L$2:$L$978=TRUE)*($AL$2:$AL$978>AL27))+COUNTIFS($L$2:L27,L27,$AL$2:AL27,AL27)-1,1+SUMPRODUCT(($L$2:$L$978=TRUE)*($AM$2:$AM$978>AM27))+COUNTIFS($L$2:L27,L27,$AM$2:AM27,AM27)-1,1+SUMPRODUCT(($L$2:$L$978=TRUE)*($AN$2:$AN$978>AN27))+COUNTIFS($L$2:L27,L27,$AN$2:AN27,AN27)-1)),"") -> 363 | D27: Tyler Anderson | E27: =IFERROR(INDEX('Auction Log'!$C$4:$C$806,MATCH(D27,'Auction Log'!$B$4:$B$806,0)),"") ->  | F27: =IFERROR(INDEX('Core-Data'!$C$2:$C$982,MATCH(D27,'Core-Data'!$A$2:$A$982,0)),"") -> SP | H27: SP | I27: =IF(AND(F27="OF",'Guts-2'!$N$9=0),IF(MAX(Pre!J27:L27)=Pre!J27,"LF",IF(MAX(Pre!J27:L27)=Pre!K27,"CF",IF(MAX(Pre!J27:L27)=Pre!L27,"RF","LF"))),"") ->  | J27: =IFERROR(INDEX('Core-Data'!$U$2:$U$982,MATCH(D27,'Core-Data'!$A$2:$A$982,0)),TRUE) -> TRUE | K27: FALSE | L27: =IF(J27=FALSE,FALSE,IF(AND('Your Roto Auction'!$Q$6="Hide Drafted Players",K27=TRUE),FALSE,CHOOSE($I$1,TRUE,OR(RIGHT('Your Roto Auction'!$Q$5,LEN('Your Roto Auction'!$Q$5)-11)=H27,IF(RIGHT('Your Roto Auction'!$Q$5,LEN('Your Roto Auction'!$Q$5)-11)<>"C",NOT(ISERROR(SEARCH(RIGHT('Your Roto Auction'!$Q$5,LEN('Your Roto Auction'!$Q$5)-11),Pre!$CB27))),AND(NOT(ISERROR(SEARCH(RIGHT('Your Roto Auction'!$Q$5,LEN('Your Roto Auction'!$Q$5)-11),Pre!$CB27))),ISERROR(SEARCH("CF",Pre!$CB27)))),RIGHT('Your Roto Auction'!$Q$5,LEN('Your Roto Auction'!$Q$5)-11)=Pre!BP27),OR(H27="1B",H27="3B",ISNUMBER(SEARCH("1B",Pre!$CB27)),ISNUMBER(SEARCH("3B",Pre!$CB27))),OR(H27="2B",H27="SS",ISNUMBER(SEARCH("2B",Pre!$CB27)),ISNUMBER(SEARCH("SS",Pre!$CB27))),OR(H27="1B",H27="3B",H27="2B",H27="SS",ISNUMBER(SEARCH("1B",Pre!$CB27)),ISNUMBER(SEARCH("3B",Pre!$CB27)),ISNUMBER(SEARCH("2B",Pre!$CB27)),ISNUMBER(SEARCH("SS",Pre!$CB27))),OR(H27="SP",H27="RP",ISNUMBER(SEARCH("SP",Pre!$CB27)),ISNUMBER(SEARCH("RP",Pre!$CB27))),AND(H27<>"RP",H27<>"SP",NOT(ISNUMBER(SEARCH("RP",Pre!$CB27))),NOT(ISNUMBER(SEARCH("SP",Pre!$CB27)))),OR(H27="SP",H27="RP",ISNUMBER(SEARCH("SP",Pre!$CB27)),ISNUMBER(SEARCH("RP",Pre!$CB27)))))) -> TRUE | M27: =IF('Inflation-Tracking'!J30="",-9999,'Inflation-Tracking'!J30) -> -4.513940714 | N27: =IF(LEFT($D27,15)="Unlisted Player",-1001,'All-WERTH'!AQ27) -> -4.731499921 | O27: =IF('Core-Data'!W27="",9999,'Core-Data'!W27) -> 616 | P27: =IF(LEFT($D27,15)="Unlisted Player",-1001,IF('All-WERTH'!S27="",-1000,'All-WERTH'!S27)) -> -1000 | Q27: =IF(LEFT($D27,15)="Unlisted Player",-1001,IF('All-WERTH'!T27="",-1000,'All-WERTH'!T27)) -> -1000 | R27: =IF(LEFT($D27,15)="Unlisted Player",-1001,IF('All-WERTH'!U27="",-1000,'All-WERTH'!U27)) -> -1000 | S27: =IF(LEFT($D27,15)="Unlisted Player",-1001,IF('All-WERTH'!V27="",-1000,'All-WERTH'!V27)) -> -1000 | T27: =IF(LEFT($D27,15)="Unlisted Player",-1001,IF('All-WERTH'!W27="",-1000,'All-WERTH'!W27)) -> -1000 | U27: =IF(LEFT($D27,15)="Unlisted Player",-1001,IF('All-WERTH'!X27="",-1000,'All-WERTH'!X27)) -> -1000 | V27: =IF(LEFT($D27,15)="Unlisted Player",-1001,IF('All-WERTH'!Y27="",-1000,'All-WERTH'!Y27)) -> -1000 | W27: =IF(LEFT($D27,15)="Unlisted Player",-1001,IF('All-WERTH'!Z27="",-1000,'All-WERTH'!Z27)) -> -1000 | X27: =IF(LEFT($D27,15)="Unlisted Player",-1001,IF('All-WERTH'!AA27="",-1000,'All-WERTH'!AA27)) -> -1000 | Y27: =IF(LEFT($D27,15)="Unlisted Player",-1001,IF('All-WERTH'!AB27="",-1000,'All-WERTH'!AB27)) -> -1000 | Z27: =IF(LEFT($D27,15)="Unlisted Player",-1001,IF('All-WERTH'!AC27="",-1000,'All-WERTH'!AC27)) -> -1000 | AA27: =IF(LEFT($D27,15)="Unlisted Player",-1001,IF('All-WERTH'!AD27="",-1000,'All-WERTH'!AD27)) -> -1000 | AB27: =IF(LEFT($D27,15)="Unlisted Player",-1001,IF('All-WERTH'!AE27="",-1000,'All-WERTH'!AE27)) -> -0.03032236458 | AC27: =IF(LEFT($D27,15)="Unlisted Player",-1001,IF('All-WERTH'!AF27="",-1000,'All-WERTH'!AF27)) -> -0.4471231172 | AD27: =IF(LEFT($D27,15)="Unlisted Player",-1001,IF('All-WERTH'!AG27="",-1000,'All-WERTH'!AG27)) -> -0.1480053268 | AE27: =IF(LEFT($D27,15)="Unlisted Player",-1001,IF('All-WERTH'!AH27="",-1000,'All-WERTH'!AH27)) -> -2.63841329 | AF27: =IF(LEFT($D27,15)="Unlisted Player",-1001,IF('All-WERTH'!AI27="",-1000,'All-WERTH'!AI27)) -> -1.467635822 | AG27: =IF(LEFT($D27,15)="Unlisted Player",-1001,IF('All-WERTH'!AJ27="",-1000,'All-WERTH'!AJ27)) -> -1000 | AH27: =IF(LEFT($D27,15)="Unlisted Player",-1001,IF('All-WERTH'!AK27="",-1000,'All-WERTH'!AK27)) -> -1000 | AI27: =IF(LEFT($D27,15)="Unlisted Player",-1001,IF('All-WERTH'!AL27="",-1000,'All-WERTH'!AL27)) -> -1000 | AJ27: =IF(LEFT($D27,15)="Unlisted Player",-1001,IF('All-WERTH'!AM27="",-1000,'All-WERTH'!AM27)) -> -1000 | AK27: =IF(LEFT($D27,15)="Unlisted Player",-1001,IF('All-WERTH'!AN27="",-1000,'All-WERTH'!AN27)) -> -1000 | AL27: =IF(LEFT($D27,15)="Unlisted Player",-1001,IF('All-WERTH'!AO27="",-1000,'All-WERTH'!AO27)) -> -1000 | AM27: =IF(LEFT($D27,15)="Unlisted Player",-1001,IF('All-WERTH'!AP27="",-1000,'All-WERTH'!AP27)) -> -1000 | AN27: =IF(LEFT($D27,15)="Unlisted Player",-1001,'All-WERTH'!AT27) -> -1.631313876
A28: Gunnar Henderson | B28: =IFERROR(INDEX($A$1:$A$977,SMALL(IF($A$1:$A$977<>"",ROW($A$1:$A$977)),ROW(A27))),"") -> Gunnar Henderson | C28: =IFERROR(IF(L28=FALSE,"",CHOOSE(MATCH(RIGHT('Your Roto Auction'!$Q$4,LEN('Your Roto Auction'!$Q$4)-8),$M$1:$AN$1,0),1+SUMPRODUCT(($L$2:$L$978=TRUE)*($M$2:$M$978>M28))+COUNTIFS($L$2:L28,L28,$M$2:M28,M28)-1,1+SUMPRODUCT(($L$2:$L$978=TRUE)*($N$2:$N$978>N28))+COUNTIFS($L$2:L28,L28,$N$2:N28,N28)-1,1+SUMPRODUCT(($L$2:$L$978=TRUE)*($O$2:$O$978<O28))+COUNTIFS($L$2:L28,L28,$O$2:O28,O28)-1,1+SUMPRODUCT(($L$2:$L$978=TRUE)*($P$2:$P$978>P28))+COUNTIFS($L$2:L28,L28,$P$2:P28,P28)-1,1+SUMPRODUCT(($L$2:$L$978=TRUE)*($Q$2:$Q$978>Q28))+COUNTIFS($L$2:L28,L28,$Q$2:Q28,Q28)-1,1+SUMPRODUCT(($L$2:$L$978=TRUE)*($R$2:$R$978>R28))+COUNTIFS($L$2:L28,L28,$R$2:R28,R28)-1,1+SUMPRODUCT(($L$2:$L$978=TRUE)*($S$2:$S$978>S28))+COUNTIFS($L$2:L28,L28,$S$2:S28,S28)-1,1+SUMPRODUCT(($L$2:$L$978=TRUE)*($T$2:$T$978>T28))+COUNTIFS($L$2:L28,L28,$T$2:T28,T28)-1,1+SUMPRODUCT(($L$2:$L$978=TRUE)*($U$2:$U$978>U28))+COUNTIFS($L$2:L28,L28,$U$2:U28,U28)-1,1+SUMPRODUCT(($L$2:$L$978=TRUE)*($V$2:$V$978>V28))+COUNTIFS($L$2:L28,L28,$V$2:V28,V28)-1,1+SUMPRODUCT(($L$2:$L$978=TRUE)*($W$2:$W$978>W28))+COUNTIFS($L$2:L28,L28,$W$2:W28,W28)-1,1+SUMPRODUCT(($L$2:$L$978=TRUE)*($X$2:$X$978>X28))+COUNTIFS($L$2:L28,L28,$X$2:X28,X28)-1,1+SUMPRODUCT(($L$2:$L$978=TRUE)*($Y$2:$Y$978>Y28))+COUNTIFS($L$2:L28,L28,$Y$2:Y28,Y28)-1,1+SUMPRODUCT(($L$2:$L$978=TRUE)*($Z$2:$Z$978>Z28))+COUNTIFS($L$2:L28,L28,$Z$2:Z28,Z28)-1,1+SUMPRODUCT(($L$2:$L$978=TRUE)*($AA$2:$AA$978>AA28))+COUNTIFS($L$2:L28,L28,$AA$2:AA28,AA28)-1,1+SUMPRODUCT(($L$2:$L$978=TRUE)*($AB$2:$AB$978>AB28))+COUNTIFS($L$2:L28,L28,$AB$2:AB28,AB28)-1,1+SUMPRODUCT(($L$2:$L$978=TRUE)*($AC$2:$AC$978>AC28))+COUNTIFS($L$2:L28,L28,$AC$2:AC28,AC28)-1,1+SUMPRODUCT(($L$2:$L$978=TRUE)*($AD$2:$AD$978>AD28))+COUNTIFS($L$2:L28,L28,$AD$2:AD28,AD28)-1,1+SUMPRODUCT(($L$2:$L$978=TRUE)*($AE$2:$AE$978>AE28))+COUNTIFS($L$2:L28,L28,$AE$2:AE28,AE28)-1,1+SUMPRODUCT(($L$2:$L$978=TRUE)*($AF$2:$AF$978>AF28))+COUNTIFS($L$2:L28,L28,$AF$2:AF28,AF28)-1,1+SUMPRODUCT(($L$2:$L$978=TRUE)*($AG$2:$AG$978>AG28))+COUNTIFS($L$2:L28,L28,$AG$2:AG28,AG28)-1,1+SUMPRODUCT(($L$2:$L$978=TRUE)*($AH$2:$AH$978>AH28))+COUNTIFS($L$2:L28,L28,$AH$2:AH28,AH28)-1,1+SUMPRODUCT(($L$2:$L$978=TRUE)*($AI$2:$AI$978>AI28))+COUNTIFS($L$2:L28,L28,$AI$2:AI28,AI28)-1,1+SUMPRODUCT(($L$2:$L$978=TRUE)*($AJ$2:$AJ$978>AJ28))+COUNTIFS($L$2:L28,L28,$AJ$2:AJ28,AJ28)-1,1+SUMPRODUCT(($L$2:$L$978=TRUE)*($AK$2:$AK$978>AK28))+COUNTIFS($L$2:L28,L28,$AK$2:AK28,AK28)-1,1+SUMPRODUCT(($L$2:$L$978=TRUE)*($AL$2:$AL$978>AL28))+COUNTIFS($L$2:L28,L28,$AL$2:AL28,AL28)-1,1+SUMPRODUCT(($L$2:$L$978=TRUE)*($AM$2:$AM$978>AM28))+COUNTIFS($L$2:L28,L28,$AM$2:AM28,AM28)-1,1+SUMPRODUCT(($L$2:$L$978=TRUE)*($AN$2:$AN$978>AN28))+COUNTIFS($L$2:L28,L28,$AN$2:AN28,AN28)-1)),"") -> 742 | D28: Elvis Andrus | E28: =IFERROR(INDEX('Auction Log'!$C$4:$C$806,MATCH(D28,'Auction Log'!$B$4:$B$806,0)),"") ->  | F28: =IFERROR(INDEX('Core-Data'!$C$2:$C$982,MATCH(D28,'Core-Data'!$A$2:$A$982,0)),"") -> 2B | H28: 2B | I28: =IF(AND(F28="OF",'Guts-2'!$N$9=0),IF(MAX(Pre!J28:L28)=Pre!J28,"LF",IF(MAX(Pre!J28:L28)=Pre!K28,"CF",IF(MAX(Pre!J28:L28)=Pre!L28,"RF","LF"))),"") ->  | J28: =IFERROR(INDEX('Core-Data'!$U$2:$U$982,MATCH(D28,'Core-Data'!$A$2:$A$982,0)),TRUE) -> TRUE | K28: FALSE | L28: =IF(J28=FALSE,FALSE,IF(AND('Your Roto Auction'!$Q$6="Hide Drafted Players",K28=TRUE),FALSE,CHOOSE($I$1,TRUE,OR(RIGHT('Your Roto Auction'!$Q$5,LEN('Your Roto Auction'!$Q$5)-11)=H28,IF(RIGHT('Your Roto Auction'!$Q$5,LEN('Your Roto Auction'!$Q$5)-11)<>"C",NOT(ISERROR(SEARCH(RIGHT('Your Roto Auction'!$Q$5,LEN('Your Roto Auction'!$Q$5)-11),Pre!$CB28))),AND(NOT(ISERROR(SEARCH(RIGHT('Your Roto Auction'!$Q$5,LEN('Your Roto Auction'!$Q$5)-11),Pre!$CB28))),ISERROR(SEARCH("CF",Pre!$CB28)))),RIGHT('Your Roto Auction'!$Q$5,LEN('Your Roto Auction'!$Q$5)-11)=Pre!BP28),OR(H28="1B",H28="3B",ISNUMBER(SEARCH("1B",Pre!$CB28)),ISNUMBER(SEARCH("3B",Pre!$CB28))),OR(H28="2B",H28="SS",ISNUMBER(SEARCH("2B",Pre!$CB28)),ISNUMBER(SEARCH("SS",Pre!$CB28))),OR(H28="1B",H28="3B",H28="2B",H28="SS",ISNUMBER(SEARCH("1B",Pre!$CB28)),ISNUMBER(SEARCH("3B",Pre!$CB28)),ISNUMBER(SEARCH("2B",Pre!$CB28)),ISNUMBER(SEARCH("SS",Pre!$CB28))),OR(H28="SP",H28="RP",ISNUMBER(SEARCH("SP",Pre!$CB28)),ISNUMBER(SEARCH("RP",Pre!$CB28))),AND(H28<>"RP",H28<>"SP",NOT(ISNUMBER(SEARCH("RP",Pre!$CB28))),NOT(ISNUMBER(SEARCH("SP",Pre!$CB28)))),OR(H28="SP",H28="RP",ISNUMBER(SEARCH("SP",Pre!$CB28)),ISNUMBER(SEARCH("RP",Pre!$CB28)))))) -> TRUE | M28: =IF('Inflation-Tracking'!J31="",-9999,'Inflation-Tracking'!J31) -> -9999 | N28: =IF(LEFT($D28,15)="Unlisted Player",-1001,'All-WERTH'!AQ28) -> -1000 | O28: =IF('Core-Data'!W28="",9999,'Core-Data'!W28) -> 741 | P28: =IF(LEFT($D28,15)="Unlisted Player",-1001,IF('All-WERTH'!S28="",-1000,'All-WERTH'!S28)) -> -1000 | Q28: =IF(LEFT($D28,15)="Unlisted Player",-1001,IF('All-WERTH'!T28="",-1000,'All-WERTH'!T28)) -> -1000 | R28: =IF(LEFT($D28,15)="Unlisted Player",-1001,IF('All-WERTH'!U28="",-1000,'All-WERTH'!U28)) -> -1000 | S28: =IF(LEFT($D28,15)="Unlisted Player",-1001,IF('All-WERTH'!V28="",-1000,'All-WERTH'!V28)) -> -1000 | T28: =IF(LEFT($D28,15)="Unlisted Player",-1001,IF('All-WERTH'!W28="",-1000,'All-WERTH'!W28)) -> -1000 | U28: =IF(LEFT($D28,15)="Unlisted Player",-1001,IF('All-WERTH'!X28="",-1000,'All-WERTH'!X28)) -> -1000 | V28: =IF(LEFT($D28,15)="Unlisted Player",-1001,IF('All-WERTH'!Y28="",-1000,'All-WERTH'!Y28)) -> -1000 | W28: =IF(LEFT($D28,15)="Unlisted Player",-1001,IF('All-WERTH'!Z28="",-1000,'All-WERTH'!Z28)) -> -1000 | X28: =IF(LEFT($D28,15)="Unlisted Player",-1001,IF('All-WERTH'!AA28="",-1000,'All-WERTH'!AA28)) -> -1000 | Y28: =IF(LEFT($D28,15)="Unlisted Player",-1001,IF('All-WERTH'!AB28="",-1000,'All-WERTH'!AB28)) -> -1000 | Z28: =IF(LEFT($D28,15)="Unlisted Player",-1001,IF('All-WERTH'!AC28="",-1000,'All-WERTH'!AC28)) -> -1000 | AA28: =IF(LEFT($D28,15)="Unlisted Player",-1001,IF('All-WERTH'!AD28="",-1000,'All-WERTH'!AD28)) -> -1000 | AB28: =IF(LEFT($D28,15)="Unlisted Player",-1001,IF('All-WERTH'!AE28="",-1000,'All-WERTH'!AE28)) -> -1000 | AC28: =IF(LEFT($D28,15)="Unlisted Player",-1001,IF('All-WERTH'!AF28="",-1000,'All-WERTH'!AF28)) -> -1000 | AD28: =IF(LEFT($D28,15)="Unlisted Player",-1001,IF('All-WERTH'!AG28="",-1000,'All-WERTH'!AG28)) -> -1000 | AE28: =IF(LEFT($D28,15)="Unlisted Player",-1001,IF('All-WERTH'!AH28="",-1000,'All-WERTH'!AH28)) -> -1000 | AF28: =IF(LEFT($D28,15)="Unlisted Player",-1001,IF('All-WERTH'!AI28="",-1000,'All-WERTH'!AI28)) -> -1000 | AG28: =IF(LEFT($D28,15)="Unlisted Player",-1001,IF('All-WERTH'!AJ28="",-1000,'All-WERTH'!AJ28)) -> -1000 | AH28: =IF(LEFT($D28,15)="Unlisted Player",-1001,IF('All-WERTH'!AK28="",-1000,'All-WERTH'!AK28)) -> -1000 | AI28: =IF(LEFT($D28,15)="Unlisted Player",-1001,IF('All-WERTH'!AL28="",-1000,'All-WERTH'!AL28)) -> -1000 | AJ28: =IF(LEFT($D28,15)="Unlisted Player",-1001,IF('All-WERTH'!AM28="",-1000,'All-WERTH'!AM28)) -> -1000 | AK28: =IF(LEFT($D28,15)="Unlisted Player",-1001,IF('All-WERTH'!AN28="",-1000,'All-WERTH'!AN28)) -> -1000 | AL28: =IF(LEFT($D28,15)="Unlisted Player",-1001,IF('All-WERTH'!AO28="",-1000,'All-WERTH'!AO28)) -> -1000 | AM28: =IF(LEFT($D28,15)="Unlisted Player",-1001,IF('All-WERTH'!AP28="",-1000,'All-WERTH'!AP28)) -> -1000 | AN28: =IF(LEFT($D28,15)="Unlisted Player",-1001,'All-WERTH'!AT28) -> -996.1615136
A29: Michael Harris II | B29: =IFERROR(INDEX($A$1:$A$977,SMALL(IF($A$1:$A$977<>"",ROW($A$1:$A$977)),ROW(A28))),"") -> Michael Harris II | C29: =IFERROR(IF(L29=FALSE,"",CHOOSE(MATCH(RIGHT('Your Roto Auction'!$Q$4,LEN('Your Roto Auction'!$Q$4)-8),$M$1:$AN$1,0),1+SUMPRODUCT(($L$2:$L$978=TRUE)*($M$2:$M$978>M29))+COUNTIFS($L$2:L29,L29,$M$2:M29,M29)-1,1+SUMPRODUCT(($L$2:$L$978=TRUE)*($N$2:$N$978>N29))+COUNTIFS($L$2:L29,L29,$N$2:N29,N29)-1,1+SUMPRODUCT(($L$2:$L$978=TRUE)*($O$2:$O$978<O29))+COUNTIFS($L$2:L29,L29,$O$2:O29,O29)-1,1+SUMPRODUCT(($L$2:$L$978=TRUE)*($P$2:$P$978>P29))+COUNTIFS($L$2:L29,L29,$P$2:P29,P29)-1,1+SUMPRODUCT(($L$2:$L$978=TRUE)*($Q$2:$Q$978>Q29))+COUNTIFS($L$2:L29,L29,$Q$2:Q29,Q29)-1,1+SUMPRODUCT(($L$2:$L$978=TRUE)*($R$2:$R$978>R29))+COUNTIFS($L$2:L29,L29,$R$2:R29,R29)-1,1+SUMPRODUCT(($L$2:$L$978=TRUE)*($S$2:$S$978>S29))+COUNTIFS($L$2:L29,L29,$S$2:S29,S29)-1,1+SUMPRODUCT(($L$2:$L$978=TRUE)*($T$2:$T$978>T29))+COUNTIFS($L$2:L29,L29,$T$2:T29,T29)-1,1+SUMPRODUCT(($L$2:$L$978=TRUE)*($U$2:$U$978>U29))+COUNTIFS($L$2:L29,L29,$U$2:U29,U29)-1,1+SUMPRODUCT(($L$2:$L$978=TRUE)*($V$2:$V$978>V29))+COUNTIFS($L$2:L29,L29,$V$2:V29,V29)-1,1+SUMPRODUCT(($L$2:$L$978=TRUE)*($W$2:$W$978>W29))+COUNTIFS($L$2:L29,L29,$W$2:W29,W29)-1,1+SUMPRODUCT(($L$2:$L$978=TRUE)*($X$2:$X$978>X29))+COUNTIFS($L$2:L29,L29,$X$2:X29,X29)-1,1+SUMPRODUCT(($L$2:$L$978=TRUE)*($Y$2:$Y$978>Y29))+COUNTIFS($L$2:L29,L29,$Y$2:Y29,Y29)-1,1+SUMPRODUCT(($L$2:$L$978=TRUE)*($Z$2:$Z$978>Z29))+COUNTIFS($L$2:L29,L29,$Z$2:Z29,Z29)-1,1+SUMPRODUCT(($L$2:$L$978=TRUE)*($AA$2:$AA$978>AA29))+COUNTIFS($L$2:L29,L29,$AA$2:AA29,AA29)-1,1+SUMPRODUCT(($L$2:$L$978=TRUE)*($AB$2:$AB$978>AB29))+COUNTIFS($L$2:L29,L29,$AB$2:AB29,AB29)-1,1+SUMPRODUCT(($L$2:$L$978=TRUE)*($AC$2:$AC$978>AC29))+COUNTIFS($L$2:L29,L29,$AC$2:AC29,AC29)-1,1+SUMPRODUCT(($L$2:$L$978=TRUE)*($AD$2:$AD$978>AD29))+COUNTIFS($L$2:L29,L29,$AD$2:AD29,AD29)-1,1+SUMPRODUCT(($L$2:$L$978=TRUE)*($AE$2:$AE$978>AE29))+COUNTIFS($L$2:L29,L29,$AE$2:AE29,AE29)-1,1+SUMPRODUCT(($L$2:$L$978=TRUE)*($AF$2:$AF$978>AF29))+COUNTIFS($L$2:L29,L29,$AF$2:AF29,AF29)-1,1+SUMPRODUCT(($L$2:$L$978=TRUE)*($AG$2:$AG$978>AG29))+COUNTIFS($L$2:L29,L29,$AG$2:AG29,AG29)-1,1+SUMPRODUCT(($L$2:$L$978=TRUE)*($AH$2:$AH$978>AH29))+COUNTIFS($L$2:L29,L29,$AH$2:AH29,AH29)-1,1+SUMPRODUCT(($L$2:$L$978=TRUE)*($AI$2:$AI$978>AI29))+COUNTIFS($L$2:L29,L29,$AI$2:AI29,AI29)-1,1+SUMPRODUCT(($L$2:$L$978=TRUE)*($AJ$2:$AJ$978>AJ29))+COUNTIFS($L$2:L29,L29,$AJ$2:AJ29,AJ29)-1,1+SUMPRODUCT(($L$2:$L$978=TRUE)*($AK$2:$AK$978>AK29))+COUNTIFS($L$2:L29,L29,$AK$2:AK29,AK29)-1,1+SUMPRODUCT(($L$2:$L$978=TRUE)*($AL$2:$AL$978>AL29))+COUNTIFS($L$2:L29,L29,$AL$2:AL29,AL29)-1,1+SUMPRODUCT(($L$2:$L$978=TRUE)*($AM$2:$AM$978>AM29))+COUNTIFS($L$2:L29,L29,$AM$2:AM29,AM29)-1,1+SUMPRODUCT(($L$2:$L$978=TRUE)*($AN$2:$AN$978>AN29))+COUNTIFS($L$2:L29,L29,$AN$2:AN29,AN29)-1)),"") -> 573 | D29: Miguel Andujar | E29: =IFERROR(INDEX('Auction Log'!$C$4:$C$806,MATCH(D29,'Auction Log'!$B$4:$B$806,0)),"") ->  | F29: =IFERROR(INDEX('Core-Data'!$C$2:$C$982,MATCH(D29,'Core-Data'!$A$2:$A$982,0)),"") -> OF | H29: OF | I29: =IF(AND(F29="OF",'Guts-2'!$N$9=0),IF(MAX(Pre!J29:L29)=Pre!J29,"LF",IF(MAX(Pre!J29:L29)=Pre!K29,"CF",IF(MAX(Pre!J29:L29)=Pre!L29,"RF","LF"))),"") ->  | J29: =IFERROR(INDEX('Core-Data'!$U$2:$U$982,MATCH(D29,'Core-Data'!$A$2:$A$982,0)),TRUE) -> TRUE | K29: FALSE | L29: =IF(J29=FALSE,FALSE,IF(AND('Your Roto Auction'!$Q$6="Hide Drafted Players",K29=TRUE),FALSE,CHOOSE($I$1,TRUE,OR(RIGHT('Your Roto Auction'!$Q$5,LEN('Your Roto Auction'!$Q$5)-11)=H29,IF(RIGHT('Your Roto Auction'!$Q$5,LEN('Your Roto Auction'!$Q$5)-11)<>"C",NOT(ISERROR(SEARCH(RIGHT('Your Roto Auction'!$Q$5,LEN('Your Roto Auction'!$Q$5)-11),Pre!$CB29))),AND(NOT(ISERROR(SEARCH(RIGHT('Your Roto Auction'!$Q$5,LEN('Your Roto Auction'!$Q$5)-11),Pre!$CB29))),ISERROR(SEARCH("CF",Pre!$CB29)))),RIGHT('Your Roto Auction'!$Q$5,LEN('Your Roto Auction'!$Q$5)-11)=Pre!BP29),OR(H29="1B",H29="3B",ISNUMBER(SEARCH("1B",Pre!$CB29)),ISNUMBER(SEARCH("3B",Pre!$CB29))),OR(H29="2B",H29="SS",ISNUMBER(SEARCH("2B",Pre!$CB29)),ISNUMBER(SEARCH("SS",Pre!$CB29))),OR(H29="1B",H29="3B",H29="2B",H29="SS",ISNUMBER(SEARCH("1B",Pre!$CB29)),ISNUMBER(SEARCH("3B",Pre!$CB29)),ISNUMBER(SEARCH("2B",Pre!$CB29)),ISNUMBER(SEARCH("SS",Pre!$CB29))),OR(H29="SP",H29="RP",ISNUMBER(SEARCH("SP",Pre!$CB29)),ISNUMBER(SEARCH("RP",Pre!$CB29))),AND(H29<>"RP",H29<>"SP",NOT(ISNUMBER(SEARCH("RP",Pre!$CB29))),NOT(ISNUMBER(SEARCH("SP",Pre!$CB29)))),OR(H29="SP",H29="RP",ISNUMBER(SEARCH("SP",Pre!$CB29)),ISNUMBER(SEARCH("RP",Pre!$CB29)))))) -> TRUE | M29: =IF('Inflation-Tracking'!J32="",-9999,'Inflation-Tracking'!J32) -> -14.0894352 | N29: =IF(LEFT($D29,15)="Unlisted Player",-1001,'All-WERTH'!AQ29) -> -7.177205212 | O29: =IF('Core-Data'!W29="",9999,'Core-Data'!W29) -> 699 | P29: =IF(LEFT($D29,15)="Unlisted Player",-1001,IF('All-WERTH'!S29="",-1000,'All-WERTH'!S29)) -> -0.2557454161 | Q29: =IF(LEFT($D29,15)="Unlisted Player",-1001,IF('All-WERTH'!T29="",-1000,'All-WERTH'!T29)) -> -1.618024539 | R29: =IF(LEFT($D29,15)="Unlisted Player",-1001,IF('All-WERTH'!U29="",-1000,'All-WERTH'!U29)) -> -2.491298187 | S29: =IF(LEFT($D29,15)="Unlisted Player",-1001,IF('All-WERTH'!V29="",-1000,'All-WERTH'!V29)) -> -2.055488986 | T29: =IF(LEFT($D29,15)="Unlisted Player",-1001,IF('All-WERTH'!W29="",-1000,'All-WERTH'!W29)) -> -0.756648084 | U29: =IF(LEFT($D29,15)="Unlisted Player",-1001,IF('All-WERTH'!X29="",-1000,'All-WERTH'!X29)) -> -1000 | V29: =IF(LEFT($D29,15)="Unlisted Player",-1001,IF('All-WERTH'!Y29="",-1000,'All-WERTH'!Y29)) -> -1000 | W29: =IF(LEFT($D29,15)="Unlisted Player",-1001,IF('All-WERTH'!Z29="",-1000,'All-WERTH'!Z29)) -> -1000 | X29: =IF(LEFT($D29,15)="Unlisted Player",-1001,IF('All-WERTH'!AA29="",-1000,'All-WERTH'!AA29)) -> -1000 | Y29: =IF(LEFT($D29,15)="Unlisted Player",-1001,IF('All-WERTH'!AB29="",-1000,'All-WERTH'!AB29)) -> -1000 | Z29: =IF(LEFT($D29,15)="Unlisted Player",-1001,IF('All-WERTH'!AC29="",-1000,'All-WERTH'!AC29)) -> -1000 | AA29: =IF(LEFT($D29,15)="Unlisted Player",-1001,IF('All-WERTH'!AD29="",-1000,'All-WERTH'!AD29)) -> -1000 | AB29: =IF(LEFT($D29,15)="Unlisted Player",-1001,IF('All-WERTH'!AE29="",-1000,'All-WERTH'!AE29)) -> -1000 | AC29: =IF(LEFT($D29,15)="Unlisted Player",-1001,IF('All-WERTH'!AF29="",-1000,'All-WERTH'!AF29)) -> -1000 | AD29: =IF(LEFT($D29,15)="Unlisted Player",-1001,IF('All-WERTH'!AG29="",-1000,'All-WERTH'!AG29)) -> -1000 | AE29: =IF(LEFT($D29,15)="Unlisted Player",-1001,IF('All-WERTH'!AH29="",-1000,'All-WERTH'!AH29)) -> -1000 | AF29: =IF(LEFT($D29,15)="Unlisted Player",-1001,IF('All-WERTH'!AI29="",-1000,'All-WERTH'!AI29)) -> -1000 | AG29: =IF(LEFT($D29,15)="Unlisted Player",-1001,IF('All-WERTH'!AJ29="",-1000,'All-WERTH'!AJ29)) -> -1000 | AH29: =IF(LEFT($D29,15)="Unlisted Player",-1001,IF('All-WERTH'!AK29="",-1000,'All-WERTH'!AK29)) -> -1000 | AI29: =IF(LEFT($D29,15)="Unlisted Player",-1001,IF('All-WERTH'!AL29="",-1000,'All-WERTH'!AL29)) -> -1000 | AJ29: =IF(LEFT($D29,15)="Unlisted Player",-1001,IF('All-WERTH'!AM29="",-1000,'All-WERTH'!AM29)) -> -1000 | AK29: =IF(LEFT($D29,15)="Unlisted Player",-1001,IF('All-WERTH'!AN29="",-1000,'All-WERTH'!AN29)) -> -1000 | AL29: =IF(LEFT($D29,15)="Unlisted Player",-1001,IF('All-WERTH'!AO29="",-1000,'All-WERTH'!AO29)) -> -1000 | AM29: =IF(LEFT($D29,15)="Unlisted Player",-1001,IF('All-WERTH'!AP29="",-1000,'All-WERTH'!AP29)) -> -1000 | AN29: =IF(LEFT($D29,15)="Unlisted Player",-1001,'All-WERTH'!AT29) -> -3.783472564
A30: Elly De La Cruz | B30: =IFERROR(INDEX($A$1:$A$977,SMALL(IF($A$1:$A$977<>"",ROW($A$1:$A$977)),ROW(A29))),"") -> Elly De La Cruz | C30: =IFERROR(IF(L30=FALSE,"",CHOOSE(MATCH(RIGHT('Your Roto Auction'!$Q$4,LEN('Your Roto Auction'!$Q$4)-8),$M$1:$AN$1,0),1+SUMPRODUCT(($L$2:$L$978=TRUE)*($M$2:$M$978>M30))+COUNTIFS($L$2:L30,L30,$M$2:M30,M30)-1,1+SUMPRODUCT(($L$2:$L$978=TRUE)*($N$2:$N$978>N30))+COUNTIFS($L$2:L30,L30,$N$2:N30,N30)-1,1+SUMPRODUCT(($L$2:$L$978=TRUE)*($O$2:$O$978<O30))+COUNTIFS($L$2:L30,L30,$O$2:O30,O30)-1,1+SUMPRODUCT(($L$2:$L$978=TRUE)*($P$2:$P$978>P30))+COUNTIFS($L$2:L30,L30,$P$2:P30,P30)-1,1+SUMPRODUCT(($L$2:$L$978=TRUE)*($Q$2:$Q$978>Q30))+COUNTIFS($L$2:L30,L30,$Q$2:Q30,Q30)-1,1+SUMPRODUCT(($L$2:$L$978=TRUE)*($R$2:$R$978>R30))+COUNTIFS($L$2:L30,L30,$R$2:R30,R30)-1,1+SUMPRODUCT(($L$2:$L$978=TRUE)*($S$2:$S$978>S30))+COUNTIFS($L$2:L30,L30,$S$2:S30,S30)-1,1+SUMPRODUCT(($L$2:$L$978=TRUE)*($T$2:$T$978>T30))+COUNTIFS($L$2:L30,L30,$T$2:T30,T30)-1,1+SUMPRODUCT(($L$2:$L$978=TRUE)*($U$2:$U$978>U30))+COUNTIFS($L$2:L30,L30,$U$2:U30,U30)-1,1+SUMPRODUCT(($L$2:$L$978=TRUE)*($V$2:$V$978>V30))+COUNTIFS($L$2:L30,L30,$V$2:V30,V30)-1,1+SUMPRODUCT(($L$2:$L$978=TRUE)*($W$2:$W$978>W30))+COUNTIFS($L$2:L30,L30,$W$2:W30,W30)-1,1+SUMPRODUCT(($L$2:$L$978=TRUE)*($X$2:$X$978>X30))+COUNTIFS($L$2:L30,L30,$X$2:X30,X30)-1,1+SUMPRODUCT(($L$2:$L$978=TRUE)*($Y$2:$Y$978>Y30))+COUNTIFS($L$2:L30,L30,$Y$2:Y30,Y30)-1,1+SUMPRODUCT(($L$2:$L$978=TRUE)*($Z$2:$Z$978>Z30))+COUNTIFS($L$2:L30,L30,$Z$2:Z30,Z30)-1,1+SUMPRODUCT(($L$2:$L$978=TRUE)*($AA$2:$AA$978>AA30))+COUNTIFS($L$2:L30,L30,$AA$2:AA30,AA30)-1,1+SUMPRODUCT(($L$2:$L$978=TRUE)*($AB$2:$AB$978>AB30))+COUNTIFS($L$2:L30,L30,$AB$2:AB30,AB30)-1,1+SUMPRODUCT(($L$2:$L$978=TRUE)*($AC$2:$AC$978>AC30))+COUNTIFS($L$2:L30,L30,$AC$2:AC30,AC30)-1,1+SUMPRODUCT(($L$2:$L$978=TRUE)*($AD$2:$AD$978>AD30))+COUNTIFS($L$2:L30,L30,$AD$2:AD30,AD30)-1,1+SUMPRODUCT(($L$2:$L$978=TRUE)*($AE$2:$AE$978>AE30))+COUNTIFS($L$2:L30,L30,$AE$2:AE30,AE30)-1,1+SUMPRODUCT(($L$2:$L$978=TRUE)*($AF$2:$AF$978>AF30))+COUNTIFS($L$2:L30,L30,$AF$2:AF30,AF30)-1,1+SUMPRODUCT(($L$2:$L$978=TRUE)*($AG$2:$AG$978>AG30))+COUNTIFS($L$2:L30,L30,$AG$2:AG30,AG30)-1,1+SUMPRODUCT(($L$2:$L$978=TRUE)*($AH$2:$AH$978>AH30))+COUNTIFS($L$2:L30,L30,$AH$2:AH30,AH30)-1,1+SUMPRODUCT(($L$2:$L$978=TRUE)*($AI$2:$AI$978>AI30))+COUNTIFS($L$2:L30,L30,$AI$2:AI30,AI30)-1,1+SUMPRODUCT(($L$2:$L$978=TRUE)*($AJ$2:$AJ$978>AJ30))+COUNTIFS($L$2:L30,L30,$AJ$2:AJ30,AJ30)-1,1+SUMPRODUCT(($L$2:$L$978=TRUE)*($AK$2:$AK$978>AK30))+COUNTIFS($L$2:L30,L30,$AK$2:AK30,AK30)-1,1+SUMPRODUCT(($L$2:$L$978=TRUE)*($AL$2:$AL$978>AL30))+COUNTIFS($L$2:L30,L30,$AL$2:AL30,AL30)-1,1+SUMPRODUCT(($L$2:$L$978=TRUE)*($AM$2:$AM$978>AM30))+COUNTIFS($L$2:L30,L30,$AM$2:AM30,AM30)-1,1+SUMPRODUCT(($L$2:$L$978=TRUE)*($AN$2:$AN$978>AN30))+COUNTIFS($L$2:L30,L30,$AN$2:AN30,AN30)-1)),"") -> 743 | D30: Roman Anthony | E30: =IFERROR(INDEX('Auction Log'!$C$4:$C$806,MATCH(D30,'Auction Log'!$B$4:$B$806,0)),"") ->  | F30: =IFERROR(INDEX('Core-Data'!$C$2:$C$982,MATCH(D30,'Core-Data'!$A$2:$A$982,0)),"") -> OF | H30: OF | I30: =IF(AND(F30="OF",'Guts-2'!$N$9=0),IF(MAX(Pre!J30:L30)=Pre!J30,"LF",IF(MAX(Pre!J30:L30)=Pre!K30,"CF",IF(MAX(Pre!J30:L30)=Pre!L30,"RF","LF"))),"") ->  | J30: =IFERROR(INDEX('Core-Data'!$U$2:$U$982,MATCH(D30,'Core-Data'!$A$2:$A$982,0)),TRUE) -> TRUE | K30: FALSE | L30: =IF(J30=FALSE,FALSE,IF(AND('Your Roto Auction'!$Q$6="Hide Drafted Players",K30=TRUE),FALSE,CHOOSE($I$1,TRUE,OR(RIGHT('Your Roto Auction'!$Q$5,LEN('Your Roto Auction'!$Q$5)-11)=H30,IF(RIGHT('Your Roto Auction'!$Q$5,LEN('Your Roto Auction'!$Q$5)-11)<>"C",NOT(ISERROR(SEARCH(RIGHT('Your Roto Auction'!$Q$5,LEN('Your Roto Auction'!$Q$5)-11),Pre!$CB30))),AND(NOT(ISERROR(SEARCH(RIGHT('Your Roto Auction'!$Q$5,LEN('Your Roto Auction'!$Q$5)-11),Pre!$CB30))),ISERROR(SEARCH("CF",Pre!$CB30)))),RIGHT('Your Roto Auction'!$Q$5,LEN('Your Roto Auction'!$Q$5)-11)=Pre!BP30),OR(H30="1B",H30="3B",ISNUMBER(SEARCH("1B",Pre!$CB30)),ISNUMBER(SEARCH("3B",Pre!$CB30))),OR(H30="2B",H30="SS",ISNUMBER(SEARCH("2B",Pre!$CB30)),ISNUMBER(SEARCH("SS",Pre!$CB30))),OR(H30="1B",H30="3B",H30="2B",H30="SS",ISNUMBER(SEARCH("1B",Pre!$CB30)),ISNUMBER(SEARCH("3B",Pre!$CB30)),ISNUMBER(SEARCH("2B",Pre!$CB30)),ISNUMBER(SEARCH("SS",Pre!$CB30))),OR(H30="SP",H30="RP",ISNUMBER(SEARCH("SP",Pre!$CB30)),ISNUMBER(SEARCH("RP",Pre!$CB30))),AND(H30<>"RP",H30<>"SP",NOT(ISNUMBER(SEARCH("RP",Pre!$CB30))),NOT(ISNUMBER(SEARCH("SP",Pre!$CB30)))),OR(H30="SP",H30="RP",ISNUMBER(SEARCH("SP",Pre!$CB30)),ISNUMBER(SEARCH("RP",Pre!$CB30)))))) -> TRUE | M30: =IF('Inflation-Tracking'!J33="",-9999,'Inflation-Tracking'!J33) -> -9999 | N30: =IF(LEFT($D30,15)="Unlisted Player",-1001,'All-WERTH'!AQ30) -> -1000 | O30: =IF('Core-Data'!W30="",9999,'Core-Data'!W30) -> 9999 | P30: =IF(LEFT($D30,15)="Unlisted Player",-1001,IF('All-WERTH'!S30="",-1000,'All-WERTH'!S30)) -> -1000 | Q30: =IF(LEFT($D30,15)="Unlisted Player",-1001,IF('All-WERTH'!T30="",-1000,'All-WERTH'!T30)) -> -1000 | R30: =IF(LEFT($D30,15)="Unlisted Player",-1001,IF('All-WERTH'!U30="",-1000,'All-WERTH'!U30)) -> -1000 | S30: =IF(LEFT($D30,15)="Unlisted Player",-1001,IF('All-WERTH'!V30="",-1000,'All-WERTH'!V30)) -> -1000 | T30: =IF(LEFT($D30,15)="Unlisted Player",-1001,IF('All-WERTH'!W30="",-1000,'All-WERTH'!W30)) -> -1000 | U30: =IF(LEFT($D30,15)="Unlisted Player",-1001,IF('All-WERTH'!X30="",-1000,'All-WERTH'!X30)) -> -1000 | V30: =IF(LEFT($D30,15)="Unlisted Player",-1001,IF('All-WERTH'!Y30="",-1000,'All-WERTH'!Y30)) -> -1000 | W30: =IF(LEFT($D30,15)="Unlisted Player",-1001,IF('All-WERTH'!Z30="",-1000,'All-WERTH'!Z30)) -> -1000 | X30: =IF(LEFT($D30,15)="Unlisted Player",-1001,IF('All-WERTH'!AA30="",-1000,'All-WERTH'!AA30)) -> -1000 | Y30: =IF(LEFT($D30,15)="Unlisted Player",-1001,IF('All-WERTH'!AB30="",-1000,'All-WERTH'!AB30)) -> -1000 | Z30: =IF(LEFT($D30,15)="Unlisted Player",-1001,IF('All-WERTH'!AC30="",-1000,'All-WERTH'!AC30)) -> -1000 | AA30: =IF(LEFT($D30,15)="Unlisted Player",-1001,IF('All-WERTH'!AD30="",-1000,'All-WERTH'!AD30)) -> -1000 | AB30: =IF(LEFT($D30,15)="Unlisted Player",-1001,IF('All-WERTH'!AE30="",-1000,'All-WERTH'!AE30)) -> -1000 | AC30: =IF(LEFT($D30,15)="Unlisted Player",-1001,IF('All-WERTH'!AF30="",-1000,'All-WERTH'!AF30)) -> -1000 | AD30: =IF(LEFT($D30,15)="Unlisted Player",-1001,IF('All-WERTH'!AG30="",-1000,'All-WERTH'!AG30)) -> -1000 | AE30: =IF(LEFT($D30,15)="Unlisted Player",-1001,IF('All-WERTH'!AH30="",-1000,'All-WERTH'!AH30)) -> -1000 | AF30: =IF(LEFT($D30,15)="Unlisted Player",-1001,IF('All-WERTH'!AI30="",-1000,'All-WERTH'!AI30)) -> -1000 | AG30: =IF(LEFT($D30,15)="Unlisted Player",-1001,IF('All-WERTH'!AJ30="",-1000,'All-WERTH'!AJ30)) -> -1000 | AH30: =IF(LEFT($D30,15)="Unlisted Player",-1001,IF('All-WERTH'!AK30="",-1000,'All-WERTH'!AK30)) -> -1000 | AI30: =IF(LEFT($D30,15)="Unlisted Player",-1001,IF('All-WERTH'!AL30="",-1000,'All-WERTH'!AL30)) -> -1000 | AJ30: =IF(LEFT($D30,15)="Unlisted Player",-1001,IF('All-WERTH'!AM30="",-1000,'All-WERTH'!AM30)) -> -1000 | AK30: =IF(LEFT($D30,15)="Unlisted Player",-1001,IF('All-WERTH'!AN30="",-1000,'All-WERTH'!AN30)) -> -1000 | AL30: =IF(LEFT($D30,15)="Unlisted Player",-1001,IF('All-WERTH'!AO30="",-1000,'All-WERTH'!AO30)) -> -1000 | AM30: =IF(LEFT($D30,15)="Unlisted Player",-1001,IF('All-WERTH'!AP30="",-1000,'All-WERTH'!AP30)) -> -1000 | AN30: =IF(LEFT($D30,15)="Unlisted Player",-1001,'All-WERTH'!AT30) -> -996.6062674
